Workbook

Sheet Velkomst

Sheet Tabel 1 H
A1: Tabel 1. Forsikrede medlemmer
A3: Hovedstaden
C5: Mænd | E5: Kvinder | G5: I alt
A7: Civ. ing. | C7: 12250 | E7: 4783 | G7: 17033
A8: Diplom ing. | C8: 9920 | E8: 2487 | G8: 12407
A9: Cand. Scient. Tek. | C9: 5008 | E9: 4593 | G9: 9601
A10: MA. Hum. | C10: 6084 | E10: 13528 | G10: 19612
A11: MA. Nat. | C11: 3641 | E11: 3597 | G11: 7238
A12: MA. Ph.d. | C12: 684 | E12: 551 | G12: 1235
A13: MA. Samf. | C13: 887 | E13: 2212 | G13: 3099
A14: Øvrige Mag. | C14: 526 | E14: 1033 | G14: 1559
A15: Agronom | C15: 386 | E15: 426 | G15: 812
A16: Landsk. Arkt. | C16: 130 | E16: 337 | G16: 467
A17: Hortonom | C17: 58 | E17: 103 | G17: 161
A18: Forstkand. | C18: 196 | E18: 65 | G18: 261
A19: Jordbrugsakad. | C19: 770 | E19: 931 | G19: 1701
A20: Mejeriing. | C20: 60 | E20: 72 | G20: 132
A21: Levn.m.kand. | C21: 41 | E21: 261 | G21: 302
A22: Dyrlæge | C22: 163 | E22: 755 | G22: 918
A23: Farmaceut | C23: 1028 | E23: 2684 | G23: 3712
A24: Læge | C24: 1483 | E24: 3621 | G24: 5104
A25: Tandlæge | C25: 133 | E25: 712 | G25: 845
A26: Arkitekt | C26: 1633 | E26: 1999 | G26: 3632
A27: Landinspek. | C27: 146 | E27: 52 | G27: 198
A28: Bibliotekar | C28: 471 | E28: 1271 | G28: 1742
A29: Musikudd. | C29: 145 | E29: 186 | G29: 331
A30: Teolog | C30: 207 | E30: 344 | G30: 551
A31: Psykolog | C31: 660 | E31: 2877 | G31: 3537
A32: Jurist | C32: 3154 | E32: 6345 | G32: 9499
A33: Økonom | C33: 3372 | E33: 2084 | G33: 5456
A34: Samf. Adm. | C34: 6709 | E34: 9921 | G34: 16630
A35: Cand. Merc. | C35: 9988 | E35: 9722 | G35: 19710
A36: HA | C36: 1297 | E36: 1061 | G36: 2358
A37: HD | C37: 1353 | E37: 1187 | G37: 2540
A38: Komm. og Sprog | C38: 611 | E38: 3345 | G38: 3956
A39: Cand. IT. | C39: 1350 | E39: 1095 | G39: 2445
A40: Bac. Samf. | C40: 321 | E40: 380 | G40: 701
A41: Bac. Hum. | C41: 633 | E41: 1090 | G41: 1723
A42: Bac. Nat. | C42: 673 | E42: 510 | G42: 1183
A43: Andre | C43: 5757 | E43: 6805 | G43: 12562
A45: Total | C45: 81158 | E45: 92094 | G45: 173252
A47: Ingeniører i alt | C47: 22170 | E47: 7270 | G47: 29440
A48: Magistre i alt | C48: 11822 | E48: 20921 | G48: 32743
A49: DJØF'ere i alt | C49: 24520 | E49: 29133 | G49: 53653
A56: København
C58: Mænd | E58: Kvinder | G58: I alt
A60: Civ. ing. | C60: 4126 | E60: 1581 | G60: 5707
A61: Diplom ing. | C61: 2529 | E61: 616 | G61: 3145
A62: Cand. Scient. Tek. | C62: 2745 | E62: 2506 | G62: 5251
A63: MA. Hum. | C63: 4044 | E63: 8235 | G63: 12279
A64: MA. Nat. | C64: 1559 | E64: 1568 | G64: 3127
A65: MA. Ph.d. | C65: 357 | E65: 278 | G65: 635
A66: MA. Samf. | C66: 632 | E66: 1533 | G66: 2165
A67: Øvrige Mag. | C67: 322 | E67: 581 | G67: 903
A68: Agronom | C68: 129 | E68: 149 | G68: 278
A69: Landsk. Arkt. | C69: 75 | E69: 176 | G69: 251
A70: Hortonom | C70: 21 | E70: 32 | G70: 53
A71: Forstkand. | C71: 61 | E71: 25 | G71: 86
A72: Jordbrugsakad. | C72: 286 | E72: 382 | G72: 668
A73: Mejeriing. | C73: 21 | E73: 28 | G73: 49
A74: Levn.m.kand. | C74: 24 | E74: 130 | G74: 154
A75: Dyrlæge | C75: 54 | E75: 262 | G75: 316
A76: Farmaceut | C76: 414 | E76: 858 | G76: 1272
A77: Læge | C77: 688 | E77: 1692 | G77: 2380
A78: Tandlæge | C78: 56 | E78: 259 | G78: 315
A79: Arkitekt | C79: 1031 | E79: 1244 | G79: 2275
A80: Landinspek. | C80: 48 | E80: 15 | G80: 63
A81: Bibliotekar | C81: 266 | E81: 569 | G81: 835
A82: Musikudd. | C82: 66 | E82: 87 | G82: 153
A83: Teolog | C83: 93 | E83: 152 | G83: 245
A84: Psykolog | C84: 426 | E84: 1586 | G84: 2012
A85: Jurist | C85: 1538 | E85: 2784 | G85: 4322
A86: Økonom | C86: 1594 | E86: 958 | G86: 2552
A87: Samf. Adm. | C87: 3982 | E87: 5871 | G87: 9853
A88: Cand. Merc. | C88: 4843 | E88: 4740 | G88: 9583
A89: HA | C89: 557 | E89: 440 | G89: 997
A90: HD | C90: 468 | E90: 561 | G90: 1029
A91: Komm. og Sprog | C91: 397 | E91: 1476 | G91: 1873
A92: Cand. IT. | C92: 828 | E92: 712 | G92: 1540
A93: Bac. Samf. | C93: 192 | E93: 221 | G93: 413
A94: Bac. Hum. | C94: 408 | E94: 672 | G94: 1080
A95: Bac. Nat. | C95: 358 | E95: 294 | G95: 652
A96: Andre | C96: 3038 | E96: 3645 | G96: 6683
A98: Total | C98: 37990 | E98: 46536 | G98: 84526
A100: Ingeniører i alt | C100: 6655 | E100: 2197 | G100: 8852
A101: Magistre i alt | C101: 6914 | E101: 12195 | G101: 19109
A102: DJØF'ere i alt | C102: 12514 | E102: 14793 | G102: 27307
A109: Frederiksberg
C111: Mænd | E111: Kvinder | G111: I alt
A113: Civ. ing. | C113: 769 | E113: 301 | G113: 1070
A114: Diplom ing. | C114: 467 | E114: 105 | G114: 572
A115: Cand. Scient. Tek. | C115: 390 | E115: 392 | G115: 782
A116: MA. Hum. | C116: 547 | E116: 1253 | G116: 1800
A117: MA. Nat. | C117: 263 | E117: 235 | G117: 498
A118: MA. Ph.d. | C118: 66 | E118: 66 | G118: 132
A119: MA. Samf. | C119: 92 | E119: 210 | G119: 302
A120: Øvrige Mag. | C120: 35 | E120: 85 | G120: 120
A121: Agronom | C121: 49 | E121: 35 | G121: 84
A122: Landsk. Arkt. | C122: 13 | E122: 25 | G122: 38
A123: Hortonom | C123: 0 | E123: 7 | G123: 7
A124: Forstkand. | C124: 10 | E124: 5 | G124: 15
A125: Jordbrugsakad. | C125: 72 | E125: 72 | G125: 144
A126: Mejeriing. | C126: 9 | E126: 7 | G126: 16
A127: Levn.m.kand. | C127: 7 | E127: 32 | G127: 39
A128: Dyrlæge | C128: 17 | E128: 62 | G128: 79
A129: Farmaceut | C129: 62 | E129: 169 | G129: 231
A130: Læge | C130: 147 | E130: 326 | G130: 473
A131: Tandlæge | C131: 7 | E131: 58 | G131: 65
A132: Arkitekt | C132: 207 | E132: 221 | G132: 428
A133: Landinspek. | C133: 11 | E133: 4 | G133: 15
A134: Bibliotekar | C134: 37 | E134: 104 | G134: 141
A135: Musikudd. | C135: 15 | E135: 10 | G135: 25
A136: Teolog | C136: 7 | E136: 30 | G136: 37
A137: Psykolog | C137: 58 | E137: 281 | G137: 339
A138: Jurist | C138: 387 | E138: 653 | G138: 1040
A139: Økonom | C139: 332 | E139: 228 | G139: 560
A140: Samf. Adm. | C140: 686 | E140: 1013 | G140: 1699
A141: Cand. Merc. | C141: 1190 | E141: 1139 | G141: 2329
A142: HA | C142: 112 | E142: 97 | G142: 209
A143: HD | C143: 128 | E143: 97 | G143: 225
A144: Komm. og Sprog | C144: 56 | E144: 341 | G144: 397
A145: Cand. IT. | C145: 120 | E145: 91 | G145: 211
A146: Bac. Samf. | C146: 27 | E146: 34 | G146: 61
A147: Bac. Hum. | C147: 66 | E147: 117 | G147: 183
A148: Bac. Nat. | C148: 40 | E148: 45 | G148: 85
A149: Andre | C149: 533 | E149: 640 | G149: 1173
A151: Total | C151: 6962 | E151: 8518 | G151: 15480
A153: Ingeniører i alt | C153: 1236 | E153: 406 | G153: 1642
A154: Magistre i alt | C154: 1003 | E154: 1849 | G154: 2852
A155: DJØF'ere i alt | C155: 2707 | E155: 3130 | G155: 5837
A162: Ballerup
C164: Mænd | E164: Kvinder | G164: I alt
A166: Civ. ing. | C166: 350 | E166: 146 | G166: 496
A167: Diplom ing. | C167: 387 | E167: 110 | G167: 497
A168: Cand. Scient. Tek. | C168: 91 | E168: 87 | G168: 178
A169: MA. Hum. | C169: 59 | E169: 141 | G169: 200
A170: MA. Nat. | C170: 85 | E170: 85 | G170: 170
A171: MA. Ph.d. | C171: 13 | E171: 9 | G171: 22
A172: MA. Samf. | C172: 14 | E172: 11 | G172: 25
A173: Øvrige Mag. | C173: 7 | E173: 19 | G173: 26
A174: Agronom | C174: 10 | E174: 13 | G174: 23
A175: Landsk. Arkt. | C175: 2 | E175: 6 | G175: 8
A176: Hortonom | C176: 1 | E176: 2 | G176: 3
A177: Forstkand. | C177: 3 | E177: 1 | G177: 4
A178: Jordbrugsakad. | C178: 16 | E178: 22 | G178: 38
A179: Mejeriing. | C179: 1 | E179: 2 | G179: 3
A180: Levn.m.kand. | C180: 0 | E180: 3 | G180: 3
A181: Dyrlæge | C181: 4 | E181: 23 | G181: 27
A182: Farmaceut | C182: 32 | E182: 91 | G182: 123
A183: Læge | C183: 30 | E183: 53 | G183: 83
A184: Tandlæge | C184: 1 | E184: 14 | G184: 15
A185: Arkitekt | C185: 8 | E185: 8 | G185: 16
A186: Landinspek. | C186: 4 | E186: 1 | G186: 5
A187: Bibliotekar | C187: 12 | E187: 33 | G187: 45
A188: Musikudd. | C188: 3 | E188: 6 | G188: 9
A189: Teolog | C189: 3 | E189: 7 | G189: 10
A190: Psykolog | C190: 8 | E190: 38 | G190: 46
A191: Jurist | C191: 25 | E191: 72 | G191: 97
A192: Økonom | C192: 55 | E192: 20 | G192: 75
A193: Samf. Adm. | C193: 73 | E193: 105 | G193: 178
A194: Cand. Merc. | C194: 120 | E194: 130 | G194: 250
A195: HA | C195: 21 | E195: 17 | G195: 38
A196: HD | C196: 22 | E196: 15 | G196: 37
A197: Komm. og Sprog | C197: 10 | E197: 65 | G197: 75
A198: Cand. IT. | C198: 17 | E198: 14 | G198: 31
A199: Bac. Samf. | C199: 2 | E199: 5 | G199: 7
A200: Bac. Hum. | C200: 5 | E200: 7 | G200: 12
A201: Bac. Nat. | C201: 17 | E201: 6 | G201: 23
A202: Andre | C202: 90 | E202: 76 | G202: 166
A204: Total | C204: 1585 | E204: 1441 | G204: 3026
A206: Ingeniører i alt | C206: 737 | E206: 256 | G206: 993
A207: Magistre i alt | C207: 178 | E207: 265 | G207: 443
A208: DJØF'ere i alt | C208: 294 | E208: 344 | G208: 638
A215: Brøndby
C217: Mænd | E217: Kvinder | G217: I alt
A219: Civ. ing. | C219: 90 | E219: 31 | G219: 121
A220: Diplom ing. | C220: 137 | E220: 25 | G220: 162
A221: Cand. Scient. Tek. | C221: 34 | E221: 21 | G221: 55
A222: MA. Hum. | C222: 18 | E222: 56 | G222: 74
A223: MA. Nat. | C223: 32 | E223: 28 | G223: 60
A224: MA. Ph.d. | C224: 3 | E224: 4 | G224: 7
A225: MA. Samf. | C225: 8 | E225: 8 | G225: 16
A226: Øvrige Mag. | C226: 6 | E226: 7 | G226: 13
A227: Agronom | C227: 2 | E227: 3 | G227: 5
A228: Landsk. Arkt. | C228: 0 | E228: 5 | G228: 5
A229: Hortonom | C229: 0 | E229: 2 | G229: 2
A230: Forstkand. | C230: 0 | E230: 1 | G230: 1
A231: Jordbrugsakad. | C231: 2 | E231: 11 | G231: 13
A232: Mejeriing. | C232: 0 | E232: 0 | G232: 0
A233: Levn.m.kand. | C233: 0 | E233: 1 | G233: 1
A234: Dyrlæge | C234: 2 | E234: 5 | G234: 7
A235: Farmaceut | C235: 11 | E235: 21 | G235: 32
A236: Læge | C236: 11 | E236: 23 | G236: 34
A237: Tandlæge | C237: 3 | E237: 11 | G237: 14
A238: Arkitekt | C238: 1 | E238: 3 | G238: 4
A239: Landinspek. | C239: 1 | E239: 0 | G239: 1
A240: Bibliotekar | C240: 6 | E240: 9 | G240: 15
A241: Musikudd. | C241: 0 | E241: 0 | G241: 0
A242: Teolog | C242: 3 | E242: 3 | G242: 6
A243: Psykolog | C243: 3 | E243: 8 | G243: 11
... 1048 more rows

Sheet Tabel 2 H
A1: Tabel 2. Antal bruttoledighedsberørte og gennemsnitlig antal ledige brutto
A3: Hovedstaden
C5: Mænd | F5: Kvinder | I5: I alt
C6: Ledigheds- berørte | D6: Gns. brutto- ledighed | F6: Ledigheds- berørte | G6: Gns. brutto- ledighed | I6: Ledigheds- berørte | J6: Gns. brutto- ledighed
A9: Civ. ing. | C9: 390 | D9: 335.2934572 | F9: 190 | G9: 165.148132 | I9: 580 | J9: 500.4415892
A10: Diplom ing. | C10: 294 | D10: 263.8102663 | F10: 81 | G10: 65.36892659 | I10: 375 | J10: 329.1791929
A11: Cand. Scient. Tek. | C11: 473 | D11: 404.5674546 | F11: 585 | G11: 491.7208258 | I11: 1058 | J11: 896.2882804
A12: MA. Hum. | C12: 572 | D12: 484.8612237 | F12: 1360 | G12: 1120.32745 | I12: 1932 | J12: 1605.188673
A13: MA. Nat. | C13: 119 | D13: 100.4983472 | F13: 169 | G13: 139.9120564 | I13: 288 | J13: 240.4104035
A14: MA. Ph.d. | C14: 26 | D14: 20.65240442 | F14: 42 | G14: 32.96762926 | I14: 68 | J14: 53.62003368
A15: MA. Samf. | C15: 132 | D15: 114.3441652 | F15: 282 | G15: 234.9984407 | I15: 414 | J15: 349.3426059
A16: Øvrige Mag. | C16: 56 | D16: 49.09187301 | F16: 90 | G16: 75.65583484 | I16: 146 | J16: 124.7477079
A17: Agronom | C17: 16 | D17: 12.53414832 | F17: 32 | G17: 25.18929707 | I17: 48 | J17: 37.72344539
A18: Landsk. Arkt. | C18: 14 | D18: 10.32183621 | F18: 33 | G18: 28.42449947 | I18: 47 | J18: 38.74633568
A19: Hortonom | C19: 1 | D19: 0.7228840516 | F19: 2 | G19: 1.999625772 | I19: 3 | J19: 2.722509823
A20: Forstkand. | C20: 9 | D20: 6.598266076 | F20: 6 | G20: 4.639181688 | I20: 15 | J20: 11.23744776
A21: Jordbrugsakad. | C21: 40 | D21: 30.17713466 | F21: 73 | G21: 60.252604 | I21: 113 | J21: 90.42973866
A22: Mejeriing. | C22: 1 | D22: 0.8613484688 | F22: 7 | G22: 6.024449573 | I22: 8 | J22: 6.885798042
A23: Levn.m.kand. | C23: 7 | D23: 6.770411027 | F23: 36 | G23: 28.59726813 | I23: 43 | J23: 35.36767916
A24: Dyrlæge | C24: 10 | D24: 8.533025635 | F24: 41 | G24: 30.86384332 | I24: 51 | J24: 39.39686896
A25: Farmaceut | C25: 54 | D25: 45.42630824 | F25: 123 | G25: 105.5367055 | I25: 177 | J25: 150.9630138
A26: Læge | C26: 31 | D26: 25.25790557 | F26: 59 | G26: 45.88536144 | I26: 90 | J26: 71.14326701
A27: Tandlæge | C27: 4 | D27: 3.630013098 | F27: 17 | G27: 13.31067174 | I27: 21 | J27: 16.94068484
A28: Arkitekt | C28: 114 | D28: 101.1014782 | F28: 170 | G28: 146.0687332 | I28: 284 | J28: 247.1702114
A29: Landinspek. | C29: 1 | D29: 0.9998128859 | F29: 1 | G29: 0.9998128859 | I29: 2 | J29: 1.999625772
A30: Bibliotekar | C30: 23 | D30: 18.80870704 | F30: 65 | G30: 54.66662509 | I30: 88 | J30: 73.47533213
A31: Musikudd. | C31: 8 | D31: 5.946485374 | F31: 6 | G31: 5.13628142 | I31: 14 | J31: 11.08276679
A32: Teolog | C32: 8 | D32: 7.115324643 | F32: 19 | G32: 14.52878438 | I32: 27 | J32: 21.64410903
A33: Psykolog | C33: 49 | D33: 43.6437348 | F33: 158 | G33: 132.5909063 | I33: 207 | J33: 176.2346411
A34: Jurist | C34: 69 | D34: 56.19721824 | F34: 169 | G34: 142.4642924 | I34: 238 | J34: 198.6615106
A35: Økonom | C35: 88 | D35: 73.59882742 | F35: 50 | G35: 41.13640616 | I35: 138 | J35: 114.7352336
A36: Samf. Adm. | C36: 383 | D36: 333.0667997 | F36: 630 | G36: 539.4505083 | I36: 1013 | J36: 872.5173081
A37: Cand. Merc. | C37: 516 | D37: 446.8390195 | F37: 558 | G37: 468.3758498 | I37: 1074 | J37: 915.2148693
A38: HA | C38: 98 | D38: 83.23333125 | F38: 76 | G38: 60.70479636 | I38: 174 | J38: 143.9381276
A39: HD | C39: 126 | D39: 108.7856296 | F39: 140 | G39: 114.9204765 | I39: 266 | J39: 223.7061062
A40: Komm. og Sprog | C40: 66 | D40: 57.2144951 | F40: 234 | G40: 188.6321961 | I40: 300 | J40: 245.8466912
A41: Cand. IT. | C41: 72 | D41: 61.89172332 | F41: 104 | G41: 85.91280484 | I41: 176 | J41: 147.8045282
A42: Bac. Samf. | C42: 18 | D42: 15.9614545 | F42: 24 | G42: 18.48687083 | I42: 42 | J42: 34.44832533
A43: Bac. Hum. | C43: 63 | D43: 52.7443398 | F43: 136 | G43: 111.8723882 | I43: 199 | J43: 164.616728
A44: Bac. Nat. | C44: 60 | D44: 47.96606998 | F44: 61 | G44: 50.91249298 | I44: 121 | J44: 98.87856296
A45: Andre | C45: 367 | D45: 312.9707478 | F45: 619 | G45: 512.1000437 | I45: 986 | J45: 825.0707915
A47: Total | C47: 4338 | D47: 3721.860538 | F47: 6375 | G47: 5305.530468 | I47: 10713 | J47: 9027.391006
A49: Ingeniører i alt | C49: 684 | D49: 599.1037236 | F49: 271 | G49: 230.5170586 | I49: 955 | J49: 829.6207821
A50: Magistre i alt | C50: 905 | D50: 769.4480135 | F50: 1943 | G50: 1603.861411 | I50: 2848 | J50: 2373.309424
A51: DJØF'ere i alt | C51: 1154 | D51: 992.9351962 | F51: 1483 | G51: 1252.131853 | I51: 2637 | J51: 2245.067049
A56: København
C58: Mænd | F58: Kvinder | I58: I alt
C59: Ledigheds- berørte | D59: Gns. brutto- ledighed | F59: Ledigheds- berørte | G59: Gns. brutto- ledighed | I59: Ledigheds- berørte | J59: Gns. brutto- ledighed
A62: Civ. ing. | C62: 191 | D62: 166.9313291 | F62: 85 | G62: 73.52834778 | I62: 276 | J62: 240.4596769
A63: Diplom ing. | C63: 100 | D63: 89.68939063 | F63: 30 | G63: 24.68596021 | I63: 130 | J63: 114.3753508
A64: Cand. Scient. Tek. | C64: 305 | D64: 261.7027381 | F64: 378 | G64: 315.88848 | I64: 683 | J64: 577.5912181
A65: MA. Hum. | C65: 437 | D65: 370.5775588 | F65: 954 | G65: 788.5087008 | I65: 1391 | J65: 1159.08626
A66: MA. Nat. | C66: 76 | D66: 64.38158797 | F66: 97 | G66: 78.462546 | I66: 173 | J66: 142.844134
A67: MA. Ph.d. | C67: 14 | D67: 11.12705046 | F67: 23 | G67: 18.60974241 | I67: 37 | J67: 29.73679286
A68: MA. Samf. | C68: 106 | D68: 90.3349342 | F68: 216 | G68: 179.6401173 | I68: 322 | J68: 269.9750515
A69: Øvrige Mag. | C69: 38 | D69: 33.36306368 | F69: 64 | G69: 53.50028067 | I69: 102 | J69: 86.86334435
A70: Agronom | C70: 9 | D70: 6.367492048 | F70: 16 | G70: 12.85785567 | I70: 25 | J70: 19.22534772
A71: Landsk. Arkt. | C71: 11 | D71: 8.49061311 | F71: 23 | G71: 18.70329944 | I71: 34 | J71: 27.19391256
A72: Hortonom | C72: 1 | D72: 0.7228840516 | F72: 0 | G72: 0 | I72: 1 | J72: 0.7228840516
A73: Forstkand. | C73: 6 | D73: 4.568078338 | F73: 5 | G73: 3.777833219 | I73: 11 | J73: 8.345911557
A74: Jordbrugsakad. | C74: 27 | D74: 20.14906755 | F74: 44 | G74: 35.33898834 | I74: 71 | J74: 55.48805588
A75: Mejeriing. | C75: 1 | D75: 0.8613484688 | F75: 3 | G75: 2.999438658 | I75: 4 | J75: 3.860787127
A76: Levn.m.kand. | C76: 4 | D76: 3.770972369 | F76: 20 | G76: 16.45294081 | I76: 24 | J76: 20.22391318
A77: Dyrlæge | C77: 5 | D77: 3.864529408 | F77: 24 | G77: 16.7092871 | I77: 29 | J77: 20.5738165
A78: Farmaceut | C78: 35 | D78: 30.07858791 | F78: 63 | G78: 52.12686334 | I78: 98 | J78: 82.20545126
A79: Læge | C79: 20 | D79: 17.3292584 | F79: 40 | G79: 30.77028628 | I79: 60 | J79: 48.09954469
A80: Tandlæge | C80: 4 | D80: 3.630013098 | F80: 6 | G80: 4.442711907 | I80: 10 | J80: 8.072725005
A81: Arkitekt | C81: 85 | D81: 74.82567205 | F81: 128 | G81: 108.7937379 | I81: 213 | J81: 183.61941
A82: Landinspek. | C82: 0 | D82: 0 | F82: 1 | G82: 0.9998128859 | I82: 1 | J82: 0.9998128859
A83: Bibliotekar | C83: 14 | D83: 11.79504771 | F83: 38 | G83: 32.16740473 | I83: 52 | J83: 43.96245244
A84: Musikudd. | C84: 4 | D84: 3.146011352 | F84: 4 | G84: 3.768477515 | I84: 8 | J84: 6.914488867
A85: Teolog | C85: 8 | D85: 7.115324643 | F85: 13 | G85: 9.771097112 | I85: 21 | J85: 16.88642176
A86: Psykolog | C86: 37 | D86: 33.09112456 | F86: 98 | G86: 81.44077839 | I86: 135 | J86: 114.531903
A87: Jurist | C87: 40 | D87: 32.27967317 | F87: 92 | G87: 79.05569762 | I87: 132 | J87: 111.3353708
A88: Økonom | C88: 56 | D88: 46.50221418 | F88: 29 | G88: 22.57157113 | I88: 85 | J88: 69.07378532
A89: Samf. Adm. | C89: 269 | D89: 232.791742 | F89: 456 | G89: 392.1143891 | I89: 725 | J89: 624.9061311
A90: Cand. Merc. | C90: 314 | D90: 274.64729 | F90: 321 | G90: 268.1868646 | I90: 635 | J90: 542.8341546
A91: HA | C91: 47 | D91: 41.87176449 | F91: 50 | G91: 40.638059 | I91: 97 | J91: 82.50982349
A92: HD | C92: 61 | D92: 52.29588973 | F92: 91 | G92: 75.22173018 | I92: 152 | J92: 127.5176199
A93: Komm. og Sprog | C93: 48 | D93: 41.08838022 | F93: 140 | G93: 108.1475706 | I93: 188 | J93: 149.2359509
A94: Cand. IT. | C94: 56 | D94: 47.78519304 | F94: 73 | G94: 58.7425934 | I94: 129 | J94: 106.5277864
A95: Bac. Samf. | C95: 11 | D95: 10.11663444 | F95: 17 | G95: 14.21443273 | I95: 28 | J95: 24.33106717
A96: Bac. Hum. | C96: 51 | D96: 41.80440342 | F96: 96 | G96: 79.24156427 | I96: 147 | J96: 121.0459677
A97: Bac. Nat. | C97: 41 | D97: 32.1112705 | F97: 44 | G97: 36.49784819 | I97: 85 | J97: 68.60911869
A98: Andre | C98: 226 | D98: 192.0807085 | F98: 378 | G98: 310.5682031 | I98: 604 | J98: 502.6489116
A100: Total | C100: 2731 | D100: 2343.139774 | F100: 4116 | G100: 3413.806524 | I100: 6847 | J100: 5756.946298
A102: Ingeniører i alt | C102: 291 | D102: 256.6207198 | F102: 115 | G102: 98.21430799 | I102: 406 | J102: 354.8350278
A103: Magistre i alt | C103: 671 | D103: 569.7841951 | F103: 1354 | G103: 1118.721387 | I103: 2025 | J103: 1688.505582
A104: DJØF'ere i alt | C104: 726 | D104: 628.0926838 | F104: 948 | G104: 802.5665814 | I104: 1674 | J104: 1430.659265
A109: Frederiksberg
C111: Mænd | F111: Kvinder | I111: I alt
C112: Ledigheds- berørte | D112: Gns. brutto- ledighed | F112: Ledigheds- berørte | G112: Gns. brutto- ledighed | I112: Ledigheds- berørte | J112: Gns. brutto- ledighed
A115: Civ. ing. | C115: 21 | D115: 16.87768976 | F115: 12 | G115: 10.03742282 | I115: 33 | J115: 26.91511258
A116: Diplom ing. | C116: 20 | D116: 17.84818811 | F116: 2 | G116: 0.4303623776 | I116: 22 | J116: 18.27855049
A117: Cand. Scient. Tek. | C117: 36 | D117: 31.73579492 | F117: 41 | G117: 33.13478451 | I117: 77 | J117: 64.87057943
A118: MA. Hum. | C118: 53 | D118: 45.72194848 | F118: 117 | G118: 95.25790557 | I118: 170 | J118: 140.9798541
A119: MA. Nat. | C119: 10 | D119: 9.098110148 | F119: 13 | G119: 11.35782449 | I119: 23 | J119: 20.45593463
A120: MA. Ph.d. | C120: 4 | D120: 3.537703487 | F120: 4 | G120: 3.076155429 | I120: 8 | J120: 6.613858916
A121: MA. Samf. | C121: 11 | D121: 10.21206262 | F121: 21 | G121: 17.12904634 | I121: 32 | J121: 27.34110896
A122: Øvrige Mag. | C122: 3 | D122: 2.999438658 | F122: 10 | G122: 8.035925903 | I122: 13 | J122: 11.03536456
A123: Agronom | C123: 1 | D123: 0.9998128859 | F123: 5 | G123: 3.204640429 | I123: 6 | J123: 4.204453315
A124: Landsk. Arkt. | C124: 2 | D124: 1.399613298 | F124: 1 | G124: 0.9998128859 | I124: 3 | J124: 2.399426183
A125: Hortonom | C125: 0 | D125: 0 | F125: 0 | G125: 0 | I125: 0 | J125: 0
A126: Forstkand. | C126: 0 | D126: 0 | F126: 0 | G126: 0 | I126: 0 | J126: 0
A127: Jordbrugsakad. | C127: 3 | D127: 2.399426183 | F127: 6 | G127: 4.204453315 | I127: 9 | J127: 6.603879499
A128: Mejeriing. | C128: 0 | D128: 0 | F128: 2 | G128: 1.445768103 | I128: 2 | J128: 1.445768103
A129: Levn.m.kand. | C129: 3 | D129: 2.999438658 | F129: 5 | G129: 3.095490551 | I129: 8 | J129: 6.094929209
A130: Dyrlæge | C130: 2 | D130: 1.669057569 | F130: 2 | G130: 1.999625772 | I130: 4 | J130: 3.668683341
A131: Farmaceut | C131: 6 | D131: 4.291149504 | F131: 7 | G131: 5.657705981 | I131: 13 | J131: 9.948855486
A132: Læge | C132: 2 | D132: 1.531216865 | F132: 5 | G132: 4.291149504 | I132: 7 | J132: 5.822366369
A133: Tandlæge | C133: 0 | D133: 0 | F133: 2 | G133: 1.231210628 | I133: 2 | J133: 1.231210628
A134: Arkitekt | C134: 15 | D134: 13.53707977 | F134: 15 | G134: 12.89839706 | I134: 30 | J134: 26.43547683
A135: Landinspek. | C135: 0 | D135: 0 | F135: 0 | G135: 0 | I135: 0 | J135: 0
A136: Bibliotekar | C136: 2 | D136: 1.168839269 | F136: 7 | G136: 6.014470155 | I136: 9 | J136: 7.183309424
A137: Musikudd. | C137: 2 | D137: 1.288592278 | F137: 0 | G137: 0 | I137: 2 | J137: 1.288592278
A138: Teolog | C138: 0 | D138: 0 | F138: 2 | G138: 1.904821306 | I138: 2 | J138: 1.904821306
A139: Psykolog | C139: 5 | D139: 4.202582174 | F139: 20 | G139: 16.42736855 | I139: 25 | J139: 20.62995073
A140: Jurist | C140: 10 | D140: 7.503274496 | F140: 15 | G140: 13.54456434 | I140: 25 | J140: 21.04783883
A141: Økonom | C141: 3 | D141: 2.023950602 | F141: 8 | G141: 7.301191293 | I141: 11 | J141: 9.325141895
A142: Samf. Adm. | C142: 39 | D142: 34.88180627 | F142: 50 | G142: 40.45219235 | I142: 89 | J142: 75.33399863
A143: Cand. Merc. | C143: 60 | D143: 51.20127238 | F143: 68 | G143: 57.10846379 | I143: 128 | J143: 108.3097362
A144: HA | C144: 10 | D144: 7.498908501 | F144: 3 | G144: 2.136219048 | I144: 13 | J144: 9.635127549
A145: HD | C145: 15 | D145: 12.689453 | F145: 12 | G145: 9.6925092 | I145: 27 | J145: 22.3819622
A146: Komm. og Sprog | C146: 6 | D146: 5.358947171 | F146: 29 | G146: 25.55978295 | I146: 35 | J146: 30.91873012
A147: Cand. IT. | C147: 5 | D147: 4.906754818 | F147: 7 | G147: 5.783072413 | I147: 12 | J147: 10.68982723
A148: Bac. Samf. | C148: 1 | D148: 0.9998128859 | F148: 2 | G148: 0.2182997568 | I148: 3 | J148: 1.218112643
A149: Bac. Hum. | C149: 5 | D149: 4.35289715 | F149: 11 | G149: 10.42163039 | I149: 16 | J149: 14.77452754
A150: Bac. Nat. | C150: 6 | D150: 4.666625086 | F150: 6 | G150: 4.277427805 | I150: 12 | J150: 8.944052891
A151: Andre | C151: 31 | D151: 26.86833406 | F151: 52 | G151: 42.46803468 | I151: 83 | J151: 69.33636874
A153: Total | C153: 389 | D153: 334.0703549 | F153: 556 | G153: 456.5932764 | I153: 945 | J153: 790.6636313
A155: Ingeniører i alt | C155: 41 | D155: 34.72587788 | F155: 14 | G155: 10.46778519 | I155: 55 | J155: 45.19366307
A156: Magistre i alt | C156: 81 | D156: 71.56926339 | F156: 165 | G156: 134.8568577 | I156: 246 | J156: 206.4261211
A157: DJØF'ere i alt | C157: 122 | D157: 103.1092122 | F157: 144 | G157: 120.5426308 | I157: 266 | J157: 223.6518431
A162: Ballerup
C164: Mænd | F164: Kvinder | I164: I alt
C165: Ledigheds- berørte | D165: Gns. brutto- ledighed | F165: Ledigheds- berørte | G165: Gns. brutto- ledighed | I165: Ledigheds- berørte | J165: Gns. brutto- ledighed
A168: Civ. ing. | C168: 6 | D168: 4.836898896 | F168: 1 | G168: 0.9998128859 | I168: 7 | J168: 5.836711782
A169: Diplom ing. | C169: 15 | D169: 11.91916672 | F169: 1 | G169: 0.9998128859 | I169: 16 | J169: 12.9189796
A170: Cand. Scient. Tek. | C170: 7 | D170: 6.166656271 | F170: 11 | G170: 9.679411214 | I170: 18 | J170: 15.84606749
A171: MA. Hum. | C171: 2 | D171: 1.901079025 | F171: 8 | G171: 7.032370735 | I171: 10 | J171: 8.93344976
A172: MA. Nat. | C172: 1 | D172: 0.9075032745 | F172: 2 | G172: 1.768851743 | I172: 3 | J172: 2.676355018
A173: MA. Ph.d. | C173: 0 | D173: 0 | F173: 2 | G173: 1.500031186 | I173: 2 | J173: 1.500031186
A174: MA. Samf. | C174: 0 | D174: 0 | F174: 0 | G174: 0 | I174: 0 | J174: 0
A175: Øvrige Mag. | C175: 1 | D175: 0.9998128859 | F175: 1 | G175: 0.9998128859 | I175: 2 | J175: 1.999625772
A176: Agronom | C176: 0 | D176: 0 | F176: 1 | G176: 0.9998128859 | I176: 1 | J176: 0.9998128859
A177: Landsk. Arkt. | C177: 0 | D177: 0 | F177: 0 | G177: 0 | I177: 0 | J177: 0
A178: Hortonom | C178: 0 | D178: 0 | F178: 0 | G178: 0 | I178: 0 | J178: 0
A179: Forstkand. | C179: 0 | D179: 0 | F179: 0 | G179: 0 | I179: 0 | J179: 0
A180: Jordbrugsakad. | C180: 0 | D180: 0 | F180: 1 | G180: 0.9998128859 | I180: 1 | J180: 0.9998128859
A181: Mejeriing. | C181: 0 | D181: 0 | F181: 1 | G181: 0.5794299258 | I181: 1 | J181: 0.5794299258
A182: Levn.m.kand. | C182: 0 | D182: 0 | F182: 0 | G182: 0 | I182: 0 | J182: 0
A183: Dyrlæge | C183: 0 | D183: 0 | F183: 0 | G183: 0 | I183: 0 | J183: 0
A184: Farmaceut | C184: 0 | D184: 0 | F184: 3 | G184: 2.651406474 | I184: 3 | J184: 2.651406474
A185: Læge | C185: 0 | D185: 0 | F185: 0 | G185: 0 | I185: 0 | J185: 0
A186: Tandlæge | C186: 0 | D186: 0 | F186: 0 | G186: 0 | I186: 0 | J186: 0
A187: Arkitekt | C187: 1 | D187: 0.9998128859 | F187: 0 | G187: 0 | I187: 1 | J187: 0.9998128859
A188: Landinspek. | C188: 0 | D188: 0 | F188: 0 | G188: 0 | I188: 0 | J188: 0
A189: Bibliotekar | C189: 2 | D189: 1.307303686 | F189: 2 | G189: 1.815006549 | I189: 4 | J189: 3.122310235
A190: Musikudd. | C190: 0 | D190: 0 | F190: 0 | G190: 0 | I190: 0 | J190: 0
A191: Teolog | C191: 0 | D191: 0 | F191: 0 | G191: 0 | I191: 0 | J191: 0
A192: Psykolog | C192: 1 | D192: 0.6754818187 | F192: 0 | G192: 0 | I192: 1 | J192: 0.6754818187
A193: Jurist | C193: 1 | D193: 0.9998128859 | F193: 3 | G193: 2.537890601 | I193: 4 | J193: 3.537703487
A194: Økonom | C194: 0 | D194: 0 | F194: 0 | G194: 0 | I194: 0 | J194: 0
A195: Samf. Adm. | C195: 5 | D195: 4.922347658 | F195: 6 | G195: 3.200898148 | I195: 11 | J195: 8.123245806
A196: Cand. Merc. | C196: 4 | D196: 3.15100106 | F196: 4 | G196: 3.225846691 | I196: 8 | J196: 6.376847752
A197: HA | C197: 4 | D197: 2.224162665 | F197: 1 | G197: 0.9998128859 | I197: 5 | J197: 3.22397555
A198: HD | C198: 4 | D198: 3.999251544 | F198: 0 | G198: 0 | I198: 4 | J198: 3.999251544
A199: Komm. og Sprog | C199: 0 | D199: 0 | F199: 3 | G199: 2.722509823 | I199: 3 | J199: 2.722509823
A200: Cand. IT. | C200: 0 | D200: 0 | F200: 2 | G200: 1.999625772 | I200: 2 | J200: 1.999625772
A201: Bac. Samf. | C201: 0 | D201: 0 | F201: 0 | G201: 0 | I201: 0 | J201: 0
A202: Bac. Hum. | C202: 0 | D202: 0 | F202: 0 | G202: 0 | I202: 0 | J202: 0
A203: Bac. Nat. | C203: 2 | D203: 1.90731616 | F203: 0 | G203: 0 | I203: 2 | J203: 1.90731616
A204: Andre | C204: 4 | D204: 3.999251544 | F204: 4 | G204: 3.953096738 | I204: 8 | J204: 7.952348282
A206: Total | C206: 60 | D206: 50.91685898 | F206: 56 | G206: 47.66544003 | I206: 116 | J206: 98.58229901
A208: Ingeniører i alt | C208: 21 | D208: 16.75606561 | F208: 2 | G208: 1.999625772 | I208: 23 | J208: 18.75569139
A209: Magistre i alt | C209: 4 | D209: 3.808395185 | F209: 13 | G209: 11.30106655 | I209: 17 | J209: 15.10946174
A210: DJØF'ere i alt | C210: 14 | D210: 11.29732427 | F210: 14 | G210: 9.964448325 | I210: 28 | J210: 21.26177259
A215: Brøndby
C217: Mænd | F217: Kvinder | I217: I alt
C218: Ledigheds- berørte | D218: Gns. brutto- ledighed | F218: Ledigheds- berørte | G218: Gns. brutto- ledighed | I218: Ledigheds- berørte | J218: Gns. brutto- ledighed
A221: Civ. ing. | C221: 5 | D221: 4.110896276 | F221: 1 | G221: 0.6255847315 | I221: 6 | J221: 4.736481008
A222: Diplom ing. | C222: 3 | D222: 2.999438658 | F222: 0 | G222: 0 | I222: 3 | J222: 2.999438658
A223: Cand. Scient. Tek. | C223: 7 | D223: 6.084326077 | F223: 5 | G223: 4.906754818 | I223: 12 | J223: 10.9910809
A224: MA. Hum. | C224: 2 | D224: 1.433293831 | F224: 8 | G224: 7.226345662 | I224: 10 | J224: 8.659639494
A225: MA. Nat. | C225: 1 | D225: 0.9998128859 | F225: 3 | G225: 2.445580989 | I225: 4 | J225: 3.445393875
A226: MA. Ph.d. | C226: 0 | D226: 0 | F226: 1 | G226: 0.8613484688 | I226: 1 | J226: 0.8613484688
A227: MA. Samf. | C227: 2 | D227: 1.768851743 | F227: 1 | G227: 0.3074908002 | I227: 3 | J227: 2.076342544
A228: Øvrige Mag. | C228: 2 | D228: 1.999625772 | F228: 1 | G228: 0.9998128859 | I228: 3 | J228: 2.999438658
A229: Agronom | C229: 0 | D229: 0 | F229: 0 | G229: 0 | I229: 0 | J229: 0
A230: Landsk. Arkt. | C230: 0 | D230: 0 | F230: 0 | G230: 0 | I230: 0 | J230: 0
A231: Hortonom | C231: 0 | D231: 0 | F231: 0 | G231: 0 | I231: 0 | J231: 0
A232: Forstkand. | C232: 0 | D232: 0 | F232: 0 | G232: 0 | I232: 0 | J232: 0
A233: Jordbrugsakad. | C233: 0 | D233: 0 | F233: 0 | G233: 0 | I233: 0 | J233: 0
A234: Mejeriing. | C234: 0 | D234: 0 | F234: 0 | G234: 0 | I234: 0 | J234: 0
A235: Levn.m.kand. | C235: 0 | D235: 0 | F235: 0 | G235: 0 | I235: 0 | J235: 0
A236: Dyrlæge | C236: 0 | D236: 0 | F236: 1 | G236: 0.8844258716 | I236: 1 | J236: 0.8844258716
A237: Farmaceut | C237: 0 | D237: 0 | F237: 1 | G237: 0.8613484688 | I237: 1 | J237: 0.8613484688
A238: Læge | C238: 0 | D238: 0 | F238: 0 | G238: 0 | I238: 0 | J238: 0
A239: Tandlæge | C239: 0 | D239: 0 | F239: 1 | G239: 0.9075032745 | I239: 1 | J239: 0.9075032745
A240: Arkitekt | C240: 0 | D240: 0 | F240: 1 | G240: 0.9998128859 | I240: 1 | J240: 0.9998128859
... 1079 more rows

Sheet Tabel 3 H
A1: Tabel 3. Ledige i procent af forsikrede
A3: Hovedstaden
C5: Mænd | F5: Kvinder | I5: I alt
C6: Ledigheds- berørte | D6: Gns. brutto- ledighed | F6: Ledigheds- berørte | G6: Gns. brutto- ledighed | I6: Ledigheds- berørte | J6: Gns. brutto- ledighed
A9: Civ. ing. | C9: =IF(OR('Tabel 1 H'!C7<5,'Tabel 2 H'!C9<0.5),"-",IFERROR('Tabel 2 H'!C9/'Tabel 1 H'!C7*100,"-")) -> 3.183673469 | D9: =IF(OR('Tabel 1 H'!C7<5,'Tabel 2 H'!D9<0.5),"-",IFERROR('Tabel 2 H'!D9/'Tabel 1 H'!C7*100,"-")) -> 2.737089447 | F9: =IF(OR('Tabel 1 H'!E7<5,'Tabel 2 H'!F9<0.5),"-",IFERROR('Tabel 2 H'!F9/'Tabel 1 H'!E7*100,"-")) -> 3.972402258 | G9: =IF(OR('Tabel 1 H'!E7<5,'Tabel 2 H'!G9<0.5),"-",IFERROR('Tabel 2 H'!G9/'Tabel 1 H'!E7*100,"-")) -> 3.452814802 | I9: =IF(OR('Tabel 1 H'!G7<5,'Tabel 2 H'!I9<0.5),"-",IFERROR('Tabel 2 H'!I9/'Tabel 1 H'!G7*100,"-")) -> 3.4051547 | J9: =IF(OR('Tabel 1 H'!G7<5,'Tabel 2 H'!J9<0.5),"-",IFERROR('Tabel 2 H'!J9/'Tabel 1 H'!G7*100,"-")) -> 2.93807074
A10: Diplom ing. | C10: =IF(OR('Tabel 1 H'!C8<5,'Tabel 2 H'!C10<0.5),"-",IFERROR('Tabel 2 H'!C10/'Tabel 1 H'!C8*100,"-")) -> 2.963709677 | D10: =IF(OR('Tabel 1 H'!C8<5,'Tabel 2 H'!D10<0.5),"-",IFERROR('Tabel 2 H'!D10/'Tabel 1 H'!C8*100,"-")) -> 2.659377685 | F10: =IF(OR('Tabel 1 H'!E8<5,'Tabel 2 H'!F10<0.5),"-",IFERROR('Tabel 2 H'!F10/'Tabel 1 H'!E8*100,"-")) -> 3.256936068 | G10: =IF(OR('Tabel 1 H'!E8<5,'Tabel 2 H'!G10<0.5),"-",IFERROR('Tabel 2 H'!G10/'Tabel 1 H'!E8*100,"-")) -> 2.628424873 | I10: =IF(OR('Tabel 1 H'!G8<5,'Tabel 2 H'!I10<0.5),"-",IFERROR('Tabel 2 H'!I10/'Tabel 1 H'!G8*100,"-")) -> 3.022487306 | J10: =IF(OR('Tabel 1 H'!G8<5,'Tabel 2 H'!J10<0.5),"-",IFERROR('Tabel 2 H'!J10/'Tabel 1 H'!G8*100,"-")) -> 2.653173152
A11: Cand. Scient. Tek. | C11: =IF(OR('Tabel 1 H'!C9<5,'Tabel 2 H'!C11<0.5),"-",IFERROR('Tabel 2 H'!C11/'Tabel 1 H'!C9*100,"-")) -> 9.444888179 | D11: =IF(OR('Tabel 1 H'!C9<5,'Tabel 2 H'!D11<0.5),"-",IFERROR('Tabel 2 H'!D11/'Tabel 1 H'!C9*100,"-")) -> 8.078423615 | F11: =IF(OR('Tabel 1 H'!E9<5,'Tabel 2 H'!F11<0.5),"-",IFERROR('Tabel 2 H'!F11/'Tabel 1 H'!E9*100,"-")) -> 12.73677335 | G11: =IF(OR('Tabel 1 H'!E9<5,'Tabel 2 H'!G11<0.5),"-",IFERROR('Tabel 2 H'!G11/'Tabel 1 H'!E9*100,"-")) -> 10.70587472 | I11: =IF(OR('Tabel 1 H'!G9<5,'Tabel 2 H'!I11<0.5),"-",IFERROR('Tabel 2 H'!I11/'Tabel 1 H'!G9*100,"-")) -> 11.01968545 | J11: =IF(OR('Tabel 1 H'!G9<5,'Tabel 2 H'!J11<0.5),"-",IFERROR('Tabel 2 H'!J11/'Tabel 1 H'!G9*100,"-")) -> 9.335363821
A12: MA. Hum. | C12: =IF(OR('Tabel 1 H'!C10<5,'Tabel 2 H'!C12<0.5),"-",IFERROR('Tabel 2 H'!C12/'Tabel 1 H'!C10*100,"-")) -> 9.401709402 | D12: =IF(OR('Tabel 1 H'!C10<5,'Tabel 2 H'!D12<0.5),"-",IFERROR('Tabel 2 H'!D12/'Tabel 1 H'!C10*100,"-")) -> 7.969448122 | F12: =IF(OR('Tabel 1 H'!E10<5,'Tabel 2 H'!F12<0.5),"-",IFERROR('Tabel 2 H'!F12/'Tabel 1 H'!E10*100,"-")) -> 10.05322295 | G12: =IF(OR('Tabel 1 H'!E10<5,'Tabel 2 H'!G12<0.5),"-",IFERROR('Tabel 2 H'!G12/'Tabel 1 H'!E10*100,"-")) -> 8.281545311 | I12: =IF(OR('Tabel 1 H'!G10<5,'Tabel 2 H'!I12<0.5),"-",IFERROR('Tabel 2 H'!I12/'Tabel 1 H'!G10*100,"-")) -> 9.851111564 | J12: =IF(OR('Tabel 1 H'!G10<5,'Tabel 2 H'!J12<0.5),"-",IFERROR('Tabel 2 H'!J12/'Tabel 1 H'!G10*100,"-")) -> 8.184727072
A13: MA. Nat. | C13: =IF(OR('Tabel 1 H'!C11<5,'Tabel 2 H'!C13<0.5),"-",IFERROR('Tabel 2 H'!C13/'Tabel 1 H'!C11*100,"-")) -> 3.268332876 | D13: =IF(OR('Tabel 1 H'!C11<5,'Tabel 2 H'!D13<0.5),"-",IFERROR('Tabel 2 H'!D13/'Tabel 1 H'!C11*100,"-")) -> 2.760185311 | F13: =IF(OR('Tabel 1 H'!E11<5,'Tabel 2 H'!F13<0.5),"-",IFERROR('Tabel 2 H'!F13/'Tabel 1 H'!E11*100,"-")) -> 4.698359744 | G13: =IF(OR('Tabel 1 H'!E11<5,'Tabel 2 H'!G13<0.5),"-",IFERROR('Tabel 2 H'!G13/'Tabel 1 H'!E11*100,"-")) -> 3.889687417 | I13: =IF(OR('Tabel 1 H'!G11<5,'Tabel 2 H'!I13<0.5),"-",IFERROR('Tabel 2 H'!I13/'Tabel 1 H'!G11*100,"-")) -> 3.978999724 | J13: =IF(OR('Tabel 1 H'!G11<5,'Tabel 2 H'!J13<0.5),"-",IFERROR('Tabel 2 H'!J13/'Tabel 1 H'!G11*100,"-")) -> 3.321503227
A14: MA. Ph.d. | C14: =IF(OR('Tabel 1 H'!C12<5,'Tabel 2 H'!C14<0.5),"-",IFERROR('Tabel 2 H'!C14/'Tabel 1 H'!C12*100,"-")) -> 3.801169591 | D14: =IF(OR('Tabel 1 H'!C12<5,'Tabel 2 H'!D14<0.5),"-",IFERROR('Tabel 2 H'!D14/'Tabel 1 H'!C12*100,"-")) -> 3.019357371 | F14: =IF(OR('Tabel 1 H'!E12<5,'Tabel 2 H'!F14<0.5),"-",IFERROR('Tabel 2 H'!F14/'Tabel 1 H'!E12*100,"-")) -> 7.622504537 | G14: =IF(OR('Tabel 1 H'!E12<5,'Tabel 2 H'!G14<0.5),"-",IFERROR('Tabel 2 H'!G14/'Tabel 1 H'!E12*100,"-")) -> 5.983235801 | I14: =IF(OR('Tabel 1 H'!G12<5,'Tabel 2 H'!I14<0.5),"-",IFERROR('Tabel 2 H'!I14/'Tabel 1 H'!G12*100,"-")) -> 5.506072874 | J14: =IF(OR('Tabel 1 H'!G12<5,'Tabel 2 H'!J14<0.5),"-",IFERROR('Tabel 2 H'!J14/'Tabel 1 H'!G12*100,"-")) -> 4.341703132
A15: MA. Samf. | C15: =IF(OR('Tabel 1 H'!C13<5,'Tabel 2 H'!C15<0.5),"-",IFERROR('Tabel 2 H'!C15/'Tabel 1 H'!C13*100,"-")) -> 14.88162345 | D15: =IF(OR('Tabel 1 H'!C13<5,'Tabel 2 H'!D15<0.5),"-",IFERROR('Tabel 2 H'!D15/'Tabel 1 H'!C13*100,"-")) -> 12.89111219 | F15: =IF(OR('Tabel 1 H'!E13<5,'Tabel 2 H'!F15<0.5),"-",IFERROR('Tabel 2 H'!F15/'Tabel 1 H'!E13*100,"-")) -> 12.74864376 | G15: =IF(OR('Tabel 1 H'!E13<5,'Tabel 2 H'!G15<0.5),"-",IFERROR('Tabel 2 H'!G15/'Tabel 1 H'!E13*100,"-")) -> 10.62379931 | I15: =IF(OR('Tabel 1 H'!G13<5,'Tabel 2 H'!I15<0.5),"-",IFERROR('Tabel 2 H'!I15/'Tabel 1 H'!G13*100,"-")) -> 13.35914811 | J15: =IF(OR('Tabel 1 H'!G13<5,'Tabel 2 H'!J15<0.5),"-",IFERROR('Tabel 2 H'!J15/'Tabel 1 H'!G13*100,"-")) -> 11.27275269
A16: Øvrige Mag. | C16: =IF(OR('Tabel 1 H'!C14<5,'Tabel 2 H'!C16<0.5),"-",IFERROR('Tabel 2 H'!C16/'Tabel 1 H'!C14*100,"-")) -> 10.64638783 | D16: =IF(OR('Tabel 1 H'!C14<5,'Tabel 2 H'!D16<0.5),"-",IFERROR('Tabel 2 H'!D16/'Tabel 1 H'!C14*100,"-")) -> 9.333055706 | F16: =IF(OR('Tabel 1 H'!E14<5,'Tabel 2 H'!F16<0.5),"-",IFERROR('Tabel 2 H'!F16/'Tabel 1 H'!E14*100,"-")) -> 8.712487899 | G16: =IF(OR('Tabel 1 H'!E14<5,'Tabel 2 H'!G16<0.5),"-",IFERROR('Tabel 2 H'!G16/'Tabel 1 H'!E14*100,"-")) -> 7.323894951 | I16: =IF(OR('Tabel 1 H'!G14<5,'Tabel 2 H'!I16<0.5),"-",IFERROR('Tabel 2 H'!I16/'Tabel 1 H'!G14*100,"-")) -> 9.36497755 | J16: =IF(OR('Tabel 1 H'!G14<5,'Tabel 2 H'!J16<0.5),"-",IFERROR('Tabel 2 H'!J16/'Tabel 1 H'!G14*100,"-")) -> 8.001777284
A17: Agronom | C17: =IF(OR('Tabel 1 H'!C15<5,'Tabel 2 H'!C17<0.5),"-",IFERROR('Tabel 2 H'!C17/'Tabel 1 H'!C15*100,"-")) -> 4.14507772 | D17: =IF(OR('Tabel 1 H'!C15<5,'Tabel 2 H'!D17<0.5),"-",IFERROR('Tabel 2 H'!D17/'Tabel 1 H'!C15*100,"-")) -> 3.247188684 | F17: =IF(OR('Tabel 1 H'!E15<5,'Tabel 2 H'!F17<0.5),"-",IFERROR('Tabel 2 H'!F17/'Tabel 1 H'!E15*100,"-")) -> 7.511737089 | G17: =IF(OR('Tabel 1 H'!E15<5,'Tabel 2 H'!G17<0.5),"-",IFERROR('Tabel 2 H'!G17/'Tabel 1 H'!E15*100,"-")) -> 5.912980534 | I17: =IF(OR('Tabel 1 H'!G15<5,'Tabel 2 H'!I17<0.5),"-",IFERROR('Tabel 2 H'!I17/'Tabel 1 H'!G15*100,"-")) -> 5.911330049 | J17: =IF(OR('Tabel 1 H'!G15<5,'Tabel 2 H'!J17<0.5),"-",IFERROR('Tabel 2 H'!J17/'Tabel 1 H'!G15*100,"-")) -> 4.645744507
A18: Landsk. Arkt. | C18: =IF(OR('Tabel 1 H'!C16<5,'Tabel 2 H'!C18<0.5),"-",IFERROR('Tabel 2 H'!C18/'Tabel 1 H'!C16*100,"-")) -> 10.76923077 | D18: =IF(OR('Tabel 1 H'!C16<5,'Tabel 2 H'!D18<0.5),"-",IFERROR('Tabel 2 H'!D18/'Tabel 1 H'!C16*100,"-")) -> 7.93987401 | F18: =IF(OR('Tabel 1 H'!E16<5,'Tabel 2 H'!F18<0.5),"-",IFERROR('Tabel 2 H'!F18/'Tabel 1 H'!E16*100,"-")) -> 9.792284866 | G18: =IF(OR('Tabel 1 H'!E16<5,'Tabel 2 H'!G18<0.5),"-",IFERROR('Tabel 2 H'!G18/'Tabel 1 H'!E16*100,"-")) -> 8.434569576 | I18: =IF(OR('Tabel 1 H'!G16<5,'Tabel 2 H'!I18<0.5),"-",IFERROR('Tabel 2 H'!I18/'Tabel 1 H'!G16*100,"-")) -> 10.06423983 | J18: =IF(OR('Tabel 1 H'!G16<5,'Tabel 2 H'!J18<0.5),"-",IFERROR('Tabel 2 H'!J18/'Tabel 1 H'!G16*100,"-")) -> 8.296859889
A19: Hortonom | C19: =IF(OR('Tabel 1 H'!C17<5,'Tabel 2 H'!C19<0.5),"-",IFERROR('Tabel 2 H'!C19/'Tabel 1 H'!C17*100,"-")) -> 1.724137931 | D19: =IF(OR('Tabel 1 H'!C17<5,'Tabel 2 H'!D19<0.5),"-",IFERROR('Tabel 2 H'!D19/'Tabel 1 H'!C17*100,"-")) -> 1.246351813 | F19: =IF(OR('Tabel 1 H'!E17<5,'Tabel 2 H'!F19<0.5),"-",IFERROR('Tabel 2 H'!F19/'Tabel 1 H'!E17*100,"-")) -> 1.941747573 | G19: =IF(OR('Tabel 1 H'!E17<5,'Tabel 2 H'!G19<0.5),"-",IFERROR('Tabel 2 H'!G19/'Tabel 1 H'!E17*100,"-")) -> 1.941384245 | I19: =IF(OR('Tabel 1 H'!G17<5,'Tabel 2 H'!I19<0.5),"-",IFERROR('Tabel 2 H'!I19/'Tabel 1 H'!G17*100,"-")) -> 1.863354037 | J19: =IF(OR('Tabel 1 H'!G17<5,'Tabel 2 H'!J19<0.5),"-",IFERROR('Tabel 2 H'!J19/'Tabel 1 H'!G17*100,"-")) -> 1.69099989
A20: Forstkand. | C20: =IF(OR('Tabel 1 H'!C18<5,'Tabel 2 H'!C20<0.5),"-",IFERROR('Tabel 2 H'!C20/'Tabel 1 H'!C18*100,"-")) -> 4.591836735 | D20: =IF(OR('Tabel 1 H'!C18<5,'Tabel 2 H'!D20<0.5),"-",IFERROR('Tabel 2 H'!D20/'Tabel 1 H'!C18*100,"-")) -> 3.366462284 | F20: =IF(OR('Tabel 1 H'!E18<5,'Tabel 2 H'!F20<0.5),"-",IFERROR('Tabel 2 H'!F20/'Tabel 1 H'!E18*100,"-")) -> 9.230769231 | G20: =IF(OR('Tabel 1 H'!E18<5,'Tabel 2 H'!G20<0.5),"-",IFERROR('Tabel 2 H'!G20/'Tabel 1 H'!E18*100,"-")) -> 7.137202597 | I20: =IF(OR('Tabel 1 H'!G18<5,'Tabel 2 H'!I20<0.5),"-",IFERROR('Tabel 2 H'!I20/'Tabel 1 H'!G18*100,"-")) -> 5.747126437 | J20: =IF(OR('Tabel 1 H'!G18<5,'Tabel 2 H'!J20<0.5),"-",IFERROR('Tabel 2 H'!J20/'Tabel 1 H'!G18*100,"-")) -> 4.305535542
A21: Jordbrugsakad. | C21: =IF(OR('Tabel 1 H'!C19<5,'Tabel 2 H'!C21<0.5),"-",IFERROR('Tabel 2 H'!C21/'Tabel 1 H'!C19*100,"-")) -> 5.194805195 | D21: =IF(OR('Tabel 1 H'!C19<5,'Tabel 2 H'!D21<0.5),"-",IFERROR('Tabel 2 H'!D21/'Tabel 1 H'!C19*100,"-")) -> 3.919108397 | F21: =IF(OR('Tabel 1 H'!E19<5,'Tabel 2 H'!F21<0.5),"-",IFERROR('Tabel 2 H'!F21/'Tabel 1 H'!E19*100,"-")) -> 7.841031149 | G21: =IF(OR('Tabel 1 H'!E19<5,'Tabel 2 H'!G21<0.5),"-",IFERROR('Tabel 2 H'!G21/'Tabel 1 H'!E19*100,"-")) -> 6.471815683 | I21: =IF(OR('Tabel 1 H'!G19<5,'Tabel 2 H'!I21<0.5),"-",IFERROR('Tabel 2 H'!I21/'Tabel 1 H'!G19*100,"-")) -> 6.643151088 | J21: =IF(OR('Tabel 1 H'!G19<5,'Tabel 2 H'!J21<0.5),"-",IFERROR('Tabel 2 H'!J21/'Tabel 1 H'!G19*100,"-")) -> 5.316269175
A22: Mejeriing. | C22: =IF(OR('Tabel 1 H'!C20<5,'Tabel 2 H'!C22<0.5),"-",IFERROR('Tabel 2 H'!C22/'Tabel 1 H'!C20*100,"-")) -> 1.666666667 | D22: =IF(OR('Tabel 1 H'!C20<5,'Tabel 2 H'!D22<0.5),"-",IFERROR('Tabel 2 H'!D22/'Tabel 1 H'!C20*100,"-")) -> 1.435580781 | F22: =IF(OR('Tabel 1 H'!E20<5,'Tabel 2 H'!F22<0.5),"-",IFERROR('Tabel 2 H'!F22/'Tabel 1 H'!E20*100,"-")) -> 9.722222222 | G22: =IF(OR('Tabel 1 H'!E20<5,'Tabel 2 H'!G22<0.5),"-",IFERROR('Tabel 2 H'!G22/'Tabel 1 H'!E20*100,"-")) -> 8.367291073 | I22: =IF(OR('Tabel 1 H'!G20<5,'Tabel 2 H'!I22<0.5),"-",IFERROR('Tabel 2 H'!I22/'Tabel 1 H'!G20*100,"-")) -> 6.060606061 | J22: =IF(OR('Tabel 1 H'!G20<5,'Tabel 2 H'!J22<0.5),"-",IFERROR('Tabel 2 H'!J22/'Tabel 1 H'!G20*100,"-")) -> 5.216513668
A23: Levn.m.kand. | C23: =IF(OR('Tabel 1 H'!C21<5,'Tabel 2 H'!C23<0.5),"-",IFERROR('Tabel 2 H'!C23/'Tabel 1 H'!C21*100,"-")) -> 17.07317073 | D23: =IF(OR('Tabel 1 H'!C21<5,'Tabel 2 H'!D23<0.5),"-",IFERROR('Tabel 2 H'!D23/'Tabel 1 H'!C21*100,"-")) -> 16.51319763 | F23: =IF(OR('Tabel 1 H'!E21<5,'Tabel 2 H'!F23<0.5),"-",IFERROR('Tabel 2 H'!F23/'Tabel 1 H'!E21*100,"-")) -> 13.79310345 | G23: =IF(OR('Tabel 1 H'!E21<5,'Tabel 2 H'!G23<0.5),"-",IFERROR('Tabel 2 H'!G23/'Tabel 1 H'!E21*100,"-")) -> 10.95680771 | I23: =IF(OR('Tabel 1 H'!G21<5,'Tabel 2 H'!I23<0.5),"-",IFERROR('Tabel 2 H'!I23/'Tabel 1 H'!G21*100,"-")) -> 14.2384106 | J23: =IF(OR('Tabel 1 H'!G21<5,'Tabel 2 H'!J23<0.5),"-",IFERROR('Tabel 2 H'!J23/'Tabel 1 H'!G21*100,"-")) -> 11.71115204
A24: Dyrlæge | C24: =IF(OR('Tabel 1 H'!C22<5,'Tabel 2 H'!C24<0.5),"-",IFERROR('Tabel 2 H'!C24/'Tabel 1 H'!C22*100,"-")) -> 6.134969325 | D24: =IF(OR('Tabel 1 H'!C22<5,'Tabel 2 H'!D24<0.5),"-",IFERROR('Tabel 2 H'!D24/'Tabel 1 H'!C22*100,"-")) -> 5.234985052 | F24: =IF(OR('Tabel 1 H'!E22<5,'Tabel 2 H'!F24<0.5),"-",IFERROR('Tabel 2 H'!F24/'Tabel 1 H'!E22*100,"-")) -> 5.430463576 | G24: =IF(OR('Tabel 1 H'!E22<5,'Tabel 2 H'!G24<0.5),"-",IFERROR('Tabel 2 H'!G24/'Tabel 1 H'!E22*100,"-")) -> 4.087926268 | I24: =IF(OR('Tabel 1 H'!G22<5,'Tabel 2 H'!I24<0.5),"-",IFERROR('Tabel 2 H'!I24/'Tabel 1 H'!G22*100,"-")) -> 5.555555556 | J24: =IF(OR('Tabel 1 H'!G22<5,'Tabel 2 H'!J24<0.5),"-",IFERROR('Tabel 2 H'!J24/'Tabel 1 H'!G22*100,"-")) -> 4.291597926
A25: Farmaceut | C25: =IF(OR('Tabel 1 H'!C23<5,'Tabel 2 H'!C25<0.5),"-",IFERROR('Tabel 2 H'!C25/'Tabel 1 H'!C23*100,"-")) -> 5.252918288 | D25: =IF(OR('Tabel 1 H'!C23<5,'Tabel 2 H'!D25<0.5),"-",IFERROR('Tabel 2 H'!D25/'Tabel 1 H'!C23*100,"-")) -> 4.41890158 | F25: =IF(OR('Tabel 1 H'!E23<5,'Tabel 2 H'!F25<0.5),"-",IFERROR('Tabel 2 H'!F25/'Tabel 1 H'!E23*100,"-")) -> 4.58271237 | G25: =IF(OR('Tabel 1 H'!E23<5,'Tabel 2 H'!G25<0.5),"-",IFERROR('Tabel 2 H'!G25/'Tabel 1 H'!E23*100,"-")) -> 3.932068016 | I25: =IF(OR('Tabel 1 H'!G23<5,'Tabel 2 H'!I25<0.5),"-",IFERROR('Tabel 2 H'!I25/'Tabel 1 H'!G23*100,"-")) -> 4.768318966 | J25: =IF(OR('Tabel 1 H'!G23<5,'Tabel 2 H'!J25<0.5),"-",IFERROR('Tabel 2 H'!J25/'Tabel 1 H'!G23*100,"-")) -> 4.066891535
A26: Læge | C26: =IF(OR('Tabel 1 H'!C24<5,'Tabel 2 H'!C26<0.5),"-",IFERROR('Tabel 2 H'!C26/'Tabel 1 H'!C24*100,"-")) -> 2.090357384 | D26: =IF(OR('Tabel 1 H'!C24<5,'Tabel 2 H'!D26<0.5),"-",IFERROR('Tabel 2 H'!D26/'Tabel 1 H'!C24*100,"-")) -> 1.703162884 | F26: =IF(OR('Tabel 1 H'!E24<5,'Tabel 2 H'!F26<0.5),"-",IFERROR('Tabel 2 H'!F26/'Tabel 1 H'!E24*100,"-")) -> 1.629384148 | G26: =IF(OR('Tabel 1 H'!E24<5,'Tabel 2 H'!G26<0.5),"-",IFERROR('Tabel 2 H'!G26/'Tabel 1 H'!E24*100,"-")) -> 1.267201365 | I26: =IF(OR('Tabel 1 H'!G24<5,'Tabel 2 H'!I26<0.5),"-",IFERROR('Tabel 2 H'!I26/'Tabel 1 H'!G24*100,"-")) -> 1.763322884 | J26: =IF(OR('Tabel 1 H'!G24<5,'Tabel 2 H'!J26<0.5),"-",IFERROR('Tabel 2 H'!J26/'Tabel 1 H'!G24*100,"-")) -> 1.393872786
A27: Tandlæge | C27: =IF(OR('Tabel 1 H'!C25<5,'Tabel 2 H'!C27<0.5),"-",IFERROR('Tabel 2 H'!C27/'Tabel 1 H'!C25*100,"-")) -> 3.007518797 | D27: =IF(OR('Tabel 1 H'!C25<5,'Tabel 2 H'!D27<0.5),"-",IFERROR('Tabel 2 H'!D27/'Tabel 1 H'!C25*100,"-")) -> 2.729333156 | F27: =IF(OR('Tabel 1 H'!E25<5,'Tabel 2 H'!F27<0.5),"-",IFERROR('Tabel 2 H'!F27/'Tabel 1 H'!E25*100,"-")) -> 2.387640449 | G27: =IF(OR('Tabel 1 H'!E25<5,'Tabel 2 H'!G27<0.5),"-",IFERROR('Tabel 2 H'!G27/'Tabel 1 H'!E25*100,"-")) -> 1.869476368 | I27: =IF(OR('Tabel 1 H'!G25<5,'Tabel 2 H'!I27<0.5),"-",IFERROR('Tabel 2 H'!I27/'Tabel 1 H'!G25*100,"-")) -> 2.485207101 | J27: =IF(OR('Tabel 1 H'!G25<5,'Tabel 2 H'!J27<0.5),"-",IFERROR('Tabel 2 H'!J27/'Tabel 1 H'!G25*100,"-")) -> 2.004814774
A28: Arkitekt | C28: =IF(OR('Tabel 1 H'!C26<5,'Tabel 2 H'!C28<0.5),"-",IFERROR('Tabel 2 H'!C28/'Tabel 1 H'!C26*100,"-")) -> 6.981016534 | D28: =IF(OR('Tabel 1 H'!C26<5,'Tabel 2 H'!D28<0.5),"-",IFERROR('Tabel 2 H'!D28/'Tabel 1 H'!C26*100,"-")) -> 6.19114992 | F28: =IF(OR('Tabel 1 H'!E26<5,'Tabel 2 H'!F28<0.5),"-",IFERROR('Tabel 2 H'!F28/'Tabel 1 H'!E26*100,"-")) -> 8.504252126 | G28: =IF(OR('Tabel 1 H'!E26<5,'Tabel 2 H'!G28<0.5),"-",IFERROR('Tabel 2 H'!G28/'Tabel 1 H'!E26*100,"-")) -> 7.307090207 | I28: =IF(OR('Tabel 1 H'!G26<5,'Tabel 2 H'!I28<0.5),"-",IFERROR('Tabel 2 H'!I28/'Tabel 1 H'!G26*100,"-")) -> 7.81938326 | J28: =IF(OR('Tabel 1 H'!G26<5,'Tabel 2 H'!J28<0.5),"-",IFERROR('Tabel 2 H'!J28/'Tabel 1 H'!G26*100,"-")) -> 6.805347231
A29: Landinspek. | C29: =IF(OR('Tabel 1 H'!C27<5,'Tabel 2 H'!C29<0.5),"-",IFERROR('Tabel 2 H'!C29/'Tabel 1 H'!C27*100,"-")) -> 0.6849315068 | D29: =IF(OR('Tabel 1 H'!C27<5,'Tabel 2 H'!D29<0.5),"-",IFERROR('Tabel 2 H'!D29/'Tabel 1 H'!C27*100,"-")) -> 0.6848033465 | F29: =IF(OR('Tabel 1 H'!E27<5,'Tabel 2 H'!F29<0.5),"-",IFERROR('Tabel 2 H'!F29/'Tabel 1 H'!E27*100,"-")) -> 1.923076923 | G29: =IF(OR('Tabel 1 H'!E27<5,'Tabel 2 H'!G29<0.5),"-",IFERROR('Tabel 2 H'!G29/'Tabel 1 H'!E27*100,"-")) -> 1.922717088 | I29: =IF(OR('Tabel 1 H'!G27<5,'Tabel 2 H'!I29<0.5),"-",IFERROR('Tabel 2 H'!I29/'Tabel 1 H'!G27*100,"-")) -> 1.01010101 | J29: =IF(OR('Tabel 1 H'!G27<5,'Tabel 2 H'!J29<0.5),"-",IFERROR('Tabel 2 H'!J29/'Tabel 1 H'!G27*100,"-")) -> 1.009912006
A30: Bibliotekar | C30: =IF(OR('Tabel 1 H'!C28<5,'Tabel 2 H'!C30<0.5),"-",IFERROR('Tabel 2 H'!C30/'Tabel 1 H'!C28*100,"-")) -> 4.883227176 | D30: =IF(OR('Tabel 1 H'!C28<5,'Tabel 2 H'!D30<0.5),"-",IFERROR('Tabel 2 H'!D30/'Tabel 1 H'!C28*100,"-")) -> 3.99335606 | F30: =IF(OR('Tabel 1 H'!E28<5,'Tabel 2 H'!F30<0.5),"-",IFERROR('Tabel 2 H'!F30/'Tabel 1 H'!E28*100,"-")) -> 5.114083399 | G30: =IF(OR('Tabel 1 H'!E28<5,'Tabel 2 H'!G30<0.5),"-",IFERROR('Tabel 2 H'!G30/'Tabel 1 H'!E28*100,"-")) -> 4.301071997 | I30: =IF(OR('Tabel 1 H'!G28<5,'Tabel 2 H'!I30<0.5),"-",IFERROR('Tabel 2 H'!I30/'Tabel 1 H'!G28*100,"-")) -> 5.051664753 | J30: =IF(OR('Tabel 1 H'!G28<5,'Tabel 2 H'!J30<0.5),"-",IFERROR('Tabel 2 H'!J30/'Tabel 1 H'!G28*100,"-")) -> 4.217872108
A31: Musikudd. | C31: =IF(OR('Tabel 1 H'!C29<5,'Tabel 2 H'!C31<0.5),"-",IFERROR('Tabel 2 H'!C31/'Tabel 1 H'!C29*100,"-")) -> 5.517241379 | D31: =IF(OR('Tabel 1 H'!C29<5,'Tabel 2 H'!D31<0.5),"-",IFERROR('Tabel 2 H'!D31/'Tabel 1 H'!C29*100,"-")) -> 4.101024396 | F31: =IF(OR('Tabel 1 H'!E29<5,'Tabel 2 H'!F31<0.5),"-",IFERROR('Tabel 2 H'!F31/'Tabel 1 H'!E29*100,"-")) -> 3.225806452 | G31: =IF(OR('Tabel 1 H'!E29<5,'Tabel 2 H'!G31<0.5),"-",IFERROR('Tabel 2 H'!G31/'Tabel 1 H'!E29*100,"-")) -> 2.761441623 | I31: =IF(OR('Tabel 1 H'!G29<5,'Tabel 2 H'!I31<0.5),"-",IFERROR('Tabel 2 H'!I31/'Tabel 1 H'!G29*100,"-")) -> 4.229607251 | J31: =IF(OR('Tabel 1 H'!G29<5,'Tabel 2 H'!J31<0.5),"-",IFERROR('Tabel 2 H'!J31/'Tabel 1 H'!G29*100,"-")) -> 3.348267913
A32: Teolog | C32: =IF(OR('Tabel 1 H'!C30<5,'Tabel 2 H'!C32<0.5),"-",IFERROR('Tabel 2 H'!C32/'Tabel 1 H'!C30*100,"-")) -> 3.8647343 | D32: =IF(OR('Tabel 1 H'!C30<5,'Tabel 2 H'!D32<0.5),"-",IFERROR('Tabel 2 H'!D32/'Tabel 1 H'!C30*100,"-")) -> 3.4373549 | F32: =IF(OR('Tabel 1 H'!E30<5,'Tabel 2 H'!F32<0.5),"-",IFERROR('Tabel 2 H'!F32/'Tabel 1 H'!E30*100,"-")) -> 5.523255814 | G32: =IF(OR('Tabel 1 H'!E30<5,'Tabel 2 H'!G32<0.5),"-",IFERROR('Tabel 2 H'!G32/'Tabel 1 H'!E30*100,"-")) -> 4.223483832 | I32: =IF(OR('Tabel 1 H'!G30<5,'Tabel 2 H'!I32<0.5),"-",IFERROR('Tabel 2 H'!I32/'Tabel 1 H'!G30*100,"-")) -> 4.900181488 | J32: =IF(OR('Tabel 1 H'!G30<5,'Tabel 2 H'!J32<0.5),"-",IFERROR('Tabel 2 H'!J32/'Tabel 1 H'!G30*100,"-")) -> 3.928150458
A33: Psykolog | C33: =IF(OR('Tabel 1 H'!C31<5,'Tabel 2 H'!C33<0.5),"-",IFERROR('Tabel 2 H'!C33/'Tabel 1 H'!C31*100,"-")) -> 7.424242424 | D33: =IF(OR('Tabel 1 H'!C31<5,'Tabel 2 H'!D33<0.5),"-",IFERROR('Tabel 2 H'!D33/'Tabel 1 H'!C31*100,"-")) -> 6.61268709 | F33: =IF(OR('Tabel 1 H'!E31<5,'Tabel 2 H'!F33<0.5),"-",IFERROR('Tabel 2 H'!F33/'Tabel 1 H'!E31*100,"-")) -> 5.491831769 | G33: =IF(OR('Tabel 1 H'!E31<5,'Tabel 2 H'!G33<0.5),"-",IFERROR('Tabel 2 H'!G33/'Tabel 1 H'!E31*100,"-")) -> 4.60865159 | I33: =IF(OR('Tabel 1 H'!G31<5,'Tabel 2 H'!I33<0.5),"-",IFERROR('Tabel 2 H'!I33/'Tabel 1 H'!G31*100,"-")) -> 5.852417303 | J33: =IF(OR('Tabel 1 H'!G31<5,'Tabel 2 H'!J33<0.5),"-",IFERROR('Tabel 2 H'!J33/'Tabel 1 H'!G31*100,"-")) -> 4.982602235
A34: Jurist | C34: =IF(OR('Tabel 1 H'!C32<5,'Tabel 2 H'!C34<0.5),"-",IFERROR('Tabel 2 H'!C34/'Tabel 1 H'!C32*100,"-")) -> 2.187698161 | D34: =IF(OR('Tabel 1 H'!C32<5,'Tabel 2 H'!D34<0.5),"-",IFERROR('Tabel 2 H'!D34/'Tabel 1 H'!C32*100,"-")) -> 1.781776101 | F34: =IF(OR('Tabel 1 H'!E32<5,'Tabel 2 H'!F34<0.5),"-",IFERROR('Tabel 2 H'!F34/'Tabel 1 H'!E32*100,"-")) -> 2.663514578 | G34: =IF(OR('Tabel 1 H'!E32<5,'Tabel 2 H'!G34<0.5),"-",IFERROR('Tabel 2 H'!G34/'Tabel 1 H'!E32*100,"-")) -> 2.245300117 | I34: =IF(OR('Tabel 1 H'!G32<5,'Tabel 2 H'!I34<0.5),"-",IFERROR('Tabel 2 H'!I34/'Tabel 1 H'!G32*100,"-")) -> 2.505526898 | J34: =IF(OR('Tabel 1 H'!G32<5,'Tabel 2 H'!J34<0.5),"-",IFERROR('Tabel 2 H'!J34/'Tabel 1 H'!G32*100,"-")) -> 2.091393943
A35: Økonom | C35: =IF(OR('Tabel 1 H'!C33<5,'Tabel 2 H'!C35<0.5),"-",IFERROR('Tabel 2 H'!C35/'Tabel 1 H'!C33*100,"-")) -> 2.609727165 | D35: =IF(OR('Tabel 1 H'!C33<5,'Tabel 2 H'!D35<0.5),"-",IFERROR('Tabel 2 H'!D35/'Tabel 1 H'!C33*100,"-")) -> 2.182646127 | F35: =IF(OR('Tabel 1 H'!E33<5,'Tabel 2 H'!F35<0.5),"-",IFERROR('Tabel 2 H'!F35/'Tabel 1 H'!E33*100,"-")) -> 2.399232246 | G35: =IF(OR('Tabel 1 H'!E33<5,'Tabel 2 H'!G35<0.5),"-",IFERROR('Tabel 2 H'!G35/'Tabel 1 H'!E33*100,"-")) -> 1.973915843 | I35: =IF(OR('Tabel 1 H'!G33<5,'Tabel 2 H'!I35<0.5),"-",IFERROR('Tabel 2 H'!I35/'Tabel 1 H'!G33*100,"-")) -> 2.529325513 | J35: =IF(OR('Tabel 1 H'!G33<5,'Tabel 2 H'!J35<0.5),"-",IFERROR('Tabel 2 H'!J35/'Tabel 1 H'!G33*100,"-")) -> 2.102918504
A36: Samf. Adm. | C36: =IF(OR('Tabel 1 H'!C34<5,'Tabel 2 H'!C36<0.5),"-",IFERROR('Tabel 2 H'!C36/'Tabel 1 H'!C34*100,"-")) -> 5.708749441 | D36: =IF(OR('Tabel 1 H'!C34<5,'Tabel 2 H'!D36<0.5),"-",IFERROR('Tabel 2 H'!D36/'Tabel 1 H'!C34*100,"-")) -> 4.964477563 | F36: =IF(OR('Tabel 1 H'!E34<5,'Tabel 2 H'!F36<0.5),"-",IFERROR('Tabel 2 H'!F36/'Tabel 1 H'!E34*100,"-")) -> 6.350166314 | G36: =IF(OR('Tabel 1 H'!E34<5,'Tabel 2 H'!G36<0.5),"-",IFERROR('Tabel 2 H'!G36/'Tabel 1 H'!E34*100,"-")) -> 5.437461025 | I36: =IF(OR('Tabel 1 H'!G34<5,'Tabel 2 H'!I36<0.5),"-",IFERROR('Tabel 2 H'!I36/'Tabel 1 H'!G34*100,"-")) -> 6.091401082 | J36: =IF(OR('Tabel 1 H'!G34<5,'Tabel 2 H'!J36<0.5),"-",IFERROR('Tabel 2 H'!J36/'Tabel 1 H'!G34*100,"-")) -> 5.246646471
A37: Cand. Merc. | C37: =IF(OR('Tabel 1 H'!C35<5,'Tabel 2 H'!C37<0.5),"-",IFERROR('Tabel 2 H'!C37/'Tabel 1 H'!C35*100,"-")) -> 5.166199439 | D37: =IF(OR('Tabel 1 H'!C35<5,'Tabel 2 H'!D37<0.5),"-",IFERROR('Tabel 2 H'!D37/'Tabel 1 H'!C35*100,"-")) -> 4.473758706 | F37: =IF(OR('Tabel 1 H'!E35<5,'Tabel 2 H'!F37<0.5),"-",IFERROR('Tabel 2 H'!F37/'Tabel 1 H'!E35*100,"-")) -> 5.739559761 | G37: =IF(OR('Tabel 1 H'!E35<5,'Tabel 2 H'!G37<0.5),"-",IFERROR('Tabel 2 H'!G37/'Tabel 1 H'!E35*100,"-")) -> 4.817690288 | I37: =IF(OR('Tabel 1 H'!G35<5,'Tabel 2 H'!I37<0.5),"-",IFERROR('Tabel 2 H'!I37/'Tabel 1 H'!G35*100,"-")) -> 5.449010654 | J37: =IF(OR('Tabel 1 H'!G35<5,'Tabel 2 H'!J37<0.5),"-",IFERROR('Tabel 2 H'!J37/'Tabel 1 H'!G35*100,"-")) -> 4.6434037
A38: HA | C38: =IF(OR('Tabel 1 H'!C36<5,'Tabel 2 H'!C38<0.5),"-",IFERROR('Tabel 2 H'!C38/'Tabel 1 H'!C36*100,"-")) -> 7.555898227 | D38: =IF(OR('Tabel 1 H'!C36<5,'Tabel 2 H'!D38<0.5),"-",IFERROR('Tabel 2 H'!D38/'Tabel 1 H'!C36*100,"-")) -> 6.417373266 | F38: =IF(OR('Tabel 1 H'!E36<5,'Tabel 2 H'!F38<0.5),"-",IFERROR('Tabel 2 H'!F38/'Tabel 1 H'!E36*100,"-")) -> 7.163053723 | G38: =IF(OR('Tabel 1 H'!E36<5,'Tabel 2 H'!G38<0.5),"-",IFERROR('Tabel 2 H'!G38/'Tabel 1 H'!E36*100,"-")) -> 5.721469968 | I38: =IF(OR('Tabel 1 H'!G36<5,'Tabel 2 H'!I38<0.5),"-",IFERROR('Tabel 2 H'!I38/'Tabel 1 H'!G36*100,"-")) -> 7.37913486 | J38: =IF(OR('Tabel 1 H'!G36<5,'Tabel 2 H'!J38<0.5),"-",IFERROR('Tabel 2 H'!J38/'Tabel 1 H'!G36*100,"-")) -> 6.104246294
A39: HD | C39: =IF(OR('Tabel 1 H'!C37<5,'Tabel 2 H'!C39<0.5),"-",IFERROR('Tabel 2 H'!C39/'Tabel 1 H'!C37*100,"-")) -> 9.312638581 | D39: =IF(OR('Tabel 1 H'!C37<5,'Tabel 2 H'!D39<0.5),"-",IFERROR('Tabel 2 H'!D39/'Tabel 1 H'!C37*100,"-")) -> 8.040327394 | F39: =IF(OR('Tabel 1 H'!E37<5,'Tabel 2 H'!F39<0.5),"-",IFERROR('Tabel 2 H'!F39/'Tabel 1 H'!E37*100,"-")) -> 11.79443976 | G39: =IF(OR('Tabel 1 H'!E37<5,'Tabel 2 H'!G39<0.5),"-",IFERROR('Tabel 2 H'!G39/'Tabel 1 H'!E37*100,"-")) -> 9.681590271 | I39: =IF(OR('Tabel 1 H'!G37<5,'Tabel 2 H'!I39<0.5),"-",IFERROR('Tabel 2 H'!I39/'Tabel 1 H'!G37*100,"-")) -> 10.47244094 | J39: =IF(OR('Tabel 1 H'!G37<5,'Tabel 2 H'!J39<0.5),"-",IFERROR('Tabel 2 H'!J39/'Tabel 1 H'!G37*100,"-")) -> 8.807327014
A40: Komm. og Sprog | C40: =IF(OR('Tabel 1 H'!C38<5,'Tabel 2 H'!C40<0.5),"-",IFERROR('Tabel 2 H'!C40/'Tabel 1 H'!C38*100,"-")) -> 10.80196399 | D40: =IF(OR('Tabel 1 H'!C38<5,'Tabel 2 H'!D40<0.5),"-",IFERROR('Tabel 2 H'!D40/'Tabel 1 H'!C38*100,"-")) -> 9.364074485 | F40: =IF(OR('Tabel 1 H'!E38<5,'Tabel 2 H'!F40<0.5),"-",IFERROR('Tabel 2 H'!F40/'Tabel 1 H'!E38*100,"-")) -> 6.995515695 | G40: =IF(OR('Tabel 1 H'!E38<5,'Tabel 2 H'!G40<0.5),"-",IFERROR('Tabel 2 H'!G40/'Tabel 1 H'!E38*100,"-")) -> 5.639228583 | I40: =IF(OR('Tabel 1 H'!G38<5,'Tabel 2 H'!I40<0.5),"-",IFERROR('Tabel 2 H'!I40/'Tabel 1 H'!G38*100,"-")) -> 7.583417594 | J40: =IF(OR('Tabel 1 H'!G38<5,'Tabel 2 H'!J40<0.5),"-",IFERROR('Tabel 2 H'!J40/'Tabel 1 H'!G38*100,"-")) -> 6.214527078
A41: Cand. IT. | C41: =IF(OR('Tabel 1 H'!C39<5,'Tabel 2 H'!C41<0.5),"-",IFERROR('Tabel 2 H'!C41/'Tabel 1 H'!C39*100,"-")) -> 5.333333333 | D41: =IF(OR('Tabel 1 H'!C39<5,'Tabel 2 H'!D41<0.5),"-",IFERROR('Tabel 2 H'!D41/'Tabel 1 H'!C39*100,"-")) -> 4.584572098 | F41: =IF(OR('Tabel 1 H'!E39<5,'Tabel 2 H'!F41<0.5),"-",IFERROR('Tabel 2 H'!F41/'Tabel 1 H'!E39*100,"-")) -> 9.497716895 | G41: =IF(OR('Tabel 1 H'!E39<5,'Tabel 2 H'!G41<0.5),"-",IFERROR('Tabel 2 H'!G41/'Tabel 1 H'!E39*100,"-")) -> 7.84591825 | I41: =IF(OR('Tabel 1 H'!G39<5,'Tabel 2 H'!I41<0.5),"-",IFERROR('Tabel 2 H'!I41/'Tabel 1 H'!G39*100,"-")) -> 7.198364008 | J41: =IF(OR('Tabel 1 H'!G39<5,'Tabel 2 H'!J41<0.5),"-",IFERROR('Tabel 2 H'!J41/'Tabel 1 H'!G39*100,"-")) -> 6.045174976
A42: Bac. Samf. | C42: =IF(OR('Tabel 1 H'!C40<5,'Tabel 2 H'!C42<0.5),"-",IFERROR('Tabel 2 H'!C42/'Tabel 1 H'!C40*100,"-")) -> 5.607476636 | D42: =IF(OR('Tabel 1 H'!C40<5,'Tabel 2 H'!D42<0.5),"-",IFERROR('Tabel 2 H'!D42/'Tabel 1 H'!C40*100,"-")) -> 4.972415732 | F42: =IF(OR('Tabel 1 H'!E40<5,'Tabel 2 H'!F42<0.5),"-",IFERROR('Tabel 2 H'!F42/'Tabel 1 H'!E40*100,"-")) -> 6.315789474 | G42: =IF(OR('Tabel 1 H'!E40<5,'Tabel 2 H'!G42<0.5),"-",IFERROR('Tabel 2 H'!G42/'Tabel 1 H'!E40*100,"-")) -> 4.864966008 | I42: =IF(OR('Tabel 1 H'!G40<5,'Tabel 2 H'!I42<0.5),"-",IFERROR('Tabel 2 H'!I42/'Tabel 1 H'!G40*100,"-")) -> 5.991440799 | J42: =IF(OR('Tabel 1 H'!G40<5,'Tabel 2 H'!J42<0.5),"-",IFERROR('Tabel 2 H'!J42/'Tabel 1 H'!G40*100,"-")) -> 4.914169091
A43: Bac. Hum. | C43: =IF(OR('Tabel 1 H'!C41<5,'Tabel 2 H'!C43<0.5),"-",IFERROR('Tabel 2 H'!C43/'Tabel 1 H'!C41*100,"-")) -> 9.952606635 | D43: =IF(OR('Tabel 1 H'!C41<5,'Tabel 2 H'!D43<0.5),"-",IFERROR('Tabel 2 H'!D43/'Tabel 1 H'!C41*100,"-")) -> 8.332439147 | F43: =IF(OR('Tabel 1 H'!E41<5,'Tabel 2 H'!F43<0.5),"-",IFERROR('Tabel 2 H'!F43/'Tabel 1 H'!E41*100,"-")) -> 12.47706422 | G43: =IF(OR('Tabel 1 H'!E41<5,'Tabel 2 H'!G43<0.5),"-",IFERROR('Tabel 2 H'!G43/'Tabel 1 H'!E41*100,"-")) -> 10.26352185 | I43: =IF(OR('Tabel 1 H'!G41<5,'Tabel 2 H'!I43<0.5),"-",IFERROR('Tabel 2 H'!I43/'Tabel 1 H'!G41*100,"-")) -> 11.54962275 | J43: =IF(OR('Tabel 1 H'!G41<5,'Tabel 2 H'!J43<0.5),"-",IFERROR('Tabel 2 H'!J43/'Tabel 1 H'!G41*100,"-")) -> 9.554075914
A44: Bac. Nat. | C44: =IF(OR('Tabel 1 H'!C42<5,'Tabel 2 H'!C44<0.5),"-",IFERROR('Tabel 2 H'!C44/'Tabel 1 H'!C42*100,"-")) -> 8.915304606 | D44: =IF(OR('Tabel 1 H'!C42<5,'Tabel 2 H'!D44<0.5),"-",IFERROR('Tabel 2 H'!D44/'Tabel 1 H'!C42*100,"-")) -> 7.127202077 | F44: =IF(OR('Tabel 1 H'!E42<5,'Tabel 2 H'!F44<0.5),"-",IFERROR('Tabel 2 H'!F44/'Tabel 1 H'!E42*100,"-")) -> 11.96078431 | G44: =IF(OR('Tabel 1 H'!E42<5,'Tabel 2 H'!G44<0.5),"-",IFERROR('Tabel 2 H'!G44/'Tabel 1 H'!E42*100,"-")) -> 9.982841761 | I44: =IF(OR('Tabel 1 H'!G42<5,'Tabel 2 H'!I44<0.5),"-",IFERROR('Tabel 2 H'!I44/'Tabel 1 H'!G42*100,"-")) -> 10.22823331 | J44: =IF(OR('Tabel 1 H'!G42<5,'Tabel 2 H'!J44<0.5),"-",IFERROR('Tabel 2 H'!J44/'Tabel 1 H'!G42*100,"-")) -> 8.358289346
A45: Andre | C45: =IF(OR('Tabel 1 H'!C43<5,'Tabel 2 H'!C45<0.5),"-",IFERROR('Tabel 2 H'!C45/'Tabel 1 H'!C43*100,"-")) -> 6.374848011 | D45: =IF(OR('Tabel 1 H'!C43<5,'Tabel 2 H'!D45<0.5),"-",IFERROR('Tabel 2 H'!D45/'Tabel 1 H'!C43*100,"-")) -> 5.436351361 | F45: =IF(OR('Tabel 1 H'!E43<5,'Tabel 2 H'!F45<0.5),"-",IFERROR('Tabel 2 H'!F45/'Tabel 1 H'!E43*100,"-")) -> 9.096252755 | G45: =IF(OR('Tabel 1 H'!E43<5,'Tabel 2 H'!G45<0.5),"-",IFERROR('Tabel 2 H'!G45/'Tabel 1 H'!E43*100,"-")) -> 7.52534965 | I45: =IF(OR('Tabel 1 H'!G43<5,'Tabel 2 H'!I45<0.5),"-",IFERROR('Tabel 2 H'!I45/'Tabel 1 H'!G43*100,"-")) -> 7.84906862 | J45: =IF(OR('Tabel 1 H'!G43<5,'Tabel 2 H'!J45<0.5),"-",IFERROR('Tabel 2 H'!J45/'Tabel 1 H'!G43*100,"-")) -> 6.567989106
A47: Total | C47: =IF(OR('Tabel 1 H'!C45<5,'Tabel 2 H'!C47<0.5),"-",IFERROR('Tabel 2 H'!C47/'Tabel 1 H'!C45*100,"-")) -> 5.345129254 | D47: =IF(OR('Tabel 1 H'!C45<5,'Tabel 2 H'!D47<0.5),"-",IFERROR('Tabel 2 H'!D47/'Tabel 1 H'!C45*100,"-")) -> 4.585944131 | F47: =IF(OR('Tabel 1 H'!E45<5,'Tabel 2 H'!F47<0.5),"-",IFERROR('Tabel 2 H'!F47/'Tabel 1 H'!E45*100,"-")) -> 6.922275067 | G47: =IF(OR('Tabel 1 H'!E45<5,'Tabel 2 H'!G47<0.5),"-",IFERROR('Tabel 2 H'!G47/'Tabel 1 H'!E45*100,"-")) -> 5.76099471 | I47: =IF(OR('Tabel 1 H'!G45<5,'Tabel 2 H'!I47<0.5),"-",IFERROR('Tabel 2 H'!I47/'Tabel 1 H'!G45*100,"-")) -> 6.183478401 | J47: =IF(OR('Tabel 1 H'!G45<5,'Tabel 2 H'!J47<0.5),"-",IFERROR('Tabel 2 H'!J47/'Tabel 1 H'!G45*100,"-")) -> 5.210555149
A49: Ingeniører i alt | C49: =IF(OR('Tabel 1 H'!C47<5,'Tabel 2 H'!C49<0.5),"-",IFERROR('Tabel 2 H'!C49/'Tabel 1 H'!C47*100,"-")) -> 3.085250338 | D49: =IF(OR('Tabel 1 H'!C47<5,'Tabel 2 H'!D49<0.5),"-",IFERROR('Tabel 2 H'!D49/'Tabel 1 H'!C47*100,"-")) -> 2.702317201 | F49: =IF(OR('Tabel 1 H'!E47<5,'Tabel 2 H'!F49<0.5),"-",IFERROR('Tabel 2 H'!F49/'Tabel 1 H'!E47*100,"-")) -> 3.727647868 | G49: =IF(OR('Tabel 1 H'!E47<5,'Tabel 2 H'!G49<0.5),"-",IFERROR('Tabel 2 H'!G49/'Tabel 1 H'!E47*100,"-")) -> 3.170798605 | I49: =IF(OR('Tabel 1 H'!G47<5,'Tabel 2 H'!I49<0.5),"-",IFERROR('Tabel 2 H'!I49/'Tabel 1 H'!G47*100,"-")) -> 3.24388587 | J49: =IF(OR('Tabel 1 H'!G47<5,'Tabel 2 H'!J49<0.5),"-",IFERROR('Tabel 2 H'!J49/'Tabel 1 H'!G47*100,"-")) -> 2.818005374
A50: Magistre i alt | C50: =IF(OR('Tabel 1 H'!C48<5,'Tabel 2 H'!C50<0.5),"-",IFERROR('Tabel 2 H'!C50/'Tabel 1 H'!C48*100,"-")) -> 7.655219083 | D50: =IF(OR('Tabel 1 H'!C48<5,'Tabel 2 H'!D50<0.5),"-",IFERROR('Tabel 2 H'!D50/'Tabel 1 H'!C48*100,"-")) -> 6.508611178 | F50: =IF(OR('Tabel 1 H'!E48<5,'Tabel 2 H'!F50<0.5),"-",IFERROR('Tabel 2 H'!F50/'Tabel 1 H'!E48*100,"-")) -> 9.287318962 | G50: =IF(OR('Tabel 1 H'!E48<5,'Tabel 2 H'!G50<0.5),"-",IFERROR('Tabel 2 H'!G50/'Tabel 1 H'!E48*100,"-")) -> 7.666275086 | I50: =IF(OR('Tabel 1 H'!G48<5,'Tabel 2 H'!I50<0.5),"-",IFERROR('Tabel 2 H'!I50/'Tabel 1 H'!G48*100,"-")) -> 8.69804233 | J50: =IF(OR('Tabel 1 H'!G48<5,'Tabel 2 H'!J50<0.5),"-",IFERROR('Tabel 2 H'!J50/'Tabel 1 H'!G48*100,"-")) -> 7.248295588
A51: DJØF'ere i alt | C51: =IF(OR('Tabel 1 H'!C49<5,'Tabel 2 H'!C51<0.5),"-",IFERROR('Tabel 2 H'!C51/'Tabel 1 H'!C49*100,"-")) -> 4.706362153 | D51: =IF(OR('Tabel 1 H'!C49<5,'Tabel 2 H'!D51<0.5),"-",IFERROR('Tabel 2 H'!D51/'Tabel 1 H'!C49*100,"-")) -> 4.049491012 | F51: =IF(OR('Tabel 1 H'!E49<5,'Tabel 2 H'!F51<0.5),"-",IFERROR('Tabel 2 H'!F51/'Tabel 1 H'!E49*100,"-")) -> 5.090447259 | G51: =IF(OR('Tabel 1 H'!E49<5,'Tabel 2 H'!G51<0.5),"-",IFERROR('Tabel 2 H'!G51/'Tabel 1 H'!E49*100,"-")) -> 4.297984598 | I51: =IF(OR('Tabel 1 H'!G49<5,'Tabel 2 H'!I51<0.5),"-",IFERROR('Tabel 2 H'!I51/'Tabel 1 H'!G49*100,"-")) -> 4.914916221 | J51: =IF(OR('Tabel 1 H'!G49<5,'Tabel 2 H'!J51<0.5),"-",IFERROR('Tabel 2 H'!J51/'Tabel 1 H'!G49*100,"-")) -> 4.184420348
A56: København
C58: Mænd | F58: Kvinder | I58: I alt
C59: Ledigheds- berørte | D59: Gns. brutto- ledighed | F59: Ledigheds- berørte | G59: Gns. brutto- ledighed | I59: Ledigheds- berørte | J59: Gns. brutto- ledighed
A62: Civ. ing. | C62: =IF(OR('Tabel 1 H'!C60<5,'Tabel 2 H'!C62<0.5),"-",IFERROR('Tabel 2 H'!C62/'Tabel 1 H'!C60*100,"-")) -> 4.629180805 | D62: =IF(OR('Tabel 1 H'!C60<5,'Tabel 2 H'!D62<0.5),"-",IFERROR('Tabel 2 H'!D62/'Tabel 1 H'!C60*100,"-")) -> 4.045839291 | F62: =IF(OR('Tabel 1 H'!E60<5,'Tabel 2 H'!F62<0.5),"-",IFERROR('Tabel 2 H'!F62/'Tabel 1 H'!E60*100,"-")) -> 5.376344086 | G62: =IF(OR('Tabel 1 H'!E60<5,'Tabel 2 H'!G62<0.5),"-",IFERROR('Tabel 2 H'!G62/'Tabel 1 H'!E60*100,"-")) -> 4.650749385 | I62: =IF(OR('Tabel 1 H'!G60<5,'Tabel 2 H'!I62<0.5),"-",IFERROR('Tabel 2 H'!I62/'Tabel 1 H'!G60*100,"-")) -> 4.836166112 | J62: =IF(OR('Tabel 1 H'!G60<5,'Tabel 2 H'!J62<0.5),"-",IFERROR('Tabel 2 H'!J62/'Tabel 1 H'!G60*100,"-")) -> 4.213416452
A63: Diplom ing. | C63: =IF(OR('Tabel 1 H'!C61<5,'Tabel 2 H'!C63<0.5),"-",IFERROR('Tabel 2 H'!C63/'Tabel 1 H'!C61*100,"-")) -> 3.954132068 | D63: =IF(OR('Tabel 1 H'!C61<5,'Tabel 2 H'!D63<0.5),"-",IFERROR('Tabel 2 H'!D63/'Tabel 1 H'!C61*100,"-")) -> 3.546436957 | F63: =IF(OR('Tabel 1 H'!E61<5,'Tabel 2 H'!F63<0.5),"-",IFERROR('Tabel 2 H'!F63/'Tabel 1 H'!E61*100,"-")) -> 4.87012987 | G63: =IF(OR('Tabel 1 H'!E61<5,'Tabel 2 H'!G63<0.5),"-",IFERROR('Tabel 2 H'!G63/'Tabel 1 H'!E61*100,"-")) -> 4.007461073 | I63: =IF(OR('Tabel 1 H'!G61<5,'Tabel 2 H'!I63<0.5),"-",IFERROR('Tabel 2 H'!I63/'Tabel 1 H'!G61*100,"-")) -> 4.13354531 | J63: =IF(OR('Tabel 1 H'!G61<5,'Tabel 2 H'!J63<0.5),"-",IFERROR('Tabel 2 H'!J63/'Tabel 1 H'!G61*100,"-")) -> 3.636736116
A64: Cand. Scient. Tek. | C64: =IF(OR('Tabel 1 H'!C62<5,'Tabel 2 H'!C64<0.5),"-",IFERROR('Tabel 2 H'!C64/'Tabel 1 H'!C62*100,"-")) -> 11.11111111 | D64: =IF(OR('Tabel 1 H'!C62<5,'Tabel 2 H'!D64<0.5),"-",IFERROR('Tabel 2 H'!D64/'Tabel 1 H'!C62*100,"-")) -> 9.533797381 | F64: =IF(OR('Tabel 1 H'!E62<5,'Tabel 2 H'!F64<0.5),"-",IFERROR('Tabel 2 H'!F64/'Tabel 1 H'!E62*100,"-")) -> 15.08379888 | G64: =IF(OR('Tabel 1 H'!E62<5,'Tabel 2 H'!G64<0.5),"-",IFERROR('Tabel 2 H'!G64/'Tabel 1 H'!E62*100,"-")) -> 12.60528651 | I64: =IF(OR('Tabel 1 H'!G62<5,'Tabel 2 H'!I64<0.5),"-",IFERROR('Tabel 2 H'!I64/'Tabel 1 H'!G62*100,"-")) -> 13.00704628 | J64: =IF(OR('Tabel 1 H'!G62<5,'Tabel 2 H'!J64<0.5),"-",IFERROR('Tabel 2 H'!J64/'Tabel 1 H'!G62*100,"-")) -> 10.99964232
A65: MA. Hum. | C65: =IF(OR('Tabel 1 H'!C63<5,'Tabel 2 H'!C65<0.5),"-",IFERROR('Tabel 2 H'!C65/'Tabel 1 H'!C63*100,"-")) -> 10.80613254 | D65: =IF(OR('Tabel 1 H'!C63<5,'Tabel 2 H'!D65<0.5),"-",IFERROR('Tabel 2 H'!D65/'Tabel 1 H'!C63*100,"-")) -> 9.163638941 | F65: =IF(OR('Tabel 1 H'!E63<5,'Tabel 2 H'!F65<0.5),"-",IFERROR('Tabel 2 H'!F65/'Tabel 1 H'!E63*100,"-")) -> 11.58469945 | G65: =IF(OR('Tabel 1 H'!E63<5,'Tabel 2 H'!G65<0.5),"-",IFERROR('Tabel 2 H'!G65/'Tabel 1 H'!E63*100,"-")) -> 9.575090477 | I65: =IF(OR('Tabel 1 H'!G63<5,'Tabel 2 H'!I65<0.5),"-",IFERROR('Tabel 2 H'!I65/'Tabel 1 H'!G63*100,"-")) -> 11.32828406 | J65: =IF(OR('Tabel 1 H'!G63<5,'Tabel 2 H'!J65<0.5),"-",IFERROR('Tabel 2 H'!J65/'Tabel 1 H'!G63*100,"-")) -> 9.439581884
A66: MA. Nat. | C66: =IF(OR('Tabel 1 H'!C64<5,'Tabel 2 H'!C66<0.5),"-",IFERROR('Tabel 2 H'!C66/'Tabel 1 H'!C64*100,"-")) -> 4.87491982 | D66: =IF(OR('Tabel 1 H'!C64<5,'Tabel 2 H'!D66<0.5),"-",IFERROR('Tabel 2 H'!D66/'Tabel 1 H'!C64*100,"-")) -> 4.129672096 | F66: =IF(OR('Tabel 1 H'!E64<5,'Tabel 2 H'!F66<0.5),"-",IFERROR('Tabel 2 H'!F66/'Tabel 1 H'!E64*100,"-")) -> 6.18622449 | G66: =IF(OR('Tabel 1 H'!E64<5,'Tabel 2 H'!G66<0.5),"-",IFERROR('Tabel 2 H'!G66/'Tabel 1 H'!E64*100,"-")) -> 5.003988903 | I66: =IF(OR('Tabel 1 H'!G64<5,'Tabel 2 H'!I66<0.5),"-",IFERROR('Tabel 2 H'!I66/'Tabel 1 H'!G64*100,"-")) -> 5.532459226 | J66: =IF(OR('Tabel 1 H'!G64<5,'Tabel 2 H'!J66<0.5),"-",IFERROR('Tabel 2 H'!J66/'Tabel 1 H'!G64*100,"-")) -> 4.56808871
A67: MA. Ph.d. | C67: =IF(OR('Tabel 1 H'!C65<5,'Tabel 2 H'!C67<0.5),"-",IFERROR('Tabel 2 H'!C67/'Tabel 1 H'!C65*100,"-")) -> 3.921568627 | D67: =IF(OR('Tabel 1 H'!C65<5,'Tabel 2 H'!D67<0.5),"-",IFERROR('Tabel 2 H'!D67/'Tabel 1 H'!C65*100,"-")) -> 3.116820857 | F67: =IF(OR('Tabel 1 H'!E65<5,'Tabel 2 H'!F67<0.5),"-",IFERROR('Tabel 2 H'!F67/'Tabel 1 H'!E65*100,"-")) -> 8.273381295 | G67: =IF(OR('Tabel 1 H'!E65<5,'Tabel 2 H'!G67<0.5),"-",IFERROR('Tabel 2 H'!G67/'Tabel 1 H'!E65*100,"-")) -> 6.694151945 | I67: =IF(OR('Tabel 1 H'!G65<5,'Tabel 2 H'!I67<0.5),"-",IFERROR('Tabel 2 H'!I67/'Tabel 1 H'!G65*100,"-")) -> 5.826771654 | J67: =IF(OR('Tabel 1 H'!G65<5,'Tabel 2 H'!J67<0.5),"-",IFERROR('Tabel 2 H'!J67/'Tabel 1 H'!G65*100,"-")) -> 4.682959506
A68: MA. Samf. | C68: =IF(OR('Tabel 1 H'!C66<5,'Tabel 2 H'!C68<0.5),"-",IFERROR('Tabel 2 H'!C68/'Tabel 1 H'!C66*100,"-")) -> 16.7721519 | D68: =IF(OR('Tabel 1 H'!C66<5,'Tabel 2 H'!D68<0.5),"-",IFERROR('Tabel 2 H'!D68/'Tabel 1 H'!C66*100,"-")) -> 14.29350225 | F68: =IF(OR('Tabel 1 H'!E66<5,'Tabel 2 H'!F68<0.5),"-",IFERROR('Tabel 2 H'!F68/'Tabel 1 H'!E66*100,"-")) -> 14.09001957 | G68: =IF(OR('Tabel 1 H'!E66<5,'Tabel 2 H'!G68<0.5),"-",IFERROR('Tabel 2 H'!G68/'Tabel 1 H'!E66*100,"-")) -> 11.71820726 | I68: =IF(OR('Tabel 1 H'!G66<5,'Tabel 2 H'!I68<0.5),"-",IFERROR('Tabel 2 H'!I68/'Tabel 1 H'!G66*100,"-")) -> 14.87297921 | J68: =IF(OR('Tabel 1 H'!G66<5,'Tabel 2 H'!J68<0.5),"-",IFERROR('Tabel 2 H'!J68/'Tabel 1 H'!G66*100,"-")) -> 12.46997928
A69: Øvrige Mag. | C69: =IF(OR('Tabel 1 H'!C67<5,'Tabel 2 H'!C69<0.5),"-",IFERROR('Tabel 2 H'!C69/'Tabel 1 H'!C67*100,"-")) -> 11.80124224 | D69: =IF(OR('Tabel 1 H'!C67<5,'Tabel 2 H'!D69<0.5),"-",IFERROR('Tabel 2 H'!D69/'Tabel 1 H'!C67*100,"-")) -> 10.3611999 | F69: =IF(OR('Tabel 1 H'!E67<5,'Tabel 2 H'!F69<0.5),"-",IFERROR('Tabel 2 H'!F69/'Tabel 1 H'!E67*100,"-")) -> 11.01549053 | G69: =IF(OR('Tabel 1 H'!E67<5,'Tabel 2 H'!G69<0.5),"-",IFERROR('Tabel 2 H'!G69/'Tabel 1 H'!E67*100,"-")) -> 9.208309926 | I69: =IF(OR('Tabel 1 H'!G67<5,'Tabel 2 H'!I69<0.5),"-",IFERROR('Tabel 2 H'!I69/'Tabel 1 H'!G67*100,"-")) -> 11.29568106 | J69: =IF(OR('Tabel 1 H'!G67<5,'Tabel 2 H'!J69<0.5),"-",IFERROR('Tabel 2 H'!J69/'Tabel 1 H'!G67*100,"-")) -> 9.619417979
A70: Agronom | C70: =IF(OR('Tabel 1 H'!C68<5,'Tabel 2 H'!C70<0.5),"-",IFERROR('Tabel 2 H'!C70/'Tabel 1 H'!C68*100,"-")) -> 6.976744186 | D70: =IF(OR('Tabel 1 H'!C68<5,'Tabel 2 H'!D70<0.5),"-",IFERROR('Tabel 2 H'!D70/'Tabel 1 H'!C68*100,"-")) -> 4.936040347 | F70: =IF(OR('Tabel 1 H'!E68<5,'Tabel 2 H'!F70<0.5),"-",IFERROR('Tabel 2 H'!F70/'Tabel 1 H'!E68*100,"-")) -> 10.73825503 | G70: =IF(OR('Tabel 1 H'!E68<5,'Tabel 2 H'!G70<0.5),"-",IFERROR('Tabel 2 H'!G70/'Tabel 1 H'!E68*100,"-")) -> 8.629433337 | I70: =IF(OR('Tabel 1 H'!G68<5,'Tabel 2 H'!I70<0.5),"-",IFERROR('Tabel 2 H'!I70/'Tabel 1 H'!G68*100,"-")) -> 8.992805755 | J70: =IF(OR('Tabel 1 H'!G68<5,'Tabel 2 H'!J70<0.5),"-",IFERROR('Tabel 2 H'!J70/'Tabel 1 H'!G68*100,"-")) -> 6.915592705
A71: Landsk. Arkt. | C71: =IF(OR('Tabel 1 H'!C69<5,'Tabel 2 H'!C71<0.5),"-",IFERROR('Tabel 2 H'!C71/'Tabel 1 H'!C69*100,"-")) -> 14.66666667 | D71: =IF(OR('Tabel 1 H'!C69<5,'Tabel 2 H'!D71<0.5),"-",IFERROR('Tabel 2 H'!D71/'Tabel 1 H'!C69*100,"-")) -> 11.32081748 | F71: =IF(OR('Tabel 1 H'!E69<5,'Tabel 2 H'!F71<0.5),"-",IFERROR('Tabel 2 H'!F71/'Tabel 1 H'!E69*100,"-")) -> 13.06818182 | G71: =IF(OR('Tabel 1 H'!E69<5,'Tabel 2 H'!G71<0.5),"-",IFERROR('Tabel 2 H'!G71/'Tabel 1 H'!E69*100,"-")) -> 10.62687468 | I71: =IF(OR('Tabel 1 H'!G69<5,'Tabel 2 H'!I71<0.5),"-",IFERROR('Tabel 2 H'!I71/'Tabel 1 H'!G69*100,"-")) -> 13.54581673 | J71: =IF(OR('Tabel 1 H'!G69<5,'Tabel 2 H'!J71<0.5),"-",IFERROR('Tabel 2 H'!J71/'Tabel 1 H'!G69*100,"-")) -> 10.83422811
A72: Hortonom | C72: =IF(OR('Tabel 1 H'!C70<5,'Tabel 2 H'!C72<0.5),"-",IFERROR('Tabel 2 H'!C72/'Tabel 1 H'!C70*100,"-")) -> 4.761904762 | D72: =IF(OR('Tabel 1 H'!C70<5,'Tabel 2 H'!D72<0.5),"-",IFERROR('Tabel 2 H'!D72/'Tabel 1 H'!C70*100,"-")) -> 3.442305008 | F72: =IF(OR('Tabel 1 H'!E70<5,'Tabel 2 H'!F72<0.5),"-",IFERROR('Tabel 2 H'!F72/'Tabel 1 H'!E70*100,"-")) -> - | G72: =IF(OR('Tabel 1 H'!E70<5,'Tabel 2 H'!G72<0.5),"-",IFERROR('Tabel 2 H'!G72/'Tabel 1 H'!E70*100,"-")) -> - | I72: =IF(OR('Tabel 1 H'!G70<5,'Tabel 2 H'!I72<0.5),"-",IFERROR('Tabel 2 H'!I72/'Tabel 1 H'!G70*100,"-")) -> 1.886792453 | J72: =IF(OR('Tabel 1 H'!G70<5,'Tabel 2 H'!J72<0.5),"-",IFERROR('Tabel 2 H'!J72/'Tabel 1 H'!G70*100,"-")) -> 1.363932173
A73: Forstkand. | C73: =IF(OR('Tabel 1 H'!C71<5,'Tabel 2 H'!C73<0.5),"-",IFERROR('Tabel 2 H'!C73/'Tabel 1 H'!C71*100,"-")) -> 9.836065574 | D73: =IF(OR('Tabel 1 H'!C71<5,'Tabel 2 H'!D73<0.5),"-",IFERROR('Tabel 2 H'!D73/'Tabel 1 H'!C71*100,"-")) -> 7.488653014 | F73: =IF(OR('Tabel 1 H'!E71<5,'Tabel 2 H'!F73<0.5),"-",IFERROR('Tabel 2 H'!F73/'Tabel 1 H'!E71*100,"-")) -> 20 | G73: =IF(OR('Tabel 1 H'!E71<5,'Tabel 2 H'!G73<0.5),"-",IFERROR('Tabel 2 H'!G73/'Tabel 1 H'!E71*100,"-")) -> 15.11133288 | I73: =IF(OR('Tabel 1 H'!G71<5,'Tabel 2 H'!I73<0.5),"-",IFERROR('Tabel 2 H'!I73/'Tabel 1 H'!G71*100,"-")) -> 12.79069767 | J73: =IF(OR('Tabel 1 H'!G71<5,'Tabel 2 H'!J73<0.5),"-",IFERROR('Tabel 2 H'!J73/'Tabel 1 H'!G71*100,"-")) -> 9.704548323
A74: Jordbrugsakad. | C74: =IF(OR('Tabel 1 H'!C72<5,'Tabel 2 H'!C74<0.5),"-",IFERROR('Tabel 2 H'!C74/'Tabel 1 H'!C72*100,"-")) -> 9.440559441 | D74: =IF(OR('Tabel 1 H'!C72<5,'Tabel 2 H'!D74<0.5),"-",IFERROR('Tabel 2 H'!D74/'Tabel 1 H'!C72*100,"-")) -> 7.045128513 | F74: =IF(OR('Tabel 1 H'!E72<5,'Tabel 2 H'!F74<0.5),"-",IFERROR('Tabel 2 H'!F74/'Tabel 1 H'!E72*100,"-")) -> 11.51832461 | G74: =IF(OR('Tabel 1 H'!E72<5,'Tabel 2 H'!G74<0.5),"-",IFERROR('Tabel 2 H'!G74/'Tabel 1 H'!E72*100,"-")) -> 9.251044067 | I74: =IF(OR('Tabel 1 H'!G72<5,'Tabel 2 H'!I74<0.5),"-",IFERROR('Tabel 2 H'!I74/'Tabel 1 H'!G72*100,"-")) -> 10.62874251 | J74: =IF(OR('Tabel 1 H'!G72<5,'Tabel 2 H'!J74<0.5),"-",IFERROR('Tabel 2 H'!J74/'Tabel 1 H'!G72*100,"-")) -> 8.306595192
A75: Mejeriing. | C75: =IF(OR('Tabel 1 H'!C73<5,'Tabel 2 H'!C75<0.5),"-",IFERROR('Tabel 2 H'!C75/'Tabel 1 H'!C73*100,"-")) -> 4.761904762 | D75: =IF(OR('Tabel 1 H'!C73<5,'Tabel 2 H'!D75<0.5),"-",IFERROR('Tabel 2 H'!D75/'Tabel 1 H'!C73*100,"-")) -> 4.101659375 | F75: =IF(OR('Tabel 1 H'!E73<5,'Tabel 2 H'!F75<0.5),"-",IFERROR('Tabel 2 H'!F75/'Tabel 1 H'!E73*100,"-")) -> 10.71428571 | G75: =IF(OR('Tabel 1 H'!E73<5,'Tabel 2 H'!G75<0.5),"-",IFERROR('Tabel 2 H'!G75/'Tabel 1 H'!E73*100,"-")) -> 10.71228092 | I75: =IF(OR('Tabel 1 H'!G73<5,'Tabel 2 H'!I75<0.5),"-",IFERROR('Tabel 2 H'!I75/'Tabel 1 H'!G73*100,"-")) -> 8.163265306 | J75: =IF(OR('Tabel 1 H'!G73<5,'Tabel 2 H'!J75<0.5),"-",IFERROR('Tabel 2 H'!J75/'Tabel 1 H'!G73*100,"-")) -> 7.879157401
A76: Levn.m.kand. | C76: =IF(OR('Tabel 1 H'!C74<5,'Tabel 2 H'!C76<0.5),"-",IFERROR('Tabel 2 H'!C76/'Tabel 1 H'!C74*100,"-")) -> 16.66666667 | D76: =IF(OR('Tabel 1 H'!C74<5,'Tabel 2 H'!D76<0.5),"-",IFERROR('Tabel 2 H'!D76/'Tabel 1 H'!C74*100,"-")) -> 15.71238487 | F76: =IF(OR('Tabel 1 H'!E74<5,'Tabel 2 H'!F76<0.5),"-",IFERROR('Tabel 2 H'!F76/'Tabel 1 H'!E74*100,"-")) -> 15.38461538 | G76: =IF(OR('Tabel 1 H'!E74<5,'Tabel 2 H'!G76<0.5),"-",IFERROR('Tabel 2 H'!G76/'Tabel 1 H'!E74*100,"-")) -> 12.65610832 | I76: =IF(OR('Tabel 1 H'!G74<5,'Tabel 2 H'!I76<0.5),"-",IFERROR('Tabel 2 H'!I76/'Tabel 1 H'!G74*100,"-")) -> 15.58441558 | J76: =IF(OR('Tabel 1 H'!G74<5,'Tabel 2 H'!J76<0.5),"-",IFERROR('Tabel 2 H'!J76/'Tabel 1 H'!G74*100,"-")) -> 13.13241116
A77: Dyrlæge | C77: =IF(OR('Tabel 1 H'!C75<5,'Tabel 2 H'!C77<0.5),"-",IFERROR('Tabel 2 H'!C77/'Tabel 1 H'!C75*100,"-")) -> 9.259259259 | D77: =IF(OR('Tabel 1 H'!C75<5,'Tabel 2 H'!D77<0.5),"-",IFERROR('Tabel 2 H'!D77/'Tabel 1 H'!C75*100,"-")) -> 7.156535941 | F77: =IF(OR('Tabel 1 H'!E75<5,'Tabel 2 H'!F77<0.5),"-",IFERROR('Tabel 2 H'!F77/'Tabel 1 H'!E75*100,"-")) -> 9.160305344 | G77: =IF(OR('Tabel 1 H'!E75<5,'Tabel 2 H'!G77<0.5),"-",IFERROR('Tabel 2 H'!G77/'Tabel 1 H'!E75*100,"-")) -> 6.377590494 | I77: =IF(OR('Tabel 1 H'!G75<5,'Tabel 2 H'!I77<0.5),"-",IFERROR('Tabel 2 H'!I77/'Tabel 1 H'!G75*100,"-")) -> 9.17721519 | J77: =IF(OR('Tabel 1 H'!G75<5,'Tabel 2 H'!J77<0.5),"-",IFERROR('Tabel 2 H'!J77/'Tabel 1 H'!G75*100,"-")) -> 6.510701425
A78: Farmaceut | C78: =IF(OR('Tabel 1 H'!C76<5,'Tabel 2 H'!C78<0.5),"-",IFERROR('Tabel 2 H'!C78/'Tabel 1 H'!C76*100,"-")) -> 8.45410628 | D78: =IF(OR('Tabel 1 H'!C76<5,'Tabel 2 H'!D78<0.5),"-",IFERROR('Tabel 2 H'!D78/'Tabel 1 H'!C76*100,"-")) -> 7.265359399 | F78: =IF(OR('Tabel 1 H'!E76<5,'Tabel 2 H'!F78<0.5),"-",IFERROR('Tabel 2 H'!F78/'Tabel 1 H'!E76*100,"-")) -> 7.342657343 | G78: =IF(OR('Tabel 1 H'!E76<5,'Tabel 2 H'!G78<0.5),"-",IFERROR('Tabel 2 H'!G78/'Tabel 1 H'!E76*100,"-")) -> 6.075391998 | I78: =IF(OR('Tabel 1 H'!G76<5,'Tabel 2 H'!I78<0.5),"-",IFERROR('Tabel 2 H'!I78/'Tabel 1 H'!G76*100,"-")) -> 7.704402516 | J78: =IF(OR('Tabel 1 H'!G76<5,'Tabel 2 H'!J78<0.5),"-",IFERROR('Tabel 2 H'!J78/'Tabel 1 H'!G76*100,"-")) -> 6.462692709
A79: Læge | C79: =IF(OR('Tabel 1 H'!C77<5,'Tabel 2 H'!C79<0.5),"-",IFERROR('Tabel 2 H'!C79/'Tabel 1 H'!C77*100,"-")) -> 2.906976744 | D79: =IF(OR('Tabel 1 H'!C77<5,'Tabel 2 H'!D79<0.5),"-",IFERROR('Tabel 2 H'!D79/'Tabel 1 H'!C77*100,"-")) -> 2.518787559 | F79: =IF(OR('Tabel 1 H'!E77<5,'Tabel 2 H'!F79<0.5),"-",IFERROR('Tabel 2 H'!F79/'Tabel 1 H'!E77*100,"-")) -> 2.364066194 | G79: =IF(OR('Tabel 1 H'!E77<5,'Tabel 2 H'!G79<0.5),"-",IFERROR('Tabel 2 H'!G79/'Tabel 1 H'!E77*100,"-")) -> 1.81857484 | I79: =IF(OR('Tabel 1 H'!G77<5,'Tabel 2 H'!I79<0.5),"-",IFERROR('Tabel 2 H'!I79/'Tabel 1 H'!G77*100,"-")) -> 2.521008403 | J79: =IF(OR('Tabel 1 H'!G77<5,'Tabel 2 H'!J79<0.5),"-",IFERROR('Tabel 2 H'!J79/'Tabel 1 H'!G77*100,"-")) -> 2.020989273
A80: Tandlæge | C80: =IF(OR('Tabel 1 H'!C78<5,'Tabel 2 H'!C80<0.5),"-",IFERROR('Tabel 2 H'!C80/'Tabel 1 H'!C78*100,"-")) -> 7.142857143 | D80: =IF(OR('Tabel 1 H'!C78<5,'Tabel 2 H'!D80<0.5),"-",IFERROR('Tabel 2 H'!D80/'Tabel 1 H'!C78*100,"-")) -> 6.482166246 | F80: =IF(OR('Tabel 1 H'!E78<5,'Tabel 2 H'!F80<0.5),"-",IFERROR('Tabel 2 H'!F80/'Tabel 1 H'!E78*100,"-")) -> 2.316602317 | G80: =IF(OR('Tabel 1 H'!E78<5,'Tabel 2 H'!G80<0.5),"-",IFERROR('Tabel 2 H'!G80/'Tabel 1 H'!E78*100,"-")) -> 1.715332783 | I80: =IF(OR('Tabel 1 H'!G78<5,'Tabel 2 H'!I80<0.5),"-",IFERROR('Tabel 2 H'!I80/'Tabel 1 H'!G78*100,"-")) -> 3.174603175 | J80: =IF(OR('Tabel 1 H'!G78<5,'Tabel 2 H'!J80<0.5),"-",IFERROR('Tabel 2 H'!J80/'Tabel 1 H'!G78*100,"-")) -> 2.562769843
A81: Arkitekt | C81: =IF(OR('Tabel 1 H'!C79<5,'Tabel 2 H'!C81<0.5),"-",IFERROR('Tabel 2 H'!C81/'Tabel 1 H'!C79*100,"-")) -> 8.24442289 | D81: =IF(OR('Tabel 1 H'!C79<5,'Tabel 2 H'!D81<0.5),"-",IFERROR('Tabel 2 H'!D81/'Tabel 1 H'!C79*100,"-")) -> 7.257582158 | F81: =IF(OR('Tabel 1 H'!E79<5,'Tabel 2 H'!F81<0.5),"-",IFERROR('Tabel 2 H'!F81/'Tabel 1 H'!E79*100,"-")) -> 10.28938907 | G81: =IF(OR('Tabel 1 H'!E79<5,'Tabel 2 H'!G81<0.5),"-",IFERROR('Tabel 2 H'!G81/'Tabel 1 H'!E79*100,"-")) -> 8.745477324 | I81: =IF(OR('Tabel 1 H'!G79<5,'Tabel 2 H'!I81<0.5),"-",IFERROR('Tabel 2 H'!I81/'Tabel 1 H'!G79*100,"-")) -> 9.362637363 | J81: =IF(OR('Tabel 1 H'!G79<5,'Tabel 2 H'!J81<0.5),"-",IFERROR('Tabel 2 H'!J81/'Tabel 1 H'!G79*100,"-")) -> 8.071182856
A82: Landinspek. | C82: =IF(OR('Tabel 1 H'!C80<5,'Tabel 2 H'!C82<0.5),"-",IFERROR('Tabel 2 H'!C82/'Tabel 1 H'!C80*100,"-")) -> - | D82: =IF(OR('Tabel 1 H'!C80<5,'Tabel 2 H'!D82<0.5),"-",IFERROR('Tabel 2 H'!D82/'Tabel 1 H'!C80*100,"-")) -> - | F82: =IF(OR('Tabel 1 H'!E80<5,'Tabel 2 H'!F82<0.5),"-",IFERROR('Tabel 2 H'!F82/'Tabel 1 H'!E80*100,"-")) -> 6.666666667 | G82: =IF(OR('Tabel 1 H'!E80<5,'Tabel 2 H'!G82<0.5),"-",IFERROR('Tabel 2 H'!G82/'Tabel 1 H'!E80*100,"-")) -> 6.665419239 | I82: =IF(OR('Tabel 1 H'!G80<5,'Tabel 2 H'!I82<0.5),"-",IFERROR('Tabel 2 H'!I82/'Tabel 1 H'!G80*100,"-")) -> 1.587301587 | J82: =IF(OR('Tabel 1 H'!G80<5,'Tabel 2 H'!J82<0.5),"-",IFERROR('Tabel 2 H'!J82/'Tabel 1 H'!G80*100,"-")) -> 1.587004581
A83: Bibliotekar | C83: =IF(OR('Tabel 1 H'!C81<5,'Tabel 2 H'!C83<0.5),"-",IFERROR('Tabel 2 H'!C83/'Tabel 1 H'!C81*100,"-")) -> 5.263157895 | D83: =IF(OR('Tabel 1 H'!C81<5,'Tabel 2 H'!D83<0.5),"-",IFERROR('Tabel 2 H'!D83/'Tabel 1 H'!C81*100,"-")) -> 4.434228464 | F83: =IF(OR('Tabel 1 H'!E81<5,'Tabel 2 H'!F83<0.5),"-",IFERROR('Tabel 2 H'!F83/'Tabel 1 H'!E81*100,"-")) -> 6.678383128 | G83: =IF(OR('Tabel 1 H'!E81<5,'Tabel 2 H'!G83<0.5),"-",IFERROR('Tabel 2 H'!G83/'Tabel 1 H'!E81*100,"-")) -> 5.653322448 | I83: =IF(OR('Tabel 1 H'!G81<5,'Tabel 2 H'!I83<0.5),"-",IFERROR('Tabel 2 H'!I83/'Tabel 1 H'!G81*100,"-")) -> 6.22754491 | J83: =IF(OR('Tabel 1 H'!G81<5,'Tabel 2 H'!J83<0.5),"-",IFERROR('Tabel 2 H'!J83/'Tabel 1 H'!G81*100,"-")) -> 5.264964364
A84: Musikudd. | C84: =IF(OR('Tabel 1 H'!C82<5,'Tabel 2 H'!C84<0.5),"-",IFERROR('Tabel 2 H'!C84/'Tabel 1 H'!C82*100,"-")) -> 6.060606061 | D84: =IF(OR('Tabel 1 H'!C82<5,'Tabel 2 H'!D84<0.5),"-",IFERROR('Tabel 2 H'!D84/'Tabel 1 H'!C82*100,"-")) -> 4.766683866 | F84: =IF(OR('Tabel 1 H'!E82<5,'Tabel 2 H'!F84<0.5),"-",IFERROR('Tabel 2 H'!F84/'Tabel 1 H'!E82*100,"-")) -> 4.597701149 | G84: =IF(OR('Tabel 1 H'!E82<5,'Tabel 2 H'!G84<0.5),"-",IFERROR('Tabel 2 H'!G84/'Tabel 1 H'!E82*100,"-")) -> 4.331583351 | I84: =IF(OR('Tabel 1 H'!G82<5,'Tabel 2 H'!I84<0.5),"-",IFERROR('Tabel 2 H'!I84/'Tabel 1 H'!G82*100,"-")) -> 5.22875817 | J84: =IF(OR('Tabel 1 H'!G82<5,'Tabel 2 H'!J84<0.5),"-",IFERROR('Tabel 2 H'!J84/'Tabel 1 H'!G82*100,"-")) -> 4.519273769
A85: Teolog | C85: =IF(OR('Tabel 1 H'!C83<5,'Tabel 2 H'!C85<0.5),"-",IFERROR('Tabel 2 H'!C85/'Tabel 1 H'!C83*100,"-")) -> 8.602150538 | D85: =IF(OR('Tabel 1 H'!C83<5,'Tabel 2 H'!D85<0.5),"-",IFERROR('Tabel 2 H'!D85/'Tabel 1 H'!C83*100,"-")) -> 7.650886713 | F85: =IF(OR('Tabel 1 H'!E83<5,'Tabel 2 H'!F85<0.5),"-",IFERROR('Tabel 2 H'!F85/'Tabel 1 H'!E83*100,"-")) -> 8.552631579 | G85: =IF(OR('Tabel 1 H'!E83<5,'Tabel 2 H'!G85<0.5),"-",IFERROR('Tabel 2 H'!G85/'Tabel 1 H'!E83*100,"-")) -> 6.428353363 | I85: =IF(OR('Tabel 1 H'!G83<5,'Tabel 2 H'!I85<0.5),"-",IFERROR('Tabel 2 H'!I85/'Tabel 1 H'!G83*100,"-")) -> 8.571428571 | J85: =IF(OR('Tabel 1 H'!G83<5,'Tabel 2 H'!J85<0.5),"-",IFERROR('Tabel 2 H'!J85/'Tabel 1 H'!G83*100,"-")) -> 6.892417043
A86: Psykolog | C86: =IF(OR('Tabel 1 H'!C84<5,'Tabel 2 H'!C86<0.5),"-",IFERROR('Tabel 2 H'!C86/'Tabel 1 H'!C84*100,"-")) -> 8.685446009 | D86: =IF(OR('Tabel 1 H'!C84<5,'Tabel 2 H'!D86<0.5),"-",IFERROR('Tabel 2 H'!D86/'Tabel 1 H'!C84*100,"-")) -> 7.767869614 | F86: =IF(OR('Tabel 1 H'!E84<5,'Tabel 2 H'!F86<0.5),"-",IFERROR('Tabel 2 H'!F86/'Tabel 1 H'!E84*100,"-")) -> 6.179066835 | G86: =IF(OR('Tabel 1 H'!E84<5,'Tabel 2 H'!G86<0.5),"-",IFERROR('Tabel 2 H'!G86/'Tabel 1 H'!E84*100,"-")) -> 5.134979722 | I86: =IF(OR('Tabel 1 H'!G84<5,'Tabel 2 H'!I86<0.5),"-",IFERROR('Tabel 2 H'!I86/'Tabel 1 H'!G84*100,"-")) -> 6.709741551 | J86: =IF(OR('Tabel 1 H'!G84<5,'Tabel 2 H'!J86<0.5),"-",IFERROR('Tabel 2 H'!J86/'Tabel 1 H'!G84*100,"-")) -> 5.692440504
A87: Jurist | C87: =IF(OR('Tabel 1 H'!C85<5,'Tabel 2 H'!C87<0.5),"-",IFERROR('Tabel 2 H'!C87/'Tabel 1 H'!C85*100,"-")) -> 2.600780234 | D87: =IF(OR('Tabel 1 H'!C85<5,'Tabel 2 H'!D87<0.5),"-",IFERROR('Tabel 2 H'!D87/'Tabel 1 H'!C85*100,"-")) -> 2.098808399 | F87: =IF(OR('Tabel 1 H'!E85<5,'Tabel 2 H'!F87<0.5),"-",IFERROR('Tabel 2 H'!F87/'Tabel 1 H'!E85*100,"-")) -> 3.304597701 | G87: =IF(OR('Tabel 1 H'!E85<5,'Tabel 2 H'!G87<0.5),"-",IFERROR('Tabel 2 H'!G87/'Tabel 1 H'!E85*100,"-")) -> 2.839644311 | I87: =IF(OR('Tabel 1 H'!G85<5,'Tabel 2 H'!I87<0.5),"-",IFERROR('Tabel 2 H'!I87/'Tabel 1 H'!G85*100,"-")) -> 3.054141601 | J87: =IF(OR('Tabel 1 H'!G85<5,'Tabel 2 H'!J87<0.5),"-",IFERROR('Tabel 2 H'!J87/'Tabel 1 H'!G85*100,"-")) -> 2.576015058
A88: Økonom | C88: =IF(OR('Tabel 1 H'!C86<5,'Tabel 2 H'!C88<0.5),"-",IFERROR('Tabel 2 H'!C88/'Tabel 1 H'!C86*100,"-")) -> 3.513174404 | D88: =IF(OR('Tabel 1 H'!C86<5,'Tabel 2 H'!D88<0.5),"-",IFERROR('Tabel 2 H'!D88/'Tabel 1 H'!C86*100,"-")) -> 2.917328368 | F88: =IF(OR('Tabel 1 H'!E86<5,'Tabel 2 H'!F88<0.5),"-",IFERROR('Tabel 2 H'!F88/'Tabel 1 H'!E86*100,"-")) -> 3.027139875 | G88: =IF(OR('Tabel 1 H'!E86<5,'Tabel 2 H'!G88<0.5),"-",IFERROR('Tabel 2 H'!G88/'Tabel 1 H'!E86*100,"-")) -> 2.356113897 | I88: =IF(OR('Tabel 1 H'!G86<5,'Tabel 2 H'!I88<0.5),"-",IFERROR('Tabel 2 H'!I88/'Tabel 1 H'!G86*100,"-")) -> 3.330721003 | J88: =IF(OR('Tabel 1 H'!G86<5,'Tabel 2 H'!J88<0.5),"-",IFERROR('Tabel 2 H'!J88/'Tabel 1 H'!G86*100,"-")) -> 2.70665303
A89: Samf. Adm. | C89: =IF(OR('Tabel 1 H'!C87<5,'Tabel 2 H'!C89<0.5),"-",IFERROR('Tabel 2 H'!C89/'Tabel 1 H'!C87*100,"-")) -> 6.755399297 | D89: =IF(OR('Tabel 1 H'!C87<5,'Tabel 2 H'!D89<0.5),"-",IFERROR('Tabel 2 H'!D89/'Tabel 1 H'!C87*100,"-")) -> 5.846101005 | F89: =IF(OR('Tabel 1 H'!E87<5,'Tabel 2 H'!F89<0.5),"-",IFERROR('Tabel 2 H'!F89/'Tabel 1 H'!E87*100,"-")) -> 7.766990291 | G89: =IF(OR('Tabel 1 H'!E87<5,'Tabel 2 H'!G89<0.5),"-",IFERROR('Tabel 2 H'!G89/'Tabel 1 H'!E87*100,"-")) -> 6.678834765 | I89: =IF(OR('Tabel 1 H'!G87<5,'Tabel 2 H'!I89<0.5),"-",IFERROR('Tabel 2 H'!I89/'Tabel 1 H'!G87*100,"-")) -> 7.358165026 | J89: =IF(OR('Tabel 1 H'!G87<5,'Tabel 2 H'!J89<0.5),"-",IFERROR('Tabel 2 H'!J89/'Tabel 1 H'!G87*100,"-")) -> 6.342293018
A90: Cand. Merc. | C90: =IF(OR('Tabel 1 H'!C88<5,'Tabel 2 H'!C90<0.5),"-",IFERROR('Tabel 2 H'!C90/'Tabel 1 H'!C88*100,"-")) -> 6.483584555 | D90: =IF(OR('Tabel 1 H'!C88<5,'Tabel 2 H'!D90<0.5),"-",IFERROR('Tabel 2 H'!D90/'Tabel 1 H'!C88*100,"-")) -> 5.671015692 | F90: =IF(OR('Tabel 1 H'!E88<5,'Tabel 2 H'!F90<0.5),"-",IFERROR('Tabel 2 H'!F90/'Tabel 1 H'!E88*100,"-")) -> 6.772151899 | G90: =IF(OR('Tabel 1 H'!E88<5,'Tabel 2 H'!G90<0.5),"-",IFERROR('Tabel 2 H'!G90/'Tabel 1 H'!E88*100,"-")) -> 5.65795073 | I90: =IF(OR('Tabel 1 H'!G88<5,'Tabel 2 H'!I90<0.5),"-",IFERROR('Tabel 2 H'!I90/'Tabel 1 H'!G88*100,"-")) -> 6.626317437 | J90: =IF(OR('Tabel 1 H'!G88<5,'Tabel 2 H'!J90<0.5),"-",IFERROR('Tabel 2 H'!J90/'Tabel 1 H'!G88*100,"-")) -> 5.664553423
A91: HA | C91: =IF(OR('Tabel 1 H'!C89<5,'Tabel 2 H'!C91<0.5),"-",IFERROR('Tabel 2 H'!C91/'Tabel 1 H'!C89*100,"-")) -> 8.438061041 | D91: =IF(OR('Tabel 1 H'!C89<5,'Tabel 2 H'!D91<0.5),"-",IFERROR('Tabel 2 H'!D91/'Tabel 1 H'!C89*100,"-")) -> 7.517372439 | F91: =IF(OR('Tabel 1 H'!E89<5,'Tabel 2 H'!F91<0.5),"-",IFERROR('Tabel 2 H'!F91/'Tabel 1 H'!E89*100,"-")) -> 11.36363636 | G91: =IF(OR('Tabel 1 H'!E89<5,'Tabel 2 H'!G91<0.5),"-",IFERROR('Tabel 2 H'!G91/'Tabel 1 H'!E89*100,"-")) -> 9.235922501 | I91: =IF(OR('Tabel 1 H'!G89<5,'Tabel 2 H'!I91<0.5),"-",IFERROR('Tabel 2 H'!I91/'Tabel 1 H'!G89*100,"-")) -> 9.729187563 | J91: =IF(OR('Tabel 1 H'!G89<5,'Tabel 2 H'!J91<0.5),"-",IFERROR('Tabel 2 H'!J91/'Tabel 1 H'!G89*100,"-")) -> 8.275809778
A92: HD | C92: =IF(OR('Tabel 1 H'!C90<5,'Tabel 2 H'!C92<0.5),"-",IFERROR('Tabel 2 H'!C92/'Tabel 1 H'!C90*100,"-")) -> 13.03418803 | D92: =IF(OR('Tabel 1 H'!C90<5,'Tabel 2 H'!D92<0.5),"-",IFERROR('Tabel 2 H'!D92/'Tabel 1 H'!C90*100,"-")) -> 11.17433541 | F92: =IF(OR('Tabel 1 H'!E90<5,'Tabel 2 H'!F92<0.5),"-",IFERROR('Tabel 2 H'!F92/'Tabel 1 H'!E90*100,"-")) -> 16.22103387 | G92: =IF(OR('Tabel 1 H'!E90<5,'Tabel 2 H'!G92<0.5),"-",IFERROR('Tabel 2 H'!G92/'Tabel 1 H'!E90*100,"-")) -> 13.40850805 | I92: =IF(OR('Tabel 1 H'!G90<5,'Tabel 2 H'!I92<0.5),"-",IFERROR('Tabel 2 H'!I92/'Tabel 1 H'!G90*100,"-")) -> 14.77162293 | J92: =IF(OR('Tabel 1 H'!G90<5,'Tabel 2 H'!J92<0.5),"-",IFERROR('Tabel 2 H'!J92/'Tabel 1 H'!G90*100,"-")) -> 12.39238289
A93: Komm. og Sprog | C93: =IF(OR('Tabel 1 H'!C91<5,'Tabel 2 H'!C93<0.5),"-",IFERROR('Tabel 2 H'!C93/'Tabel 1 H'!C91*100,"-")) -> 12.0906801 | D93: =IF(OR('Tabel 1 H'!C91<5,'Tabel 2 H'!D93<0.5),"-",IFERROR('Tabel 2 H'!D93/'Tabel 1 H'!C91*100,"-")) -> 10.34971794 | F93: =IF(OR('Tabel 1 H'!E91<5,'Tabel 2 H'!F93<0.5),"-",IFERROR('Tabel 2 H'!F93/'Tabel 1 H'!E91*100,"-")) -> 9.485094851 | G93: =IF(OR('Tabel 1 H'!E91<5,'Tabel 2 H'!G93<0.5),"-",IFERROR('Tabel 2 H'!G93/'Tabel 1 H'!E91*100,"-")) -> 7.327071181 | I93: =IF(OR('Tabel 1 H'!G91<5,'Tabel 2 H'!I93<0.5),"-",IFERROR('Tabel 2 H'!I93/'Tabel 1 H'!G91*100,"-")) -> 10.0373732 | J93: =IF(OR('Tabel 1 H'!G91<5,'Tabel 2 H'!J93<0.5),"-",IFERROR('Tabel 2 H'!J93/'Tabel 1 H'!G91*100,"-")) -> 7.967749645
A94: Cand. IT. | C94: =IF(OR('Tabel 1 H'!C92<5,'Tabel 2 H'!C94<0.5),"-",IFERROR('Tabel 2 H'!C94/'Tabel 1 H'!C92*100,"-")) -> 6.763285024 | D94: =IF(OR('Tabel 1 H'!C92<5,'Tabel 2 H'!D94<0.5),"-",IFERROR('Tabel 2 H'!D94/'Tabel 1 H'!C92*100,"-")) -> 5.77115858 | F94: =IF(OR('Tabel 1 H'!E92<5,'Tabel 2 H'!F94<0.5),"-",IFERROR('Tabel 2 H'!F94/'Tabel 1 H'!E92*100,"-")) -> 10.25280899 | G94: =IF(OR('Tabel 1 H'!E92<5,'Tabel 2 H'!G94<0.5),"-",IFERROR('Tabel 2 H'!G94/'Tabel 1 H'!E92*100,"-")) -> 8.250364242 | I94: =IF(OR('Tabel 1 H'!G92<5,'Tabel 2 H'!I94<0.5),"-",IFERROR('Tabel 2 H'!I94/'Tabel 1 H'!G92*100,"-")) -> 8.376623377 | J94: =IF(OR('Tabel 1 H'!G92<5,'Tabel 2 H'!J94<0.5),"-",IFERROR('Tabel 2 H'!J94/'Tabel 1 H'!G92*100,"-")) -> 6.91738873
A95: Bac. Samf. | C95: =IF(OR('Tabel 1 H'!C93<5,'Tabel 2 H'!C95<0.5),"-",IFERROR('Tabel 2 H'!C95/'Tabel 1 H'!C93*100,"-")) -> 5.729166667 | D95: =IF(OR('Tabel 1 H'!C93<5,'Tabel 2 H'!D95<0.5),"-",IFERROR('Tabel 2 H'!D95/'Tabel 1 H'!C93*100,"-")) -> 5.269080438 | F95: =IF(OR('Tabel 1 H'!E93<5,'Tabel 2 H'!F95<0.5),"-",IFERROR('Tabel 2 H'!F95/'Tabel 1 H'!E93*100,"-")) -> 7.692307692 | G95: =IF(OR('Tabel 1 H'!E93<5,'Tabel 2 H'!G95<0.5),"-",IFERROR('Tabel 2 H'!G95/'Tabel 1 H'!E93*100,"-")) -> 6.431870015 | I95: =IF(OR('Tabel 1 H'!G93<5,'Tabel 2 H'!I95<0.5),"-",IFERROR('Tabel 2 H'!I95/'Tabel 1 H'!G93*100,"-")) -> 6.779661017 | J95: =IF(OR('Tabel 1 H'!G93<5,'Tabel 2 H'!J95<0.5),"-",IFERROR('Tabel 2 H'!J95/'Tabel 1 H'!G93*100,"-")) -> 5.891299558
A96: Bac. Hum. | C96: =IF(OR('Tabel 1 H'!C94<5,'Tabel 2 H'!C96<0.5),"-",IFERROR('Tabel 2 H'!C96/'Tabel 1 H'!C94*100,"-")) -> 12.5 | D96: =IF(OR('Tabel 1 H'!C94<5,'Tabel 2 H'!D96<0.5),"-",IFERROR('Tabel 2 H'!D96/'Tabel 1 H'!C94*100,"-")) -> 10.24617731 | F96: =IF(OR('Tabel 1 H'!E94<5,'Tabel 2 H'!F96<0.5),"-",IFERROR('Tabel 2 H'!F96/'Tabel 1 H'!E94*100,"-")) -> 14.28571429 | G96: =IF(OR('Tabel 1 H'!E94<5,'Tabel 2 H'!G96<0.5),"-",IFERROR('Tabel 2 H'!G96/'Tabel 1 H'!E94*100,"-")) -> 11.79189945 | I96: =IF(OR('Tabel 1 H'!G94<5,'Tabel 2 H'!I96<0.5),"-",IFERROR('Tabel 2 H'!I96/'Tabel 1 H'!G94*100,"-")) -> 13.61111111 | J96: =IF(OR('Tabel 1 H'!G94<5,'Tabel 2 H'!J96<0.5),"-",IFERROR('Tabel 2 H'!J96/'Tabel 1 H'!G94*100,"-")) -> 11.20795997
A97: Bac. Nat. | C97: =IF(OR('Tabel 1 H'!C95<5,'Tabel 2 H'!C97<0.5),"-",IFERROR('Tabel 2 H'!C97/'Tabel 1 H'!C95*100,"-")) -> 11.45251397 | D97: =IF(OR('Tabel 1 H'!C95<5,'Tabel 2 H'!D97<0.5),"-",IFERROR('Tabel 2 H'!D97/'Tabel 1 H'!C95*100,"-")) -> 8.969628633 | F97: =IF(OR('Tabel 1 H'!E95<5,'Tabel 2 H'!F97<0.5),"-",IFERROR('Tabel 2 H'!F97/'Tabel 1 H'!E95*100,"-")) -> 14.96598639 | G97: =IF(OR('Tabel 1 H'!E95<5,'Tabel 2 H'!G97<0.5),"-",IFERROR('Tabel 2 H'!G97/'Tabel 1 H'!E95*100,"-")) -> 12.41423408 | I97: =IF(OR('Tabel 1 H'!G95<5,'Tabel 2 H'!I97<0.5),"-",IFERROR('Tabel 2 H'!I97/'Tabel 1 H'!G95*100,"-")) -> 13.03680982 | J97: =IF(OR('Tabel 1 H'!G95<5,'Tabel 2 H'!J97<0.5),"-",IFERROR('Tabel 2 H'!J97/'Tabel 1 H'!G95*100,"-")) -> 10.52287097
A98: Andre | C98: =IF(OR('Tabel 1 H'!C96<5,'Tabel 2 H'!C98<0.5),"-",IFERROR('Tabel 2 H'!C98/'Tabel 1 H'!C96*100,"-")) -> 7.439104674 | D98: =IF(OR('Tabel 1 H'!C96<5,'Tabel 2 H'!D98<0.5),"-",IFERROR('Tabel 2 H'!D98/'Tabel 1 H'!C96*100,"-")) -> 6.322603968 | F98: =IF(OR('Tabel 1 H'!E96<5,'Tabel 2 H'!F98<0.5),"-",IFERROR('Tabel 2 H'!F98/'Tabel 1 H'!E96*100,"-")) -> 10.37037037 | G98: =IF(OR('Tabel 1 H'!E96<5,'Tabel 2 H'!G98<0.5),"-",IFERROR('Tabel 2 H'!G98/'Tabel 1 H'!E96*100,"-")) -> 8.520389659 | I98: =IF(OR('Tabel 1 H'!G96<5,'Tabel 2 H'!I98<0.5),"-",IFERROR('Tabel 2 H'!I98/'Tabel 1 H'!G96*100,"-")) -> 9.03785725 | J98: =IF(OR('Tabel 1 H'!G96<5,'Tabel 2 H'!J98<0.5),"-",IFERROR('Tabel 2 H'!J98/'Tabel 1 H'!G96*100,"-")) -> 7.521306473
A100: Total | C100: =IF(OR('Tabel 1 H'!C98<5,'Tabel 2 H'!C100<0.5),"-",IFERROR('Tabel 2 H'!C100/'Tabel 1 H'!C98*100,"-")) -> 7.188733877 | D100: =IF(OR('Tabel 1 H'!C98<5,'Tabel 2 H'!D100<0.5),"-",IFERROR('Tabel 2 H'!D100/'Tabel 1 H'!C98*100,"-")) -> 6.167780401 | F100: =IF(OR('Tabel 1 H'!E98<5,'Tabel 2 H'!F100<0.5),"-",IFERROR('Tabel 2 H'!F100/'Tabel 1 H'!E98*100,"-")) -> 8.844765343 | G100: =IF(OR('Tabel 1 H'!E98<5,'Tabel 2 H'!G100<0.5),"-",IFERROR('Tabel 2 H'!G100/'Tabel 1 H'!E98*100,"-")) -> 7.335840047 | I100: =IF(OR('Tabel 1 H'!G98<5,'Tabel 2 H'!I100<0.5),"-",IFERROR('Tabel 2 H'!I100/'Tabel 1 H'!G98*100,"-")) -> 8.100466129 | J100: =IF(OR('Tabel 1 H'!G98<5,'Tabel 2 H'!J100<0.5),"-",IFERROR('Tabel 2 H'!J100/'Tabel 1 H'!G98*100,"-")) -> 6.81085855
A102: Ingeniører i alt | C102: =IF(OR('Tabel 1 H'!C100<5,'Tabel 2 H'!C102<0.5),"-",IFERROR('Tabel 2 H'!C102/'Tabel 1 H'!C100*100,"-")) -> 4.372652141 | D102: =IF(OR('Tabel 1 H'!C100<5,'Tabel 2 H'!D102<0.5),"-",IFERROR('Tabel 2 H'!D102/'Tabel 1 H'!C100*100,"-")) -> 3.8560589 | F102: =IF(OR('Tabel 1 H'!E100<5,'Tabel 2 H'!F102<0.5),"-",IFERROR('Tabel 2 H'!F102/'Tabel 1 H'!E100*100,"-")) -> 5.23441056 | G102: =IF(OR('Tabel 1 H'!E100<5,'Tabel 2 H'!G102<0.5),"-",IFERROR('Tabel 2 H'!G102/'Tabel 1 H'!E100*100,"-")) -> 4.470382703 | I102: =IF(OR('Tabel 1 H'!G100<5,'Tabel 2 H'!I102<0.5),"-",IFERROR('Tabel 2 H'!I102/'Tabel 1 H'!G100*100,"-")) -> 4.586534117 | J102: =IF(OR('Tabel 1 H'!G100<5,'Tabel 2 H'!J102<0.5),"-",IFERROR('Tabel 2 H'!J102/'Tabel 1 H'!G100*100,"-")) -> 4.00852946
A103: Magistre i alt | C103: =IF(OR('Tabel 1 H'!C101<5,'Tabel 2 H'!C103<0.5),"-",IFERROR('Tabel 2 H'!C103/'Tabel 1 H'!C101*100,"-")) -> 9.704946485 | D103: =IF(OR('Tabel 1 H'!C101<5,'Tabel 2 H'!D103<0.5),"-",IFERROR('Tabel 2 H'!D103/'Tabel 1 H'!C101*100,"-")) -> 8.241021046 | F103: =IF(OR('Tabel 1 H'!E101<5,'Tabel 2 H'!F103<0.5),"-",IFERROR('Tabel 2 H'!F103/'Tabel 1 H'!E101*100,"-")) -> 11.10291103 | G103: =IF(OR('Tabel 1 H'!E101<5,'Tabel 2 H'!G103<0.5),"-",IFERROR('Tabel 2 H'!G103/'Tabel 1 H'!E101*100,"-")) -> 9.173607111 | I103: =IF(OR('Tabel 1 H'!G101<5,'Tabel 2 H'!I103<0.5),"-",IFERROR('Tabel 2 H'!I103/'Tabel 1 H'!G101*100,"-")) -> 10.59710084 | J103: =IF(OR('Tabel 1 H'!G101<5,'Tabel 2 H'!J103<0.5),"-",IFERROR('Tabel 2 H'!J103/'Tabel 1 H'!G101*100,"-")) -> 8.836179718
A104: DJØF'ere i alt | C104: =IF(OR('Tabel 1 H'!C102<5,'Tabel 2 H'!C104<0.5),"-",IFERROR('Tabel 2 H'!C104/'Tabel 1 H'!C102*100,"-")) -> 5.801502317 | D104: =IF(OR('Tabel 1 H'!C102<5,'Tabel 2 H'!D104<0.5),"-",IFERROR('Tabel 2 H'!D104/'Tabel 1 H'!C102*100,"-")) -> 5.019120056 | F104: =IF(OR('Tabel 1 H'!E102<5,'Tabel 2 H'!F104<0.5),"-",IFERROR('Tabel 2 H'!F104/'Tabel 1 H'!E102*100,"-")) -> 6.408436423 | G104: =IF(OR('Tabel 1 H'!E102<5,'Tabel 2 H'!G104<0.5),"-",IFERROR('Tabel 2 H'!G104/'Tabel 1 H'!E102*100,"-")) -> 5.425313198 | I104: =IF(OR('Tabel 1 H'!G102<5,'Tabel 2 H'!I104<0.5),"-",IFERROR('Tabel 2 H'!I104/'Tabel 1 H'!G102*100,"-")) -> 6.130296261 | J104: =IF(OR('Tabel 1 H'!G102<5,'Tabel 2 H'!J104<0.5),"-",IFERROR('Tabel 2 H'!J104/'Tabel 1 H'!G102*100,"-")) -> 5.239166753
A109: Frederiksberg
C111: Mænd | F111: Kvinder | I111: I alt
C112: Ledigheds- berørte | D112: Gns. brutto- ledighed | F112: Ledigheds- berørte | G112: Gns. brutto- ledighed | I112: Ledigheds- berørte | J112: Gns. brutto- ledighed
A115: Civ. ing. | C115: =IF(OR('Tabel 1 H'!C113<5,'Tabel 2 H'!C115<0.5),"-",IFERROR('Tabel 2 H'!C115/'Tabel 1 H'!C113*100,"-")) -> 2.730819246 | D115: =IF(OR('Tabel 1 H'!C113<5,'Tabel 2 H'!D115<0.5),"-",IFERROR('Tabel 2 H'!D115/'Tabel 1 H'!C113*100,"-")) -> 2.194758097 | F115: =IF(OR('Tabel 1 H'!E113<5,'Tabel 2 H'!F115<0.5),"-",IFERROR('Tabel 2 H'!F115/'Tabel 1 H'!E113*100,"-")) -> 3.986710963 | G115: =IF(OR('Tabel 1 H'!E113<5,'Tabel 2 H'!G115<0.5),"-",IFERROR('Tabel 2 H'!G115/'Tabel 1 H'!E113*100,"-")) -> 3.334691965 | I115: =IF(OR('Tabel 1 H'!G113<5,'Tabel 2 H'!I115<0.5),"-",IFERROR('Tabel 2 H'!I115/'Tabel 1 H'!G113*100,"-")) -> 3.08411215 | J115: =IF(OR('Tabel 1 H'!G113<5,'Tabel 2 H'!J115<0.5),"-",IFERROR('Tabel 2 H'!J115/'Tabel 1 H'!G113*100,"-")) -> 2.515431082
A116: Diplom ing. | C116: =IF(OR('Tabel 1 H'!C114<5,'Tabel 2 H'!C116<0.5),"-",IFERROR('Tabel 2 H'!C116/'Tabel 1 H'!C114*100,"-")) -> 4.282655246 | D116: =IF(OR('Tabel 1 H'!C114<5,'Tabel 2 H'!D116<0.5),"-",IFERROR('Tabel 2 H'!D116/'Tabel 1 H'!C114*100,"-")) -> 3.821881823 | F116: =IF(OR('Tabel 1 H'!E114<5,'Tabel 2 H'!F116<0.5),"-",IFERROR('Tabel 2 H'!F116/'Tabel 1 H'!E114*100,"-")) -> 1.904761905 | G116: =IF(OR('Tabel 1 H'!E114<5,'Tabel 2 H'!G116<0.5),"-",IFERROR('Tabel 2 H'!G116/'Tabel 1 H'!E114*100,"-")) -> - | I116: =IF(OR('Tabel 1 H'!G114<5,'Tabel 2 H'!I116<0.5),"-",IFERROR('Tabel 2 H'!I116/'Tabel 1 H'!G114*100,"-")) -> 3.846153846 | J116: =IF(OR('Tabel 1 H'!G114<5,'Tabel 2 H'!J116<0.5),"-",IFERROR('Tabel 2 H'!J116/'Tabel 1 H'!G114*100,"-")) -> 3.195550785
A117: Cand. Scient. Tek. | C117: =IF(OR('Tabel 1 H'!C115<5,'Tabel 2 H'!C117<0.5),"-",IFERROR('Tabel 2 H'!C117/'Tabel 1 H'!C115*100,"-")) -> 9.230769231 | D117: =IF(OR('Tabel 1 H'!C115<5,'Tabel 2 H'!D117<0.5),"-",IFERROR('Tabel 2 H'!D117/'Tabel 1 H'!C115*100,"-")) -> 8.137383314 | F117: =IF(OR('Tabel 1 H'!E115<5,'Tabel 2 H'!F117<0.5),"-",IFERROR('Tabel 2 H'!F117/'Tabel 1 H'!E115*100,"-")) -> 10.45918367 | G117: =IF(OR('Tabel 1 H'!E115<5,'Tabel 2 H'!G117<0.5),"-",IFERROR('Tabel 2 H'!G117/'Tabel 1 H'!E115*100,"-")) -> 8.45275115 | I117: =IF(OR('Tabel 1 H'!G115<5,'Tabel 2 H'!I117<0.5),"-",IFERROR('Tabel 2 H'!I117/'Tabel 1 H'!G115*100,"-")) -> 9.846547315 | J117: =IF(OR('Tabel 1 H'!G115<5,'Tabel 2 H'!J117<0.5),"-",IFERROR('Tabel 2 H'!J117/'Tabel 1 H'!G115*100,"-")) -> 8.295470515
A118: MA. Hum. | C118: =IF(OR('Tabel 1 H'!C116<5,'Tabel 2 H'!C118<0.5),"-",IFERROR('Tabel 2 H'!C118/'Tabel 1 H'!C116*100,"-")) -> 9.689213894 | D118: =IF(OR('Tabel 1 H'!C116<5,'Tabel 2 H'!D118<0.5),"-",IFERROR('Tabel 2 H'!D118/'Tabel 1 H'!C116*100,"-")) -> 8.358674311 | F118: =IF(OR('Tabel 1 H'!E116<5,'Tabel 2 H'!F118<0.5),"-",IFERROR('Tabel 2 H'!F118/'Tabel 1 H'!E116*100,"-")) -> 9.337589785 | G118: =IF(OR('Tabel 1 H'!E116<5,'Tabel 2 H'!G118<0.5),"-",IFERROR('Tabel 2 H'!G118/'Tabel 1 H'!E116*100,"-")) -> 7.602386717 | I118: =IF(OR('Tabel 1 H'!G116<5,'Tabel 2 H'!I118<0.5),"-",IFERROR('Tabel 2 H'!I118/'Tabel 1 H'!G116*100,"-")) -> 9.444444444 | J118: =IF(OR('Tabel 1 H'!G116<5,'Tabel 2 H'!J118<0.5),"-",IFERROR('Tabel 2 H'!J118/'Tabel 1 H'!G116*100,"-")) -> 7.832214114
A119: MA. Nat. | C119: =IF(OR('Tabel 1 H'!C117<5,'Tabel 2 H'!C119<0.5),"-",IFERROR('Tabel 2 H'!C119/'Tabel 1 H'!C117*100,"-")) -> 3.802281369 | D119: =IF(OR('Tabel 1 H'!C117<5,'Tabel 2 H'!D119<0.5),"-",IFERROR('Tabel 2 H'!D119/'Tabel 1 H'!C117*100,"-")) -> 3.459357471 | F119: =IF(OR('Tabel 1 H'!E117<5,'Tabel 2 H'!F119<0.5),"-",IFERROR('Tabel 2 H'!F119/'Tabel 1 H'!E117*100,"-")) -> 5.531914894 | G119: =IF(OR('Tabel 1 H'!E117<5,'Tabel 2 H'!G119<0.5),"-",IFERROR('Tabel 2 H'!G119/'Tabel 1 H'!E117*100,"-")) -> 4.833116803 | I119: =IF(OR('Tabel 1 H'!G117<5,'Tabel 2 H'!I119<0.5),"-",IFERROR('Tabel 2 H'!I119/'Tabel 1 H'!G117*100,"-")) -> 4.618473896 | J119: =IF(OR('Tabel 1 H'!G117<5,'Tabel 2 H'!J119<0.5),"-",IFERROR('Tabel 2 H'!J119/'Tabel 1 H'!G117*100,"-")) -> 4.107617397
A120: MA. Ph.d. | C120: =IF(OR('Tabel 1 H'!C118<5,'Tabel 2 H'!C120<0.5),"-",IFERROR('Tabel 2 H'!C120/'Tabel 1 H'!C118*100,"-")) -> 6.060606061 | D120: =IF(OR('Tabel 1 H'!C118<5,'Tabel 2 H'!D120<0.5),"-",IFERROR('Tabel 2 H'!D120/'Tabel 1 H'!C118*100,"-")) -> 5.360156798 | F120: =IF(OR('Tabel 1 H'!E118<5,'Tabel 2 H'!F120<0.5),"-",IFERROR('Tabel 2 H'!F120/'Tabel 1 H'!E118*100,"-")) -> 6.060606061 | G120: =IF(OR('Tabel 1 H'!E118<5,'Tabel 2 H'!G120<0.5),"-",IFERROR('Tabel 2 H'!G120/'Tabel 1 H'!E118*100,"-")) -> 4.66084156 | I120: =IF(OR('Tabel 1 H'!G118<5,'Tabel 2 H'!I120<0.5),"-",IFERROR('Tabel 2 H'!I120/'Tabel 1 H'!G118*100,"-")) -> 6.060606061 | J120: =IF(OR('Tabel 1 H'!G118<5,'Tabel 2 H'!J120<0.5),"-",IFERROR('Tabel 2 H'!J120/'Tabel 1 H'!G118*100,"-")) -> 5.010499179
A121: MA. Samf. | C121: =IF(OR('Tabel 1 H'!C119<5,'Tabel 2 H'!C121<0.5),"-",IFERROR('Tabel 2 H'!C121/'Tabel 1 H'!C119*100,"-")) -> 11.95652174 | D121: =IF(OR('Tabel 1 H'!C119<5,'Tabel 2 H'!D121<0.5),"-",IFERROR('Tabel 2 H'!D121/'Tabel 1 H'!C119*100,"-")) -> 11.10006807 | F121: =IF(OR('Tabel 1 H'!E119<5,'Tabel 2 H'!F121<0.5),"-",IFERROR('Tabel 2 H'!F121/'Tabel 1 H'!E119*100,"-")) -> 10 | G121: =IF(OR('Tabel 1 H'!E119<5,'Tabel 2 H'!G121<0.5),"-",IFERROR('Tabel 2 H'!G121/'Tabel 1 H'!E119*100,"-")) -> 8.156688734 | I121: =IF(OR('Tabel 1 H'!G119<5,'Tabel 2 H'!I121<0.5),"-",IFERROR('Tabel 2 H'!I121/'Tabel 1 H'!G119*100,"-")) -> 10.59602649 | J121: =IF(OR('Tabel 1 H'!G119<5,'Tabel 2 H'!J121<0.5),"-",IFERROR('Tabel 2 H'!J121/'Tabel 1 H'!G119*100,"-")) -> 9.053347339
A122: Øvrige Mag. | C122: =IF(OR('Tabel 1 H'!C120<5,'Tabel 2 H'!C122<0.5),"-",IFERROR('Tabel 2 H'!C122/'Tabel 1 H'!C120*100,"-")) -> 8.571428571 | D122: =IF(OR('Tabel 1 H'!C120<5,'Tabel 2 H'!D122<0.5),"-",IFERROR('Tabel 2 H'!D122/'Tabel 1 H'!C120*100,"-")) -> 8.569824736 | F122: =IF(OR('Tabel 1 H'!E120<5,'Tabel 2 H'!F122<0.5),"-",IFERROR('Tabel 2 H'!F122/'Tabel 1 H'!E120*100,"-")) -> 11.76470588 | G122: =IF(OR('Tabel 1 H'!E120<5,'Tabel 2 H'!G122<0.5),"-",IFERROR('Tabel 2 H'!G122/'Tabel 1 H'!E120*100,"-")) -> 9.454030474 | I122: =IF(OR('Tabel 1 H'!G120<5,'Tabel 2 H'!I122<0.5),"-",IFERROR('Tabel 2 H'!I122/'Tabel 1 H'!G120*100,"-")) -> 10.83333333 | J122: =IF(OR('Tabel 1 H'!G120<5,'Tabel 2 H'!J122<0.5),"-",IFERROR('Tabel 2 H'!J122/'Tabel 1 H'!G120*100,"-")) -> 9.196137134
A123: Agronom | C123: =IF(OR('Tabel 1 H'!C121<5,'Tabel 2 H'!C123<0.5),"-",IFERROR('Tabel 2 H'!C123/'Tabel 1 H'!C121*100,"-")) -> 2.040816327 | D123: =IF(OR('Tabel 1 H'!C121<5,'Tabel 2 H'!D123<0.5),"-",IFERROR('Tabel 2 H'!D123/'Tabel 1 H'!C121*100,"-")) -> 2.040434461 | F123: =IF(OR('Tabel 1 H'!E121<5,'Tabel 2 H'!F123<0.5),"-",IFERROR('Tabel 2 H'!F123/'Tabel 1 H'!E121*100,"-")) -> 14.28571429 | G123: =IF(OR('Tabel 1 H'!E121<5,'Tabel 2 H'!G123<0.5),"-",IFERROR('Tabel 2 H'!G123/'Tabel 1 H'!E121*100,"-")) -> 9.156115512 | I123: =IF(OR('Tabel 1 H'!G121<5,'Tabel 2 H'!I123<0.5),"-",IFERROR('Tabel 2 H'!I123/'Tabel 1 H'!G121*100,"-")) -> 7.142857143 | J123: =IF(OR('Tabel 1 H'!G121<5,'Tabel 2 H'!J123<0.5),"-",IFERROR('Tabel 2 H'!J123/'Tabel 1 H'!G121*100,"-")) -> 5.005301566
A124: Landsk. Arkt. | C124: =IF(OR('Tabel 1 H'!C122<5,'Tabel 2 H'!C124<0.5),"-",IFERROR('Tabel 2 H'!C124/'Tabel 1 H'!C122*100,"-")) -> 15.38461538 | D124: =IF(OR('Tabel 1 H'!C122<5,'Tabel 2 H'!D124<0.5),"-",IFERROR('Tabel 2 H'!D124/'Tabel 1 H'!C122*100,"-")) -> 10.76625614 | F124: =IF(OR('Tabel 1 H'!E122<5,'Tabel 2 H'!F124<0.5),"-",IFERROR('Tabel 2 H'!F124/'Tabel 1 H'!E122*100,"-")) -> 4 | G124: =IF(OR('Tabel 1 H'!E122<5,'Tabel 2 H'!G124<0.5),"-",IFERROR('Tabel 2 H'!G124/'Tabel 1 H'!E122*100,"-")) -> 3.999251544 | I124: =IF(OR('Tabel 1 H'!G122<5,'Tabel 2 H'!I124<0.5),"-",IFERROR('Tabel 2 H'!I124/'Tabel 1 H'!G122*100,"-")) -> 7.894736842 | J124: =IF(OR('Tabel 1 H'!G122<5,'Tabel 2 H'!J124<0.5),"-",IFERROR('Tabel 2 H'!J124/'Tabel 1 H'!G122*100,"-")) -> 6.31427943
A125: Hortonom | C125: =IF(OR('Tabel 1 H'!C123<5,'Tabel 2 H'!C125<0.5),"-",IFERROR('Tabel 2 H'!C125/'Tabel 1 H'!C123*100,"-")) -> - | D125: =IF(OR('Tabel 1 H'!C123<5,'Tabel 2 H'!D125<0.5),"-",IFERROR('Tabel 2 H'!D125/'Tabel 1 H'!C123*100,"-")) -> - | F125: =IF(OR('Tabel 1 H'!E123<5,'Tabel 2 H'!F125<0.5),"-",IFERROR('Tabel 2 H'!F125/'Tabel 1 H'!E123*100,"-")) -> - | G125: =IF(OR('Tabel 1 H'!E123<5,'Tabel 2 H'!G125<0.5),"-",IFERROR('Tabel 2 H'!G125/'Tabel 1 H'!E123*100,"-")) -> - | I125: =IF(OR('Tabel 1 H'!G123<5,'Tabel 2 H'!I125<0.5),"-",IFERROR('Tabel 2 H'!I125/'Tabel 1 H'!G123*100,"-")) -> - | J125: =IF(OR('Tabel 1 H'!G123<5,'Tabel 2 H'!J125<0.5),"-",IFERROR('Tabel 2 H'!J125/'Tabel 1 H'!G123*100,"-")) -> -
A126: Forstkand. | C126: =IF(OR('Tabel 1 H'!C124<5,'Tabel 2 H'!C126<0.5),"-",IFERROR('Tabel 2 H'!C126/'Tabel 1 H'!C124*100,"-")) -> - | D126: =IF(OR('Tabel 1 H'!C124<5,'Tabel 2 H'!D126<0.5),"-",IFERROR('Tabel 2 H'!D126/'Tabel 1 H'!C124*100,"-")) -> - | F126: =IF(OR('Tabel 1 H'!E124<5,'Tabel 2 H'!F126<0.5),"-",IFERROR('Tabel 2 H'!F126/'Tabel 1 H'!E124*100,"-")) -> - | G126: =IF(OR('Tabel 1 H'!E124<5,'Tabel 2 H'!G126<0.5),"-",IFERROR('Tabel 2 H'!G126/'Tabel 1 H'!E124*100,"-")) -> - | I126: =IF(OR('Tabel 1 H'!G124<5,'Tabel 2 H'!I126<0.5),"-",IFERROR('Tabel 2 H'!I126/'Tabel 1 H'!G124*100,"-")) -> - | J126: =IF(OR('Tabel 1 H'!G124<5,'Tabel 2 H'!J126<0.5),"-",IFERROR('Tabel 2 H'!J126/'Tabel 1 H'!G124*100,"-")) -> -
A127: Jordbrugsakad. | C127: =IF(OR('Tabel 1 H'!C125<5,'Tabel 2 H'!C127<0.5),"-",IFERROR('Tabel 2 H'!C127/'Tabel 1 H'!C125*100,"-")) -> 4.166666667 | D127: =IF(OR('Tabel 1 H'!C125<5,'Tabel 2 H'!D127<0.5),"-",IFERROR('Tabel 2 H'!D127/'Tabel 1 H'!C125*100,"-")) -> 3.332536366 | F127: =IF(OR('Tabel 1 H'!E125<5,'Tabel 2 H'!F127<0.5),"-",IFERROR('Tabel 2 H'!F127/'Tabel 1 H'!E125*100,"-")) -> 8.333333333 | G127: =IF(OR('Tabel 1 H'!E125<5,'Tabel 2 H'!G127<0.5),"-",IFERROR('Tabel 2 H'!G127/'Tabel 1 H'!E125*100,"-")) -> 5.839518493 | I127: =IF(OR('Tabel 1 H'!G125<5,'Tabel 2 H'!I127<0.5),"-",IFERROR('Tabel 2 H'!I127/'Tabel 1 H'!G125*100,"-")) -> 6.25 | J127: =IF(OR('Tabel 1 H'!G125<5,'Tabel 2 H'!J127<0.5),"-",IFERROR('Tabel 2 H'!J127/'Tabel 1 H'!G125*100,"-")) -> 4.58602743
A128: Mejeriing. | C128: =IF(OR('Tabel 1 H'!C126<5,'Tabel 2 H'!C128<0.5),"-",IFERROR('Tabel 2 H'!C128/'Tabel 1 H'!C126*100,"-")) -> - | D128: =IF(OR('Tabel 1 H'!C126<5,'Tabel 2 H'!D128<0.5),"-",IFERROR('Tabel 2 H'!D128/'Tabel 1 H'!C126*100,"-")) -> - | F128: =IF(OR('Tabel 1 H'!E126<5,'Tabel 2 H'!F128<0.5),"-",IFERROR('Tabel 2 H'!F128/'Tabel 1 H'!E126*100,"-")) -> 28.57142857 | G128: =IF(OR('Tabel 1 H'!E126<5,'Tabel 2 H'!G128<0.5),"-",IFERROR('Tabel 2 H'!G128/'Tabel 1 H'!E126*100,"-")) -> 20.65383005 | I128: =IF(OR('Tabel 1 H'!G126<5,'Tabel 2 H'!I128<0.5),"-",IFERROR('Tabel 2 H'!I128/'Tabel 1 H'!G126*100,"-")) -> 12.5 | J128: =IF(OR('Tabel 1 H'!G126<5,'Tabel 2 H'!J128<0.5),"-",IFERROR('Tabel 2 H'!J128/'Tabel 1 H'!G126*100,"-")) -> 9.036050646
A129: Levn.m.kand. | C129: =IF(OR('Tabel 1 H'!C127<5,'Tabel 2 H'!C129<0.5),"-",IFERROR('Tabel 2 H'!C129/'Tabel 1 H'!C127*100,"-")) -> 42.85714286 | D129: =IF(OR('Tabel 1 H'!C127<5,'Tabel 2 H'!D129<0.5),"-",IFERROR('Tabel 2 H'!D129/'Tabel 1 H'!C127*100,"-")) -> 42.84912368 | F129: =IF(OR('Tabel 1 H'!E127<5,'Tabel 2 H'!F129<0.5),"-",IFERROR('Tabel 2 H'!F129/'Tabel 1 H'!E127*100,"-")) -> 15.625 | G129: =IF(OR('Tabel 1 H'!E127<5,'Tabel 2 H'!G129<0.5),"-",IFERROR('Tabel 2 H'!G129/'Tabel 1 H'!E127*100,"-")) -> 9.673407971 | I129: =IF(OR('Tabel 1 H'!G127<5,'Tabel 2 H'!I129<0.5),"-",IFERROR('Tabel 2 H'!I129/'Tabel 1 H'!G127*100,"-")) -> 20.51282051 | J129: =IF(OR('Tabel 1 H'!G127<5,'Tabel 2 H'!J129<0.5),"-",IFERROR('Tabel 2 H'!J129/'Tabel 1 H'!G127*100,"-")) -> 15.62802361
A130: Dyrlæge | C130: =IF(OR('Tabel 1 H'!C128<5,'Tabel 2 H'!C130<0.5),"-",IFERROR('Tabel 2 H'!C130/'Tabel 1 H'!C128*100,"-")) -> 11.76470588 | D130: =IF(OR('Tabel 1 H'!C128<5,'Tabel 2 H'!D130<0.5),"-",IFERROR('Tabel 2 H'!D130/'Tabel 1 H'!C128*100,"-")) -> 9.817985699 | F130: =IF(OR('Tabel 1 H'!E128<5,'Tabel 2 H'!F130<0.5),"-",IFERROR('Tabel 2 H'!F130/'Tabel 1 H'!E128*100,"-")) -> 3.225806452 | G130: =IF(OR('Tabel 1 H'!E128<5,'Tabel 2 H'!G130<0.5),"-",IFERROR('Tabel 2 H'!G130/'Tabel 1 H'!E128*100,"-")) -> 3.225202858 | I130: =IF(OR('Tabel 1 H'!G128<5,'Tabel 2 H'!I130<0.5),"-",IFERROR('Tabel 2 H'!I130/'Tabel 1 H'!G128*100,"-")) -> 5.063291139 | J130: =IF(OR('Tabel 1 H'!G128<5,'Tabel 2 H'!J130<0.5),"-",IFERROR('Tabel 2 H'!J130/'Tabel 1 H'!G128*100,"-")) -> 4.643902963
A131: Farmaceut | C131: =IF(OR('Tabel 1 H'!C129<5,'Tabel 2 H'!C131<0.5),"-",IFERROR('Tabel 2 H'!C131/'Tabel 1 H'!C129*100,"-")) -> 9.677419355 | D131: =IF(OR('Tabel 1 H'!C129<5,'Tabel 2 H'!D131<0.5),"-",IFERROR('Tabel 2 H'!D131/'Tabel 1 H'!C129*100,"-")) -> 6.921208878 | F131: =IF(OR('Tabel 1 H'!E129<5,'Tabel 2 H'!F131<0.5),"-",IFERROR('Tabel 2 H'!F131/'Tabel 1 H'!E129*100,"-")) -> 4.142011834 | G131: =IF(OR('Tabel 1 H'!E129<5,'Tabel 2 H'!G131<0.5),"-",IFERROR('Tabel 2 H'!G131/'Tabel 1 H'!E129*100,"-")) -> 3.347755019 | I131: =IF(OR('Tabel 1 H'!G129<5,'Tabel 2 H'!I131<0.5),"-",IFERROR('Tabel 2 H'!I131/'Tabel 1 H'!G129*100,"-")) -> 5.627705628 | J131: =IF(OR('Tabel 1 H'!G129<5,'Tabel 2 H'!J131<0.5),"-",IFERROR('Tabel 2 H'!J131/'Tabel 1 H'!G129*100,"-")) -> 4.306863847
A132: Læge | C132: =IF(OR('Tabel 1 H'!C130<5,'Tabel 2 H'!C132<0.5),"-",IFERROR('Tabel 2 H'!C132/'Tabel 1 H'!C130*100,"-")) -> 1.360544218 | D132: =IF(OR('Tabel 1 H'!C130<5,'Tabel 2 H'!D132<0.5),"-",IFERROR('Tabel 2 H'!D132/'Tabel 1 H'!C130*100,"-")) -> 1.041644126 | F132: =IF(OR('Tabel 1 H'!E130<5,'Tabel 2 H'!F132<0.5),"-",IFERROR('Tabel 2 H'!F132/'Tabel 1 H'!E130*100,"-")) -> 1.533742331 | G132: =IF(OR('Tabel 1 H'!E130<5,'Tabel 2 H'!G132<0.5),"-",IFERROR('Tabel 2 H'!G132/'Tabel 1 H'!E130*100,"-")) -> 1.316303529 | I132: =IF(OR('Tabel 1 H'!G130<5,'Tabel 2 H'!I132<0.5),"-",IFERROR('Tabel 2 H'!I132/'Tabel 1 H'!G130*100,"-")) -> 1.479915433 | J132: =IF(OR('Tabel 1 H'!G130<5,'Tabel 2 H'!J132<0.5),"-",IFERROR('Tabel 2 H'!J132/'Tabel 1 H'!G130*100,"-")) -> 1.230944264
A133: Tandlæge | C133: =IF(OR('Tabel 1 H'!C131<5,'Tabel 2 H'!C133<0.5),"-",IFERROR('Tabel 2 H'!C133/'Tabel 1 H'!C131*100,"-")) -> - | D133: =IF(OR('Tabel 1 H'!C131<5,'Tabel 2 H'!D133<0.5),"-",IFERROR('Tabel 2 H'!D133/'Tabel 1 H'!C131*100,"-")) -> - | F133: =IF(OR('Tabel 1 H'!E131<5,'Tabel 2 H'!F133<0.5),"-",IFERROR('Tabel 2 H'!F133/'Tabel 1 H'!E131*100,"-")) -> 3.448275862 | G133: =IF(OR('Tabel 1 H'!E131<5,'Tabel 2 H'!G133<0.5),"-",IFERROR('Tabel 2 H'!G133/'Tabel 1 H'!E131*100,"-")) -> 2.122776945 | I133: =IF(OR('Tabel 1 H'!G131<5,'Tabel 2 H'!I133<0.5),"-",IFERROR('Tabel 2 H'!I133/'Tabel 1 H'!G131*100,"-")) -> 3.076923077 | J133: =IF(OR('Tabel 1 H'!G131<5,'Tabel 2 H'!J133<0.5),"-",IFERROR('Tabel 2 H'!J133/'Tabel 1 H'!G131*100,"-")) -> 1.894170197
A134: Arkitekt | C134: =IF(OR('Tabel 1 H'!C132<5,'Tabel 2 H'!C134<0.5),"-",IFERROR('Tabel 2 H'!C134/'Tabel 1 H'!C132*100,"-")) -> 7.246376812 | D134: =IF(OR('Tabel 1 H'!C132<5,'Tabel 2 H'!D134<0.5),"-",IFERROR('Tabel 2 H'!D134/'Tabel 1 H'!C132*100,"-")) -> 6.539652064 | F134: =IF(OR('Tabel 1 H'!E132<5,'Tabel 2 H'!F134<0.5),"-",IFERROR('Tabel 2 H'!F134/'Tabel 1 H'!E132*100,"-")) -> 6.787330317 | G134: =IF(OR('Tabel 1 H'!E132<5,'Tabel 2 H'!G134<0.5),"-",IFERROR('Tabel 2 H'!G134/'Tabel 1 H'!E132*100,"-")) -> 5.836378758 | I134: =IF(OR('Tabel 1 H'!G132<5,'Tabel 2 H'!I134<0.5),"-",IFERROR('Tabel 2 H'!I134/'Tabel 1 H'!G132*100,"-")) -> 7.009345794 | J134: =IF(OR('Tabel 1 H'!G132<5,'Tabel 2 H'!J134<0.5),"-",IFERROR('Tabel 2 H'!J134/'Tabel 1 H'!G132*100,"-")) -> 6.176513278
A135: Landinspek. | C135: =IF(OR('Tabel 1 H'!C133<5,'Tabel 2 H'!C135<0.5),"-",IFERROR('Tabel 2 H'!C135/'Tabel 1 H'!C133*100,"-")) -> - | D135: =IF(OR('Tabel 1 H'!C133<5,'Tabel 2 H'!D135<0.5),"-",IFERROR('Tabel 2 H'!D135/'Tabel 1 H'!C133*100,"-")) -> - | F135: =IF(OR('Tabel 1 H'!E133<5,'Tabel 2 H'!F135<0.5),"-",IFERROR('Tabel 2 H'!F135/'Tabel 1 H'!E133*100,"-")) -> - | G135: =IF(OR('Tabel 1 H'!E133<5,'Tabel 2 H'!G135<0.5),"-",IFERROR('Tabel 2 H'!G135/'Tabel 1 H'!E133*100,"-")) -> - | I135: =IF(OR('Tabel 1 H'!G133<5,'Tabel 2 H'!I135<0.5),"-",IFERROR('Tabel 2 H'!I135/'Tabel 1 H'!G133*100,"-")) -> - | J135: =IF(OR('Tabel 1 H'!G133<5,'Tabel 2 H'!J135<0.5),"-",IFERROR('Tabel 2 H'!J135/'Tabel 1 H'!G133*100,"-")) -> -
A136: Bibliotekar | C136: =IF(OR('Tabel 1 H'!C134<5,'Tabel 2 H'!C136<0.5),"-",IFERROR('Tabel 2 H'!C136/'Tabel 1 H'!C134*100,"-")) -> 5.405405405 | D136: =IF(OR('Tabel 1 H'!C134<5,'Tabel 2 H'!D136<0.5),"-",IFERROR('Tabel 2 H'!D136/'Tabel 1 H'!C134*100,"-")) -> 3.159025051 | F136: =IF(OR('Tabel 1 H'!E134<5,'Tabel 2 H'!F136<0.5),"-",IFERROR('Tabel 2 H'!F136/'Tabel 1 H'!E134*100,"-")) -> 6.730769231 | G136: =IF(OR('Tabel 1 H'!E134<5,'Tabel 2 H'!G136<0.5),"-",IFERROR('Tabel 2 H'!G136/'Tabel 1 H'!E134*100,"-")) -> 5.78314438 | I136: =IF(OR('Tabel 1 H'!G134<5,'Tabel 2 H'!I136<0.5),"-",IFERROR('Tabel 2 H'!I136/'Tabel 1 H'!G134*100,"-")) -> 6.382978723 | J136: =IF(OR('Tabel 1 H'!G134<5,'Tabel 2 H'!J136<0.5),"-",IFERROR('Tabel 2 H'!J136/'Tabel 1 H'!G134*100,"-")) -> 5.094545691
A137: Musikudd. | C137: =IF(OR('Tabel 1 H'!C135<5,'Tabel 2 H'!C137<0.5),"-",IFERROR('Tabel 2 H'!C137/'Tabel 1 H'!C135*100,"-")) -> 13.33333333 | D137: =IF(OR('Tabel 1 H'!C135<5,'Tabel 2 H'!D137<0.5),"-",IFERROR('Tabel 2 H'!D137/'Tabel 1 H'!C135*100,"-")) -> 8.59061519 | F137: =IF(OR('Tabel 1 H'!E135<5,'Tabel 2 H'!F137<0.5),"-",IFERROR('Tabel 2 H'!F137/'Tabel 1 H'!E135*100,"-")) -> - | G137: =IF(OR('Tabel 1 H'!E135<5,'Tabel 2 H'!G137<0.5),"-",IFERROR('Tabel 2 H'!G137/'Tabel 1 H'!E135*100,"-")) -> - | I137: =IF(OR('Tabel 1 H'!G135<5,'Tabel 2 H'!I137<0.5),"-",IFERROR('Tabel 2 H'!I137/'Tabel 1 H'!G135*100,"-")) -> 8 | J137: =IF(OR('Tabel 1 H'!G135<5,'Tabel 2 H'!J137<0.5),"-",IFERROR('Tabel 2 H'!J137/'Tabel 1 H'!G135*100,"-")) -> 5.154369114
A138: Teolog | C138: =IF(OR('Tabel 1 H'!C136<5,'Tabel 2 H'!C138<0.5),"-",IFERROR('Tabel 2 H'!C138/'Tabel 1 H'!C136*100,"-")) -> - | D138: =IF(OR('Tabel 1 H'!C136<5,'Tabel 2 H'!D138<0.5),"-",IFERROR('Tabel 2 H'!D138/'Tabel 1 H'!C136*100,"-")) -> - | F138: =IF(OR('Tabel 1 H'!E136<5,'Tabel 2 H'!F138<0.5),"-",IFERROR('Tabel 2 H'!F138/'Tabel 1 H'!E136*100,"-")) -> 6.666666667 | G138: =IF(OR('Tabel 1 H'!E136<5,'Tabel 2 H'!G138<0.5),"-",IFERROR('Tabel 2 H'!G138/'Tabel 1 H'!E136*100,"-")) -> 6.349404354 | I138: =IF(OR('Tabel 1 H'!G136<5,'Tabel 2 H'!I138<0.5),"-",IFERROR('Tabel 2 H'!I138/'Tabel 1 H'!G136*100,"-")) -> 5.405405405 | J138: =IF(OR('Tabel 1 H'!G136<5,'Tabel 2 H'!J138<0.5),"-",IFERROR('Tabel 2 H'!J138/'Tabel 1 H'!G136*100,"-")) -> 5.148165692
A139: Psykolog | C139: =IF(OR('Tabel 1 H'!C137<5,'Tabel 2 H'!C139<0.5),"-",IFERROR('Tabel 2 H'!C139/'Tabel 1 H'!C137*100,"-")) -> 8.620689655 | D139: =IF(OR('Tabel 1 H'!C137<5,'Tabel 2 H'!D139<0.5),"-",IFERROR('Tabel 2 H'!D139/'Tabel 1 H'!C137*100,"-")) -> 7.245831335 | F139: =IF(OR('Tabel 1 H'!E137<5,'Tabel 2 H'!F139<0.5),"-",IFERROR('Tabel 2 H'!F139/'Tabel 1 H'!E137*100,"-")) -> 7.117437722 | G139: =IF(OR('Tabel 1 H'!E137<5,'Tabel 2 H'!G139<0.5),"-",IFERROR('Tabel 2 H'!G139/'Tabel 1 H'!E137*100,"-")) -> 5.846038631 | I139: =IF(OR('Tabel 1 H'!G137<5,'Tabel 2 H'!I139<0.5),"-",IFERROR('Tabel 2 H'!I139/'Tabel 1 H'!G137*100,"-")) -> 7.374631268 | J139: =IF(OR('Tabel 1 H'!G137<5,'Tabel 2 H'!J139<0.5),"-",IFERROR('Tabel 2 H'!J139/'Tabel 1 H'!G137*100,"-")) -> 6.085531188
A140: Jurist | C140: =IF(OR('Tabel 1 H'!C138<5,'Tabel 2 H'!C140<0.5),"-",IFERROR('Tabel 2 H'!C140/'Tabel 1 H'!C138*100,"-")) -> 2.583979328 | D140: =IF(OR('Tabel 1 H'!C138<5,'Tabel 2 H'!D140<0.5),"-",IFERROR('Tabel 2 H'!D140/'Tabel 1 H'!C138*100,"-")) -> 1.938830619 | F140: =IF(OR('Tabel 1 H'!E138<5,'Tabel 2 H'!F140<0.5),"-",IFERROR('Tabel 2 H'!F140/'Tabel 1 H'!E138*100,"-")) -> 2.297090352 | G140: =IF(OR('Tabel 1 H'!E138<5,'Tabel 2 H'!G140<0.5),"-",IFERROR('Tabel 2 H'!G140/'Tabel 1 H'!E138*100,"-")) -> 2.074205871 | I140: =IF(OR('Tabel 1 H'!G138<5,'Tabel 2 H'!I140<0.5),"-",IFERROR('Tabel 2 H'!I140/'Tabel 1 H'!G138*100,"-")) -> 2.403846154 | J140: =IF(OR('Tabel 1 H'!G138<5,'Tabel 2 H'!J140<0.5),"-",IFERROR('Tabel 2 H'!J140/'Tabel 1 H'!G138*100,"-")) -> 2.023830657
A141: Økonom | C141: =IF(OR('Tabel 1 H'!C139<5,'Tabel 2 H'!C141<0.5),"-",IFERROR('Tabel 2 H'!C141/'Tabel 1 H'!C139*100,"-")) -> 0.9036144578 | D141: =IF(OR('Tabel 1 H'!C139<5,'Tabel 2 H'!D141<0.5),"-",IFERROR('Tabel 2 H'!D141/'Tabel 1 H'!C139*100,"-")) -> 0.6096236753 | F141: =IF(OR('Tabel 1 H'!E139<5,'Tabel 2 H'!F141<0.5),"-",IFERROR('Tabel 2 H'!F141/'Tabel 1 H'!E139*100,"-")) -> 3.50877193 | G141: =IF(OR('Tabel 1 H'!E139<5,'Tabel 2 H'!G141<0.5),"-",IFERROR('Tabel 2 H'!G141/'Tabel 1 H'!E139*100,"-")) -> 3.202276883 | I141: =IF(OR('Tabel 1 H'!G139<5,'Tabel 2 H'!I141<0.5),"-",IFERROR('Tabel 2 H'!I141/'Tabel 1 H'!G139*100,"-")) -> 1.964285714 | J141: =IF(OR('Tabel 1 H'!G139<5,'Tabel 2 H'!J141<0.5),"-",IFERROR('Tabel 2 H'!J141/'Tabel 1 H'!G139*100,"-")) -> 1.66520391
A142: Samf. Adm. | C142: =IF(OR('Tabel 1 H'!C140<5,'Tabel 2 H'!C142<0.5),"-",IFERROR('Tabel 2 H'!C142/'Tabel 1 H'!C140*100,"-")) -> 5.685131195 | D142: =IF(OR('Tabel 1 H'!C140<5,'Tabel 2 H'!D142<0.5),"-",IFERROR('Tabel 2 H'!D142/'Tabel 1 H'!C140*100,"-")) -> 5.08481141 | F142: =IF(OR('Tabel 1 H'!E140<5,'Tabel 2 H'!F142<0.5),"-",IFERROR('Tabel 2 H'!F142/'Tabel 1 H'!E140*100,"-")) -> 4.935834156 | G142: =IF(OR('Tabel 1 H'!E140<5,'Tabel 2 H'!G142<0.5),"-",IFERROR('Tabel 2 H'!G142/'Tabel 1 H'!E140*100,"-")) -> 3.993306254 | I142: =IF(OR('Tabel 1 H'!G140<5,'Tabel 2 H'!I142<0.5),"-",IFERROR('Tabel 2 H'!I142/'Tabel 1 H'!G140*100,"-")) -> 5.238375515 | J142: =IF(OR('Tabel 1 H'!G140<5,'Tabel 2 H'!J142<0.5),"-",IFERROR('Tabel 2 H'!J142/'Tabel 1 H'!G140*100,"-")) -> 4.434019931
A143: Cand. Merc. | C143: =IF(OR('Tabel 1 H'!C141<5,'Tabel 2 H'!C143<0.5),"-",IFERROR('Tabel 2 H'!C143/'Tabel 1 H'!C141*100,"-")) -> 5.042016807 | D143: =IF(OR('Tabel 1 H'!C141<5,'Tabel 2 H'!D143<0.5),"-",IFERROR('Tabel 2 H'!D143/'Tabel 1 H'!C141*100,"-")) -> 4.302627931 | F143: =IF(OR('Tabel 1 H'!E141<5,'Tabel 2 H'!F143<0.5),"-",IFERROR('Tabel 2 H'!F143/'Tabel 1 H'!E141*100,"-")) -> 5.970149254 | G143: =IF(OR('Tabel 1 H'!E141<5,'Tabel 2 H'!G143<0.5),"-",IFERROR('Tabel 2 H'!G143/'Tabel 1 H'!E141*100,"-")) -> 5.013912537 | I143: =IF(OR('Tabel 1 H'!G141<5,'Tabel 2 H'!I143<0.5),"-",IFERROR('Tabel 2 H'!I143/'Tabel 1 H'!G141*100,"-")) -> 5.495920996 | J143: =IF(OR('Tabel 1 H'!G141<5,'Tabel 2 H'!J143<0.5),"-",IFERROR('Tabel 2 H'!J143/'Tabel 1 H'!G141*100,"-")) -> 4.650482446
A144: HA | C144: =IF(OR('Tabel 1 H'!C142<5,'Tabel 2 H'!C144<0.5),"-",IFERROR('Tabel 2 H'!C144/'Tabel 1 H'!C142*100,"-")) -> 8.928571429 | D144: =IF(OR('Tabel 1 H'!C142<5,'Tabel 2 H'!D144<0.5),"-",IFERROR('Tabel 2 H'!D144/'Tabel 1 H'!C142*100,"-")) -> 6.695454019 | F144: =IF(OR('Tabel 1 H'!E142<5,'Tabel 2 H'!F144<0.5),"-",IFERROR('Tabel 2 H'!F144/'Tabel 1 H'!E142*100,"-")) -> 3.092783505 | G144: =IF(OR('Tabel 1 H'!E142<5,'Tabel 2 H'!G144<0.5),"-",IFERROR('Tabel 2 H'!G144/'Tabel 1 H'!E142*100,"-")) -> 2.202287679 | I144: =IF(OR('Tabel 1 H'!G142<5,'Tabel 2 H'!I144<0.5),"-",IFERROR('Tabel 2 H'!I144/'Tabel 1 H'!G142*100,"-")) -> 6.220095694 | J144: =IF(OR('Tabel 1 H'!G142<5,'Tabel 2 H'!J144<0.5),"-",IFERROR('Tabel 2 H'!J144/'Tabel 1 H'!G142*100,"-")) -> 4.610108875
A145: HD | C145: =IF(OR('Tabel 1 H'!C143<5,'Tabel 2 H'!C145<0.5),"-",IFERROR('Tabel 2 H'!C145/'Tabel 1 H'!C143*100,"-")) -> 11.71875 | D145: =IF(OR('Tabel 1 H'!C143<5,'Tabel 2 H'!D145<0.5),"-",IFERROR('Tabel 2 H'!D145/'Tabel 1 H'!C143*100,"-")) -> 9.913635159 | F145: =IF(OR('Tabel 1 H'!E143<5,'Tabel 2 H'!F145<0.5),"-",IFERROR('Tabel 2 H'!F145/'Tabel 1 H'!E143*100,"-")) -> 12.37113402 | G145: =IF(OR('Tabel 1 H'!E143<5,'Tabel 2 H'!G145<0.5),"-",IFERROR('Tabel 2 H'!G145/'Tabel 1 H'!E143*100,"-")) -> 9.992277526 | I145: =IF(OR('Tabel 1 H'!G143<5,'Tabel 2 H'!I145<0.5),"-",IFERROR('Tabel 2 H'!I145/'Tabel 1 H'!G143*100,"-")) -> 12 | J145: =IF(OR('Tabel 1 H'!G143<5,'Tabel 2 H'!J145<0.5),"-",IFERROR('Tabel 2 H'!J145/'Tabel 1 H'!G143*100,"-")) -> 9.947538757
A146: Komm. og Sprog | C146: =IF(OR('Tabel 1 H'!C144<5,'Tabel 2 H'!C146<0.5),"-",IFERROR('Tabel 2 H'!C146/'Tabel 1 H'!C144*100,"-")) -> 10.71428571 | D146: =IF(OR('Tabel 1 H'!C144<5,'Tabel 2 H'!D146<0.5),"-",IFERROR('Tabel 2 H'!D146/'Tabel 1 H'!C144*100,"-")) -> 9.56954852 | F146: =IF(OR('Tabel 1 H'!E144<5,'Tabel 2 H'!F146<0.5),"-",IFERROR('Tabel 2 H'!F146/'Tabel 1 H'!E144*100,"-")) -> 8.504398827 | G146: =IF(OR('Tabel 1 H'!E144<5,'Tabel 2 H'!G146<0.5),"-",IFERROR('Tabel 2 H'!G146/'Tabel 1 H'!E144*100,"-")) -> 7.495537521 | I146: =IF(OR('Tabel 1 H'!G144<5,'Tabel 2 H'!I146<0.5),"-",IFERROR('Tabel 2 H'!I146/'Tabel 1 H'!G144*100,"-")) -> 8.816120907 | J146: =IF(OR('Tabel 1 H'!G144<5,'Tabel 2 H'!J146<0.5),"-",IFERROR('Tabel 2 H'!J146/'Tabel 1 H'!G144*100,"-")) -> 7.788093229
A147: Cand. IT. | C147: =IF(OR('Tabel 1 H'!C145<5,'Tabel 2 H'!C147<0.5),"-",IFERROR('Tabel 2 H'!C147/'Tabel 1 H'!C145*100,"-")) -> 4.166666667 | D147: =IF(OR('Tabel 1 H'!C145<5,'Tabel 2 H'!D147<0.5),"-",IFERROR('Tabel 2 H'!D147/'Tabel 1 H'!C145*100,"-")) -> 4.088962348 | F147: =IF(OR('Tabel 1 H'!E145<5,'Tabel 2 H'!F147<0.5),"-",IFERROR('Tabel 2 H'!F147/'Tabel 1 H'!E145*100,"-")) -> 7.692307692 | G147: =IF(OR('Tabel 1 H'!E145<5,'Tabel 2 H'!G147<0.5),"-",IFERROR('Tabel 2 H'!G147/'Tabel 1 H'!E145*100,"-")) -> 6.35502463 | I147: =IF(OR('Tabel 1 H'!G145<5,'Tabel 2 H'!I147<0.5),"-",IFERROR('Tabel 2 H'!I147/'Tabel 1 H'!G145*100,"-")) -> 5.687203791 | J147: =IF(OR('Tabel 1 H'!G145<5,'Tabel 2 H'!J147<0.5),"-",IFERROR('Tabel 2 H'!J147/'Tabel 1 H'!G145*100,"-")) -> 5.06626883
A148: Bac. Samf. | C148: =IF(OR('Tabel 1 H'!C146<5,'Tabel 2 H'!C148<0.5),"-",IFERROR('Tabel 2 H'!C148/'Tabel 1 H'!C146*100,"-")) -> 3.703703704 | D148: =IF(OR('Tabel 1 H'!C146<5,'Tabel 2 H'!D148<0.5),"-",IFERROR('Tabel 2 H'!D148/'Tabel 1 H'!C146*100,"-")) -> 3.703010689 | F148: =IF(OR('Tabel 1 H'!E146<5,'Tabel 2 H'!F148<0.5),"-",IFERROR('Tabel 2 H'!F148/'Tabel 1 H'!E146*100,"-")) -> 5.882352941 | G148: =IF(OR('Tabel 1 H'!E146<5,'Tabel 2 H'!G148<0.5),"-",IFERROR('Tabel 2 H'!G148/'Tabel 1 H'!E146*100,"-")) -> - | I148: =IF(OR('Tabel 1 H'!G146<5,'Tabel 2 H'!I148<0.5),"-",IFERROR('Tabel 2 H'!I148/'Tabel 1 H'!G146*100,"-")) -> 4.918032787 | J148: =IF(OR('Tabel 1 H'!G146<5,'Tabel 2 H'!J148<0.5),"-",IFERROR('Tabel 2 H'!J148/'Tabel 1 H'!G146*100,"-")) -> 1.996905972
A149: Bac. Hum. | C149: =IF(OR('Tabel 1 H'!C147<5,'Tabel 2 H'!C149<0.5),"-",IFERROR('Tabel 2 H'!C149/'Tabel 1 H'!C147*100,"-")) -> 7.575757576 | D149: =IF(OR('Tabel 1 H'!C147<5,'Tabel 2 H'!D149<0.5),"-",IFERROR('Tabel 2 H'!D149/'Tabel 1 H'!C147*100,"-")) -> 6.595298712 | F149: =IF(OR('Tabel 1 H'!E147<5,'Tabel 2 H'!F149<0.5),"-",IFERROR('Tabel 2 H'!F149/'Tabel 1 H'!E147*100,"-")) -> 9.401709402 | G149: =IF(OR('Tabel 1 H'!E147<5,'Tabel 2 H'!G149<0.5),"-",IFERROR('Tabel 2 H'!G149/'Tabel 1 H'!E147*100,"-")) -> 8.907376399 | I149: =IF(OR('Tabel 1 H'!G147<5,'Tabel 2 H'!I149<0.5),"-",IFERROR('Tabel 2 H'!I149/'Tabel 1 H'!G147*100,"-")) -> 8.743169399 | J149: =IF(OR('Tabel 1 H'!G147<5,'Tabel 2 H'!J149<0.5),"-",IFERROR('Tabel 2 H'!J149/'Tabel 1 H'!G147*100,"-")) -> 8.073512315
A150: Bac. Nat. | C150: =IF(OR('Tabel 1 H'!C148<5,'Tabel 2 H'!C150<0.5),"-",IFERROR('Tabel 2 H'!C150/'Tabel 1 H'!C148*100,"-")) -> 15 | D150: =IF(OR('Tabel 1 H'!C148<5,'Tabel 2 H'!D150<0.5),"-",IFERROR('Tabel 2 H'!D150/'Tabel 1 H'!C148*100,"-")) -> 11.66656271 | F150: =IF(OR('Tabel 1 H'!E148<5,'Tabel 2 H'!F150<0.5),"-",IFERROR('Tabel 2 H'!F150/'Tabel 1 H'!E148*100,"-")) -> 13.33333333 | G150: =IF(OR('Tabel 1 H'!E148<5,'Tabel 2 H'!G150<0.5),"-",IFERROR('Tabel 2 H'!G150/'Tabel 1 H'!E148*100,"-")) -> 9.505395123 | I150: =IF(OR('Tabel 1 H'!G148<5,'Tabel 2 H'!I150<0.5),"-",IFERROR('Tabel 2 H'!I150/'Tabel 1 H'!G148*100,"-")) -> 14.11764706 | J150: =IF(OR('Tabel 1 H'!G148<5,'Tabel 2 H'!J150<0.5),"-",IFERROR('Tabel 2 H'!J150/'Tabel 1 H'!G148*100,"-")) -> 10.52241517
A151: Andre | C151: =IF(OR('Tabel 1 H'!C149<5,'Tabel 2 H'!C151<0.5),"-",IFERROR('Tabel 2 H'!C151/'Tabel 1 H'!C149*100,"-")) -> 5.816135084 | D151: =IF(OR('Tabel 1 H'!C149<5,'Tabel 2 H'!D151<0.5),"-",IFERROR('Tabel 2 H'!D151/'Tabel 1 H'!C149*100,"-")) -> 5.040963238 | F151: =IF(OR('Tabel 1 H'!E149<5,'Tabel 2 H'!F151<0.5),"-",IFERROR('Tabel 2 H'!F151/'Tabel 1 H'!E149*100,"-")) -> 8.125 | G151: =IF(OR('Tabel 1 H'!E149<5,'Tabel 2 H'!G151<0.5),"-",IFERROR('Tabel 2 H'!G151/'Tabel 1 H'!E149*100,"-")) -> 6.635630419 | I151: =IF(OR('Tabel 1 H'!G149<5,'Tabel 2 H'!I151<0.5),"-",IFERROR('Tabel 2 H'!I151/'Tabel 1 H'!G149*100,"-")) -> 7.075873828 | J151: =IF(OR('Tabel 1 H'!G149<5,'Tabel 2 H'!J151<0.5),"-",IFERROR('Tabel 2 H'!J151/'Tabel 1 H'!G149*100,"-")) -> 5.911028878
A153: Total | C153: =IF(OR('Tabel 1 H'!C151<5,'Tabel 2 H'!C153<0.5),"-",IFERROR('Tabel 2 H'!C153/'Tabel 1 H'!C151*100,"-")) -> 5.587474864 | D153: =IF(OR('Tabel 1 H'!C151<5,'Tabel 2 H'!D153<0.5),"-",IFERROR('Tabel 2 H'!D153/'Tabel 1 H'!C151*100,"-")) -> 4.798482547 | F153: =IF(OR('Tabel 1 H'!E151<5,'Tabel 2 H'!F153<0.5),"-",IFERROR('Tabel 2 H'!F153/'Tabel 1 H'!E151*100,"-")) -> 6.527353839 | G153: =IF(OR('Tabel 1 H'!E151<5,'Tabel 2 H'!G153<0.5),"-",IFERROR('Tabel 2 H'!G153/'Tabel 1 H'!E151*100,"-")) -> 5.360334308 | I153: =IF(OR('Tabel 1 H'!G151<5,'Tabel 2 H'!I153<0.5),"-",IFERROR('Tabel 2 H'!I153/'Tabel 1 H'!G151*100,"-")) -> 6.104651163 | J153: =IF(OR('Tabel 1 H'!G151<5,'Tabel 2 H'!J153<0.5),"-",IFERROR('Tabel 2 H'!J153/'Tabel 1 H'!G151*100,"-")) -> 5.107646197
A155: Ingeniører i alt | C155: =IF(OR('Tabel 1 H'!C153<5,'Tabel 2 H'!C155<0.5),"-",IFERROR('Tabel 2 H'!C155/'Tabel 1 H'!C153*100,"-")) -> 3.317152104 | D155: =IF(OR('Tabel 1 H'!C153<5,'Tabel 2 H'!D155<0.5),"-",IFERROR('Tabel 2 H'!D155/'Tabel 1 H'!C153*100,"-")) -> 2.809537045 | F155: =IF(OR('Tabel 1 H'!E153<5,'Tabel 2 H'!F155<0.5),"-",IFERROR('Tabel 2 H'!F155/'Tabel 1 H'!E153*100,"-")) -> 3.448275862 | G155: =IF(OR('Tabel 1 H'!E153<5,'Tabel 2 H'!G155<0.5),"-",IFERROR('Tabel 2 H'!G155/'Tabel 1 H'!E153*100,"-")) -> 2.578272215 | I155: =IF(OR('Tabel 1 H'!G153<5,'Tabel 2 H'!I155<0.5),"-",IFERROR('Tabel 2 H'!I155/'Tabel 1 H'!G153*100,"-")) -> 3.349573691 | J155: =IF(OR('Tabel 1 H'!G153<5,'Tabel 2 H'!J155<0.5),"-",IFERROR('Tabel 2 H'!J155/'Tabel 1 H'!G153*100,"-")) -> 2.752354633
A156: Magistre i alt | C156: =IF(OR('Tabel 1 H'!C154<5,'Tabel 2 H'!C156<0.5),"-",IFERROR('Tabel 2 H'!C156/'Tabel 1 H'!C154*100,"-")) -> 8.075772682 | D156: =IF(OR('Tabel 1 H'!C154<5,'Tabel 2 H'!D156<0.5),"-",IFERROR('Tabel 2 H'!D156/'Tabel 1 H'!C154*100,"-")) -> 7.13551978 | F156: =IF(OR('Tabel 1 H'!E154<5,'Tabel 2 H'!F156<0.5),"-",IFERROR('Tabel 2 H'!F156/'Tabel 1 H'!E154*100,"-")) -> 8.923742564 | G156: =IF(OR('Tabel 1 H'!E154<5,'Tabel 2 H'!G156<0.5),"-",IFERROR('Tabel 2 H'!G156/'Tabel 1 H'!E154*100,"-")) -> 7.293502311 | I156: =IF(OR('Tabel 1 H'!G154<5,'Tabel 2 H'!I156<0.5),"-",IFERROR('Tabel 2 H'!I156/'Tabel 1 H'!G154*100,"-")) -> 8.625525947 | J156: =IF(OR('Tabel 1 H'!G154<5,'Tabel 2 H'!J156<0.5),"-",IFERROR('Tabel 2 H'!J156/'Tabel 1 H'!G154*100,"-")) -> 7.237942536
A157: DJØF'ere i alt | C157: =IF(OR('Tabel 1 H'!C155<5,'Tabel 2 H'!C157<0.5),"-",IFERROR('Tabel 2 H'!C157/'Tabel 1 H'!C155*100,"-")) -> 4.506834134 | D157: =IF(OR('Tabel 1 H'!C155<5,'Tabel 2 H'!D157<0.5),"-",IFERROR('Tabel 2 H'!D157/'Tabel 1 H'!C155*100,"-")) -> 3.808984568 | F157: =IF(OR('Tabel 1 H'!E155<5,'Tabel 2 H'!F157<0.5),"-",IFERROR('Tabel 2 H'!F157/'Tabel 1 H'!E155*100,"-")) -> 4.600638978 | G157: =IF(OR('Tabel 1 H'!E155<5,'Tabel 2 H'!G157<0.5),"-",IFERROR('Tabel 2 H'!G157/'Tabel 1 H'!E155*100,"-")) -> 3.851202263 | I157: =IF(OR('Tabel 1 H'!G155<5,'Tabel 2 H'!I157<0.5),"-",IFERROR('Tabel 2 H'!I157/'Tabel 1 H'!G155*100,"-")) -> 4.557135515 | J157: =IF(OR('Tabel 1 H'!G155<5,'Tabel 2 H'!J157<0.5),"-",IFERROR('Tabel 2 H'!J157/'Tabel 1 H'!G155*100,"-")) -> 3.831623147
A162: Ballerup
C164: Mænd | F164: Kvinder | I164: I alt
C165: Ledigheds- berørte | D165: Gns. brutto- ledighed | F165: Ledigheds- berørte | G165: Gns. brutto- ledighed | I165: Ledigheds- berørte | J165: Gns. brutto- ledighed
A168: Civ. ing. | C168: =IF(OR('Tabel 1 H'!C166<5,'Tabel 2 H'!C168<0.5),"-",IFERROR('Tabel 2 H'!C168/'Tabel 1 H'!C166*100,"-")) -> 1.714285714 | D168: =IF(OR('Tabel 1 H'!C166<5,'Tabel 2 H'!D168<0.5),"-",IFERROR('Tabel 2 H'!D168/'Tabel 1 H'!C166*100,"-")) -> 1.381971113 | F168: =IF(OR('Tabel 1 H'!E166<5,'Tabel 2 H'!F168<0.5),"-",IFERROR('Tabel 2 H'!F168/'Tabel 1 H'!E166*100,"-")) -> 0.6849315068 | G168: =IF(OR('Tabel 1 H'!E166<5,'Tabel 2 H'!G168<0.5),"-",IFERROR('Tabel 2 H'!G168/'Tabel 1 H'!E166*100,"-")) -> 0.6848033465 | I168: =IF(OR('Tabel 1 H'!G166<5,'Tabel 2 H'!I168<0.5),"-",IFERROR('Tabel 2 H'!I168/'Tabel 1 H'!G166*100,"-")) -> 1.411290323 | J168: =IF(OR('Tabel 1 H'!G166<5,'Tabel 2 H'!J168<0.5),"-",IFERROR('Tabel 2 H'!J168/'Tabel 1 H'!G166*100,"-")) -> 1.176756408
A169: Diplom ing. | C169: =IF(OR('Tabel 1 H'!C167<5,'Tabel 2 H'!C169<0.5),"-",IFERROR('Tabel 2 H'!C169/'Tabel 1 H'!C167*100,"-")) -> 3.875968992 | D169: =IF(OR('Tabel 1 H'!C167<5,'Tabel 2 H'!D169<0.5),"-",IFERROR('Tabel 2 H'!D169/'Tabel 1 H'!C167*100,"-")) -> 3.079888041 | F169: =IF(OR('Tabel 1 H'!E167<5,'Tabel 2 H'!F169<0.5),"-",IFERROR('Tabel 2 H'!F169/'Tabel 1 H'!E167*100,"-")) -> 0.9090909091 | G169: =IF(OR('Tabel 1 H'!E167<5,'Tabel 2 H'!G169<0.5),"-",IFERROR('Tabel 2 H'!G169/'Tabel 1 H'!E167*100,"-")) -> 0.9089208054 | I169: =IF(OR('Tabel 1 H'!G167<5,'Tabel 2 H'!I169<0.5),"-",IFERROR('Tabel 2 H'!I169/'Tabel 1 H'!G167*100,"-")) -> 3.219315895 | J169: =IF(OR('Tabel 1 H'!G167<5,'Tabel 2 H'!J169<0.5),"-",IFERROR('Tabel 2 H'!J169/'Tabel 1 H'!G167*100,"-")) -> 2.599392275
A170: Cand. Scient. Tek. | C170: =IF(OR('Tabel 1 H'!C168<5,'Tabel 2 H'!C170<0.5),"-",IFERROR('Tabel 2 H'!C170/'Tabel 1 H'!C168*100,"-")) -> 7.692307692 | D170: =IF(OR('Tabel 1 H'!C168<5,'Tabel 2 H'!D170<0.5),"-",IFERROR('Tabel 2 H'!D170/'Tabel 1 H'!C168*100,"-")) -> 6.776545353 | F170: =IF(OR('Tabel 1 H'!E168<5,'Tabel 2 H'!F170<0.5),"-",IFERROR('Tabel 2 H'!F170/'Tabel 1 H'!E168*100,"-")) -> 12.64367816 | G170: =IF(OR('Tabel 1 H'!E168<5,'Tabel 2 H'!G170<0.5),"-",IFERROR('Tabel 2 H'!G170/'Tabel 1 H'!E168*100,"-")) -> 11.12576002 | I170: =IF(OR('Tabel 1 H'!G168<5,'Tabel 2 H'!I170<0.5),"-",IFERROR('Tabel 2 H'!I170/'Tabel 1 H'!G168*100,"-")) -> 10.11235955 | J170: =IF(OR('Tabel 1 H'!G168<5,'Tabel 2 H'!J170<0.5),"-",IFERROR('Tabel 2 H'!J170/'Tabel 1 H'!G168*100,"-")) -> 8.902285104
A171: MA. Hum. | C171: =IF(OR('Tabel 1 H'!C169<5,'Tabel 2 H'!C171<0.5),"-",IFERROR('Tabel 2 H'!C171/'Tabel 1 H'!C169*100,"-")) -> 3.389830508 | D171: =IF(OR('Tabel 1 H'!C169<5,'Tabel 2 H'!D171<0.5),"-",IFERROR('Tabel 2 H'!D171/'Tabel 1 H'!C169*100,"-")) -> 3.222167838 | F171: =IF(OR('Tabel 1 H'!E169<5,'Tabel 2 H'!F171<0.5),"-",IFERROR('Tabel 2 H'!F171/'Tabel 1 H'!E169*100,"-")) -> 5.673758865 | G171: =IF(OR('Tabel 1 H'!E169<5,'Tabel 2 H'!G171<0.5),"-",IFERROR('Tabel 2 H'!G171/'Tabel 1 H'!E169*100,"-")) -> 4.987496975 | I171: =IF(OR('Tabel 1 H'!G169<5,'Tabel 2 H'!I171<0.5),"-",IFERROR('Tabel 2 H'!I171/'Tabel 1 H'!G169*100,"-")) -> 5 | J171: =IF(OR('Tabel 1 H'!G169<5,'Tabel 2 H'!J171<0.5),"-",IFERROR('Tabel 2 H'!J171/'Tabel 1 H'!G169*100,"-")) -> 4.46672488
A172: MA. Nat. | C172: =IF(OR('Tabel 1 H'!C170<5,'Tabel 2 H'!C172<0.5),"-",IFERROR('Tabel 2 H'!C172/'Tabel 1 H'!C170*100,"-")) -> 1.176470588 | D172: =IF(OR('Tabel 1 H'!C170<5,'Tabel 2 H'!D172<0.5),"-",IFERROR('Tabel 2 H'!D172/'Tabel 1 H'!C170*100,"-")) -> 1.067650911 | F172: =IF(OR('Tabel 1 H'!E170<5,'Tabel 2 H'!F172<0.5),"-",IFERROR('Tabel 2 H'!F172/'Tabel 1 H'!E170*100,"-")) -> 2.352941176 | G172: =IF(OR('Tabel 1 H'!E170<5,'Tabel 2 H'!G172<0.5),"-",IFERROR('Tabel 2 H'!G172/'Tabel 1 H'!E170*100,"-")) -> 2.081002051 | I172: =IF(OR('Tabel 1 H'!G170<5,'Tabel 2 H'!I172<0.5),"-",IFERROR('Tabel 2 H'!I172/'Tabel 1 H'!G170*100,"-")) -> 1.764705882 | J172: =IF(OR('Tabel 1 H'!G170<5,'Tabel 2 H'!J172<0.5),"-",IFERROR('Tabel 2 H'!J172/'Tabel 1 H'!G170*100,"-")) -> 1.574326481
A173: MA. Ph.d. | C173: =IF(OR('Tabel 1 H'!C171<5,'Tabel 2 H'!C173<0.5),"-",IFERROR('Tabel 2 H'!C173/'Tabel 1 H'!C171*100,"-")) -> - | D173: =IF(OR('Tabel 1 H'!C171<5,'Tabel 2 H'!D173<0.5),"-",IFERROR('Tabel 2 H'!D173/'Tabel 1 H'!C171*100,"-")) -> - | F173: =IF(OR('Tabel 1 H'!E171<5,'Tabel 2 H'!F173<0.5),"-",IFERROR('Tabel 2 H'!F173/'Tabel 1 H'!E171*100,"-")) -> 22.22222222 | G173: =IF(OR('Tabel 1 H'!E171<5,'Tabel 2 H'!G173<0.5),"-",IFERROR('Tabel 2 H'!G173/'Tabel 1 H'!E171*100,"-")) -> 16.66701317 | I173: =IF(OR('Tabel 1 H'!G171<5,'Tabel 2 H'!I173<0.5),"-",IFERROR('Tabel 2 H'!I173/'Tabel 1 H'!G171*100,"-")) -> 9.090909091 | J173: =IF(OR('Tabel 1 H'!G171<5,'Tabel 2 H'!J173<0.5),"-",IFERROR('Tabel 2 H'!J173/'Tabel 1 H'!G171*100,"-")) -> 6.818323571
A174: MA. Samf. | C174: =IF(OR('Tabel 1 H'!C172<5,'Tabel 2 H'!C174<0.5),"-",IFERROR('Tabel 2 H'!C174/'Tabel 1 H'!C172*100,"-")) -> - | D174: =IF(OR('Tabel 1 H'!C172<5,'Tabel 2 H'!D174<0.5),"-",IFERROR('Tabel 2 H'!D174/'Tabel 1 H'!C172*100,"-")) -> - | F174: =IF(OR('Tabel 1 H'!E172<5,'Tabel 2 H'!F174<0.5),"-",IFERROR('Tabel 2 H'!F174/'Tabel 1 H'!E172*100,"-")) -> - | G174: =IF(OR('Tabel 1 H'!E172<5,'Tabel 2 H'!G174<0.5),"-",IFERROR('Tabel 2 H'!G174/'Tabel 1 H'!E172*100,"-")) -> - | I174: =IF(OR('Tabel 1 H'!G172<5,'Tabel 2 H'!I174<0.5),"-",IFERROR('Tabel 2 H'!I174/'Tabel 1 H'!G172*100,"-")) -> - | J174: =IF(OR('Tabel 1 H'!G172<5,'Tabel 2 H'!J174<0.5),"-",IFERROR('Tabel 2 H'!J174/'Tabel 1 H'!G172*100,"-")) -> -
A175: Øvrige Mag. | C175: =IF(OR('Tabel 1 H'!C173<5,'Tabel 2 H'!C175<0.5),"-",IFERROR('Tabel 2 H'!C175/'Tabel 1 H'!C173*100,"-")) -> 14.28571429 | D175: =IF(OR('Tabel 1 H'!C173<5,'Tabel 2 H'!D175<0.5),"-",IFERROR('Tabel 2 H'!D175/'Tabel 1 H'!C173*100,"-")) -> 14.28304123 | F175: =IF(OR('Tabel 1 H'!E173<5,'Tabel 2 H'!F175<0.5),"-",IFERROR('Tabel 2 H'!F175/'Tabel 1 H'!E173*100,"-")) -> 5.263157895 | G175: =IF(OR('Tabel 1 H'!E173<5,'Tabel 2 H'!G175<0.5),"-",IFERROR('Tabel 2 H'!G175/'Tabel 1 H'!E173*100,"-")) -> 5.262173084 | I175: =IF(OR('Tabel 1 H'!G173<5,'Tabel 2 H'!I175<0.5),"-",IFERROR('Tabel 2 H'!I175/'Tabel 1 H'!G173*100,"-")) -> 7.692307692 | J175: =IF(OR('Tabel 1 H'!G173<5,'Tabel 2 H'!J175<0.5),"-",IFERROR('Tabel 2 H'!J175/'Tabel 1 H'!G173*100,"-")) -> 7.690868353
A176: Agronom | C176: =IF(OR('Tabel 1 H'!C174<5,'Tabel 2 H'!C176<0.5),"-",IFERROR('Tabel 2 H'!C176/'Tabel 1 H'!C174*100,"-")) -> - | D176: =IF(OR('Tabel 1 H'!C174<5,'Tabel 2 H'!D176<0.5),"-",IFERROR('Tabel 2 H'!D176/'Tabel 1 H'!C174*100,"-")) -> - | F176: =IF(OR('Tabel 1 H'!E174<5,'Tabel 2 H'!F176<0.5),"-",IFERROR('Tabel 2 H'!F176/'Tabel 1 H'!E174*100,"-")) -> 7.692307692 | G176: =IF(OR('Tabel 1 H'!E174<5,'Tabel 2 H'!G176<0.5),"-",IFERROR('Tabel 2 H'!G176/'Tabel 1 H'!E174*100,"-")) -> 7.690868353 | I176: =IF(OR('Tabel 1 H'!G174<5,'Tabel 2 H'!I176<0.5),"-",IFERROR('Tabel 2 H'!I176/'Tabel 1 H'!G174*100,"-")) -> 4.347826087 | J176: =IF(OR('Tabel 1 H'!G174<5,'Tabel 2 H'!J176<0.5),"-",IFERROR('Tabel 2 H'!J176/'Tabel 1 H'!G174*100,"-")) -> 4.347012547
A177: Landsk. Arkt. | C177: =IF(OR('Tabel 1 H'!C175<5,'Tabel 2 H'!C177<0.5),"-",IFERROR('Tabel 2 H'!C177/'Tabel 1 H'!C175*100,"-")) -> - | D177: =IF(OR('Tabel 1 H'!C175<5,'Tabel 2 H'!D177<0.5),"-",IFERROR('Tabel 2 H'!D177/'Tabel 1 H'!C175*100,"-")) -> - | F177: =IF(OR('Tabel 1 H'!E175<5,'Tabel 2 H'!F177<0.5),"-",IFERROR('Tabel 2 H'!F177/'Tabel 1 H'!E175*100,"-")) -> - | G177: =IF(OR('Tabel 1 H'!E175<5,'Tabel 2 H'!G177<0.5),"-",IFERROR('Tabel 2 H'!G177/'Tabel 1 H'!E175*100,"-")) -> - | I177: =IF(OR('Tabel 1 H'!G175<5,'Tabel 2 H'!I177<0.5),"-",IFERROR('Tabel 2 H'!I177/'Tabel 1 H'!G175*100,"-")) -> - | J177: =IF(OR('Tabel 1 H'!G175<5,'Tabel 2 H'!J177<0.5),"-",IFERROR('Tabel 2 H'!J177/'Tabel 1 H'!G175*100,"-")) -> -
A178: Hortonom | C178: =IF(OR('Tabel 1 H'!C176<5,'Tabel 2 H'!C178<0.5),"-",IFERROR('Tabel 2 H'!C178/'Tabel 1 H'!C176*100,"-")) -> - | D178: =IF(OR('Tabel 1 H'!C176<5,'Tabel 2 H'!D178<0.5),"-",IFERROR('Tabel 2 H'!D178/'Tabel 1 H'!C176*100,"-")) -> - | F178: =IF(OR('Tabel 1 H'!E176<5,'Tabel 2 H'!F178<0.5),"-",IFERROR('Tabel 2 H'!F178/'Tabel 1 H'!E176*100,"-")) -> - | G178: =IF(OR('Tabel 1 H'!E176<5,'Tabel 2 H'!G178<0.5),"-",IFERROR('Tabel 2 H'!G178/'Tabel 1 H'!E176*100,"-")) -> - | I178: =IF(OR('Tabel 1 H'!G176<5,'Tabel 2 H'!I178<0.5),"-",IFERROR('Tabel 2 H'!I178/'Tabel 1 H'!G176*100,"-")) -> - | J178: =IF(OR('Tabel 1 H'!G176<5,'Tabel 2 H'!J178<0.5),"-",IFERROR('Tabel 2 H'!J178/'Tabel 1 H'!G176*100,"-")) -> -
A179: Forstkand. | C179: =IF(OR('Tabel 1 H'!C177<5,'Tabel 2 H'!C179<0.5),"-",IFERROR('Tabel 2 H'!C179/'Tabel 1 H'!C177*100,"-")) -> - | D179: =IF(OR('Tabel 1 H'!C177<5,'Tabel 2 H'!D179<0.5),"-",IFERROR('Tabel 2 H'!D179/'Tabel 1 H'!C177*100,"-")) -> - | F179: =IF(OR('Tabel 1 H'!E177<5,'Tabel 2 H'!F179<0.5),"-",IFERROR('Tabel 2 H'!F179/'Tabel 1 H'!E177*100,"-")) -> - | G179: =IF(OR('Tabel 1 H'!E177<5,'Tabel 2 H'!G179<0.5),"-",IFERROR('Tabel 2 H'!G179/'Tabel 1 H'!E177*100,"-")) -> - | I179: =IF(OR('Tabel 1 H'!G177<5,'Tabel 2 H'!I179<0.5),"-",IFERROR('Tabel 2 H'!I179/'Tabel 1 H'!G177*100,"-")) -> - | J179: =IF(OR('Tabel 1 H'!G177<5,'Tabel 2 H'!J179<0.5),"-",IFERROR('Tabel 2 H'!J179/'Tabel 1 H'!G177*100,"-")) -> -
A180: Jordbrugsakad. | C180: =IF(OR('Tabel 1 H'!C178<5,'Tabel 2 H'!C180<0.5),"-",IFERROR('Tabel 2 H'!C180/'Tabel 1 H'!C178*100,"-")) -> - | D180: =IF(OR('Tabel 1 H'!C178<5,'Tabel 2 H'!D180<0.5),"-",IFERROR('Tabel 2 H'!D180/'Tabel 1 H'!C178*100,"-")) -> - | F180: =IF(OR('Tabel 1 H'!E178<5,'Tabel 2 H'!F180<0.5),"-",IFERROR('Tabel 2 H'!F180/'Tabel 1 H'!E178*100,"-")) -> 4.545454545 | G180: =IF(OR('Tabel 1 H'!E178<5,'Tabel 2 H'!G180<0.5),"-",IFERROR('Tabel 2 H'!G180/'Tabel 1 H'!E178*100,"-")) -> 4.544604027 | I180: =IF(OR('Tabel 1 H'!G178<5,'Tabel 2 H'!I180<0.5),"-",IFERROR('Tabel 2 H'!I180/'Tabel 1 H'!G178*100,"-")) -> 2.631578947 | J180: =IF(OR('Tabel 1 H'!G178<5,'Tabel 2 H'!J180<0.5),"-",IFERROR('Tabel 2 H'!J180/'Tabel 1 H'!G178*100,"-")) -> 2.631086542
A181: Mejeriing. | C181: =IF(OR('Tabel 1 H'!C179<5,'Tabel 2 H'!C181<0.5),"-",IFERROR('Tabel 2 H'!C181/'Tabel 1 H'!C179*100,"-")) -> - | D181: =IF(OR('Tabel 1 H'!C179<5,'Tabel 2 H'!D181<0.5),"-",IFERROR('Tabel 2 H'!D181/'Tabel 1 H'!C179*100,"-")) -> - | F181: =IF(OR('Tabel 1 H'!E179<5,'Tabel 2 H'!F181<0.5),"-",IFERROR('Tabel 2 H'!F181/'Tabel 1 H'!E179*100,"-")) -> - | G181: =IF(OR('Tabel 1 H'!E179<5,'Tabel 2 H'!G181<0.5),"-",IFERROR('Tabel 2 H'!G181/'Tabel 1 H'!E179*100,"-")) -> - | I181: =IF(OR('Tabel 1 H'!G179<5,'Tabel 2 H'!I181<0.5),"-",IFERROR('Tabel 2 H'!I181/'Tabel 1 H'!G179*100,"-")) -> - | J181: =IF(OR('Tabel 1 H'!G179<5,'Tabel 2 H'!J181<0.5),"-",IFERROR('Tabel 2 H'!J181/'Tabel 1 H'!G179*100,"-")) -> -
A182: Levn.m.kand. | C182: =IF(OR('Tabel 1 H'!C180<5,'Tabel 2 H'!C182<0.5),"-",IFERROR('Tabel 2 H'!C182/'Tabel 1 H'!C180*100,"-")) -> - | D182: =IF(OR('Tabel 1 H'!C180<5,'Tabel 2 H'!D182<0.5),"-",IFERROR('Tabel 2 H'!D182/'Tabel 1 H'!C180*100,"-")) -> - | F182: =IF(OR('Tabel 1 H'!E180<5,'Tabel 2 H'!F182<0.5),"-",IFERROR('Tabel 2 H'!F182/'Tabel 1 H'!E180*100,"-")) -> - | G182: =IF(OR('Tabel 1 H'!E180<5,'Tabel 2 H'!G182<0.5),"-",IFERROR('Tabel 2 H'!G182/'Tabel 1 H'!E180*100,"-")) -> - | I182: =IF(OR('Tabel 1 H'!G180<5,'Tabel 2 H'!I182<0.5),"-",IFERROR('Tabel 2 H'!I182/'Tabel 1 H'!G180*100,"-")) -> - | J182: =IF(OR('Tabel 1 H'!G180<5,'Tabel 2 H'!J182<0.5),"-",IFERROR('Tabel 2 H'!J182/'Tabel 1 H'!G180*100,"-")) -> -
A183: Dyrlæge | C183: =IF(OR('Tabel 1 H'!C181<5,'Tabel 2 H'!C183<0.5),"-",IFERROR('Tabel 2 H'!C183/'Tabel 1 H'!C181*100,"-")) -> - | D183: =IF(OR('Tabel 1 H'!C181<5,'Tabel 2 H'!D183<0.5),"-",IFERROR('Tabel 2 H'!D183/'Tabel 1 H'!C181*100,"-")) -> - | F183: =IF(OR('Tabel 1 H'!E181<5,'Tabel 2 H'!F183<0.5),"-",IFERROR('Tabel 2 H'!F183/'Tabel 1 H'!E181*100,"-")) -> - | G183: =IF(OR('Tabel 1 H'!E181<5,'Tabel 2 H'!G183<0.5),"-",IFERROR('Tabel 2 H'!G183/'Tabel 1 H'!E181*100,"-")) -> - | I183: =IF(OR('Tabel 1 H'!G181<5,'Tabel 2 H'!I183<0.5),"-",IFERROR('Tabel 2 H'!I183/'Tabel 1 H'!G181*100,"-")) -> - | J183: =IF(OR('Tabel 1 H'!G181<5,'Tabel 2 H'!J183<0.5),"-",IFERROR('Tabel 2 H'!J183/'Tabel 1 H'!G181*100,"-")) -> -
A184: Farmaceut | C184: =IF(OR('Tabel 1 H'!C182<5,'Tabel 2 H'!C184<0.5),"-",IFERROR('Tabel 2 H'!C184/'Tabel 1 H'!C182*100,"-")) -> - | D184: =IF(OR('Tabel 1 H'!C182<5,'Tabel 2 H'!D184<0.5),"-",IFERROR('Tabel 2 H'!D184/'Tabel 1 H'!C182*100,"-")) -> - | F184: =IF(OR('Tabel 1 H'!E182<5,'Tabel 2 H'!F184<0.5),"-",IFERROR('Tabel 2 H'!F184/'Tabel 1 H'!E182*100,"-")) -> 3.296703297 | G184: =IF(OR('Tabel 1 H'!E182<5,'Tabel 2 H'!G184<0.5),"-",IFERROR('Tabel 2 H'!G184/'Tabel 1 H'!E182*100,"-")) -> 2.913633488 | I184: =IF(OR('Tabel 1 H'!G182<5,'Tabel 2 H'!I184<0.5),"-",IFERROR('Tabel 2 H'!I184/'Tabel 1 H'!G182*100,"-")) -> 2.43902439 | J184: =IF(OR('Tabel 1 H'!G182<5,'Tabel 2 H'!J184<0.5),"-",IFERROR('Tabel 2 H'!J184/'Tabel 1 H'!G182*100,"-")) -> 2.15561502
A185: Læge | C185: =IF(OR('Tabel 1 H'!C183<5,'Tabel 2 H'!C185<0.5),"-",IFERROR('Tabel 2 H'!C185/'Tabel 1 H'!C183*100,"-")) -> - | D185: =IF(OR('Tabel 1 H'!C183<5,'Tabel 2 H'!D185<0.5),"-",IFERROR('Tabel 2 H'!D185/'Tabel 1 H'!C183*100,"-")) -> - | F185: =IF(OR('Tabel 1 H'!E183<5,'Tabel 2 H'!F185<0.5),"-",IFERROR('Tabel 2 H'!F185/'Tabel 1 H'!E183*100,"-")) -> - | G185: =IF(OR('Tabel 1 H'!E183<5,'Tabel 2 H'!G185<0.5),"-",IFERROR('Tabel 2 H'!G185/'Tabel 1 H'!E183*100,"-")) -> - | I185: =IF(OR('Tabel 1 H'!G183<5,'Tabel 2 H'!I185<0.5),"-",IFERROR('Tabel 2 H'!I185/'Tabel 1 H'!G183*100,"-")) -> - | J185: =IF(OR('Tabel 1 H'!G183<5,'Tabel 2 H'!J185<0.5),"-",IFERROR('Tabel 2 H'!J185/'Tabel 1 H'!G183*100,"-")) -> -
A186: Tandlæge | C186: =IF(OR('Tabel 1 H'!C184<5,'Tabel 2 H'!C186<0.5),"-",IFERROR('Tabel 2 H'!C186/'Tabel 1 H'!C184*100,"-")) -> - | D186: =IF(OR('Tabel 1 H'!C184<5,'Tabel 2 H'!D186<0.5),"-",IFERROR('Tabel 2 H'!D186/'Tabel 1 H'!C184*100,"-")) -> - | F186: =IF(OR('Tabel 1 H'!E184<5,'Tabel 2 H'!F186<0.5),"-",IFERROR('Tabel 2 H'!F186/'Tabel 1 H'!E184*100,"-")) -> - | G186: =IF(OR('Tabel 1 H'!E184<5,'Tabel 2 H'!G186<0.5),"-",IFERROR('Tabel 2 H'!G186/'Tabel 1 H'!E184*100,"-")) -> - | I186: =IF(OR('Tabel 1 H'!G184<5,'Tabel 2 H'!I186<0.5),"-",IFERROR('Tabel 2 H'!I186/'Tabel 1 H'!G184*100,"-")) -> - | J186: =IF(OR('Tabel 1 H'!G184<5,'Tabel 2 H'!J186<0.5),"-",IFERROR('Tabel 2 H'!J186/'Tabel 1 H'!G184*100,"-")) -> -
A187: Arkitekt | C187: =IF(OR('Tabel 1 H'!C185<5,'Tabel 2 H'!C187<0.5),"-",IFERROR('Tabel 2 H'!C187/'Tabel 1 H'!C185*100,"-")) -> 12.5 | D187: =IF(OR('Tabel 1 H'!C185<5,'Tabel 2 H'!D187<0.5),"-",IFERROR('Tabel 2 H'!D187/'Tabel 1 H'!C185*100,"-")) -> 12.49766107 | F187: =IF(OR('Tabel 1 H'!E185<5,'Tabel 2 H'!F187<0.5),"-",IFERROR('Tabel 2 H'!F187/'Tabel 1 H'!E185*100,"-")) -> - | G187: =IF(OR('Tabel 1 H'!E185<5,'Tabel 2 H'!G187<0.5),"-",IFERROR('Tabel 2 H'!G187/'Tabel 1 H'!E185*100,"-")) -> - | I187: =IF(OR('Tabel 1 H'!G185<5,'Tabel 2 H'!I187<0.5),"-",IFERROR('Tabel 2 H'!I187/'Tabel 1 H'!G185*100,"-")) -> 6.25 | J187: =IF(OR('Tabel 1 H'!G185<5,'Tabel 2 H'!J187<0.5),"-",IFERROR('Tabel 2 H'!J187/'Tabel 1 H'!G185*100,"-")) -> 6.248830537
A188: Landinspek. | C188: =IF(OR('Tabel 1 H'!C186<5,'Tabel 2 H'!C188<0.5),"-",IFERROR('Tabel 2 H'!C188/'Tabel 1 H'!C186*100,"-")) -> - | D188: =IF(OR('Tabel 1 H'!C186<5,'Tabel 2 H'!D188<0.5),"-",IFERROR('Tabel 2 H'!D188/'Tabel 1 H'!C186*100,"-")) -> - | F188: =IF(OR('Tabel 1 H'!E186<5,'Tabel 2 H'!F188<0.5),"-",IFERROR('Tabel 2 H'!F188/'Tabel 1 H'!E186*100,"-")) -> - | G188: =IF(OR('Tabel 1 H'!E186<5,'Tabel 2 H'!G188<0.5),"-",IFERROR('Tabel 2 H'!G188/'Tabel 1 H'!E186*100,"-")) -> - | I188: =IF(OR('Tabel 1 H'!G186<5,'Tabel 2 H'!I188<0.5),"-",IFERROR('Tabel 2 H'!I188/'Tabel 1 H'!G186*100,"-")) -> - | J188: =IF(OR('Tabel 1 H'!G186<5,'Tabel 2 H'!J188<0.5),"-",IFERROR('Tabel 2 H'!J188/'Tabel 1 H'!G186*100,"-")) -> -
A189: Bibliotekar | C189: =IF(OR('Tabel 1 H'!C187<5,'Tabel 2 H'!C189<0.5),"-",IFERROR('Tabel 2 H'!C189/'Tabel 1 H'!C187*100,"-")) -> 16.66666667 | D189: =IF(OR('Tabel 1 H'!C187<5,'Tabel 2 H'!D189<0.5),"-",IFERROR('Tabel 2 H'!D189/'Tabel 1 H'!C187*100,"-")) -> 10.89419738 | F189: =IF(OR('Tabel 1 H'!E187<5,'Tabel 2 H'!F189<0.5),"-",IFERROR('Tabel 2 H'!F189/'Tabel 1 H'!E187*100,"-")) -> 6.060606061 | G189: =IF(OR('Tabel 1 H'!E187<5,'Tabel 2 H'!G189<0.5),"-",IFERROR('Tabel 2 H'!G189/'Tabel 1 H'!E187*100,"-")) -> 5.500019845 | I189: =IF(OR('Tabel 1 H'!G187<5,'Tabel 2 H'!I189<0.5),"-",IFERROR('Tabel 2 H'!I189/'Tabel 1 H'!G187*100,"-")) -> 8.888888889 | J189: =IF(OR('Tabel 1 H'!G187<5,'Tabel 2 H'!J189<0.5),"-",IFERROR('Tabel 2 H'!J189/'Tabel 1 H'!G187*100,"-")) -> 6.938467189
A190: Musikudd. | C190: =IF(OR('Tabel 1 H'!C188<5,'Tabel 2 H'!C190<0.5),"-",IFERROR('Tabel 2 H'!C190/'Tabel 1 H'!C188*100,"-")) -> - | D190: =IF(OR('Tabel 1 H'!C188<5,'Tabel 2 H'!D190<0.5),"-",IFERROR('Tabel 2 H'!D190/'Tabel 1 H'!C188*100,"-")) -> - | F190: =IF(OR('Tabel 1 H'!E188<5,'Tabel 2 H'!F190<0.5),"-",IFERROR('Tabel 2 H'!F190/'Tabel 1 H'!E188*100,"-")) -> - | G190: =IF(OR('Tabel 1 H'!E188<5,'Tabel 2 H'!G190<0.5),"-",IFERROR('Tabel 2 H'!G190/'Tabel 1 H'!E188*100,"-")) -> - | I190: =IF(OR('Tabel 1 H'!G188<5,'Tabel 2 H'!I190<0.5),"-",IFERROR('Tabel 2 H'!I190/'Tabel 1 H'!G188*100,"-")) -> - | J190: =IF(OR('Tabel 1 H'!G188<5,'Tabel 2 H'!J190<0.5),"-",IFERROR('Tabel 2 H'!J190/'Tabel 1 H'!G188*100,"-")) -> -
A191: Teolog | C191: =IF(OR('Tabel 1 H'!C189<5,'Tabel 2 H'!C191<0.5),"-",IFERROR('Tabel 2 H'!C191/'Tabel 1 H'!C189*100,"-")) -> - | D191: =IF(OR('Tabel 1 H'!C189<5,'Tabel 2 H'!D191<0.5),"-",IFERROR('Tabel 2 H'!D191/'Tabel 1 H'!C189*100,"-")) -> - | F191: =IF(OR('Tabel 1 H'!E189<5,'Tabel 2 H'!F191<0.5),"-",IFERROR('Tabel 2 H'!F191/'Tabel 1 H'!E189*100,"-")) -> - | G191: =IF(OR('Tabel 1 H'!E189<5,'Tabel 2 H'!G191<0.5),"-",IFERROR('Tabel 2 H'!G191/'Tabel 1 H'!E189*100,"-")) -> - | I191: =IF(OR('Tabel 1 H'!G189<5,'Tabel 2 H'!I191<0.5),"-",IFERROR('Tabel 2 H'!I191/'Tabel 1 H'!G189*100,"-")) -> - | J191: =IF(OR('Tabel 1 H'!G189<5,'Tabel 2 H'!J191<0.5),"-",IFERROR('Tabel 2 H'!J191/'Tabel 1 H'!G189*100,"-")) -> -
A192: Psykolog | C192: =IF(OR('Tabel 1 H'!C190<5,'Tabel 2 H'!C192<0.5),"-",IFERROR('Tabel 2 H'!C192/'Tabel 1 H'!C190*100,"-")) -> 12.5 | D192: =IF(OR('Tabel 1 H'!C190<5,'Tabel 2 H'!D192<0.5),"-",IFERROR('Tabel 2 H'!D192/'Tabel 1 H'!C190*100,"-")) -> 8.443522734 | F192: =IF(OR('Tabel 1 H'!E190<5,'Tabel 2 H'!F192<0.5),"-",IFERROR('Tabel 2 H'!F192/'Tabel 1 H'!E190*100,"-")) -> - | G192: =IF(OR('Tabel 1 H'!E190<5,'Tabel 2 H'!G192<0.5),"-",IFERROR('Tabel 2 H'!G192/'Tabel 1 H'!E190*100,"-")) -> - | I192: =IF(OR('Tabel 1 H'!G190<5,'Tabel 2 H'!I192<0.5),"-",IFERROR('Tabel 2 H'!I192/'Tabel 1 H'!G190*100,"-")) -> 2.173913043 | J192: =IF(OR('Tabel 1 H'!G190<5,'Tabel 2 H'!J192<0.5),"-",IFERROR('Tabel 2 H'!J192/'Tabel 1 H'!G190*100,"-")) -> 1.468438736
A193: Jurist | C193: =IF(OR('Tabel 1 H'!C191<5,'Tabel 2 H'!C193<0.5),"-",IFERROR('Tabel 2 H'!C193/'Tabel 1 H'!C191*100,"-")) -> 4 | D193: =IF(OR('Tabel 1 H'!C191<5,'Tabel 2 H'!D193<0.5),"-",IFERROR('Tabel 2 H'!D193/'Tabel 1 H'!C191*100,"-")) -> 3.999251544 | F193: =IF(OR('Tabel 1 H'!E191<5,'Tabel 2 H'!F193<0.5),"-",IFERROR('Tabel 2 H'!F193/'Tabel 1 H'!E191*100,"-")) -> 4.166666667 | G193: =IF(OR('Tabel 1 H'!E191<5,'Tabel 2 H'!G193<0.5),"-",IFERROR('Tabel 2 H'!G193/'Tabel 1 H'!E191*100,"-")) -> 3.524848056 | I193: =IF(OR('Tabel 1 H'!G191<5,'Tabel 2 H'!I193<0.5),"-",IFERROR('Tabel 2 H'!I193/'Tabel 1 H'!G191*100,"-")) -> 4.12371134 | J193: =IF(OR('Tabel 1 H'!G191<5,'Tabel 2 H'!J193<0.5),"-",IFERROR('Tabel 2 H'!J193/'Tabel 1 H'!G191*100,"-")) -> 3.647116996
A194: Økonom | C194: =IF(OR('Tabel 1 H'!C192<5,'Tabel 2 H'!C194<0.5),"-",IFERROR('Tabel 2 H'!C194/'Tabel 1 H'!C192*100,"-")) -> - | D194: =IF(OR('Tabel 1 H'!C192<5,'Tabel 2 H'!D194<0.5),"-",IFERROR('Tabel 2 H'!D194/'Tabel 1 H'!C192*100,"-")) -> - | F194: =IF(OR('Tabel 1 H'!E192<5,'Tabel 2 H'!F194<0.5),"-",IFERROR('Tabel 2 H'!F194/'Tabel 1 H'!E192*100,"-")) -> - | G194: =IF(OR('Tabel 1 H'!E192<5,'Tabel 2 H'!G194<0.5),"-",IFERROR('Tabel 2 H'!G194/'Tabel 1 H'!E192*100,"-")) -> - | I194: =IF(OR('Tabel 1 H'!G192<5,'Tabel 2 H'!I194<0.5),"-",IFERROR('Tabel 2 H'!I194/'Tabel 1 H'!G192*100,"-")) -> - | J194: =IF(OR('Tabel 1 H'!G192<5,'Tabel 2 H'!J194<0.5),"-",IFERROR('Tabel 2 H'!J194/'Tabel 1 H'!G192*100,"-")) -> -
A195: Samf. Adm. | C195: =IF(OR('Tabel 1 H'!C193<5,'Tabel 2 H'!C195<0.5),"-",IFERROR('Tabel 2 H'!C195/'Tabel 1 H'!C193*100,"-")) -> 6.849315068 | D195: =IF(OR('Tabel 1 H'!C193<5,'Tabel 2 H'!D195<0.5),"-",IFERROR('Tabel 2 H'!D195/'Tabel 1 H'!C193*100,"-")) -> 6.742941997 | F195: =IF(OR('Tabel 1 H'!E193<5,'Tabel 2 H'!F195<0.5),"-",IFERROR('Tabel 2 H'!F195/'Tabel 1 H'!E193*100,"-")) -> 5.714285714 | G195: =IF(OR('Tabel 1 H'!E193<5,'Tabel 2 H'!G195<0.5),"-",IFERROR('Tabel 2 H'!G195/'Tabel 1 H'!E193*100,"-")) -> 3.048474426 | I195: =IF(OR('Tabel 1 H'!G193<5,'Tabel 2 H'!I195<0.5),"-",IFERROR('Tabel 2 H'!I195/'Tabel 1 H'!G193*100,"-")) -> 6.179775281 | J195: =IF(OR('Tabel 1 H'!G193<5,'Tabel 2 H'!J195<0.5),"-",IFERROR('Tabel 2 H'!J195/'Tabel 1 H'!G193*100,"-")) -> 4.563621239
A196: Cand. Merc. | C196: =IF(OR('Tabel 1 H'!C194<5,'Tabel 2 H'!C196<0.5),"-",IFERROR('Tabel 2 H'!C196/'Tabel 1 H'!C194*100,"-")) -> 3.333333333 | D196: =IF(OR('Tabel 1 H'!C194<5,'Tabel 2 H'!D196<0.5),"-",IFERROR('Tabel 2 H'!D196/'Tabel 1 H'!C194*100,"-")) -> 2.625834217 | F196: =IF(OR('Tabel 1 H'!E194<5,'Tabel 2 H'!F196<0.5),"-",IFERROR('Tabel 2 H'!F196/'Tabel 1 H'!E194*100,"-")) -> 3.076923077 | G196: =IF(OR('Tabel 1 H'!E194<5,'Tabel 2 H'!G196<0.5),"-",IFERROR('Tabel 2 H'!G196/'Tabel 1 H'!E194*100,"-")) -> 2.481420532 | I196: =IF(OR('Tabel 1 H'!G194<5,'Tabel 2 H'!I196<0.5),"-",IFERROR('Tabel 2 H'!I196/'Tabel 1 H'!G194*100,"-")) -> 3.2 | J196: =IF(OR('Tabel 1 H'!G194<5,'Tabel 2 H'!J196<0.5),"-",IFERROR('Tabel 2 H'!J196/'Tabel 1 H'!G194*100,"-")) -> 2.550739101
A197: HA | C197: =IF(OR('Tabel 1 H'!C195<5,'Tabel 2 H'!C197<0.5),"-",IFERROR('Tabel 2 H'!C197/'Tabel 1 H'!C195*100,"-")) -> 19.04761905 | D197: =IF(OR('Tabel 1 H'!C195<5,'Tabel 2 H'!D197<0.5),"-",IFERROR('Tabel 2 H'!D197/'Tabel 1 H'!C195*100,"-")) -> 10.59125078 | F197: =IF(OR('Tabel 1 H'!E195<5,'Tabel 2 H'!F197<0.5),"-",IFERROR('Tabel 2 H'!F197/'Tabel 1 H'!E195*100,"-")) -> 5.882352941 | G197: =IF(OR('Tabel 1 H'!E195<5,'Tabel 2 H'!G197<0.5),"-",IFERROR('Tabel 2 H'!G197/'Tabel 1 H'!E195*100,"-")) -> 5.88125227 | I197: =IF(OR('Tabel 1 H'!G195<5,'Tabel 2 H'!I197<0.5),"-",IFERROR('Tabel 2 H'!I197/'Tabel 1 H'!G195*100,"-")) -> 13.15789474 | J197: =IF(OR('Tabel 1 H'!G195<5,'Tabel 2 H'!J197<0.5),"-",IFERROR('Tabel 2 H'!J197/'Tabel 1 H'!G195*100,"-")) -> 8.484146185
A198: HD | C198: =IF(OR('Tabel 1 H'!C196<5,'Tabel 2 H'!C198<0.5),"-",IFERROR('Tabel 2 H'!C198/'Tabel 1 H'!C196*100,"-")) -> 18.18181818 | D198: =IF(OR('Tabel 1 H'!C196<5,'Tabel 2 H'!D198<0.5),"-",IFERROR('Tabel 2 H'!D198/'Tabel 1 H'!C196*100,"-")) -> 18.17841611 | F198: =IF(OR('Tabel 1 H'!E196<5,'Tabel 2 H'!F198<0.5),"-",IFERROR('Tabel 2 H'!F198/'Tabel 1 H'!E196*100,"-")) -> - | G198: =IF(OR('Tabel 1 H'!E196<5,'Tabel 2 H'!G198<0.5),"-",IFERROR('Tabel 2 H'!G198/'Tabel 1 H'!E196*100,"-")) -> - | I198: =IF(OR('Tabel 1 H'!G196<5,'Tabel 2 H'!I198<0.5),"-",IFERROR('Tabel 2 H'!I198/'Tabel 1 H'!G196*100,"-")) -> 10.81081081 | J198: =IF(OR('Tabel 1 H'!G196<5,'Tabel 2 H'!J198<0.5),"-",IFERROR('Tabel 2 H'!J198/'Tabel 1 H'!G196*100,"-")) -> 10.80878796
A199: Komm. og Sprog | C199: =IF(OR('Tabel 1 H'!C197<5,'Tabel 2 H'!C199<0.5),"-",IFERROR('Tabel 2 H'!C199/'Tabel 1 H'!C197*100,"-")) -> - | D199: =IF(OR('Tabel 1 H'!C197<5,'Tabel 2 H'!D199<0.5),"-",IFERROR('Tabel 2 H'!D199/'Tabel 1 H'!C197*100,"-")) -> - | F199: =IF(OR('Tabel 1 H'!E197<5,'Tabel 2 H'!F199<0.5),"-",IFERROR('Tabel 2 H'!F199/'Tabel 1 H'!E197*100,"-")) -> 4.615384615 | G199: =IF(OR('Tabel 1 H'!E197<5,'Tabel 2 H'!G199<0.5),"-",IFERROR('Tabel 2 H'!G199/'Tabel 1 H'!E197*100,"-")) -> 4.188476652 | I199: =IF(OR('Tabel 1 H'!G197<5,'Tabel 2 H'!I199<0.5),"-",IFERROR('Tabel 2 H'!I199/'Tabel 1 H'!G197*100,"-")) -> 4 | J199: =IF(OR('Tabel 1 H'!G197<5,'Tabel 2 H'!J199<0.5),"-",IFERROR('Tabel 2 H'!J199/'Tabel 1 H'!G197*100,"-")) -> 3.630013098
A200: Cand. IT. | C200: =IF(OR('Tabel 1 H'!C198<5,'Tabel 2 H'!C200<0.5),"-",IFERROR('Tabel 2 H'!C200/'Tabel 1 H'!C198*100,"-")) -> - | D200: =IF(OR('Tabel 1 H'!C198<5,'Tabel 2 H'!D200<0.5),"-",IFERROR('Tabel 2 H'!D200/'Tabel 1 H'!C198*100,"-")) -> - | F200: =IF(OR('Tabel 1 H'!E198<5,'Tabel 2 H'!F200<0.5),"-",IFERROR('Tabel 2 H'!F200/'Tabel 1 H'!E198*100,"-")) -> 14.28571429 | G200: =IF(OR('Tabel 1 H'!E198<5,'Tabel 2 H'!G200<0.5),"-",IFERROR('Tabel 2 H'!G200/'Tabel 1 H'!E198*100,"-")) -> 14.28304123 | I200: =IF(OR('Tabel 1 H'!G198<5,'Tabel 2 H'!I200<0.5),"-",IFERROR('Tabel 2 H'!I200/'Tabel 1 H'!G198*100,"-")) -> 6.451612903 | J200: =IF(OR('Tabel 1 H'!G198<5,'Tabel 2 H'!J200<0.5),"-",IFERROR('Tabel 2 H'!J200/'Tabel 1 H'!G198*100,"-")) -> 6.450405716
A201: Bac. Samf. | C201: =IF(OR('Tabel 1 H'!C199<5,'Tabel 2 H'!C201<0.5),"-",IFERROR('Tabel 2 H'!C201/'Tabel 1 H'!C199*100,"-")) -> - | D201: =IF(OR('Tabel 1 H'!C199<5,'Tabel 2 H'!D201<0.5),"-",IFERROR('Tabel 2 H'!D201/'Tabel 1 H'!C199*100,"-")) -> - | F201: =IF(OR('Tabel 1 H'!E199<5,'Tabel 2 H'!F201<0.5),"-",IFERROR('Tabel 2 H'!F201/'Tabel 1 H'!E199*100,"-")) -> - | G201: =IF(OR('Tabel 1 H'!E199<5,'Tabel 2 H'!G201<0.5),"-",IFERROR('Tabel 2 H'!G201/'Tabel 1 H'!E199*100,"-")) -> - | I201: =IF(OR('Tabel 1 H'!G199<5,'Tabel 2 H'!I201<0.5),"-",IFERROR('Tabel 2 H'!I201/'Tabel 1 H'!G199*100,"-")) -> - | J201: =IF(OR('Tabel 1 H'!G199<5,'Tabel 2 H'!J201<0.5),"-",IFERROR('Tabel 2 H'!J201/'Tabel 1 H'!G199*100,"-")) -> -
A202: Bac. Hum. | C202: =IF(OR('Tabel 1 H'!C200<5,'Tabel 2 H'!C202<0.5),"-",IFERROR('Tabel 2 H'!C202/'Tabel 1 H'!C200*100,"-")) -> - | D202: =IF(OR('Tabel 1 H'!C200<5,'Tabel 2 H'!D202<0.5),"-",IFERROR('Tabel 2 H'!D202/'Tabel 1 H'!C200*100,"-")) -> - | F202: =IF(OR('Tabel 1 H'!E200<5,'Tabel 2 H'!F202<0.5),"-",IFERROR('Tabel 2 H'!F202/'Tabel 1 H'!E200*100,"-")) -> - | G202: =IF(OR('Tabel 1 H'!E200<5,'Tabel 2 H'!G202<0.5),"-",IFERROR('Tabel 2 H'!G202/'Tabel 1 H'!E200*100,"-")) -> - | I202: =IF(OR('Tabel 1 H'!G200<5,'Tabel 2 H'!I202<0.5),"-",IFERROR('Tabel 2 H'!I202/'Tabel 1 H'!G200*100,"-")) -> - | J202: =IF(OR('Tabel 1 H'!G200<5,'Tabel 2 H'!J202<0.5),"-",IFERROR('Tabel 2 H'!J202/'Tabel 1 H'!G200*100,"-")) -> -
A203: Bac. Nat. | C203: =IF(OR('Tabel 1 H'!C201<5,'Tabel 2 H'!C203<0.5),"-",IFERROR('Tabel 2 H'!C203/'Tabel 1 H'!C201*100,"-")) -> 11.76470588 | D203: =IF(OR('Tabel 1 H'!C201<5,'Tabel 2 H'!D203<0.5),"-",IFERROR('Tabel 2 H'!D203/'Tabel 1 H'!C201*100,"-")) -> 11.21950683 | F203: =IF(OR('Tabel 1 H'!E201<5,'Tabel 2 H'!F203<0.5),"-",IFERROR('Tabel 2 H'!F203/'Tabel 1 H'!E201*100,"-")) -> - | G203: =IF(OR('Tabel 1 H'!E201<5,'Tabel 2 H'!G203<0.5),"-",IFERROR('Tabel 2 H'!G203/'Tabel 1 H'!E201*100,"-")) -> - | I203: =IF(OR('Tabel 1 H'!G201<5,'Tabel 2 H'!I203<0.5),"-",IFERROR('Tabel 2 H'!I203/'Tabel 1 H'!G201*100,"-")) -> 8.695652174 | J203: =IF(OR('Tabel 1 H'!G201<5,'Tabel 2 H'!J203<0.5),"-",IFERROR('Tabel 2 H'!J203/'Tabel 1 H'!G201*100,"-")) -> 8.292678958
A204: Andre | C204: =IF(OR('Tabel 1 H'!C202<5,'Tabel 2 H'!C204<0.5),"-",IFERROR('Tabel 2 H'!C204/'Tabel 1 H'!C202*100,"-")) -> 4.444444444 | D204: =IF(OR('Tabel 1 H'!C202<5,'Tabel 2 H'!D204<0.5),"-",IFERROR('Tabel 2 H'!D204/'Tabel 1 H'!C202*100,"-")) -> 4.443612826 | F204: =IF(OR('Tabel 1 H'!E202<5,'Tabel 2 H'!F204<0.5),"-",IFERROR('Tabel 2 H'!F204/'Tabel 1 H'!E202*100,"-")) -> 5.263157895 | G204: =IF(OR('Tabel 1 H'!E202<5,'Tabel 2 H'!G204<0.5),"-",IFERROR('Tabel 2 H'!G204/'Tabel 1 H'!E202*100,"-")) -> 5.201443076 | I204: =IF(OR('Tabel 1 H'!G202<5,'Tabel 2 H'!I204<0.5),"-",IFERROR('Tabel 2 H'!I204/'Tabel 1 H'!G202*100,"-")) -> 4.819277108 | J204: =IF(OR('Tabel 1 H'!G202<5,'Tabel 2 H'!J204<0.5),"-",IFERROR('Tabel 2 H'!J204/'Tabel 1 H'!G202*100,"-")) -> 4.790571254
A206: Total | C206: =IF(OR('Tabel 1 H'!C204<5,'Tabel 2 H'!C206<0.5),"-",IFERROR('Tabel 2 H'!C206/'Tabel 1 H'!C204*100,"-")) -> 3.785488959 | D206: =IF(OR('Tabel 1 H'!C204<5,'Tabel 2 H'!D206<0.5),"-",IFERROR('Tabel 2 H'!D206/'Tabel 1 H'!C204*100,"-")) -> 3.212420125 | F206: =IF(OR('Tabel 1 H'!E204<5,'Tabel 2 H'!F206<0.5),"-",IFERROR('Tabel 2 H'!F206/'Tabel 1 H'!E204*100,"-")) -> 3.886190146 | G206: =IF(OR('Tabel 1 H'!E204<5,'Tabel 2 H'!G206<0.5),"-",IFERROR('Tabel 2 H'!G206/'Tabel 1 H'!E204*100,"-")) -> 3.307802917 | I206: =IF(OR('Tabel 1 H'!G204<5,'Tabel 2 H'!I206<0.5),"-",IFERROR('Tabel 2 H'!I206/'Tabel 1 H'!G204*100,"-")) -> 3.83344349 | J206: =IF(OR('Tabel 1 H'!G204<5,'Tabel 2 H'!J206<0.5),"-",IFERROR('Tabel 2 H'!J206/'Tabel 1 H'!G204*100,"-")) -> 3.257842003
A208: Ingeniører i alt | C208: =IF(OR('Tabel 1 H'!C206<5,'Tabel 2 H'!C208<0.5),"-",IFERROR('Tabel 2 H'!C208/'Tabel 1 H'!C206*100,"-")) -> 2.849389417 | D208: =IF(OR('Tabel 1 H'!C206<5,'Tabel 2 H'!D208<0.5),"-",IFERROR('Tabel 2 H'!D208/'Tabel 1 H'!C206*100,"-")) -> 2.273550287 | F208: =IF(OR('Tabel 1 H'!E206<5,'Tabel 2 H'!F208<0.5),"-",IFERROR('Tabel 2 H'!F208/'Tabel 1 H'!E206*100,"-")) -> 0.78125 | G208: =IF(OR('Tabel 1 H'!E206<5,'Tabel 2 H'!G208<0.5),"-",IFERROR('Tabel 2 H'!G208/'Tabel 1 H'!E206*100,"-")) -> 0.7811038171 | I208: =IF(OR('Tabel 1 H'!G206<5,'Tabel 2 H'!I208<0.5),"-",IFERROR('Tabel 2 H'!I208/'Tabel 1 H'!G206*100,"-")) -> 2.316213494 | J208: =IF(OR('Tabel 1 H'!G206<5,'Tabel 2 H'!J208<0.5),"-",IFERROR('Tabel 2 H'!J208/'Tabel 1 H'!G206*100,"-")) -> 1.888790673
A209: Magistre i alt | C209: =IF(OR('Tabel 1 H'!C207<5,'Tabel 2 H'!C209<0.5),"-",IFERROR('Tabel 2 H'!C209/'Tabel 1 H'!C207*100,"-")) -> 2.247191011 | D209: =IF(OR('Tabel 1 H'!C207<5,'Tabel 2 H'!D209<0.5),"-",IFERROR('Tabel 2 H'!D209/'Tabel 1 H'!C207*100,"-")) -> 2.139547857 | F209: =IF(OR('Tabel 1 H'!E207<5,'Tabel 2 H'!F209<0.5),"-",IFERROR('Tabel 2 H'!F209/'Tabel 1 H'!E207*100,"-")) -> 4.905660377 | G209: =IF(OR('Tabel 1 H'!E207<5,'Tabel 2 H'!G209<0.5),"-",IFERROR('Tabel 2 H'!G209/'Tabel 1 H'!E207*100,"-")) -> 4.264553415 | I209: =IF(OR('Tabel 1 H'!G207<5,'Tabel 2 H'!I209<0.5),"-",IFERROR('Tabel 2 H'!I209/'Tabel 1 H'!G207*100,"-")) -> 3.837471783 | J209: =IF(OR('Tabel 1 H'!G207<5,'Tabel 2 H'!J209<0.5),"-",IFERROR('Tabel 2 H'!J209/'Tabel 1 H'!G207*100,"-")) -> 3.41071371
A210: DJØF'ere i alt | C210: =IF(OR('Tabel 1 H'!C208<5,'Tabel 2 H'!C210<0.5),"-",IFERROR('Tabel 2 H'!C210/'Tabel 1 H'!C208*100,"-")) -> 4.761904762 | D210: =IF(OR('Tabel 1 H'!C208<5,'Tabel 2 H'!D210<0.5),"-",IFERROR('Tabel 2 H'!D210/'Tabel 1 H'!C208*100,"-")) -> 3.842627302 | F210: =IF(OR('Tabel 1 H'!E208<5,'Tabel 2 H'!F210<0.5),"-",IFERROR('Tabel 2 H'!F210/'Tabel 1 H'!E208*100,"-")) -> 4.069767442 | G210: =IF(OR('Tabel 1 H'!E208<5,'Tabel 2 H'!G210<0.5),"-",IFERROR('Tabel 2 H'!G210/'Tabel 1 H'!E208*100,"-")) -> 2.896641955 | I210: =IF(OR('Tabel 1 H'!G208<5,'Tabel 2 H'!I210<0.5),"-",IFERROR('Tabel 2 H'!I210/'Tabel 1 H'!G208*100,"-")) -> 4.388714734 | J210: =IF(OR('Tabel 1 H'!G208<5,'Tabel 2 H'!J210<0.5),"-",IFERROR('Tabel 2 H'!J210/'Tabel 1 H'!G208*100,"-")) -> 3.332566237
A215: Brøndby
C217: Mænd | F217: Kvinder | I217: I alt
C218: Ledigheds- berørte | D218: Gns. brutto- ledighed | F218: Ledigheds- berørte | G218: Gns. brutto- ledighed | I218: Ledigheds- berørte | J218: Gns. brutto- ledighed
A221: Civ. ing. | C221: =IF(OR('Tabel 1 H'!C219<5,'Tabel 2 H'!C221<0.5),"-",IFERROR('Tabel 2 H'!C221/'Tabel 1 H'!C219*100,"-")) -> 5.555555556 | D221: =IF(OR('Tabel 1 H'!C219<5,'Tabel 2 H'!D221<0.5),"-",IFERROR('Tabel 2 H'!D221/'Tabel 1 H'!C219*100,"-")) -> 4.567662529 | F221: =IF(OR('Tabel 1 H'!E219<5,'Tabel 2 H'!F221<0.5),"-",IFERROR('Tabel 2 H'!F221/'Tabel 1 H'!E219*100,"-")) -> 3.225806452 | G221: =IF(OR('Tabel 1 H'!E219<5,'Tabel 2 H'!G221<0.5),"-",IFERROR('Tabel 2 H'!G221/'Tabel 1 H'!E219*100,"-")) -> 2.018015263 | I221: =IF(OR('Tabel 1 H'!G219<5,'Tabel 2 H'!I221<0.5),"-",IFERROR('Tabel 2 H'!I221/'Tabel 1 H'!G219*100,"-")) -> 4.958677686 | J221: =IF(OR('Tabel 1 H'!G219<5,'Tabel 2 H'!J221<0.5),"-",IFERROR('Tabel 2 H'!J221/'Tabel 1 H'!G219*100,"-")) -> 3.914447114
A222: Diplom ing. | C222: =IF(OR('Tabel 1 H'!C220<5,'Tabel 2 H'!C222<0.5),"-",IFERROR('Tabel 2 H'!C222/'Tabel 1 H'!C220*100,"-")) -> 2.189781022 | D222: =IF(OR('Tabel 1 H'!C220<5,'Tabel 2 H'!D222<0.5),"-",IFERROR('Tabel 2 H'!D222/'Tabel 1 H'!C220*100,"-")) -> 2.189371283 | F222: =IF(OR('Tabel 1 H'!E220<5,'Tabel 2 H'!F222<0.5),"-",IFERROR('Tabel 2 H'!F222/'Tabel 1 H'!E220*100,"-")) -> - | G222: =IF(OR('Tabel 1 H'!E220<5,'Tabel 2 H'!G222<0.5),"-",IFERROR('Tabel 2 H'!G222/'Tabel 1 H'!E220*100,"-")) -> - | I222: =IF(OR('Tabel 1 H'!G220<5,'Tabel 2 H'!I222<0.5),"-",IFERROR('Tabel 2 H'!I222/'Tabel 1 H'!G220*100,"-")) -> 1.851851852 | J222: =IF(OR('Tabel 1 H'!G220<5,'Tabel 2 H'!J222<0.5),"-",IFERROR('Tabel 2 H'!J222/'Tabel 1 H'!G220*100,"-")) -> 1.851505344
A223: Cand. Scient. Tek. | C223: =IF(OR('Tabel 1 H'!C221<5,'Tabel 2 H'!C223<0.5),"-",IFERROR('Tabel 2 H'!C223/'Tabel 1 H'!C221*100,"-")) -> 20.58823529 | D223: =IF(OR('Tabel 1 H'!C221<5,'Tabel 2 H'!D223<0.5),"-",IFERROR('Tabel 2 H'!D223/'Tabel 1 H'!C221*100,"-")) -> 17.8950767 | F223: =IF(OR('Tabel 1 H'!E221<5,'Tabel 2 H'!F223<0.5),"-",IFERROR('Tabel 2 H'!F223/'Tabel 1 H'!E221*100,"-")) -> 23.80952381 | G223: =IF(OR('Tabel 1 H'!E221<5,'Tabel 2 H'!G223<0.5),"-",IFERROR('Tabel 2 H'!G223/'Tabel 1 H'!E221*100,"-")) -> 23.36549913 | I223: =IF(OR('Tabel 1 H'!G221<5,'Tabel 2 H'!I223<0.5),"-",IFERROR('Tabel 2 H'!I223/'Tabel 1 H'!G221*100,"-")) -> 21.81818182 | J223: =IF(OR('Tabel 1 H'!G221<5,'Tabel 2 H'!J223<0.5),"-",IFERROR('Tabel 2 H'!J223/'Tabel 1 H'!G221*100,"-")) -> 19.98378345
A224: MA. Hum. | C224: =IF(OR('Tabel 1 H'!C222<5,'Tabel 2 H'!C224<0.5),"-",IFERROR('Tabel 2 H'!C224/'Tabel 1 H'!C222*100,"-")) -> 11.11111111 | D224: =IF(OR('Tabel 1 H'!C222<5,'Tabel 2 H'!D224<0.5),"-",IFERROR('Tabel 2 H'!D224/'Tabel 1 H'!C222*100,"-")) -> 7.962743508 | F224: =IF(OR('Tabel 1 H'!E222<5,'Tabel 2 H'!F224<0.5),"-",IFERROR('Tabel 2 H'!F224/'Tabel 1 H'!E222*100,"-")) -> 14.28571429 | G224: =IF(OR('Tabel 1 H'!E222<5,'Tabel 2 H'!G224<0.5),"-",IFERROR('Tabel 2 H'!G224/'Tabel 1 H'!E222*100,"-")) -> 12.90418868 | I224: =IF(OR('Tabel 1 H'!G222<5,'Tabel 2 H'!I224<0.5),"-",IFERROR('Tabel 2 H'!I224/'Tabel 1 H'!G222*100,"-")) -> 13.51351351 | J224: =IF(OR('Tabel 1 H'!G222<5,'Tabel 2 H'!J224<0.5),"-",IFERROR('Tabel 2 H'!J224/'Tabel 1 H'!G222*100,"-")) -> 11.70221553
A225: MA. Nat. | C225: =IF(OR('Tabel 1 H'!C223<5,'Tabel 2 H'!C225<0.5),"-",IFERROR('Tabel 2 H'!C225/'Tabel 1 H'!C223*100,"-")) -> 3.125 | D225: =IF(OR('Tabel 1 H'!C223<5,'Tabel 2 H'!D225<0.5),"-",IFERROR('Tabel 2 H'!D225/'Tabel 1 H'!C223*100,"-")) -> 3.124415269 | F225: =IF(OR('Tabel 1 H'!E223<5,'Tabel 2 H'!F225<0.5),"-",IFERROR('Tabel 2 H'!F225/'Tabel 1 H'!E223*100,"-")) -> 10.71428571 | G225: =IF(OR('Tabel 1 H'!E223<5,'Tabel 2 H'!G225<0.5),"-",IFERROR('Tabel 2 H'!G225/'Tabel 1 H'!E223*100,"-")) -> 8.734217819 | I225: =IF(OR('Tabel 1 H'!G223<5,'Tabel 2 H'!I225<0.5),"-",IFERROR('Tabel 2 H'!I225/'Tabel 1 H'!G223*100,"-")) -> 6.666666667 | J225: =IF(OR('Tabel 1 H'!G223<5,'Tabel 2 H'!J225<0.5),"-",IFERROR('Tabel 2 H'!J225/'Tabel 1 H'!G223*100,"-")) -> 5.742323125
A226: MA. Ph.d. | C226: =IF(OR('Tabel 1 H'!C224<5,'Tabel 2 H'!C226<0.5),"-",IFERROR('Tabel 2 H'!C226/'Tabel 1 H'!C224*100,"-")) -> - | D226: =IF(OR('Tabel 1 H'!C224<5,'Tabel 2 H'!D226<0.5),"-",IFERROR('Tabel 2 H'!D226/'Tabel 1 H'!C224*100,"-")) -> - | F226: =IF(OR('Tabel 1 H'!E224<5,'Tabel 2 H'!F226<0.5),"-",IFERROR('Tabel 2 H'!F226/'Tabel 1 H'!E224*100,"-")) -> - | G226: =IF(OR('Tabel 1 H'!E224<5,'Tabel 2 H'!G226<0.5),"-",IFERROR('Tabel 2 H'!G226/'Tabel 1 H'!E224*100,"-")) -> - | I226: =IF(OR('Tabel 1 H'!G224<5,'Tabel 2 H'!I226<0.5),"-",IFERROR('Tabel 2 H'!I226/'Tabel 1 H'!G224*100,"-")) -> 14.28571429 | J226: =IF(OR('Tabel 1 H'!G224<5,'Tabel 2 H'!J226<0.5),"-",IFERROR('Tabel 2 H'!J226/'Tabel 1 H'!G224*100,"-")) -> 12.30497813
A227: MA. Samf. | C227: =IF(OR('Tabel 1 H'!C225<5,'Tabel 2 H'!C227<0.5),"-",IFERROR('Tabel 2 H'!C227/'Tabel 1 H'!C225*100,"-")) -> 25 | D227: =IF(OR('Tabel 1 H'!C225<5,'Tabel 2 H'!D227<0.5),"-",IFERROR('Tabel 2 H'!D227/'Tabel 1 H'!C225*100,"-")) -> 22.11064679 | F227: =IF(OR('Tabel 1 H'!E225<5,'Tabel 2 H'!F227<0.5),"-",IFERROR('Tabel 2 H'!F227/'Tabel 1 H'!E225*100,"-")) -> 12.5 | G227: =IF(OR('Tabel 1 H'!E225<5,'Tabel 2 H'!G227<0.5),"-",IFERROR('Tabel 2 H'!G227/'Tabel 1 H'!E225*100,"-")) -> - | I227: =IF(OR('Tabel 1 H'!G225<5,'Tabel 2 H'!I227<0.5),"-",IFERROR('Tabel 2 H'!I227/'Tabel 1 H'!G225*100,"-")) -> 18.75 | J227: =IF(OR('Tabel 1 H'!G225<5,'Tabel 2 H'!J227<0.5),"-",IFERROR('Tabel 2 H'!J227/'Tabel 1 H'!G225*100,"-")) -> 12.9771409
A228: Øvrige Mag. | C228: =IF(OR('Tabel 1 H'!C226<5,'Tabel 2 H'!C228<0.5),"-",IFERROR('Tabel 2 H'!C228/'Tabel 1 H'!C226*100,"-")) -> 33.33333333 | D228: =IF(OR('Tabel 1 H'!C226<5,'Tabel 2 H'!D228<0.5),"-",IFERROR('Tabel 2 H'!D228/'Tabel 1 H'!C226*100,"-")) -> 33.3270962 | F228: =IF(OR('Tabel 1 H'!E226<5,'Tabel 2 H'!F228<0.5),"-",IFERROR('Tabel 2 H'!F228/'Tabel 1 H'!E226*100,"-")) -> 14.28571429 | G228: =IF(OR('Tabel 1 H'!E226<5,'Tabel 2 H'!G228<0.5),"-",IFERROR('Tabel 2 H'!G228/'Tabel 1 H'!E226*100,"-")) -> 14.28304123 | I228: =IF(OR('Tabel 1 H'!G226<5,'Tabel 2 H'!I228<0.5),"-",IFERROR('Tabel 2 H'!I228/'Tabel 1 H'!G226*100,"-")) -> 23.07692308 | J228: =IF(OR('Tabel 1 H'!G226<5,'Tabel 2 H'!J228<0.5),"-",IFERROR('Tabel 2 H'!J228/'Tabel 1 H'!G226*100,"-")) -> 23.07260506
A229: Agronom | C229: =IF(OR('Tabel 1 H'!C227<5,'Tabel 2 H'!C229<0.5),"-",IFERROR('Tabel 2 H'!C229/'Tabel 1 H'!C227*100,"-")) -> - | D229: =IF(OR('Tabel 1 H'!C227<5,'Tabel 2 H'!D229<0.5),"-",IFERROR('Tabel 2 H'!D229/'Tabel 1 H'!C227*100,"-")) -> - | F229: =IF(OR('Tabel 1 H'!E227<5,'Tabel 2 H'!F229<0.5),"-",IFERROR('Tabel 2 H'!F229/'Tabel 1 H'!E227*100,"-")) -> - | G229: =IF(OR('Tabel 1 H'!E227<5,'Tabel 2 H'!G229<0.5),"-",IFERROR('Tabel 2 H'!G229/'Tabel 1 H'!E227*100,"-")) -> - | I229: =IF(OR('Tabel 1 H'!G227<5,'Tabel 2 H'!I229<0.5),"-",IFERROR('Tabel 2 H'!I229/'Tabel 1 H'!G227*100,"-")) -> - | J229: =IF(OR('Tabel 1 H'!G227<5,'Tabel 2 H'!J229<0.5),"-",IFERROR('Tabel 2 H'!J229/'Tabel 1 H'!G227*100,"-")) -> -
A230: Landsk. Arkt. | C230: =IF(OR('Tabel 1 H'!C228<5,'Tabel 2 H'!C230<0.5),"-",IFERROR('Tabel 2 H'!C230/'Tabel 1 H'!C228*100,"-")) -> - | D230: =IF(OR('Tabel 1 H'!C228<5,'Tabel 2 H'!D230<0.5),"-",IFERROR('Tabel 2 H'!D230/'Tabel 1 H'!C228*100,"-")) -> - | F230: =IF(OR('Tabel 1 H'!E228<5,'Tabel 2 H'!F230<0.5),"-",IFERROR('Tabel 2 H'!F230/'Tabel 1 H'!E228*100,"-")) -> - | G230: =IF(OR('Tabel 1 H'!E228<5,'Tabel 2 H'!G230<0.5),"-",IFERROR('Tabel 2 H'!G230/'Tabel 1 H'!E228*100,"-")) -> - | I230: =IF(OR('Tabel 1 H'!G228<5,'Tabel 2 H'!I230<0.5),"-",IFERROR('Tabel 2 H'!I230/'Tabel 1 H'!G228*100,"-")) -> - | J230: =IF(OR('Tabel 1 H'!G228<5,'Tabel 2 H'!J230<0.5),"-",IFERROR('Tabel 2 H'!J230/'Tabel 1 H'!G228*100,"-")) -> -
A231: Hortonom | C231: =IF(OR('Tabel 1 H'!C229<5,'Tabel 2 H'!C231<0.5),"-",IFERROR('Tabel 2 H'!C231/'Tabel 1 H'!C229*100,"-")) -> - | D231: =IF(OR('Tabel 1 H'!C229<5,'Tabel 2 H'!D231<0.5),"-",IFERROR('Tabel 2 H'!D231/'Tabel 1 H'!C229*100,"-")) -> - | F231: =IF(OR('Tabel 1 H'!E229<5,'Tabel 2 H'!F231<0.5),"-",IFERROR('Tabel 2 H'!F231/'Tabel 1 H'!E229*100,"-")) -> - | G231: =IF(OR('Tabel 1 H'!E229<5,'Tabel 2 H'!G231<0.5),"-",IFERROR('Tabel 2 H'!G231/'Tabel 1 H'!E229*100,"-")) -> - | I231: =IF(OR('Tabel 1 H'!G229<5,'Tabel 2 H'!I231<0.5),"-",IFERROR('Tabel 2 H'!I231/'Tabel 1 H'!G229*100,"-")) -> - | J231: =IF(OR('Tabel 1 H'!G229<5,'Tabel 2 H'!J231<0.5),"-",IFERROR('Tabel 2 H'!J231/'Tabel 1 H'!G229*100,"-")) -> -
A232: Forstkand. | C232: =IF(OR('Tabel 1 H'!C230<5,'Tabel 2 H'!C232<0.5),"-",IFERROR('Tabel 2 H'!C232/'Tabel 1 H'!C230*100,"-")) -> - | D232: =IF(OR('Tabel 1 H'!C230<5,'Tabel 2 H'!D232<0.5),"-",IFERROR('Tabel 2 H'!D232/'Tabel 1 H'!C230*100,"-")) -> - | F232: =IF(OR('Tabel 1 H'!E230<5,'Tabel 2 H'!F232<0.5),"-",IFERROR('Tabel 2 H'!F232/'Tabel 1 H'!E230*100,"-")) -> - | G232: =IF(OR('Tabel 1 H'!E230<5,'Tabel 2 H'!G232<0.5),"-",IFERROR('Tabel 2 H'!G232/'Tabel 1 H'!E230*100,"-")) -> - | I232: =IF(OR('Tabel 1 H'!G230<5,'Tabel 2 H'!I232<0.5),"-",IFERROR('Tabel 2 H'!I232/'Tabel 1 H'!G230*100,"-")) -> - | J232: =IF(OR('Tabel 1 H'!G230<5,'Tabel 2 H'!J232<0.5),"-",IFERROR('Tabel 2 H'!J232/'Tabel 1 H'!G230*100,"-")) -> -
A233: Jordbrugsakad. | C233: =IF(OR('Tabel 1 H'!C231<5,'Tabel 2 H'!C233<0.5),"-",IFERROR('Tabel 2 H'!C233/'Tabel 1 H'!C231*100,"-")) -> - | D233: =IF(OR('Tabel 1 H'!C231<5,'Tabel 2 H'!D233<0.5),"-",IFERROR('Tabel 2 H'!D233/'Tabel 1 H'!C231*100,"-")) -> - | F233: =IF(OR('Tabel 1 H'!E231<5,'Tabel 2 H'!F233<0.5),"-",IFERROR('Tabel 2 H'!F233/'Tabel 1 H'!E231*100,"-")) -> - | G233: =IF(OR('Tabel 1 H'!E231<5,'Tabel 2 H'!G233<0.5),"-",IFERROR('Tabel 2 H'!G233/'Tabel 1 H'!E231*100,"-")) -> - | I233: =IF(OR('Tabel 1 H'!G231<5,'Tabel 2 H'!I233<0.5),"-",IFERROR('Tabel 2 H'!I233/'Tabel 1 H'!G231*100,"-")) -> - | J233: =IF(OR('Tabel 1 H'!G231<5,'Tabel 2 H'!J233<0.5),"-",IFERROR('Tabel 2 H'!J233/'Tabel 1 H'!G231*100,"-")) -> -
A234: Mejeriing. | C234: =IF(OR('Tabel 1 H'!C232<5,'Tabel 2 H'!C234<0.5),"-",IFERROR('Tabel 2 H'!C234/'Tabel 1 H'!C232*100,"-")) -> - | D234: =IF(OR('Tabel 1 H'!C232<5,'Tabel 2 H'!D234<0.5),"-",IFERROR('Tabel 2 H'!D234/'Tabel 1 H'!C232*100,"-")) -> - | F234: =IF(OR('Tabel 1 H'!E232<5,'Tabel 2 H'!F234<0.5),"-",IFERROR('Tabel 2 H'!F234/'Tabel 1 H'!E232*100,"-")) -> - | G234: =IF(OR('Tabel 1 H'!E232<5,'Tabel 2 H'!G234<0.5),"-",IFERROR('Tabel 2 H'!G234/'Tabel 1 H'!E232*100,"-")) -> - | I234: =IF(OR('Tabel 1 H'!G232<5,'Tabel 2 H'!I234<0.5),"-",IFERROR('Tabel 2 H'!I234/'Tabel 1 H'!G232*100,"-")) -> - | J234: =IF(OR('Tabel 1 H'!G232<5,'Tabel 2 H'!J234<0.5),"-",IFERROR('Tabel 2 H'!J234/'Tabel 1 H'!G232*100,"-")) -> -
A235: Levn.m.kand. | C235: =IF(OR('Tabel 1 H'!C233<5,'Tabel 2 H'!C235<0.5),"-",IFERROR('Tabel 2 H'!C235/'Tabel 1 H'!C233*100,"-")) -> - | D235: =IF(OR('Tabel 1 H'!C233<5,'Tabel 2 H'!D235<0.5),"-",IFERROR('Tabel 2 H'!D235/'Tabel 1 H'!C233*100,"-")) -> - | F235: =IF(OR('Tabel 1 H'!E233<5,'Tabel 2 H'!F235<0.5),"-",IFERROR('Tabel 2 H'!F235/'Tabel 1 H'!E233*100,"-")) -> - | G235: =IF(OR('Tabel 1 H'!E233<5,'Tabel 2 H'!G235<0.5),"-",IFERROR('Tabel 2 H'!G235/'Tabel 1 H'!E233*100,"-")) -> - | I235: =IF(OR('Tabel 1 H'!G233<5,'Tabel 2 H'!I235<0.5),"-",IFERROR('Tabel 2 H'!I235/'Tabel 1 H'!G233*100,"-")) -> - | J235: =IF(OR('Tabel 1 H'!G233<5,'Tabel 2 H'!J235<0.5),"-",IFERROR('Tabel 2 H'!J235/'Tabel 1 H'!G233*100,"-")) -> -
A236: Dyrlæge | C236: =IF(OR('Tabel 1 H'!C234<5,'Tabel 2 H'!C236<0.5),"-",IFERROR('Tabel 2 H'!C236/'Tabel 1 H'!C234*100,"-")) -> - | D236: =IF(OR('Tabel 1 H'!C234<5,'Tabel 2 H'!D236<0.5),"-",IFERROR('Tabel 2 H'!D236/'Tabel 1 H'!C234*100,"-")) -> - | F236: =IF(OR('Tabel 1 H'!E234<5,'Tabel 2 H'!F236<0.5),"-",IFERROR('Tabel 2 H'!F236/'Tabel 1 H'!E234*100,"-")) -> 20 | G236: =IF(OR('Tabel 1 H'!E234<5,'Tabel 2 H'!G236<0.5),"-",IFERROR('Tabel 2 H'!G236/'Tabel 1 H'!E234*100,"-")) -> 17.68851743 | I236: =IF(OR('Tabel 1 H'!G234<5,'Tabel 2 H'!I236<0.5),"-",IFERROR('Tabel 2 H'!I236/'Tabel 1 H'!G234*100,"-")) -> 14.28571429 | J236: =IF(OR('Tabel 1 H'!G234<5,'Tabel 2 H'!J236<0.5),"-",IFERROR('Tabel 2 H'!J236/'Tabel 1 H'!G234*100,"-")) -> 12.63465531
A237: Farmaceut | C237: =IF(OR('Tabel 1 H'!C235<5,'Tabel 2 H'!C237<0.5),"-",IFERROR('Tabel 2 H'!C237/'Tabel 1 H'!C235*100,"-")) -> - | D237: =IF(OR('Tabel 1 H'!C235<5,'Tabel 2 H'!D237<0.5),"-",IFERROR('Tabel 2 H'!D237/'Tabel 1 H'!C235*100,"-")) -> - | F237: =IF(OR('Tabel 1 H'!E235<5,'Tabel 2 H'!F237<0.5),"-",IFERROR('Tabel 2 H'!F237/'Tabel 1 H'!E235*100,"-")) -> 4.761904762 | G237: =IF(OR('Tabel 1 H'!E235<5,'Tabel 2 H'!G237<0.5),"-",IFERROR('Tabel 2 H'!G237/'Tabel 1 H'!E235*100,"-")) -> 4.101659375 | I237: =IF(OR('Tabel 1 H'!G235<5,'Tabel 2 H'!I237<0.5),"-",IFERROR('Tabel 2 H'!I237/'Tabel 1 H'!G235*100,"-")) -> 3.125 | J237: =IF(OR('Tabel 1 H'!G235<5,'Tabel 2 H'!J237<0.5),"-",IFERROR('Tabel 2 H'!J237/'Tabel 1 H'!G235*100,"-")) -> 2.691713965
A238: Læge | C238: =IF(OR('Tabel 1 H'!C236<5,'Tabel 2 H'!C238<0.5),"-",IFERROR('Tabel 2 H'!C238/'Tabel 1 H'!C236*100,"-")) -> - | D238: =IF(OR('Tabel 1 H'!C236<5,'Tabel 2 H'!D238<0.5),"-",IFERROR('Tabel 2 H'!D238/'Tabel 1 H'!C236*100,"-")) -> - | F238: =IF(OR('Tabel 1 H'!E236<5,'Tabel 2 H'!F238<0.5),"-",IFERROR('Tabel 2 H'!F238/'Tabel 1 H'!E236*100,"-")) -> - | G238: =IF(OR('Tabel 1 H'!E236<5,'Tabel 2 H'!G238<0.5),"-",IFERROR('Tabel 2 H'!G238/'Tabel 1 H'!E236*100,"-")) -> - | I238: =IF(OR('Tabel 1 H'!G236<5,'Tabel 2 H'!I238<0.5),"-",IFERROR('Tabel 2 H'!I238/'Tabel 1 H'!G236*100,"-")) -> - | J238: =IF(OR('Tabel 1 H'!G236<5,'Tabel 2 H'!J238<0.5),"-",IFERROR('Tabel 2 H'!J238/'Tabel 1 H'!G236*100,"-")) -> -
A239: Tandlæge | C239: =IF(OR('Tabel 1 H'!C237<5,'Tabel 2 H'!C239<0.5),"-",IFERROR('Tabel 2 H'!C239/'Tabel 1 H'!C237*100,"-")) -> - | D239: =IF(OR('Tabel 1 H'!C237<5,'Tabel 2 H'!D239<0.5),"-",IFERROR('Tabel 2 H'!D239/'Tabel 1 H'!C237*100,"-")) -> - | F239: =IF(OR('Tabel 1 H'!E237<5,'Tabel 2 H'!F239<0.5),"-",IFERROR('Tabel 2 H'!F239/'Tabel 1 H'!E237*100,"-")) -> 9.090909091 | G239: =IF(OR('Tabel 1 H'!E237<5,'Tabel 2 H'!G239<0.5),"-",IFERROR('Tabel 2 H'!G239/'Tabel 1 H'!E237*100,"-")) -> 8.250029768 | I239: =IF(OR('Tabel 1 H'!G237<5,'Tabel 2 H'!I239<0.5),"-",IFERROR('Tabel 2 H'!I239/'Tabel 1 H'!G237*100,"-")) -> 7.142857143 | J239: =IF(OR('Tabel 1 H'!G237<5,'Tabel 2 H'!J239<0.5),"-",IFERROR('Tabel 2 H'!J239/'Tabel 1 H'!G237*100,"-")) -> 6.482166246
A240: Arkitekt | C240: =IF(OR('Tabel 1 H'!C238<5,'Tabel 2 H'!C240<0.5),"-",IFERROR('Tabel 2 H'!C240/'Tabel 1 H'!C238*100,"-")) -> - | D240: =IF(OR('Tabel 1 H'!C238<5,'Tabel 2 H'!D240<0.5),"-",IFERROR('Tabel 2 H'!D240/'Tabel 1 H'!C238*100,"-")) -> - | F240: =IF(OR('Tabel 1 H'!E238<5,'Tabel 2 H'!F240<0.5),"-",IFERROR('Tabel 2 H'!F240/'Tabel 1 H'!E238*100,"-")) -> - | G240: =IF(OR('Tabel 1 H'!E238<5,'Tabel 2 H'!G240<0.5),"-",IFERROR('Tabel 2 H'!G240/'Tabel 1 H'!E238*100,"-")) -> - | I240: =IF(OR('Tabel 1 H'!G238<5,'Tabel 2 H'!I240<0.5),"-",IFERROR('Tabel 2 H'!I240/'Tabel 1 H'!G238*100,"-")) -> - | J240: =IF(OR('Tabel 1 H'!G238<5,'Tabel 2 H'!J240<0.5),"-",IFERROR('Tabel 2 H'!J240/'Tabel 1 H'!G238*100,"-")) -> -
... 1077 more rows

Sheet Tabel 4F H
A1: Tabel 4. Antal forsikrede - aldersfordelt
A3: Hovedstaden
C5: Under 30 år | D5: 30 - 39 år | E5: 40 - 49 år | F5: 50 - 59 år | G5: Over 60 år | I5: I alt
A7: Civ. ing. | C7: 2560 | D7: 5682 | E7: 4050 | F7: 3638 | G7: 1103 | I7: 17033
A8: Diplom ing. | C8: 1068 | D8: 2183 | E8: 3294 | F8: 4527 | G8: 1335 | I8: 12407
A9: Cand. Scient. Tek. | C9: 3037 | D9: 4520 | E9: 1428 | F9: 515 | G9: 101 | I9: 9601
A10: MA. Hum. | C10: 2643 | D10: 7125 | E10: 6372 | F10: 2527 | G10: 945 | I10: 19612
A11: MA. Nat. | C11: 509 | D11: 1651 | E11: 2632 | F11: 1767 | G11: 679 | I11: 7238
A12: MA. Ph.d. | C12: 21 | D12: 357 | E12: 445 | F12: 333 | G12: 79 | I12: 1235
A13: MA. Samf. | C13: 867 | D13: 1405 | E13: 564 | F13: 218 | G13: 45 | I13: 3099
A14: Øvrige Mag. | C14: 172 | D14: 356 | E14: 533 | F14: 386 | G14: 112 | I14: 1559
A15: Agronom | C15: 87 | D15: 152 | E15: 233 | F15: 252 | G15: 88 | I15: 812
A16: Landsk. Arkt. | C16: 66 | D16: 168 | E16: 140 | F16: 74 | G16: 19 | I16: 467
A17: Hortonom | C17: 1 | D17: 17 | E17: 49 | F17: 74 | G17: 20 | I17: 161
A18: Forstkand. | C18: 21 | D18: 39 | E18: 103 | F18: 71 | G18: 27 | I18: 261
A19: Jordbrugsakad. | C19: 175 | D19: 376 | E19: 525 | F19: 471 | G19: 154 | I19: 1701
A20: Mejeriing. | C20: 26 | D20: 34 | E20: 25 | F20: 33 | G20: 14 | I20: 132
A21: Levn.m.kand. | C21: 88 | D21: 137 | E21: 68 | F21: 6 | G21: 3 | I21: 302
A22: Dyrlæge | C22: 144 | D22: 339 | E22: 221 | F22: 162 | G22: 52 | I22: 918
A23: Farmaceut | C23: 628 | D23: 1272 | E23: 984 | F23: 640 | G23: 188 | I23: 3712
A24: Læge | C24: 725 | D24: 2095 | E24: 1102 | F24: 758 | G24: 424 | I24: 5104
A25: Tandlæge | C25: 143 | D25: 300 | E25: 178 | F25: 150 | G25: 74 | I25: 845
A26: Arkitekt | C26: 277 | D26: 1156 | E26: 1121 | F26: 749 | G26: 329 | I26: 3632
A27: Landinspek. | C27: 18 | D27: 59 | E27: 52 | F27: 47 | G27: 22 | I27: 198
A28: Bibliotekar | C28: 54 | D28: 401 | E28: 577 | F28: 429 | G28: 281 | I28: 1742
A29: Musikudd. | C29: 7 | D29: 44 | E29: 68 | F29: 129 | G29: 83 | I29: 331
A30: Teolog | C30: 18 | D30: 99 | E30: 203 | F30: 168 | G30: 63 | I30: 551
A31: Psykolog | C31: 594 | D31: 1285 | E31: 916 | F31: 496 | G31: 246 | I31: 3537
A32: Jurist | C32: 1639 | D32: 2922 | E32: 2643 | F32: 1797 | G32: 498 | I32: 9499
A33: Økonom | C33: 913 | D33: 1588 | E33: 1483 | F33: 1191 | G33: 281 | I33: 5456
A34: Samf. Adm. | C34: 2550 | D34: 7092 | E34: 4534 | F34: 2022 | G34: 432 | I34: 16630
A35: Cand. Merc. | C35: 4667 | D35: 7721 | E35: 4399 | F35: 2603 | G35: 320 | I35: 19710
A36: HA | C36: 523 | D36: 490 | E36: 511 | F36: 665 | G36: 169 | I36: 2358
A37: HD | C37: 627 | D37: 492 | E37: 357 | F37: 786 | G37: 278 | I37: 2540
A38: Komm. og Sprog | C38: 642 | D38: 1116 | E38: 1078 | F38: 851 | G38: 269 | I38: 3956
A39: Cand. IT. | C39: 580 | D39: 1172 | E39: 624 | F39: 62 | G39: 7 | I39: 2445
A40: Bac. Samf. | C40: 118 | D40: 216 | E40: 215 | F40: 137 | G40: 15 | I40: 701
A41: Bac. Hum. | C41: 519 | D41: 364 | E41: 419 | F41: 335 | G41: 86 | I41: 1723
A42: Bac. Nat. | C42: 433 | D42: 469 | E42: 177 | F42: 90 | G42: 14 | I42: 1183
A43: Andre | C43: 1466 | D43: 4864 | E43: 3399 | F43: 2041 | G43: 792 | I43: 12562
A45: Total | C45: 28451 | D45: 59382 | E45: 45197 | F45: 30729 | G45: 9493 | I45: 173252
A47: Ingeniører i alt | C47: 3628 | D47: 7865 | E47: 7344 | F47: 8165 | G47: 2438 | I47: 29440
A48: Magistre i alt | C48: 4212 | D48: 10894 | E48: 10546 | F48: 5231 | G48: 1860 | I48: 32743
A49: DJØF'ere i alt | C49: 10292 | D49: 19813 | E49: 13570 | F49: 8278 | G49: 1700 | I49: 53653
A56: København
C58: Under 30 år | D58: 30 - 39 år | E58: 40 - 49 år | F58: 50 - 59 år | G58: Over 60 år | I58: I alt
A60: Civ. ing. | C60: 1465 | D60: 2467 | E60: 945 | F60: 658 | G60: 172 | I60: 5707
A61: Diplom ing. | C61: 522 | D61: 842 | E61: 749 | F61: 812 | G61: 220 | I61: 3145
A62: Cand. Scient. Tek. | C62: 2004 | D62: 2537 | E62: 538 | F62: 143 | G62: 29 | I62: 5251
A63: MA. Hum. | C63: 2045 | D63: 5033 | E63: 3540 | F63: 1261 | G63: 400 | I63: 12279
A64: MA. Nat. | C64: 373 | D64: 1006 | E64: 973 | F64: 574 | G64: 201 | I64: 3127
A65: MA. Ph.d. | C65: 14 | D65: 215 | E65: 231 | F65: 130 | G65: 45 | I65: 635
A66: MA. Samf. | C66: 698 | D66: 1025 | E66: 316 | F66: 103 | G66: 23 | I66: 2165
A67: Øvrige Mag. | C67: 136 | D67: 242 | E67: 273 | F67: 196 | G67: 56 | I67: 903
A68: Agronom | C68: 55 | D68: 76 | E68: 65 | F68: 55 | G68: 27 | I68: 278
A69: Landsk. Arkt. | C69: 55 | D69: 106 | E69: 54 | F69: 31 | G69: 5 | I69: 251
A70: Hortonom | C70: 1 | D70: 13 | E70: 13 | F70: 21 | G70: 5 | I70: 53
A71: Forstkand. | C71: 16 | D71: 23 | E71: 25 | F71: 19 | G71: 3 | I71: 86
A72: Jordbrugsakad. | C72: 127 | D72: 218 | E72: 157 | F72: 126 | G72: 40 | I72: 668
A73: Mejeriing. | C73: 14 | D73: 16 | E73: 9 | F73: 9 | G73: 1 | I73: 49
A74: Levn.m.kand. | C74: 57 | D74: 74 | E74: 21 | F74: 1 | G74: 1 | I74: 154
A75: Dyrlæge | C75: 83 | D75: 128 | E75: 54 | F75: 40 | G75: 11 | I75: 316
A76: Farmaceut | C76: 367 | D76: 539 | E76: 221 | F76: 106 | G76: 39 | I76: 1272
A77: Læge | C77: 520 | D77: 1189 | E77: 370 | F77: 200 | G77: 101 | I77: 2380
A78: Tandlæge | C78: 82 | D78: 129 | E78: 47 | F78: 42 | G78: 15 | I78: 315
A79: Arkitekt | C79: 225 | D79: 873 | E79: 667 | F79: 371 | G79: 139 | I79: 2275
A80: Landinspek. | C80: 14 | D80: 25 | E80: 12 | F80: 5 | G80: 7 | I80: 63
A81: Bibliotekar | C81: 34 | D81: 263 | E81: 252 | F81: 174 | G81: 112 | I81: 835
A82: Musikudd. | C82: 3 | D82: 26 | E82: 40 | F82: 63 | G82: 21 | I82: 153
A83: Teolog | C83: 12 | D83: 56 | E83: 92 | F83: 59 | G83: 26 | I83: 245
A84: Psykolog | C84: 463 | D84: 808 | E84: 419 | F84: 217 | G84: 105 | I84: 2012
A85: Jurist | C85: 1160 | D85: 1579 | E85: 896 | F85: 538 | G85: 149 | I85: 4322
A86: Økonom | C86: 713 | D86: 928 | E86: 496 | F86: 341 | G86: 74 | I86: 2552
A87: Samf. Adm. | C87: 1975 | D87: 4692 | E87: 2150 | F87: 882 | G87: 154 | I87: 9853
A88: Cand. Merc. | C88: 3310 | D88: 4257 | E88: 1335 | F88: 610 | G88: 71 | I88: 9583
A89: HA | C89: 372 | D89: 277 | E89: 140 | F89: 178 | G89: 30 | I89: 997
A90: HD | C90: 452 | D90: 303 | E90: 85 | F90: 147 | G90: 42 | I90: 1029
A91: Komm. og Sprog | C91: 482 | D91: 671 | E91: 423 | F91: 227 | G91: 70 | I91: 1873
A92: Cand. IT. | C92: 441 | D92: 780 | E92: 284 | F92: 32 | G92: 3 | I92: 1540
A93: Bac. Samf. | C93: 90 | D93: 132 | E93: 108 | F93: 74 | G93: 9 | I93: 413
A94: Bac. Hum. | C94: 389 | D94: 243 | E94: 236 | F94: 168 | G94: 44 | I94: 1080
A95: Bac. Nat. | C95: 296 | D95: 255 | E95: 66 | F95: 33 | G95: 2 | I95: 652
A96: Andre | C96: 1030 | D96: 2909 | E96: 1623 | F96: 840 | G96: 281 | I96: 6683
A98: Total | C98: 19968 | D98: 34737 | E98: 17768 | F98: 9360 | G98: 2693 | I98: 84526
A100: Ingeniører i alt | C100: 1987 | D100: 3309 | E100: 1694 | F100: 1470 | G100: 392 | I100: 8852
A101: Magistre i alt | C101: 3266 | D101: 7521 | E101: 5333 | F101: 2264 | G101: 725 | I101: 19109
A102: DJØF'ere i alt | C102: 7530 | D102: 11733 | E102: 5017 | F102: 2549 | G102: 478 | I102: 27307
A109: Frederiksberg
C111: Under 30 år | D111: 30 - 39 år | E111: 40 - 49 år | F111: 50 - 59 år | G111: Over 60 år | I111: I alt
A113: Civ. ing. | C113: 178 | D113: 442 | E113: 213 | F113: 184 | G113: 53 | I113: 1070
A114: Diplom ing. | C114: 68 | D114: 123 | E114: 136 | F114: 191 | G114: 54 | I114: 572
A115: Cand. Scient. Tek. | C115: 248 | D115: 401 | E115: 104 | F115: 26 | G115: 3 | I115: 782
A116: MA. Hum. | C116: 232 | D116: 574 | E116: 665 | F116: 249 | G116: 80 | I116: 1800
A117: MA. Nat. | C117: 36 | D117: 110 | E117: 184 | F117: 129 | G117: 39 | I117: 498
A118: MA. Ph.d. | C118: 6 | D118: 40 | E118: 53 | F118: 27 | G118: 6 | I118: 132
A119: MA. Samf. | C119: 76 | D119: 134 | E119: 60 | F119: 29 | G119: 3 | I119: 302
A120: Øvrige Mag. | C120: 12 | D120: 28 | E120: 42 | F120: 27 | G120: 11 | I120: 120
A121: Agronom | C121: 11 | D121: 20 | E121: 19 | F121: 27 | G121: 7 | I121: 84
A122: Landsk. Arkt. | C122: 4 | D122: 17 | E122: 9 | F122: 7 | G122: 1 | I122: 38
A123: Hortonom | C123: 0 | D123: 1 | E123: 3 | F123: 3 | G123: 0 | I123: 7
A124: Forstkand. | C124: 2 | D124: 3 | E124: 6 | F124: 3 | G124: 1 | I124: 15
A125: Jordbrugsakad. | C125: 17 | D125: 41 | E125: 37 | F125: 40 | G125: 9 | I125: 144
A126: Mejeriing. | C126: 6 | D126: 5 | E126: 2 | F126: 1 | G126: 2 | I126: 16
A127: Levn.m.kand. | C127: 18 | D127: 17 | E127: 4 | F127: 0 | G127: 0 | I127: 39
A128: Dyrlæge | C128: 18 | D128: 37 | E128: 6 | F128: 13 | G128: 5 | I128: 79
A129: Farmaceut | C129: 50 | D129: 83 | E129: 46 | F129: 44 | G129: 8 | I129: 231
A130: Læge | C130: 77 | D130: 180 | E130: 103 | F130: 70 | G130: 43 | I130: 473
A131: Tandlæge | C131: 18 | D131: 28 | E131: 6 | F131: 7 | G131: 6 | I131: 65
A132: Arkitekt | C132: 36 | D132: 127 | E132: 141 | F132: 87 | G132: 37 | I132: 428
A133: Landinspek. | C133: 2 | D133: 8 | E133: 4 | F133: 1 | G133: 0 | I133: 15
A134: Bibliotekar | C134: 7 | D134: 24 | E134: 61 | F134: 26 | G134: 23 | I134: 141
A135: Musikudd. | C135: 1 | D135: 4 | E135: 4 | F135: 8 | G135: 8 | I135: 25
A136: Teolog | C136: 2 | D136: 7 | E136: 14 | F136: 12 | G136: 2 | I136: 37
A137: Psykolog | C137: 56 | D137: 140 | E137: 70 | F137: 47 | G137: 26 | I137: 339
A138: Jurist | C138: 200 | D138: 334 | E138: 255 | F138: 187 | G138: 64 | I138: 1040
A139: Økonom | C139: 94 | D139: 198 | E139: 118 | F139: 117 | G139: 33 | I139: 560
A140: Samf. Adm. | C140: 278 | D140: 715 | E140: 457 | F140: 202 | G140: 47 | I140: 1699
A141: Cand. Merc. | C141: 709 | D141: 1009 | E141: 379 | F141: 210 | G141: 22 | I141: 2329
A142: HA | C142: 73 | D142: 54 | E142: 33 | F142: 38 | G142: 11 | I142: 209
A143: HD | C143: 80 | D143: 49 | E143: 20 | F143: 51 | G143: 25 | I143: 225
A144: Komm. og Sprog | C144: 86 | D144: 129 | E144: 101 | F144: 62 | G144: 19 | I144: 397
A145: Cand. IT. | C145: 48 | D145: 96 | E145: 56 | F145: 10 | G145: 1 | I145: 211
A146: Bac. Samf. | C146: 9 | D146: 16 | E146: 24 | F146: 12 | G146: 0 | I146: 61
A147: Bac. Hum. | C147: 53 | D147: 38 | E147: 48 | F147: 39 | G147: 5 | I147: 183
A148: Bac. Nat. | C148: 35 | D148: 34 | E148: 13 | F148: 3 | G148: 0 | I148: 85
A149: Andre | C149: 155 | D149: 428 | E149: 318 | F149: 183 | G149: 89 | I149: 1173
A151: Total | C151: 2984 | D151: 5653 | E151: 3777 | F151: 2332 | G151: 734 | I151: 15480
A153: Ingeniører i alt | C153: 246 | D153: 565 | E153: 349 | F153: 375 | G153: 107 | I153: 1642
A154: Magistre i alt | C154: 362 | D154: 886 | E154: 1004 | F154: 461 | G154: 139 | I154: 2852
A155: DJØF'ere i alt | C155: 1354 | D155: 2310 | E155: 1242 | F155: 754 | G155: 177 | I155: 5837
A162: Ballerup
C164: Under 30 år | D164: 30 - 39 år | E164: 40 - 49 år | F164: 50 - 59 år | G164: Over 60 år | I164: I alt
A166: Civ. ing. | C166: 35 | D166: 134 | E166: 171 | F166: 127 | G166: 29 | I166: 496
A167: Diplom ing. | C167: 33 | D167: 78 | E167: 144 | F167: 196 | G167: 46 | I167: 497
A168: Cand. Scient. Tek. | C168: 45 | D168: 82 | E168: 33 | F168: 18 | G168: 0 | I168: 178
A169: MA. Hum. | C169: 10 | D169: 62 | E169: 79 | F169: 34 | G169: 15 | I169: 200
A170: MA. Nat. | C170: 6 | D170: 31 | E170: 71 | F170: 48 | G170: 14 | I170: 170
A171: MA. Ph.d. | C171: 0 | D171: 6 | E171: 6 | F171: 8 | G171: 2 | I171: 22
A172: MA. Samf. | C172: 3 | D172: 12 | E172: 6 | F172: 3 | G172: 1 | I172: 25
A173: Øvrige Mag. | C173: 1 | D173: 6 | E173: 10 | F173: 9 | G173: 0 | I173: 26
A174: Agronom | C174: 0 | D174: 5 | E174: 4 | F174: 9 | G174: 5 | I174: 23
A175: Landsk. Arkt. | C175: 0 | D175: 2 | E175: 5 | F175: 1 | G175: 0 | I175: 8
A176: Hortonom | C176: 0 | D176: 0 | E176: 1 | F176: 2 | G176: 0 | I176: 3
A177: Forstkand. | C177: 0 | D177: 1 | E177: 2 | F177: 1 | G177: 0 | I177: 4
A178: Jordbrugsakad. | C178: 0 | D178: 8 | E178: 12 | F178: 13 | G178: 5 | I178: 38
A179: Mejeriing. | C179: 0 | D179: 2 | E179: 0 | F179: 1 | G179: 0 | I179: 3
A180: Levn.m.kand. | C180: 0 | D180: 2 | E180: 1 | F180: 0 | G180: 0 | I180: 3
A181: Dyrlæge | C181: 3 | D181: 11 | E181: 8 | F181: 3 | G181: 2 | I181: 27
A182: Farmaceut | C182: 6 | D182: 44 | E182: 45 | F182: 26 | G182: 2 | I182: 123
A183: Læge | C183: 8 | D183: 32 | E183: 20 | F183: 14 | G183: 9 | I183: 83
A184: Tandlæge | C184: 2 | D184: 2 | E184: 3 | F184: 6 | G184: 2 | I184: 15
A185: Arkitekt | C185: 1 | D185: 2 | E185: 6 | F185: 7 | G185: 0 | I185: 16
A186: Landinspek. | C186: 0 | D186: 1 | E186: 3 | F186: 0 | G186: 1 | I186: 5
A187: Bibliotekar | C187: 3 | D187: 7 | E187: 16 | F187: 14 | G187: 5 | I187: 45
A188: Musikudd. | C188: 0 | D188: 1 | E188: 4 | F188: 2 | G188: 2 | I188: 9
A189: Teolog | C189: 0 | D189: 1 | E189: 2 | F189: 6 | G189: 1 | I189: 10
A190: Psykolog | C190: 3 | D190: 18 | E190: 16 | F190: 8 | G190: 1 | I190: 46
A191: Jurist | C191: 11 | D191: 23 | E191: 40 | F191: 22 | G191: 1 | I191: 97
A192: Økonom | C192: 6 | D192: 16 | E192: 30 | F192: 19 | G192: 4 | I192: 75
A193: Samf. Adm. | C193: 13 | D193: 68 | E193: 57 | F193: 37 | G193: 3 | I193: 178
A194: Cand. Merc. | C194: 23 | D194: 95 | E194: 84 | F194: 40 | G194: 8 | I194: 250
A195: HA | C195: 6 | D195: 2 | E195: 11 | F195: 16 | G195: 3 | I195: 38
A196: HD | C196: 1 | D196: 3 | E196: 11 | F196: 14 | G196: 8 | I196: 37
A197: Komm. og Sprog | C197: 2 | D197: 18 | E197: 24 | F197: 22 | G197: 9 | I197: 75
A198: Cand. IT. | C198: 3 | D198: 17 | E198: 11 | F198: 0 | G198: 0 | I198: 31
A199: Bac. Samf. | C199: 0 | D199: 2 | E199: 3 | F199: 2 | G199: 0 | I199: 7
A200: Bac. Hum. | C200: 2 | D200: 2 | E200: 4 | F200: 4 | G200: 0 | I200: 12
A201: Bac. Nat. | C201: 5 | D201: 11 | E201: 4 | F201: 2 | G201: 1 | I201: 23
A202: Andre | C202: 14 | D202: 53 | E202: 43 | F202: 45 | G202: 11 | I202: 166
A204: Total | C204: 245 | D204: 852 | E204: 978 | F204: 766 | G204: 185 | I204: 3026
A206: Ingeniører i alt | C206: 68 | D206: 212 | E206: 315 | F206: 323 | G206: 75 | I206: 993
A207: Magistre i alt | C207: 20 | D207: 117 | E207: 172 | F207: 102 | G207: 32 | I207: 443
A208: DJØF'ere i alt | C208: 59 | D208: 204 | E208: 222 | F208: 134 | G208: 19 | I208: 638
A215: Brøndby
C217: Under 30 år | D217: 30 - 39 år | E217: 40 - 49 år | F217: 50 - 59 år | G217: Over 60 år | I217: I alt
A219: Civ. ing. | C219: 17 | D219: 26 | E219: 29 | F219: 40 | G219: 9 | I219: 121
A220: Diplom ing. | C220: 15 | D220: 26 | E220: 54 | F220: 50 | G220: 17 | I220: 162
A221: Cand. Scient. Tek. | C221: 16 | D221: 26 | E221: 8 | F221: 4 | G221: 1 | I221: 55
A222: MA. Hum. | C222: 14 | D222: 29 | E222: 20 | F222: 10 | G222: 1 | I222: 74
A223: MA. Nat. | C223: 4 | D223: 14 | E223: 21 | F223: 10 | G223: 11 | I223: 60
A224: MA. Ph.d. | C224: 0 | D224: 3 | E224: 3 | F224: 0 | G224: 1 | I224: 7
A225: MA. Samf. | C225: 3 | D225: 9 | E225: 3 | F225: 1 | G225: 0 | I225: 16
A226: Øvrige Mag. | C226: 2 | D226: 6 | E226: 3 | F226: 0 | G226: 2 | I226: 13
A227: Agronom | C227: 1 | D227: 1 | E227: 1 | F227: 1 | G227: 1 | I227: 5
A228: Landsk. Arkt. | C228: 0 | D228: 0 | E228: 4 | F228: 1 | G228: 0 | I228: 5
A229: Hortonom | C229: 0 | D229: 0 | E229: 1 | F229: 0 | G229: 1 | I229: 2
A230: Forstkand. | C230: 0 | D230: 0 | E230: 1 | F230: 0 | G230: 0 | I230: 1
A231: Jordbrugsakad. | C231: 1 | D231: 1 | E231: 7 | F231: 2 | G231: 2 | I231: 13
A232: Mejeriing. | C232: 0 | D232: 0 | E232: 0 | F232: 0 | G232: 0 | I232: 0
A233: Levn.m.kand. | C233: 0 | D233: 1 | E233: 0 | F233: 0 | G233: 0 | I233: 1
A234: Dyrlæge | C234: 1 | D234: 2 | E234: 3 | F234: 1 | G234: 0 | I234: 7
A235: Farmaceut | C235: 8 | D235: 13 | E235: 6 | F235: 4 | G235: 1 | I235: 32
A236: Læge | C236: 3 | D236: 14 | E236: 4 | F236: 9 | G236: 4 | I236: 34
A237: Tandlæge | C237: 6 | D237: 5 | E237: 0 | F237: 1 | G237: 2 | I237: 14
A238: Arkitekt | C238: 0 | D238: 2 | E238: 1 | F238: 1 | G238: 0 | I238: 4
A239: Landinspek. | C239: 0 | D239: 1 | E239: 0 | F239: 0 | G239: 0 | I239: 1
A240: Bibliotekar | C240: 0 | D240: 4 | E240: 5 | F240: 4 | G240: 2 | I240: 15
A241: Musikudd. | C241: 0 | D241: 0 | E241: 0 | F241: 0 | G241: 0 | I241: 0
A242: Teolog | C242: 0 | D242: 1 | E242: 1 | F242: 3 | G242: 1 | I242: 6
A243: Psykolog | C243: 1 | D243: 4 | E243: 5 | F243: 0 | G243: 1 | I243: 11
... 1048 more rows

Sheet Tabel 4 H
A1: Tabel 4. Ledighedsberørte - aldersfordelt
A3: Hovedstaden
C5: Under 30 år | D5: 30 - 39 år | E5: 40 - 49 år | F5: 50 - 59 år | G5: Over 60 år | I5: I alt
A7: Civ. ing. | C7: 282 | D7: 147 | E7: 57 | F7: 61 | G7: 33 | I7: 580
A8: Diplom ing. | C8: 113 | D8: 64 | E8: 63 | F8: 90 | G8: 45 | I8: 375
A9: Cand. Scient. Tek | C9: 628 | D9: 347 | E9: 57 | F9: 18 | G9: 8 | I9: 1058
A10: MA. Hum. | C10: 696 | D10: 722 | E10: 308 | F10: 145 | G10: 61 | I10: 1932
A11: MA. Nat. | C11: 93 | D11: 102 | E11: 47 | F11: 31 | G11: 15 | I11: 288
A12: MA. Ph.d. | C12: 2 | D12: 20 | E12: 29 | F12: 12 | G12: 5 | I12: 68
A13: MA. Samf. | C13: 202 | D13: 162 | E13: 36 | F13: 13 | G13: 1 | I13: 414
A14: Øvrige Mag. | C14: 49 | D14: 44 | E14: 28 | F14: 17 | G14: 8 | I14: 146
A15: Agronom | C15: 21 | D15: 8 | E15: 7 | F15: 9 | G15: 3 | I15: 48
A16: Landsk. Arkt. | C16: 21 | D16: 19 | E16: 3 | F16: 4 | G16: 0 | I16: 47
A17: Hortonom | C17: 0 | D17: 0 | E17: 1 | F17: 1 | G17: 1 | I17: 3
A18: Forstkand. | C18: 6 | D18: 6 | E18: 0 | F18: 2 | G18: 1 | I18: 15
A19: Jordbrugsakad. | C19: 48 | D19: 33 | E19: 11 | F19: 16 | G19: 5 | I19: 113
A20: Mejeriing. | C20: 6 | D20: 1 | E20: 0 | F20: 1 | G20: 0 | I20: 8
A21: Levn.m.kand. | C21: 22 | D21: 15 | E21: 5 | F21: 1 | G21: 0 | I21: 43
A22: Dyrlæge | C22: 19 | D22: 16 | E22: 7 | F22: 6 | G22: 3 | I22: 51
A23: Farmaceut | C23: 111 | D23: 37 | E23: 9 | F23: 15 | G23: 5 | I23: 177
A24: Læge | C24: 33 | D24: 43 | E24: 8 | F24: 6 | G24: 0 | I24: 90
A25: Tandlæge | C25: 10 | D25: 6 | E25: 1 | F25: 1 | G25: 3 | I25: 21
A26: Arkitekt | C26: 85 | D26: 97 | E26: 49 | F26: 36 | G26: 17 | I26: 284
A27: Landinspek. | C27: 0 | D27: 1 | E27: 1 | F27: 0 | G27: 0 | I27: 2
A28: Bibliotekar | C28: 13 | D28: 27 | E28: 22 | F28: 16 | G28: 10 | I28: 88
A29: Musikudd. | C29: 3 | D29: 4 | E29: 2 | F29: 3 | G29: 2 | I29: 14
A30: Teolog | C30: 6 | D30: 10 | E30: 5 | F30: 5 | G30: 1 | I30: 27
A31: Psykolog | C31: 81 | D31: 93 | E31: 19 | F31: 8 | G31: 6 | I31: 207
A32: Jurist | C32: 102 | D32: 45 | E32: 47 | F32: 29 | G32: 15 | I32: 238
A33: Økonom | C33: 55 | D33: 26 | E33: 22 | F33: 17 | G33: 18 | I33: 138
A34: Samf. Adm. | C34: 430 | D34: 373 | E34: 126 | F34: 69 | G34: 15 | I34: 1013
A35: Cand. Merc. | C35: 486 | D35: 314 | E35: 146 | F35: 110 | G35: 18 | I35: 1074
A36: HA | C36: 83 | D36: 30 | E36: 15 | F36: 33 | G36: 13 | I36: 174
A37: HD | C37: 148 | D37: 47 | E37: 9 | F37: 41 | G37: 21 | I37: 266
A38: Komm. og Sprog | C38: 112 | D38: 88 | E38: 52 | F38: 34 | G38: 14 | I38: 300
A39: Cand. IT. | C39: 90 | D39: 58 | E39: 18 | F39: 8 | G39: 2 | I39: 176
A40: Bac. Samf. | C40: 16 | D40: 13 | E40: 8 | F40: 3 | G40: 2 | I40: 42
A41: Bac. Hum. | C41: 99 | D41: 44 | E41: 28 | F41: 18 | G41: 10 | I41: 199
A42: Bac. Nat. | C42: 79 | D42: 31 | E42: 5 | F42: 6 | G42: 0 | I42: 121
A43: Andre | C43: 268 | D43: 348 | E43: 167 | F43: 145 | G43: 58 | I43: 986
A45: Total | C45: 4470 | D45: 3408 | E45: 1407 | F45: 1014 | G45: 414 | I45: 10713
A47: Ingeniører i alt | C47: 395 | D47: 211 | E47: 120 | F47: 151 | G47: 78 | I47: 955
A48: Magistre i alt | C48: 1042 | D48: 1050 | E48: 448 | F48: 218 | G48: 90 | I48: 2848
A49: DJØF'ere i alt | C49: 1156 | D49: 788 | E49: 356 | F49: 258 | G49: 79 | I49: 2637
A56: København
C58: Under 30 år | D58: 30 - 39 år | E58: 40 - 49 år | F58: 50 - 59 år | G58: Over 60 år | I58: I alt
A60: Civ. ing. | C60: 161 | D60: 76 | E60: 18 | F60: 17 | G60: 4 | I60: 276
A61: Diplom ing. | C61: 55 | D61: 22 | E61: 19 | F61: 26 | G61: 8 | I61: 130
A62: Cand. Scient. Tek | C62: 422 | D62: 226 | E62: 26 | F62: 7 | G62: 2 | I62: 683
A63: MA. Hum. | C63: 528 | D63: 551 | E63: 196 | F63: 84 | G63: 32 | I63: 1391
A64: MA. Nat. | C64: 63 | D64: 69 | E64: 22 | F64: 15 | G64: 4 | I64: 173
A65: MA. Ph.d. | C65: 1 | D65: 14 | E65: 16 | F65: 3 | G65: 3 | I65: 37
A66: MA. Samf. | C66: 170 | D66: 123 | E66: 20 | F66: 8 | G66: 1 | I66: 322
A67: Øvrige Mag. | C67: 40 | D67: 33 | E67: 12 | F67: 13 | G67: 4 | I67: 102
A68: Agronom | C68: 13 | D68: 4 | E68: 6 | F68: 1 | G68: 1 | I68: 25
A69: Landsk. Arkt. | C69: 15 | D69: 17 | E69: 0 | F69: 2 | G69: 0 | I69: 34
A70: Hortonom | C70: 0 | D70: 0 | E70: 1 | F70: 0 | G70: 0 | I70: 1
A71: Forstkand. | C71: 5 | D71: 5 | E71: 0 | F71: 1 | G71: 0 | I71: 11
A72: Jordbrugsakad. | C72: 33 | D72: 26 | E72: 7 | F72: 4 | G72: 1 | I72: 71
A73: Mejeriing. | C73: 4 | D73: 0 | E73: 0 | F73: 0 | G73: 0 | I73: 4
A74: Levn.m.kand. | C74: 13 | D74: 10 | E74: 1 | F74: 0 | G74: 0 | I74: 24
A75: Dyrlæge | C75: 14 | D75: 8 | E75: 3 | F75: 2 | G75: 2 | I75: 29
A76: Farmaceut | C76: 70 | D76: 21 | E76: 2 | F76: 4 | G76: 1 | I76: 98
A77: Læge | C77: 23 | D77: 31 | E77: 3 | F77: 3 | G77: 0 | I77: 60
A78: Tandlæge | C78: 6 | D78: 3 | E78: 0 | F78: 1 | G78: 0 | I78: 10
A79: Arkitekt | C79: 69 | D79: 78 | E79: 34 | F79: 20 | G79: 12 | I79: 213
A80: Landinspek. | C80: 0 | D80: 0 | E80: 1 | F80: 0 | G80: 0 | I80: 1
A81: Bibliotekar | C81: 9 | D81: 18 | E81: 13 | F81: 8 | G81: 4 | I81: 52
A82: Musikudd. | C82: 1 | D82: 4 | E82: 1 | F82: 2 | G82: 0 | I82: 8
A83: Teolog | C83: 5 | D83: 9 | E83: 2 | F83: 5 | G83: 0 | I83: 21
A84: Psykolog | C84: 62 | D84: 61 | E84: 10 | F84: 0 | G84: 2 | I84: 135
A85: Jurist | C85: 73 | D85: 24 | E85: 15 | F85: 12 | G85: 8 | I85: 132
A86: Økonom | C86: 42 | D86: 16 | E86: 15 | F86: 6 | G86: 6 | I86: 85
A87: Samf. Adm. | C87: 343 | D87: 274 | E87: 63 | F87: 38 | G87: 7 | I87: 725
A88: Cand. Merc. | C88: 350 | D88: 193 | E88: 60 | F88: 28 | G88: 4 | I88: 635
A89: HA | C89: 62 | D89: 21 | E89: 5 | F89: 7 | G89: 2 | I89: 97
A90: HD | C90: 107 | D90: 29 | E90: 3 | F90: 8 | G90: 5 | I90: 152
A91: Komm. og Sprog | C91: 82 | D91: 56 | E91: 32 | F91: 13 | G91: 5 | I91: 188
A92: Cand. IT. | C92: 70 | D92: 41 | E92: 12 | F92: 5 | G92: 1 | I92: 129
A93: Bac. Samf. | C93: 11 | D93: 7 | E93: 6 | F93: 2 | G93: 2 | I93: 28
A94: Bac. Hum. | C94: 81 | D94: 32 | E94: 21 | F94: 7 | G94: 6 | I94: 147
A95: Bac. Nat. | C95: 61 | D95: 19 | E95: 2 | F95: 3 | G95: 0 | I95: 85
A96: Andre | C96: 193 | D96: 233 | E96: 89 | F96: 70 | G96: 19 | I96: 604
A98: Total | C98: 3224 | D98: 2328 | E98: 729 | F98: 421 | G98: 145 | I98: 6847
A100: Ingeniører i alt | C100: 216 | D100: 98 | E100: 37 | F100: 43 | G100: 12 | I100: 406
A101: Magistre i alt | C101: 802 | D101: 790 | E101: 266 | F101: 123 | G101: 44 | I101: 2025
A102: DJØF'ere i alt | C102: 870 | D102: 528 | E102: 158 | F102: 91 | G102: 27 | I102: 1674
A109: Frederiksberg
C111: Under 30 år | D111: 30 - 39 år | E111: 40 - 49 år | F111: 50 - 59 år | G111: Over 60 år | I111: I alt
A113: Civ. ing. | C113: 10 | D113: 11 | E113: 6 | F113: 5 | G113: 1 | I113: 33
A114: Diplom ing. | C114: 8 | D114: 0 | E114: 6 | F114: 6 | G114: 2 | I114: 22
A115: Cand. Scient. Tek | C115: 48 | D115: 22 | E115: 5 | F115: 2 | G115: 0 | I115: 77
A116: MA. Hum. | C116: 62 | D116: 52 | E116: 36 | F116: 15 | G116: 5 | I116: 170
A117: MA. Nat. | C117: 9 | D117: 7 | E117: 3 | F117: 3 | G117: 1 | I117: 23
A118: MA. Ph.d. | C118: 1 | D118: 1 | E118: 5 | F118: 1 | G118: 0 | I118: 8
A119: MA. Samf. | C119: 12 | D119: 13 | E119: 6 | F119: 1 | G119: 0 | I119: 32
A120: Øvrige Mag. | C120: 4 | D120: 3 | E120: 4 | F120: 1 | G120: 1 | I120: 13
A121: Agronom | C121: 3 | D121: 2 | E121: 0 | F121: 1 | G121: 0 | I121: 6
A122: Landsk. Arkt. | C122: 3 | D122: 0 | E122: 0 | F122: 0 | G122: 0 | I122: 3
A123: Hortonom | C123: 0 | D123: 0 | E123: 0 | F123: 0 | G123: 0 | I123: 0
A124: Forstkand. | C124: 0 | D124: 0 | E124: 0 | F124: 0 | G124: 0 | I124: 0
A125: Jordbrugsakad. | C125: 6 | D125: 2 | E125: 0 | F125: 1 | G125: 0 | I125: 9
A126: Mejeriing. | C126: 2 | D126: 0 | E126: 0 | F126: 0 | G126: 0 | I126: 2
A127: Levn.m.kand. | C127: 6 | D127: 1 | E127: 1 | F127: 0 | G127: 0 | I127: 8
A128: Dyrlæge | C128: 2 | D128: 0 | E128: 0 | F128: 2 | G128: 0 | I128: 4
A129: Farmaceut | C129: 8 | D129: 3 | E129: 0 | F129: 2 | G129: 0 | I129: 13
A130: Læge | C130: 3 | D130: 3 | E130: 1 | F130: 0 | G130: 0 | I130: 7
A131: Tandlæge | C131: 1 | D131: 1 | E131: 0 | F131: 0 | G131: 0 | I131: 2
A132: Arkitekt | C132: 13 | D132: 8 | E132: 5 | F132: 3 | G132: 1 | I132: 30
A133: Landinspek. | C133: 0 | D133: 0 | E133: 0 | F133: 0 | G133: 0 | I133: 0
A134: Bibliotekar | C134: 2 | D134: 2 | E134: 4 | F134: 0 | G134: 1 | I134: 9
A135: Musikudd. | C135: 1 | D135: 0 | E135: 0 | F135: 1 | G135: 0 | I135: 2
A136: Teolog | C136: 1 | D136: 0 | E136: 1 | F136: 0 | G136: 0 | I136: 2
A137: Psykolog | C137: 11 | D137: 13 | E137: 0 | F137: 1 | G137: 0 | I137: 25
A138: Jurist | C138: 5 | D138: 6 | E138: 9 | F138: 3 | G138: 2 | I138: 25
A139: Økonom | C139: 6 | D139: 3 | E139: 0 | F139: 0 | G139: 2 | I139: 11
A140: Samf. Adm. | C140: 34 | D140: 33 | E140: 12 | F140: 8 | G140: 2 | I140: 89
A141: Cand. Merc. | C141: 62 | D141: 36 | E141: 21 | F141: 8 | G141: 1 | I141: 128
A142: HA | C142: 8 | D142: 2 | E142: 0 | F142: 2 | G142: 1 | I142: 13
A143: HD | C143: 18 | D143: 4 | E143: 1 | F143: 3 | G143: 1 | I143: 27
A144: Komm. og Sprog | C144: 14 | D144: 13 | E144: 7 | F144: 1 | G144: 0 | I144: 35
A145: Cand. IT. | C145: 3 | D145: 4 | E145: 3 | F145: 2 | G145: 0 | I145: 12
A146: Bac. Samf. | C146: 2 | D146: 1 | E146: 0 | F146: 0 | G146: 0 | I146: 3
A147: Bac. Hum. | C147: 5 | D147: 7 | E147: 2 | F147: 2 | G147: 0 | I147: 16
A148: Bac. Nat. | C148: 9 | D148: 3 | E148: 0 | F148: 0 | G148: 0 | I148: 12
A149: Andre | C149: 28 | D149: 25 | E149: 16 | F149: 11 | G149: 3 | I149: 83
A151: Total | C151: 404 | D151: 279 | E151: 154 | F151: 84 | G151: 24 | I151: 945
A153: Ingeniører i alt | C153: 18 | D153: 11 | E153: 12 | F153: 11 | G153: 3 | I153: 55
A154: Magistre i alt | C154: 88 | D154: 76 | E154: 54 | F154: 21 | G154: 7 | I154: 246
A155: DJØF'ere i alt | C155: 115 | D155: 80 | E155: 42 | F155: 21 | G155: 8 | I155: 266
A162: Ballerup
C164: Under 30 år | D164: 30 - 39 år | E164: 40 - 49 år | F164: 50 - 59 år | G164: Over 60 år | I164: I alt
A166: Civ. ing. | C166: 3 | D166: 1 | E166: 1 | F166: 1 | G166: 1 | I166: 7
A167: Diplom ing. | C167: 5 | D167: 3 | E167: 4 | F167: 2 | G167: 2 | I167: 16
A168: Cand. Scient. Tek | C168: 11 | D168: 4 | E168: 3 | F168: 0 | G168: 0 | I168: 18
A169: MA. Hum. | C169: 2 | D169: 4 | E169: 3 | F169: 0 | G169: 1 | I169: 10
A170: MA. Nat. | C170: 1 | D170: 1 | E170: 1 | F170: 0 | G170: 0 | I170: 3
A171: MA. Ph.d. | C171: 0 | D171: 1 | E171: 1 | F171: 0 | G171: 0 | I171: 2
A172: MA. Samf. | C172: 0 | D172: 0 | E172: 0 | F172: 0 | G172: 0 | I172: 0
A173: Øvrige Mag. | C173: 0 | D173: 1 | E173: 0 | F173: 1 | G173: 0 | I173: 2
A174: Agronom | C174: 0 | D174: 0 | E174: 0 | F174: 1 | G174: 0 | I174: 1
A175: Landsk. Arkt. | C175: 0 | D175: 0 | E175: 0 | F175: 0 | G175: 0 | I175: 0
A176: Hortonom | C176: 0 | D176: 0 | E176: 0 | F176: 0 | G176: 0 | I176: 0
A177: Forstkand. | C177: 0 | D177: 0 | E177: 0 | F177: 0 | G177: 0 | I177: 0
A178: Jordbrugsakad. | C178: 0 | D178: 0 | E178: 0 | F178: 1 | G178: 0 | I178: 1
A179: Mejeriing. | C179: 0 | D179: 0 | E179: 0 | F179: 1 | G179: 0 | I179: 1
A180: Levn.m.kand. | C180: 0 | D180: 0 | E180: 0 | F180: 0 | G180: 0 | I180: 0
A181: Dyrlæge | C181: 0 | D181: 0 | E181: 0 | F181: 0 | G181: 0 | I181: 0
A182: Farmaceut | C182: 2 | D182: 0 | E182: 0 | F182: 1 | G182: 0 | I182: 3
A183: Læge | C183: 0 | D183: 0 | E183: 0 | F183: 0 | G183: 0 | I183: 0
A184: Tandlæge | C184: 0 | D184: 0 | E184: 0 | F184: 0 | G184: 0 | I184: 0
A185: Arkitekt | C185: 1 | D185: 0 | E185: 0 | F185: 0 | G185: 0 | I185: 1
A186: Landinspek. | C186: 0 | D186: 0 | E186: 0 | F186: 0 | G186: 0 | I186: 0
A187: Bibliotekar | C187: 2 | D187: 1 | E187: 0 | F187: 1 | G187: 0 | I187: 4
A188: Musikudd. | C188: 0 | D188: 0 | E188: 0 | F188: 0 | G188: 0 | I188: 0
A189: Teolog | C189: 0 | D189: 0 | E189: 0 | F189: 0 | G189: 0 | I189: 0
A190: Psykolog | C190: 0 | D190: 0 | E190: 1 | F190: 0 | G190: 0 | I190: 1
A191: Jurist | C191: 2 | D191: 0 | E191: 1 | F191: 1 | G191: 0 | I191: 4
A192: Økonom | C192: 0 | D192: 0 | E192: 0 | F192: 0 | G192: 0 | I192: 0
A193: Samf. Adm. | C193: 2 | D193: 6 | E193: 1 | F193: 2 | G193: 0 | I193: 11
A194: Cand. Merc. | C194: 2 | D194: 2 | E194: 1 | F194: 3 | G194: 0 | I194: 8
A195: HA | C195: 2 | D195: 0 | E195: 0 | F195: 2 | G195: 1 | I195: 5
A196: HD | C196: 0 | D196: 1 | E196: 2 | F196: 1 | G196: 0 | I196: 4
A197: Komm. og Sprog | C197: 2 | D197: 1 | E197: 0 | F197: 0 | G197: 0 | I197: 3
A198: Cand. IT. | C198: 0 | D198: 2 | E198: 0 | F198: 0 | G198: 0 | I198: 2
A199: Bac. Samf. | C199: 0 | D199: 0 | E199: 0 | F199: 0 | G199: 0 | I199: 0
A200: Bac. Hum. | C200: 0 | D200: 0 | E200: 0 | F200: 0 | G200: 0 | I200: 0
A201: Bac. Nat. | C201: 1 | D201: 0 | E201: 1 | F201: 0 | G201: 0 | I201: 2
A202: Andre | C202: 4 | D202: 3 | E202: 1 | F202: 0 | G202: 0 | I202: 8
A204: Total | C204: 42 | D204: 31 | E204: 21 | F204: 17 | G204: 5 | I204: 116
A206: Ingeniører i alt | C206: 8 | D206: 4 | E206: 5 | F206: 3 | G206: 3 | I206: 23
A207: Magistre i alt | C207: 3 | D207: 7 | E207: 5 | F207: 1 | G207: 1 | I207: 17
A208: DJØF'ere i alt | C208: 8 | D208: 8 | E208: 3 | F208: 8 | G208: 1 | I208: 28
A215: Brøndby
C217: Under 30 år | D217: 30 - 39 år | E217: 40 - 49 år | F217: 50 - 59 år | G217: Over 60 år | I217: I alt
A219: Civ. ing. | C219: 3 | D219: 0 | E219: 1 | F219: 2 | G219: 0 | I219: 6
A220: Diplom ing. | C220: 1 | D220: 0 | E220: 1 | F220: 1 | G220: 0 | I220: 3
A221: Cand. Scient. Tek | C221: 7 | D221: 3 | E221: 1 | F221: 1 | G221: 0 | I221: 12
A222: MA. Hum. | C222: 2 | D222: 7 | E222: 1 | F222: 0 | G222: 0 | I222: 10
A223: MA. Nat. | C223: 1 | D223: 0 | E223: 2 | F223: 1 | G223: 0 | I223: 4
A224: MA. Ph.d. | C224: 0 | D224: 0 | E224: 1 | F224: 0 | G224: 0 | I224: 1
A225: MA. Samf. | C225: 1 | D225: 2 | E225: 0 | F225: 0 | G225: 0 | I225: 3
A226: Øvrige Mag. | C226: 1 | D226: 1 | E226: 0 | F226: 0 | G226: 1 | I226: 3
A227: Agronom | C227: 0 | D227: 0 | E227: 0 | F227: 0 | G227: 0 | I227: 0
A228: Landsk. Arkt. | C228: 0 | D228: 0 | E228: 0 | F228: 0 | G228: 0 | I228: 0
A229: Hortonom | C229: 0 | D229: 0 | E229: 0 | F229: 0 | G229: 0 | I229: 0
A230: Forstkand. | C230: 0 | D230: 0 | E230: 0 | F230: 0 | G230: 0 | I230: 0
A231: Jordbrugsakad. | C231: 0 | D231: 0 | E231: 0 | F231: 0 | G231: 0 | I231: 0
A232: Mejeriing. | C232: 0 | D232: 0 | E232: 0 | F232: 0 | G232: 0 | I232: 0
A233: Levn.m.kand. | C233: 0 | D233: 0 | E233: 0 | F233: 0 | G233: 0 | I233: 0
A234: Dyrlæge | C234: 0 | D234: 1 | E234: 0 | F234: 0 | G234: 0 | I234: 1
A235: Farmaceut | C235: 1 | D235: 0 | E235: 0 | F235: 0 | G235: 0 | I235: 1
A236: Læge | C236: 0 | D236: 0 | E236: 0 | F236: 0 | G236: 0 | I236: 0
A237: Tandlæge | C237: 0 | D237: 0 | E237: 0 | F237: 0 | G237: 1 | I237: 1
A238: Arkitekt | C238: 0 | D238: 1 | E238: 0 | F238: 0 | G238: 0 | I238: 1
A239: Landinspek. | C239: 0 | D239: 0 | E239: 0 | F239: 0 | G239: 0 | I239: 0
A240: Bibliotekar | C240: 0 | D240: 1 | E240: 0 | F240: 0 | G240: 0 | I240: 1
A241: Musikudd. | C241: 0 | D241: 0 | E241: 0 | F241: 0 | G241: 0 | I241: 0
A242: Teolog | C242: 0 | D242: 0 | E242: 0 | F242: 0 | G242: 0 | I242: 0
A243: Psykolog | C243: 0 | D243: 0 | E243: 0 | F243: 0 | G243: 0 | I243: 0
... 1048 more rows

Sheet Tabel 4(Br) H
A1: Tabel 4. Ledighedsberørte - aldersfordelt
A3: Hovedstaden
C5: Under 30 år | D5: 30 - 39 år | E5: 40 - 49 år | F5: 50 - 59 år | G5: Over 60 år | I5: I alt
A7: Civ. ing. | C7: 247.8126364 | D7: 121.1183185 | E7: 50.16590782 | F7: 51.18755068 | G7: 30.15717582 | I7: 500.4415892
A8: Diplom ing. | C8: 102.9358199 | D8: 53.42543504 | E8: 54.33480946 | F8: 77.89746149 | G8: 40.58566706 | I8: 329.1791929
A9: Cand. Scient. Tek | C9: 524.9023888 | D9: 301.0172769 | E9: 49.32701304 | F9: 15.41196283 | G9: 5.62963887 | I9: 896.2882804
A10: MA. Hum. | C10: 591.631011 | D10: 594.9778582 | E10: 259.9370049 | F10: 110.6187239 | G10: 48.02407534 | I10: 1605.188673
A11: MA. Nat. | C11: 80.76404915 | D11: 83.3088006 | E11: 38.18312231 | F11: 24.92733737 | G11: 13.22709412 | I11: 240.4104035
A12: MA. Ph.d. | C12: 1.90731616 | D12: 16.06436724 | E12: 21.01852429 | F12: 10.19771721 | G12: 4.432108776 | I12: 53.62003368
A13: MA. Samf. | C13: 172.1337242 | D13: 135.4967879 | E13: 28.6415518 | F13: 12.07072912 | G13: 0.9998128859 | I13: 349.3426059
A14: Øvrige Mag. | C14: 40.7983534 | D14: 37.12655149 | E14: 22.92459303 | F14: 16.4847502 | G14: 7.413459739 | I14: 124.7477079
A15: Agronom | C15: 18.27293707 | D15: 4.452691324 | E15: 5.2822304 | F15: 6.716147945 | G15: 2.999438658 | I15: 37.72344539
A16: Landsk. Arkt. | C16: 17.41844945 | D16: 14.8556103 | E16: 2.999438658 | F16: 3.472837273 | G16: 0 | I16: 38.74633568
A17: Hortonom | C17: 0 | D17: 0 | E17: 0.7228840516 | F17: 0.9998128859 | G17: 0.9998128859 | I17: 2.722509823
A18: Forstkand. | C18: 4.639181688 | D18: 4.568078338 | E18: 0 | F18: 1.538077715 | G18: 0.4921100231 | I18: 11.23744776
A19: Jordbrugsakad. | C19: 40.3305682 | D19: 23.87637997 | E19: 9.004553109 | F19: 12.72687582 | G19: 4.491361567 | I19: 90.42973866
A20: Mejeriing. | C20: 5.30655523 | D20: 0.9998128859 | E20: 0 | F20: 0.5794299258 | G20: 0 | I20: 6.885798042
A21: Levn.m.kand. | C21: 17.99663195 | D21: 12.81294829 | E21: 3.576997443 | F21: 0.9811014782 | G21: 0 | I21: 35.36767916
A22: Dyrlæge | C22: 12.95203642 | D22: 13.0424749 | E22: 6.031934136 | F22: 5.391380278 | G22: 1.979043223 | I22: 39.39686896
A23: Farmaceut | C23: 92.60899395 | D23: 32.94704672 | E23: 8.274808208 | F23: 12.36387451 | G23: 4.768290401 | I23: 150.9630138
A24: Læge | C24: 27.03798416 | D24: 32.60150939 | E24: 6.843385517 | F24: 4.66038795 | G24: 0 | I24: 71.14326701
A25: Tandlæge | C25: 8.798103911 | D25: 3.628141957 | E25: 0.8844258716 | F25: 0.9998128859 | G25: 2.630200212 | I25: 16.94068484
A26: Arkitekt | C26: 73.81525603 | D26: 86.02632071 | E26: 42.51356577 | F26: 29.52660138 | G26: 15.28846754 | I26: 247.1702114
A27: Landinspek. | C27: 0 | D27: 0.9998128859 | E27: 0.9998128859 | F27: 0 | G27: 0 | I27: 1.999625772
A28: Bibliotekar | C28: 11.35470592 | D28: 21.52872201 | E28: 18.03717333 | F28: 14.26682467 | G28: 8.287906193 | I28: 73.47533213
A29: Musikudd. | C29: 2.035177447 | D29: 3.65808021 | E29: 1.395871016 | F29: 2.81045344 | G29: 1.183184682 | I29: 11.08276679
A30: Teolog | C30: 5.119441153 | D30: 7.090376099 | E30: 4.258092684 | F30: 4.176386203 | G30: 0.9998128859 | I30: 21.64410903
A31: Psykolog | C31: 72.12748706 | D31: 77.22322709 | E31: 15.57537579 | F31: 6.667498285 | G31: 4.641052829 | I31: 176.2346411
A32: Jurist | C32: 83.89072538 | D32: 38.45568515 | E32: 40.48462546 | F32: 24.25310298 | G32: 11.57737167 | I32: 198.6615106
A33: Økonom | C33: 45.00592528 | D33: 21.98340922 | E33: 16.9618911 | F33: 14.54562465 | G33: 16.23838333 | I33: 114.7352336
A34: Samf. Adm. | C34: 374.4171396 | D34: 318.5373916 | E34: 106.3712343 | F34: 59.41370922 | G34: 13.77783322 | I34: 872.5173081
A35: Cand. Merc. | C35: 404.6915736 | D35: 274.000499 | E35: 123.2676355 | F35: 96.40553858 | G35: 16.84962265 | I35: 915.2148693
A36: HA | C36: 71.11145762 | D36: 23.54082205 | E36: 12.27343604 | F36: 26.39680659 | G36: 10.61560531 | I36: 143.9381276
A37: HD | C37: 125.4219422 | D37: 40.6517807 | E37: 8.536767916 | F37: 33.68614732 | G37: 15.40946797 | I37: 223.7061062
A38: Komm. og Sprog | C38: 90.36175388 | D38: 71.67841327 | E38: 43.43354332 | F38: 27.8063993 | G38: 12.56658143 | I38: 245.8466912
A39: Cand. IT. | C39: 77.77334248 | D39: 47.38788748 | E39: 15.44626707 | F39: 5.890351151 | G39: 1.306679973 | I39: 147.8045282
A40: Bac. Samf. | C40: 12.07260026 | D40: 10.39730556 | E40: 7.399114327 | F40: 2.579679411 | G40: 1.999625772 | I40: 34.44832533
A41: Bac. Hum. | C41: 82.26907004 | D41: 36.05937753 | E41: 23.09860912 | F41: 14.98596644 | G41: 8.203704859 | I41: 164.616728
A42: Bac. Nat. | C42: 63.62751824 | D42: 25.7182062 | E42: 3.799039481 | F42: 5.733799039 | G42: 0 | I42: 98.87856296
A43: Andre | C43: 232.2522298 | D43: 288.6989334 | E43: 140.2357637 | F43: 116.2733113 | G43: 47.61055323 | I43: 825.0707915
A45: Total | C45: 3795.263519 | D45: 2856.07996 | E45: 1183.23645 | F45: 841.9172956 | G45: 350.8937816 | I45: 9027.391006
A47: Ingeniører i alt | C47: 350.7484563 | D47: 174.5437535 | E47: 104.5007173 | F47: 129.0850122 | G47: 70.74284289 | I47: 829.6207821
A48: Magistre i alt | C48: 887.2344539 | D48: 866.9743654 | E48: 370.7047964 | F48: 174.2992578 | G48: 74.09655086 | I48: 2373.309424
A49: DJØF'ere i alt | C49: 979.1168216 | D49: 676.517807 | E49: 299.3588224 | F49: 221.014782 | G49: 69.05881619 | I49: 2245.067049
A56: København
C58: Under 30 år | D58: 30 - 39 år | E58: 40 - 49 år | F58: 50 - 59 år | G58: Over 60 år | I58: I alt
A60: Civ. ing. | C60: 141.665939 | D60: 62.85286596 | E60: 16.61510634 | F60: 15.46497848 | G60: 3.860787127 | I60: 240.4596769
A61: Diplom ing. | C61: 50.27755255 | D61: 17.23195908 | E61: 15.99638246 | F61: 23.05557288 | G61: 7.813883865 | I61: 114.3753508
A62: Cand. Scient. Tek | C62: 351.7613672 | D62: 196.835901 | E62: 21.55616541 | F62: 6.075594087 | G62: 1.362190482 | I62: 577.5912181
A63: MA. Hum. | C63: 452.955155 | D63: 452.7823863 | E63: 164.5425061 | F63: 63.97243186 | G63: 24.83378033 | I63: 1159.08626
A64: MA. Nat. | C64: 53.83833344 | D64: 57.32988212 | E64: 17.04983472 | F64: 11.8680222 | G64: 2.758061498 | I64: 142.844134
A65: MA. Ph.d. | C65: 0.9075032745 | D65: 11.74452691 | E65: 12.16054388 | F65: 2.214806961 | G65: 2.709411838 | I65: 29.73679286
A66: MA. Samf. | C66: 145.3452255 | D66: 101.0746585 | E66: 14.88367742 | F66: 7.671677166 | G66: 0.9998128859 | I66: 269.9750515
A67: Øvrige Mag. | C67: 34.86309487 | D67: 26.31073411 | E67: 9.651344103 | F67: 12.48549866 | G67: 3.552672613 | I67: 86.86334435
A68: Agronom | C68: 11.2436849 | D68: 2.161167592 | E68: 4.282417514 | F68: 0.5382648288 | G68: 0.9998128859 | I68: 19.22534772
A69: Landsk. Arkt. | C69: 12.86471652 | D69: 12.85598453 | E69: 0 | F69: 1.473211501 | G69: 0 | I69: 27.19391256
A70: Hortonom | C70: 0 | D70: 0 | E70: 0.7228840516 | F70: 0 | G70: 0 | I70: 0.7228840516
A71: Forstkand. | C71: 3.777833219 | D71: 3.568265453 | E71: 0 | F71: 0.9998128859 | G71: 0 | I71: 8.345911557
A72: Jordbrugsakad. | C72: 27.88623464 | D72: 18.58541758 | E72: 5.005301566 | F72: 3.011289216 | G72: 0.9998128859 | I72: 55.48805588
A73: Mejeriing. | C73: 3.860787127 | D73: 0 | E73: 0 | F73: 0 | G73: 0 | I73: 3.860787127
A74: Levn.m.kand. | C74: 10.80958024 | D74: 8.798103911 | E74: 0.6162290276 | F74: 0 | G74: 0 | I74: 20.22391318
A75: Dyrlæge | C75: 8.493107965 | D75: 7.121561779 | E75: 2.257219485 | F75: 1.722696938 | G75: 0.9792303374 | I75: 20.5738165
A76: Farmaceut | C76: 58.14944178 | D76: 18.2423751 | E76: 1.368427618 | F76: 3.445393875 | G76: 0.9998128859 | I76: 82.20545126
A77: Læge | C77: 19.21100231 | D77: 23.93625647 | E77: 2.73747895 | F77: 2.214806961 | G77: 0 | I77: 48.09954469
A78: Tandlæge | C78: 4.798852367 | D78: 2.274059752 | E78: 0 | F78: 0.9998128859 | G78: 0 | I78: 8.072725005
A79: Arkitekt | C79: 58.8342793 | D79: 68.48749454 | E79: 29.46360631 | F79: 16.54462671 | G79: 10.28940311 | I79: 183.61941
A80: Landinspek. | C80: 0 | D80: 0 | E80: 0.9998128859 | F80: 0 | G80: 0 | I80: 0.9998128859
A81: Bibliotekar | C81: 8.524293644 | D81: 14.39343853 | E81: 9.965072039 | F81: 7.514501341 | G81: 3.565146885 | I81: 43.96245244
A82: Musikudd. | C82: 0.9998128859 | D82: 3.65808021 | E82: 0.4459552174 | F82: 1.810640554 | G82: 0 | I82: 6.914488867
A83: Teolog | C83: 4.119628267 | D83: 6.636936319 | E83: 1.953470966 | F83: 4.176386203 | G83: 0 | I83: 16.88642176
A84: Psykolog | C84: 54.43086135 | D84: 49.8347159 | E84: 8.49747396 | F84: 0 | G84: 1.768851743 | I84: 114.531903
A85: Jurist | C85: 60.53265141 | D85: 18.99394998 | E85: 13.83022516 | F85: 11.07590594 | G85: 6.902638308 | I85: 111.3353708
A86: Økonom | C86: 33.72731242 | D86: 13.17470218 | E86: 10.49709973 | F86: 5.906567704 | G86: 5.768103287 | I86: 69.07378532
A87: Samf. Adm. | C87: 299.6345038 | D87: 231.9790432 | E87: 55.72194848 | F87: 30.94243124 | G87: 6.628204329 | I87: 624.9061311
A88: Cand. Merc. | C88: 291.5000312 | D88: 173.1516248 | E88: 49.97505146 | F88: 24.90488368 | G88: 3.302563463 | I88: 542.8341546
A89: HA | C89: 52.12873449 | D89: 17.7328011 | E89: 4.306742344 | F89: 6.711158236 | G89: 1.630387326 | I89: 82.50982349
A90: HD | C90: 90.4496975 | D90: 24.09467972 | E90: 2.999438658 | F90: 6.681843697 | G90: 3.291960332 | I90: 127.5176199
A91: Komm. og Sprog | C91: 63.01565521 | D91: 44.71215618 | E91: 26.69618911 | F91: 10.22827917 | G91: 4.583671178 | I91: 149.2359509
A92: Cand. IT. | C92: 60.01871141 | D92: 32.41751388 | E92: 10.01684027 | F92: 3.767853802 | G92: 0.3068670866 | I92: 106.5277864
A93: Bac. Samf. | C93: 9.066924468 | D93: 6.054387825 | E93: 5.399488555 | F93: 1.810640554 | G93: 1.999625772 | I93: 24.33106717
A94: Bac. Hum. | C94: 69.13054325 | D94: 25.05332751 | E94: 16.61261149 | F94: 5.860412898 | G94: 4.389072538 | I94: 121.0459677
A95: Bac. Nat. | C95: 48.91099607 | D95: 15.16060625 | E95: 1.538077715 | F95: 2.999438658 | G95: 0 | I95: 68.60911869
A96: Andre | C96: 166.0194599 | D96: 192.2915237 | E96: 73.62814196 | F96: 54.87307428 | G96: 15.83671178 | I96: 502.6489116
A98: Total | C98: 2735.867274 | D98: 1942.94767 | E98: 606.9874634 | F98: 350.0112268 | G98: 121.1326639 | I98: 5756.946298
A100: Ingeniører i alt | C100: 191.9434915 | D100: 80.08482505 | E100: 32.6114888 | F100: 38.52055136 | G100: 11.67467099 | I100: 354.8350278
A101: Magistre i alt | C101: 687.909312 | D101: 649.242188 | E101: 218.2879062 | F101: 98.21243685 | G101: 34.85373916 | I101: 1688.505582
A102: DJØF'ere i alt | C102: 737.5232333 | D102: 455.0321212 | E102: 134.3310672 | F102: 79.5409468 | G102: 24.23189671 | I102: 1430.659265
A109: Frederiksberg
C111: Under 30 år | D111: 30 - 39 år | E111: 40 - 49 år | F111: 50 - 59 år | G111: Over 60 år | I111: I alt
A113: Civ. ing. | C113: 7.736543379 | D113: 9.144264954 | E113: 5.121936007 | F113: 4.051019772 | G113: 0.8613484688 | I113: 26.91511258
A114: Diplom ing. | C114: 6.752323333 | D114: 0 | E114: 5.998877316 | F114: 4.706542756 | G114: 0.8208070854 | I114: 18.27855049
A115: Cand. Scient. Tek | C115: 38.56857731 | D115: 19.34946672 | E115: 4.952909624 | F115: 1.999625772 | G115: 0 | I115: 64.87057943
A116: MA. Hum. | C116: 52.99632009 | D116: 44.24249984 | E116: 29.94386578 | F116: 10.0411651 | G116: 3.756003243 | I116: 140.9798541
A117: MA. Nat. | C117: 8.302251606 | D117: 6.444832533 | E117: 2.330193975 | F117: 2.378843635 | G117: 0.9998128859 | I117: 20.45593463
A118: MA. Ph.d. | C118: 0.9998128859 | D118: 0.9998128859 | E118: 3.614420258 | F118: 0.9998128859 | G118: 0 | I118: 6.613858916
A119: MA. Samf. | C119: 9.238445706 | D119: 11.88860475 | E119: 5.214245618 | F119: 0.9998128859 | G119: 0 | I119: 27.34110896
A120: Øvrige Mag. | C120: 2.136219048 | D120: 2.955778706 | E120: 3.943741034 | F120: 0.9998128859 | G120: 0.9998128859 | I120: 11.03536456
A121: Agronom | C121: 2.676355018 | D121: 0.9380652404 | E121: 0 | F121: 0.5900330568 | G121: 0 | I121: 4.204453315
A122: Landsk. Arkt. | C122: 2.399426183 | D122: 0 | E122: 0 | F122: 0 | G122: 0 | I122: 2.399426183
A123: Hortonom | C123: 0 | D123: 0 | E123: 0 | F123: 0 | G123: 0 | I123: 0
A124: Forstkand. | C124: 0 | D124: 0 | E124: 0 | F124: 0 | G124: 0 | I124: 0
A125: Jordbrugsakad. | C125: 5.075781201 | D125: 0.9380652404 | E125: 0 | F125: 0.5900330568 | G125: 0 | I125: 6.603879499
A126: Mejeriing. | C126: 1.445768103 | D126: 0 | E126: 0 | F126: 0 | G126: 0 | I126: 1.445768103
A127: Levn.m.kand. | C127: 4.187613048 | D127: 0.9998128859 | E127: 0.9075032745 | F127: 0 | G127: 0 | I127: 6.094929209
A128: Dyrlæge | C128: 1.999625772 | D128: 0 | E128: 0 | F128: 1.669057569 | G128: 0 | I128: 3.668683341
A129: Farmaceut | C129: 6.106156053 | D129: 2.722509823 | E129: 0 | F129: 1.120189609 | G129: 0 | I129: 9.948855486
A130: Læge | C130: 2.443709848 | D130: 2.794236886 | E130: 0.5844196345 | F130: 0 | G130: 0 | I130: 5.822366369
A131: Tandlæge | C131: 0.9998128859 | D131: 0.2313977422 | E131: 0 | F131: 0 | G131: 0 | I131: 1.231210628
A132: Arkitekt | C132: 12.05014657 | D132: 6.725503649 | E132: 3.660575064 | F132: 2.999438658 | G132: 0.9998128859 | I132: 26.43547683
A133: Landinspek. | C133: 0 | D133: 0 | E133: 0 | F133: 0 | G133: 0 | I133: 0
A134: Bibliotekar | C134: 1.523108589 | D134: 1.353458492 | E134: 3.306929458 | F134: 0 | G134: 0.9998128859 | I134: 7.183309424
A135: Musikudd. | C135: 0.2887793925 | D135: 0 | E135: 0 | F135: 0.9998128859 | G135: 0 | I135: 1.288592278
A136: Teolog | C136: 0.9998128859 | D136: 0 | E136: 0.9050084201 | F136: 0 | G136: 0 | I136: 1.904821306
A137: Psykolog | C137: 9.86278301 | D137: 10.64429614 | E137: 0 | F137: 0.1228715774 | G137: 0 | I137: 20.62995073
A138: Jurist | C138: 4.399051955 | D138: 5.837335496 | E138: 7.473959958 | F138: 1.891723321 | G138: 1.445768103 | I138: 21.04783883
A139: Økonom | C139: 4.418387077 | D139: 2.907129046 | E139: 0 | F139: 0 | G139: 1.999625772 | I139: 9.325141895
A140: Samf. Adm. | C140: 26.2090688 | D140: 29.68627206 | E140: 9.582735608 | F140: 7.856296389 | G140: 1.999625772 | I140: 75.33399863
A141: Cand. Merc. | C141: 53.36805339 | D141: 28.90288779 | E141: 17.68664629 | F141: 7.352335807 | G141: 0.9998128859 | I141: 108.3097362
A142: HA | C142: 7.135283478 | D142: 0.5052080085 | E142: 0 | F142: 0.9948231772 | G142: 0.9998128859 | I142: 9.635127549
A143: HD | C143: 14.7221356 | D143: 3.999251544 | E143: 0.9075032745 | F143: 2.214806961 | G143: 0.5382648288 | I143: 22.3819622
A144: Komm. og Sprog | C144: 13.39175451 | D144: 10.22079461 | E144: 6.629451756 | F144: 0.6767292459 | G144: 0 | I144: 30.91873012
A145: Cand. IT. | C145: 2.999438658 | D145: 3.906941932 | E145: 2.660762178 | F145: 1.122684463 | G145: 0 | I145: 10.68982723
A146: Bac. Samf. | C146: 1.113952473 | D146: 0.1041601697 | E146: 0 | F146: 0 | G146: 0 | I146: 1.218112643
A147: Bac. Hum. | C147: 4.768290401 | D147: 6.006985592 | E147: 1.999625772 | F147: 1.999625772 | G147: 0 | I147: 14.77452754
A148: Bac. Nat. | C148: 6.08307865 | D148: 2.860974241 | E148: 0 | F148: 0 | G148: 0 | I148: 8.944052891
A149: Andre | C149: 23.43603817 | D149: 22.53352461 | E149: 12.35327138 | F149: 9.860288156 | G149: 1.153246429 | I149: 69.33636874
A151: Total | C151: 335.7581239 | D151: 238.9060064 | E151: 129.7785817 | F151: 67.64735234 | G151: 18.57356702 | I151: 790.6636313
A153: Ingeniører i alt | C153: 14.48886671 | D153: 9.144264954 | E153: 11.12081332 | F153: 8.757562527 | G153: 1.682155554 | I153: 45.19366307
A154: Magistre i alt | C154: 73.67304934 | D154: 66.53152872 | E154: 45.04646666 | F154: 15.41944739 | G154: 5.755629015 | I154: 206.4261211
A155: DJØF'ere i alt | C155: 95.5298447 | D155: 67.83883241 | E155: 34.74334186 | F155: 18.09517869 | G155: 7.444645419 | I155: 223.6518431
A162: Ballerup
C164: Under 30 år | D164: 30 - 39 år | E164: 40 - 49 år | F164: 50 - 59 år | G164: Over 60 år | I164: I alt
A166: Civ. ing. | C166: 2.391317907 | D166: 0.5382648288 | E166: 0.9075032745 | F166: 0.9998128859 | G166: 0.9998128859 | I166: 5.836711782
A167: Diplom ing. | C167: 3.810890039 | D167: 2.170523296 | E167: 3.860787127 | F167: 1.999625772 | G167: 1.077153371 | I167: 12.9189796
A168: Cand. Scient. Tek | C168: 9.736169151 | D168: 3.248924094 | E168: 2.860974241 | F168: 0 | G168: 0 | I168: 15.84606749
A169: MA. Hum. | C169: 1.69712468 | D169: 3.404228778 | E169: 2.832283415 | F169: 0 | G169: 0.9998128859 | I169: 8.93344976
A170: MA. Nat. | C170: 0.9075032745 | D170: 0.7690388574 | E170: 0.9998128859 | F170: 0 | G170: 0 | I170: 2.676355018
A171: MA. Ph.d. | C171: 0 | D171: 0.9998128859 | E171: 0.5002182998 | F171: 0 | G171: 0 | I171: 1.500031186
A172: MA. Samf. | C172: 0 | D172: 0 | E172: 0 | F172: 0 | G172: 0 | I172: 0
A173: Øvrige Mag. | C173: 0 | D173: 0.9998128859 | E173: 0 | F173: 0.9998128859 | G173: 0 | I173: 1.999625772
A174: Agronom | C174: 0 | D174: 0 | E174: 0 | F174: 0.9998128859 | G174: 0 | I174: 0.9998128859
A175: Landsk. Arkt. | C175: 0 | D175: 0 | E175: 0 | F175: 0 | G175: 0 | I175: 0
A176: Hortonom | C176: 0 | D176: 0 | E176: 0 | F176: 0 | G176: 0 | I176: 0
A177: Forstkand. | C177: 0 | D177: 0 | E177: 0 | F177: 0 | G177: 0 | I177: 0
A178: Jordbrugsakad. | C178: 0 | D178: 0 | E178: 0 | F178: 0.9998128859 | G178: 0 | I178: 0.9998128859
A179: Mejeriing. | C179: 0 | D179: 0 | E179: 0 | F179: 0.5794299258 | G179: 0 | I179: 0.5794299258
A180: Levn.m.kand. | C180: 0 | D180: 0 | E180: 0 | F180: 0 | G180: 0 | I180: 0
A181: Dyrlæge | C181: 0 | D181: 0 | E181: 0 | F181: 0 | G181: 0 | I181: 0
A182: Farmaceut | C182: 1.974677228 | D182: 0 | E182: 0 | F182: 0.6767292459 | G182: 0 | I182: 2.651406474
A183: Læge | C183: 0 | D183: 0 | E183: 0 | F183: 0 | G183: 0 | I183: 0
A184: Tandlæge | C184: 0 | D184: 0 | E184: 0 | F184: 0 | G184: 0 | I184: 0
A185: Arkitekt | C185: 0.9998128859 | D185: 0 | E185: 0 | F185: 0 | G185: 0 | I185: 0.9998128859
A186: Landinspek. | C186: 0 | D186: 0 | E186: 0 | F186: 0 | G186: 0 | I186: 0
A187: Bibliotekar | C187: 1.307303686 | D187: 0.8151936631 | E187: 0 | F187: 0.9998128859 | G187: 0 | I187: 3.122310235
A188: Musikudd. | C188: 0 | D188: 0 | E188: 0 | F188: 0 | G188: 0 | I188: 0
A189: Teolog | C189: 0 | D189: 0 | E189: 0 | F189: 0 | G189: 0 | I189: 0
A190: Psykolog | C190: 0 | D190: 0 | E190: 0.6754818187 | F190: 0 | G190: 0 | I190: 0.6754818187
A191: Jurist | C191: 1.999625772 | D191: 0 | E191: 0.9998128859 | F191: 0.5382648288 | G191: 0 | I191: 3.537703487
A192: Økonom | C192: 0 | D192: 0 | E192: 0 | F192: 0 | G192: 0 | I192: 0
A193: Samf. Adm. | C193: 1.631634753 | D193: 3.492172394 | E193: 0.9998128859 | F193: 1.999625772 | G193: 0 | I193: 8.123245806
A194: Cand. Merc. | C194: 1.902326452 | D194: 1.722696938 | E194: 0.8613484688 | F194: 1.890475893 | G194: 0 | I194: 6.376847752
A195: HA | C195: 1.999625772 | D195: 0 | E195: 0 | F195: 1.101478201 | G195: 0.1228715774 | I195: 3.22397555
A196: HD | C196: 0 | D196: 0.9998128859 | E196: 1.999625772 | F196: 0.9998128859 | G196: 0 | I196: 3.999251544
A197: Komm. og Sprog | C197: 1.90731616 | D197: 0.8151936631 | E197: 0 | F197: 0 | G197: 0 | I197: 2.722509823
A198: Cand. IT. | C198: 0 | D198: 1.999625772 | E198: 0 | F198: 0 | G198: 0 | I198: 1.999625772
A199: Bac. Samf. | C199: 0 | D199: 0 | E199: 0 | F199: 0 | G199: 0 | I199: 0
A200: Bac. Hum. | C200: 0 | D200: 0 | E200: 0 | F200: 0 | G200: 0 | I200: 0
A201: Bac. Nat. | C201: 0.9998128859 | D201: 0 | E201: 0.9075032745 | F201: 0 | G201: 0 | I201: 1.90731616
A202: Andre | C202: 3.953096738 | D202: 2.999438658 | E202: 0.9998128859 | F202: 0 | G202: 0 | I202: 7.952348282
A204: Total | C204: 37.21823739 | D204: 24.9747396 | E204: 19.40497723 | F204: 13.78469407 | G204: 3.19965072 | I204: 98.58229901
A206: Ingeniører i alt | C206: 6.202207946 | D206: 2.708788124 | E206: 4.768290401 | F206: 2.999438658 | G206: 2.076966257 | I206: 18.75569139
A207: Magistre i alt | C207: 2.604627955 | D207: 6.172893407 | E207: 4.332314601 | F207: 0.9998128859 | G207: 0.9998128859 | I207: 15.10946174
A208: DJØF'ere i alt | C208: 7.533212749 | D208: 5.214869332 | E208: 2.860974241 | F208: 5.529844695 | G208: 0.1228715774 | I208: 21.26177259
A215: Brøndby
C217: Under 30 år | D217: 30 - 39 år | E217: 40 - 49 år | F217: 50 - 59 år | G217: Over 60 år | I217: I alt
A219: Civ. ing. | C219: 2.343915674 | D219: 0 | E219: 0.6698683964 | F219: 1.722696938 | G219: 0 | I219: 4.736481008
A220: Diplom ing. | C220: 0.9998128859 | D220: 0 | E220: 0.9998128859 | F220: 0.9998128859 | G220: 0 | I220: 2.999438658
A221: Cand. Scient. Tek | C221: 6.91511258 | D221: 2.076342544 | E221: 0.9998128859 | F221: 0.9998128859 | G221: 0 | I221: 10.9910809
A222: MA. Hum. | C222: 1.676542132 | D222: 5.983284476 | E222: 0.9998128859 | F222: 0 | G222: 0 | I222: 8.659639494
A223: MA. Nat. | C223: 0.9998128859 | D223: 0 | E223: 1.815006549 | F223: 0.6305744402 | G223: 0 | I223: 3.445393875
A224: MA. Ph.d. | C224: 0 | D224: 0 | E224: 0.8613484688 | F224: 0 | G224: 0 | I224: 0.8613484688
A225: MA. Samf. | C225: 0.9998128859 | D225: 1.076529658 | E225: 0 | F225: 0 | G225: 0 | I225: 2.076342544
A226: Øvrige Mag. | C226: 0.9998128859 | D226: 0.9998128859 | E226: 0 | F226: 0 | G226: 0.9998128859 | I226: 2.999438658
A227: Agronom | C227: 0 | D227: 0 | E227: 0 | F227: 0 | G227: 0 | I227: 0
A228: Landsk. Arkt. | C228: 0 | D228: 0 | E228: 0 | F228: 0 | G228: 0 | I228: 0
A229: Hortonom | C229: 0 | D229: 0 | E229: 0 | F229: 0 | G229: 0 | I229: 0
A230: Forstkand. | C230: 0 | D230: 0 | E230: 0 | F230: 0 | G230: 0 | I230: 0
A231: Jordbrugsakad. | C231: 0 | D231: 0 | E231: 0 | F231: 0 | G231: 0 | I231: 0
A232: Mejeriing. | C232: 0 | D232: 0 | E232: 0 | F232: 0 | G232: 0 | I232: 0
A233: Levn.m.kand. | C233: 0 | D233: 0 | E233: 0 | F233: 0 | G233: 0 | I233: 0
A234: Dyrlæge | C234: 0 | D234: 0.8844258716 | E234: 0 | F234: 0 | G234: 0 | I234: 0.8844258716
A235: Farmaceut | C235: 0.8613484688 | D235: 0 | E235: 0 | F235: 0 | G235: 0 | I235: 0.8613484688
A236: Læge | C236: 0 | D236: 0 | E236: 0 | F236: 0 | G236: 0 | I236: 0
A237: Tandlæge | C237: 0 | D237: 0 | E237: 0 | F237: 0 | G237: 0.9075032745 | I237: 0.9075032745
A238: Arkitekt | C238: 0 | D238: 0.9998128859 | E238: 0 | F238: 0 | G238: 0 | I238: 0.9998128859
A239: Landinspek. | C239: 0 | D239: 0 | E239: 0 | F239: 0 | G239: 0 | I239: 0
A240: Bibliotekar | C240: 0 | D240: 0.9075032745 | E240: 0 | F240: 0 | G240: 0 | I240: 0.9075032745
A241: Musikudd. | C241: 0 | D241: 0 | E241: 0 | F241: 0 | G241: 0 | I241: 0
A242: Teolog | C242: 0 | D242: 0 | E242: 0 | F242: 0 | G242: 0 | I242: 0
A243: Psykolog | C243: 0 | D243: 0 | E243: 0 | F243: 0 | G243: 0 | I243: 0
... 1048 more rows

Sheet Tabel 4P H
A1: Tabel 4. Ledighedsberørte - aldersfordelt
A3: Hovedstaden
C5: Under 30 år | D5: 30 - 39 år | E5: 40 - 49 år | F5: 50 - 59 år | G5: Over 60 år | I5: I alt
A7: Civ. ing. | C7: =IF(OR('Tabel 4F H'!C7<5,'Tabel 4 H'!C7<0.5),"-",IFERROR('Tabel 4 H'!C7/'Tabel 4F H'!C7*100,"-")) -> 11.015625 | D7: =IF(OR('Tabel 4F H'!D7<5,'Tabel 4 H'!D7<0.5),"-",IFERROR('Tabel 4 H'!D7/'Tabel 4F H'!D7*100,"-")) -> 2.587117212 | E7: =IF(OR('Tabel 4F H'!E7<5,'Tabel 4 H'!E7<0.5),"-",IFERROR('Tabel 4 H'!E7/'Tabel 4F H'!E7*100,"-")) -> 1.407407407 | F7: =IF(OR('Tabel 4F H'!F7<5,'Tabel 4 H'!F7<0.5),"-",IFERROR('Tabel 4 H'!F7/'Tabel 4F H'!F7*100,"-")) -> 1.676745465 | G7: =IF(OR('Tabel 4F H'!G7<5,'Tabel 4 H'!G7<0.5),"-",IFERROR('Tabel 4 H'!G7/'Tabel 4F H'!G7*100,"-")) -> 2.991840435 | I7: =IF(OR('Tabel 4F H'!I7<5,'Tabel 4 H'!I7<0.5),"-",IFERROR('Tabel 4 H'!I7/'Tabel 4F H'!I7*100,"-")) -> 3.4051547
A8: Diplom ing. | C8: =IF(OR('Tabel 4F H'!C8<5,'Tabel 4 H'!C8<0.5),"-",IFERROR('Tabel 4 H'!C8/'Tabel 4F H'!C8*100,"-")) -> 10.58052434 | D8: =IF(OR('Tabel 4F H'!D8<5,'Tabel 4 H'!D8<0.5),"-",IFERROR('Tabel 4 H'!D8/'Tabel 4F H'!D8*100,"-")) -> 2.931745305 | E8: =IF(OR('Tabel 4F H'!E8<5,'Tabel 4 H'!E8<0.5),"-",IFERROR('Tabel 4 H'!E8/'Tabel 4F H'!E8*100,"-")) -> 1.912568306 | F8: =IF(OR('Tabel 4F H'!F8<5,'Tabel 4 H'!F8<0.5),"-",IFERROR('Tabel 4 H'!F8/'Tabel 4F H'!F8*100,"-")) -> 1.988071571 | G8: =IF(OR('Tabel 4F H'!G8<5,'Tabel 4 H'!G8<0.5),"-",IFERROR('Tabel 4 H'!G8/'Tabel 4F H'!G8*100,"-")) -> 3.370786517 | I8: =IF(OR('Tabel 4F H'!I8<5,'Tabel 4 H'!I8<0.5),"-",IFERROR('Tabel 4 H'!I8/'Tabel 4F H'!I8*100,"-")) -> 3.022487306
A9: Cand. Scient. Tek | C9: =IF(OR('Tabel 4F H'!C9<5,'Tabel 4 H'!C9<0.5),"-",IFERROR('Tabel 4 H'!C9/'Tabel 4F H'!C9*100,"-")) -> 20.67830095 | D9: =IF(OR('Tabel 4F H'!D9<5,'Tabel 4 H'!D9<0.5),"-",IFERROR('Tabel 4 H'!D9/'Tabel 4F H'!D9*100,"-")) -> 7.67699115 | E9: =IF(OR('Tabel 4F H'!E9<5,'Tabel 4 H'!E9<0.5),"-",IFERROR('Tabel 4 H'!E9/'Tabel 4F H'!E9*100,"-")) -> 3.991596639 | F9: =IF(OR('Tabel 4F H'!F9<5,'Tabel 4 H'!F9<0.5),"-",IFERROR('Tabel 4 H'!F9/'Tabel 4F H'!F9*100,"-")) -> 3.495145631 | G9: =IF(OR('Tabel 4F H'!G9<5,'Tabel 4 H'!G9<0.5),"-",IFERROR('Tabel 4 H'!G9/'Tabel 4F H'!G9*100,"-")) -> 7.920792079 | I9: =IF(OR('Tabel 4F H'!I9<5,'Tabel 4 H'!I9<0.5),"-",IFERROR('Tabel 4 H'!I9/'Tabel 4F H'!I9*100,"-")) -> 11.01968545
A10: MA. Hum. | C10: =IF(OR('Tabel 4F H'!C10<5,'Tabel 4 H'!C10<0.5),"-",IFERROR('Tabel 4 H'!C10/'Tabel 4F H'!C10*100,"-")) -> 26.33371169 | D10: =IF(OR('Tabel 4F H'!D10<5,'Tabel 4 H'!D10<0.5),"-",IFERROR('Tabel 4 H'!D10/'Tabel 4F H'!D10*100,"-")) -> 10.13333333 | E10: =IF(OR('Tabel 4F H'!E10<5,'Tabel 4 H'!E10<0.5),"-",IFERROR('Tabel 4 H'!E10/'Tabel 4F H'!E10*100,"-")) -> 4.833647207 | F10: =IF(OR('Tabel 4F H'!F10<5,'Tabel 4 H'!F10<0.5),"-",IFERROR('Tabel 4 H'!F10/'Tabel 4F H'!F10*100,"-")) -> 5.738029284 | G10: =IF(OR('Tabel 4F H'!G10<5,'Tabel 4 H'!G10<0.5),"-",IFERROR('Tabel 4 H'!G10/'Tabel 4F H'!G10*100,"-")) -> 6.455026455 | I10: =IF(OR('Tabel 4F H'!I10<5,'Tabel 4 H'!I10<0.5),"-",IFERROR('Tabel 4 H'!I10/'Tabel 4F H'!I10*100,"-")) -> 9.851111564
A11: MA. Nat. | C11: =IF(OR('Tabel 4F H'!C11<5,'Tabel 4 H'!C11<0.5),"-",IFERROR('Tabel 4 H'!C11/'Tabel 4F H'!C11*100,"-")) -> 18.27111984 | D11: =IF(OR('Tabel 4F H'!D11<5,'Tabel 4 H'!D11<0.5),"-",IFERROR('Tabel 4 H'!D11/'Tabel 4F H'!D11*100,"-")) -> 6.178073895 | E11: =IF(OR('Tabel 4F H'!E11<5,'Tabel 4 H'!E11<0.5),"-",IFERROR('Tabel 4 H'!E11/'Tabel 4F H'!E11*100,"-")) -> 1.785714286 | F11: =IF(OR('Tabel 4F H'!F11<5,'Tabel 4 H'!F11<0.5),"-",IFERROR('Tabel 4 H'!F11/'Tabel 4F H'!F11*100,"-")) -> 1.754385965 | G11: =IF(OR('Tabel 4F H'!G11<5,'Tabel 4 H'!G11<0.5),"-",IFERROR('Tabel 4 H'!G11/'Tabel 4F H'!G11*100,"-")) -> 2.209131075 | I11: =IF(OR('Tabel 4F H'!I11<5,'Tabel 4 H'!I11<0.5),"-",IFERROR('Tabel 4 H'!I11/'Tabel 4F H'!I11*100,"-")) -> 3.978999724
A12: MA. Ph.d. | C12: =IF(OR('Tabel 4F H'!C12<5,'Tabel 4 H'!C12<0.5),"-",IFERROR('Tabel 4 H'!C12/'Tabel 4F H'!C12*100,"-")) -> 9.523809524 | D12: =IF(OR('Tabel 4F H'!D12<5,'Tabel 4 H'!D12<0.5),"-",IFERROR('Tabel 4 H'!D12/'Tabel 4F H'!D12*100,"-")) -> 5.602240896 | E12: =IF(OR('Tabel 4F H'!E12<5,'Tabel 4 H'!E12<0.5),"-",IFERROR('Tabel 4 H'!E12/'Tabel 4F H'!E12*100,"-")) -> 6.516853933 | F12: =IF(OR('Tabel 4F H'!F12<5,'Tabel 4 H'!F12<0.5),"-",IFERROR('Tabel 4 H'!F12/'Tabel 4F H'!F12*100,"-")) -> 3.603603604 | G12: =IF(OR('Tabel 4F H'!G12<5,'Tabel 4 H'!G12<0.5),"-",IFERROR('Tabel 4 H'!G12/'Tabel 4F H'!G12*100,"-")) -> 6.329113924 | I12: =IF(OR('Tabel 4F H'!I12<5,'Tabel 4 H'!I12<0.5),"-",IFERROR('Tabel 4 H'!I12/'Tabel 4F H'!I12*100,"-")) -> 5.506072874
A13: MA. Samf. | C13: =IF(OR('Tabel 4F H'!C13<5,'Tabel 4 H'!C13<0.5),"-",IFERROR('Tabel 4 H'!C13/'Tabel 4F H'!C13*100,"-")) -> 23.29873126 | D13: =IF(OR('Tabel 4F H'!D13<5,'Tabel 4 H'!D13<0.5),"-",IFERROR('Tabel 4 H'!D13/'Tabel 4F H'!D13*100,"-")) -> 11.53024911 | E13: =IF(OR('Tabel 4F H'!E13<5,'Tabel 4 H'!E13<0.5),"-",IFERROR('Tabel 4 H'!E13/'Tabel 4F H'!E13*100,"-")) -> 6.382978723 | F13: =IF(OR('Tabel 4F H'!F13<5,'Tabel 4 H'!F13<0.5),"-",IFERROR('Tabel 4 H'!F13/'Tabel 4F H'!F13*100,"-")) -> 5.963302752 | G13: =IF(OR('Tabel 4F H'!G13<5,'Tabel 4 H'!G13<0.5),"-",IFERROR('Tabel 4 H'!G13/'Tabel 4F H'!G13*100,"-")) -> 2.222222222 | I13: =IF(OR('Tabel 4F H'!I13<5,'Tabel 4 H'!I13<0.5),"-",IFERROR('Tabel 4 H'!I13/'Tabel 4F H'!I13*100,"-")) -> 13.35914811
A14: Øvrige Mag. | C14: =IF(OR('Tabel 4F H'!C14<5,'Tabel 4 H'!C14<0.5),"-",IFERROR('Tabel 4 H'!C14/'Tabel 4F H'!C14*100,"-")) -> 28.48837209 | D14: =IF(OR('Tabel 4F H'!D14<5,'Tabel 4 H'!D14<0.5),"-",IFERROR('Tabel 4 H'!D14/'Tabel 4F H'!D14*100,"-")) -> 12.35955056 | E14: =IF(OR('Tabel 4F H'!E14<5,'Tabel 4 H'!E14<0.5),"-",IFERROR('Tabel 4 H'!E14/'Tabel 4F H'!E14*100,"-")) -> 5.253283302 | F14: =IF(OR('Tabel 4F H'!F14<5,'Tabel 4 H'!F14<0.5),"-",IFERROR('Tabel 4 H'!F14/'Tabel 4F H'!F14*100,"-")) -> 4.404145078 | G14: =IF(OR('Tabel 4F H'!G14<5,'Tabel 4 H'!G14<0.5),"-",IFERROR('Tabel 4 H'!G14/'Tabel 4F H'!G14*100,"-")) -> 7.142857143 | I14: =IF(OR('Tabel 4F H'!I14<5,'Tabel 4 H'!I14<0.5),"-",IFERROR('Tabel 4 H'!I14/'Tabel 4F H'!I14*100,"-")) -> 9.36497755
A15: Agronom | C15: =IF(OR('Tabel 4F H'!C15<5,'Tabel 4 H'!C15<0.5),"-",IFERROR('Tabel 4 H'!C15/'Tabel 4F H'!C15*100,"-")) -> 24.13793103 | D15: =IF(OR('Tabel 4F H'!D15<5,'Tabel 4 H'!D15<0.5),"-",IFERROR('Tabel 4 H'!D15/'Tabel 4F H'!D15*100,"-")) -> 5.263157895 | E15: =IF(OR('Tabel 4F H'!E15<5,'Tabel 4 H'!E15<0.5),"-",IFERROR('Tabel 4 H'!E15/'Tabel 4F H'!E15*100,"-")) -> 3.004291845 | F15: =IF(OR('Tabel 4F H'!F15<5,'Tabel 4 H'!F15<0.5),"-",IFERROR('Tabel 4 H'!F15/'Tabel 4F H'!F15*100,"-")) -> 3.571428571 | G15: =IF(OR('Tabel 4F H'!G15<5,'Tabel 4 H'!G15<0.5),"-",IFERROR('Tabel 4 H'!G15/'Tabel 4F H'!G15*100,"-")) -> 3.409090909 | I15: =IF(OR('Tabel 4F H'!I15<5,'Tabel 4 H'!I15<0.5),"-",IFERROR('Tabel 4 H'!I15/'Tabel 4F H'!I15*100,"-")) -> 5.911330049
A16: Landsk. Arkt. | C16: =IF(OR('Tabel 4F H'!C16<5,'Tabel 4 H'!C16<0.5),"-",IFERROR('Tabel 4 H'!C16/'Tabel 4F H'!C16*100,"-")) -> 31.81818182 | D16: =IF(OR('Tabel 4F H'!D16<5,'Tabel 4 H'!D16<0.5),"-",IFERROR('Tabel 4 H'!D16/'Tabel 4F H'!D16*100,"-")) -> 11.30952381 | E16: =IF(OR('Tabel 4F H'!E16<5,'Tabel 4 H'!E16<0.5),"-",IFERROR('Tabel 4 H'!E16/'Tabel 4F H'!E16*100,"-")) -> 2.142857143 | F16: =IF(OR('Tabel 4F H'!F16<5,'Tabel 4 H'!F16<0.5),"-",IFERROR('Tabel 4 H'!F16/'Tabel 4F H'!F16*100,"-")) -> 5.405405405 | G16: =IF(OR('Tabel 4F H'!G16<5,'Tabel 4 H'!G16<0.5),"-",IFERROR('Tabel 4 H'!G16/'Tabel 4F H'!G16*100,"-")) -> - | I16: =IF(OR('Tabel 4F H'!I16<5,'Tabel 4 H'!I16<0.5),"-",IFERROR('Tabel 4 H'!I16/'Tabel 4F H'!I16*100,"-")) -> 10.06423983
A17: Hortonom | C17: =IF(OR('Tabel 4F H'!C17<5,'Tabel 4 H'!C17<0.5),"-",IFERROR('Tabel 4 H'!C17/'Tabel 4F H'!C17*100,"-")) -> - | D17: =IF(OR('Tabel 4F H'!D17<5,'Tabel 4 H'!D17<0.5),"-",IFERROR('Tabel 4 H'!D17/'Tabel 4F H'!D17*100,"-")) -> - | E17: =IF(OR('Tabel 4F H'!E17<5,'Tabel 4 H'!E17<0.5),"-",IFERROR('Tabel 4 H'!E17/'Tabel 4F H'!E17*100,"-")) -> 2.040816327 | F17: =IF(OR('Tabel 4F H'!F17<5,'Tabel 4 H'!F17<0.5),"-",IFERROR('Tabel 4 H'!F17/'Tabel 4F H'!F17*100,"-")) -> 1.351351351 | G17: =IF(OR('Tabel 4F H'!G17<5,'Tabel 4 H'!G17<0.5),"-",IFERROR('Tabel 4 H'!G17/'Tabel 4F H'!G17*100,"-")) -> 5 | I17: =IF(OR('Tabel 4F H'!I17<5,'Tabel 4 H'!I17<0.5),"-",IFERROR('Tabel 4 H'!I17/'Tabel 4F H'!I17*100,"-")) -> 1.863354037
A18: Forstkand. | C18: =IF(OR('Tabel 4F H'!C18<5,'Tabel 4 H'!C18<0.5),"-",IFERROR('Tabel 4 H'!C18/'Tabel 4F H'!C18*100,"-")) -> 28.57142857 | D18: =IF(OR('Tabel 4F H'!D18<5,'Tabel 4 H'!D18<0.5),"-",IFERROR('Tabel 4 H'!D18/'Tabel 4F H'!D18*100,"-")) -> 15.38461538 | E18: =IF(OR('Tabel 4F H'!E18<5,'Tabel 4 H'!E18<0.5),"-",IFERROR('Tabel 4 H'!E18/'Tabel 4F H'!E18*100,"-")) -> - | F18: =IF(OR('Tabel 4F H'!F18<5,'Tabel 4 H'!F18<0.5),"-",IFERROR('Tabel 4 H'!F18/'Tabel 4F H'!F18*100,"-")) -> 2.816901408 | G18: =IF(OR('Tabel 4F H'!G18<5,'Tabel 4 H'!G18<0.5),"-",IFERROR('Tabel 4 H'!G18/'Tabel 4F H'!G18*100,"-")) -> 3.703703704 | I18: =IF(OR('Tabel 4F H'!I18<5,'Tabel 4 H'!I18<0.5),"-",IFERROR('Tabel 4 H'!I18/'Tabel 4F H'!I18*100,"-")) -> 5.747126437
A19: Jordbrugsakad. | C19: =IF(OR('Tabel 4F H'!C19<5,'Tabel 4 H'!C19<0.5),"-",IFERROR('Tabel 4 H'!C19/'Tabel 4F H'!C19*100,"-")) -> 27.42857143 | D19: =IF(OR('Tabel 4F H'!D19<5,'Tabel 4 H'!D19<0.5),"-",IFERROR('Tabel 4 H'!D19/'Tabel 4F H'!D19*100,"-")) -> 8.776595745 | E19: =IF(OR('Tabel 4F H'!E19<5,'Tabel 4 H'!E19<0.5),"-",IFERROR('Tabel 4 H'!E19/'Tabel 4F H'!E19*100,"-")) -> 2.095238095 | F19: =IF(OR('Tabel 4F H'!F19<5,'Tabel 4 H'!F19<0.5),"-",IFERROR('Tabel 4 H'!F19/'Tabel 4F H'!F19*100,"-")) -> 3.397027601 | G19: =IF(OR('Tabel 4F H'!G19<5,'Tabel 4 H'!G19<0.5),"-",IFERROR('Tabel 4 H'!G19/'Tabel 4F H'!G19*100,"-")) -> 3.246753247 | I19: =IF(OR('Tabel 4F H'!I19<5,'Tabel 4 H'!I19<0.5),"-",IFERROR('Tabel 4 H'!I19/'Tabel 4F H'!I19*100,"-")) -> 6.643151088
A20: Mejeriing. | C20: =IF(OR('Tabel 4F H'!C20<5,'Tabel 4 H'!C20<0.5),"-",IFERROR('Tabel 4 H'!C20/'Tabel 4F H'!C20*100,"-")) -> 23.07692308 | D20: =IF(OR('Tabel 4F H'!D20<5,'Tabel 4 H'!D20<0.5),"-",IFERROR('Tabel 4 H'!D20/'Tabel 4F H'!D20*100,"-")) -> 2.941176471 | E20: =IF(OR('Tabel 4F H'!E20<5,'Tabel 4 H'!E20<0.5),"-",IFERROR('Tabel 4 H'!E20/'Tabel 4F H'!E20*100,"-")) -> - | F20: =IF(OR('Tabel 4F H'!F20<5,'Tabel 4 H'!F20<0.5),"-",IFERROR('Tabel 4 H'!F20/'Tabel 4F H'!F20*100,"-")) -> 3.03030303 | G20: =IF(OR('Tabel 4F H'!G20<5,'Tabel 4 H'!G20<0.5),"-",IFERROR('Tabel 4 H'!G20/'Tabel 4F H'!G20*100,"-")) -> - | I20: =IF(OR('Tabel 4F H'!I20<5,'Tabel 4 H'!I20<0.5),"-",IFERROR('Tabel 4 H'!I20/'Tabel 4F H'!I20*100,"-")) -> 6.060606061
A21: Levn.m.kand. | C21: =IF(OR('Tabel 4F H'!C21<5,'Tabel 4 H'!C21<0.5),"-",IFERROR('Tabel 4 H'!C21/'Tabel 4F H'!C21*100,"-")) -> 25 | D21: =IF(OR('Tabel 4F H'!D21<5,'Tabel 4 H'!D21<0.5),"-",IFERROR('Tabel 4 H'!D21/'Tabel 4F H'!D21*100,"-")) -> 10.94890511 | E21: =IF(OR('Tabel 4F H'!E21<5,'Tabel 4 H'!E21<0.5),"-",IFERROR('Tabel 4 H'!E21/'Tabel 4F H'!E21*100,"-")) -> 7.352941176 | F21: =IF(OR('Tabel 4F H'!F21<5,'Tabel 4 H'!F21<0.5),"-",IFERROR('Tabel 4 H'!F21/'Tabel 4F H'!F21*100,"-")) -> 16.66666667 | G21: =IF(OR('Tabel 4F H'!G21<5,'Tabel 4 H'!G21<0.5),"-",IFERROR('Tabel 4 H'!G21/'Tabel 4F H'!G21*100,"-")) -> - | I21: =IF(OR('Tabel 4F H'!I21<5,'Tabel 4 H'!I21<0.5),"-",IFERROR('Tabel 4 H'!I21/'Tabel 4F H'!I21*100,"-")) -> 14.2384106
A22: Dyrlæge | C22: =IF(OR('Tabel 4F H'!C22<5,'Tabel 4 H'!C22<0.5),"-",IFERROR('Tabel 4 H'!C22/'Tabel 4F H'!C22*100,"-")) -> 13.19444444 | D22: =IF(OR('Tabel 4F H'!D22<5,'Tabel 4 H'!D22<0.5),"-",IFERROR('Tabel 4 H'!D22/'Tabel 4F H'!D22*100,"-")) -> 4.719764012 | E22: =IF(OR('Tabel 4F H'!E22<5,'Tabel 4 H'!E22<0.5),"-",IFERROR('Tabel 4 H'!E22/'Tabel 4F H'!E22*100,"-")) -> 3.167420814 | F22: =IF(OR('Tabel 4F H'!F22<5,'Tabel 4 H'!F22<0.5),"-",IFERROR('Tabel 4 H'!F22/'Tabel 4F H'!F22*100,"-")) -> 3.703703704 | G22: =IF(OR('Tabel 4F H'!G22<5,'Tabel 4 H'!G22<0.5),"-",IFERROR('Tabel 4 H'!G22/'Tabel 4F H'!G22*100,"-")) -> 5.769230769 | I22: =IF(OR('Tabel 4F H'!I22<5,'Tabel 4 H'!I22<0.5),"-",IFERROR('Tabel 4 H'!I22/'Tabel 4F H'!I22*100,"-")) -> 5.555555556
A23: Farmaceut | C23: =IF(OR('Tabel 4F H'!C23<5,'Tabel 4 H'!C23<0.5),"-",IFERROR('Tabel 4 H'!C23/'Tabel 4F H'!C23*100,"-")) -> 17.67515924 | D23: =IF(OR('Tabel 4F H'!D23<5,'Tabel 4 H'!D23<0.5),"-",IFERROR('Tabel 4 H'!D23/'Tabel 4F H'!D23*100,"-")) -> 2.908805031 | E23: =IF(OR('Tabel 4F H'!E23<5,'Tabel 4 H'!E23<0.5),"-",IFERROR('Tabel 4 H'!E23/'Tabel 4F H'!E23*100,"-")) -> 0.9146341463 | F23: =IF(OR('Tabel 4F H'!F23<5,'Tabel 4 H'!F23<0.5),"-",IFERROR('Tabel 4 H'!F23/'Tabel 4F H'!F23*100,"-")) -> 2.34375 | G23: =IF(OR('Tabel 4F H'!G23<5,'Tabel 4 H'!G23<0.5),"-",IFERROR('Tabel 4 H'!G23/'Tabel 4F H'!G23*100,"-")) -> 2.659574468 | I23: =IF(OR('Tabel 4F H'!I23<5,'Tabel 4 H'!I23<0.5),"-",IFERROR('Tabel 4 H'!I23/'Tabel 4F H'!I23*100,"-")) -> 4.768318966
A24: Læge | C24: =IF(OR('Tabel 4F H'!C24<5,'Tabel 4 H'!C24<0.5),"-",IFERROR('Tabel 4 H'!C24/'Tabel 4F H'!C24*100,"-")) -> 4.551724138 | D24: =IF(OR('Tabel 4F H'!D24<5,'Tabel 4 H'!D24<0.5),"-",IFERROR('Tabel 4 H'!D24/'Tabel 4F H'!D24*100,"-")) -> 2.052505967 | E24: =IF(OR('Tabel 4F H'!E24<5,'Tabel 4 H'!E24<0.5),"-",IFERROR('Tabel 4 H'!E24/'Tabel 4F H'!E24*100,"-")) -> 0.7259528131 | F24: =IF(OR('Tabel 4F H'!F24<5,'Tabel 4 H'!F24<0.5),"-",IFERROR('Tabel 4 H'!F24/'Tabel 4F H'!F24*100,"-")) -> 0.7915567282 | G24: =IF(OR('Tabel 4F H'!G24<5,'Tabel 4 H'!G24<0.5),"-",IFERROR('Tabel 4 H'!G24/'Tabel 4F H'!G24*100,"-")) -> - | I24: =IF(OR('Tabel 4F H'!I24<5,'Tabel 4 H'!I24<0.5),"-",IFERROR('Tabel 4 H'!I24/'Tabel 4F H'!I24*100,"-")) -> 1.763322884
A25: Tandlæge | C25: =IF(OR('Tabel 4F H'!C25<5,'Tabel 4 H'!C25<0.5),"-",IFERROR('Tabel 4 H'!C25/'Tabel 4F H'!C25*100,"-")) -> 6.993006993 | D25: =IF(OR('Tabel 4F H'!D25<5,'Tabel 4 H'!D25<0.5),"-",IFERROR('Tabel 4 H'!D25/'Tabel 4F H'!D25*100,"-")) -> 2 | E25: =IF(OR('Tabel 4F H'!E25<5,'Tabel 4 H'!E25<0.5),"-",IFERROR('Tabel 4 H'!E25/'Tabel 4F H'!E25*100,"-")) -> 0.5617977528 | F25: =IF(OR('Tabel 4F H'!F25<5,'Tabel 4 H'!F25<0.5),"-",IFERROR('Tabel 4 H'!F25/'Tabel 4F H'!F25*100,"-")) -> 0.6666666667 | G25: =IF(OR('Tabel 4F H'!G25<5,'Tabel 4 H'!G25<0.5),"-",IFERROR('Tabel 4 H'!G25/'Tabel 4F H'!G25*100,"-")) -> 4.054054054 | I25: =IF(OR('Tabel 4F H'!I25<5,'Tabel 4 H'!I25<0.5),"-",IFERROR('Tabel 4 H'!I25/'Tabel 4F H'!I25*100,"-")) -> 2.485207101
A26: Arkitekt | C26: =IF(OR('Tabel 4F H'!C26<5,'Tabel 4 H'!C26<0.5),"-",IFERROR('Tabel 4 H'!C26/'Tabel 4F H'!C26*100,"-")) -> 30.68592058 | D26: =IF(OR('Tabel 4F H'!D26<5,'Tabel 4 H'!D26<0.5),"-",IFERROR('Tabel 4 H'!D26/'Tabel 4F H'!D26*100,"-")) -> 8.39100346 | E26: =IF(OR('Tabel 4F H'!E26<5,'Tabel 4 H'!E26<0.5),"-",IFERROR('Tabel 4 H'!E26/'Tabel 4F H'!E26*100,"-")) -> 4.371097235 | F26: =IF(OR('Tabel 4F H'!F26<5,'Tabel 4 H'!F26<0.5),"-",IFERROR('Tabel 4 H'!F26/'Tabel 4F H'!F26*100,"-")) -> 4.806408545 | G26: =IF(OR('Tabel 4F H'!G26<5,'Tabel 4 H'!G26<0.5),"-",IFERROR('Tabel 4 H'!G26/'Tabel 4F H'!G26*100,"-")) -> 5.167173252 | I26: =IF(OR('Tabel 4F H'!I26<5,'Tabel 4 H'!I26<0.5),"-",IFERROR('Tabel 4 H'!I26/'Tabel 4F H'!I26*100,"-")) -> 7.81938326
A27: Landinspek. | C27: =IF(OR('Tabel 4F H'!C27<5,'Tabel 4 H'!C27<0.5),"-",IFERROR('Tabel 4 H'!C27/'Tabel 4F H'!C27*100,"-")) -> - | D27: =IF(OR('Tabel 4F H'!D27<5,'Tabel 4 H'!D27<0.5),"-",IFERROR('Tabel 4 H'!D27/'Tabel 4F H'!D27*100,"-")) -> 1.694915254 | E27: =IF(OR('Tabel 4F H'!E27<5,'Tabel 4 H'!E27<0.5),"-",IFERROR('Tabel 4 H'!E27/'Tabel 4F H'!E27*100,"-")) -> 1.923076923 | F27: =IF(OR('Tabel 4F H'!F27<5,'Tabel 4 H'!F27<0.5),"-",IFERROR('Tabel 4 H'!F27/'Tabel 4F H'!F27*100,"-")) -> - | G27: =IF(OR('Tabel 4F H'!G27<5,'Tabel 4 H'!G27<0.5),"-",IFERROR('Tabel 4 H'!G27/'Tabel 4F H'!G27*100,"-")) -> - | I27: =IF(OR('Tabel 4F H'!I27<5,'Tabel 4 H'!I27<0.5),"-",IFERROR('Tabel 4 H'!I27/'Tabel 4F H'!I27*100,"-")) -> 1.01010101
A28: Bibliotekar | C28: =IF(OR('Tabel 4F H'!C28<5,'Tabel 4 H'!C28<0.5),"-",IFERROR('Tabel 4 H'!C28/'Tabel 4F H'!C28*100,"-")) -> 24.07407407 | D28: =IF(OR('Tabel 4F H'!D28<5,'Tabel 4 H'!D28<0.5),"-",IFERROR('Tabel 4 H'!D28/'Tabel 4F H'!D28*100,"-")) -> 6.733167082 | E28: =IF(OR('Tabel 4F H'!E28<5,'Tabel 4 H'!E28<0.5),"-",IFERROR('Tabel 4 H'!E28/'Tabel 4F H'!E28*100,"-")) -> 3.812824957 | F28: =IF(OR('Tabel 4F H'!F28<5,'Tabel 4 H'!F28<0.5),"-",IFERROR('Tabel 4 H'!F28/'Tabel 4F H'!F28*100,"-")) -> 3.72960373 | G28: =IF(OR('Tabel 4F H'!G28<5,'Tabel 4 H'!G28<0.5),"-",IFERROR('Tabel 4 H'!G28/'Tabel 4F H'!G28*100,"-")) -> 3.558718861 | I28: =IF(OR('Tabel 4F H'!I28<5,'Tabel 4 H'!I28<0.5),"-",IFERROR('Tabel 4 H'!I28/'Tabel 4F H'!I28*100,"-")) -> 5.051664753
A29: Musikudd. | C29: =IF(OR('Tabel 4F H'!C29<5,'Tabel 4 H'!C29<0.5),"-",IFERROR('Tabel 4 H'!C29/'Tabel 4F H'!C29*100,"-")) -> 42.85714286 | D29: =IF(OR('Tabel 4F H'!D29<5,'Tabel 4 H'!D29<0.5),"-",IFERROR('Tabel 4 H'!D29/'Tabel 4F H'!D29*100,"-")) -> 9.090909091 | E29: =IF(OR('Tabel 4F H'!E29<5,'Tabel 4 H'!E29<0.5),"-",IFERROR('Tabel 4 H'!E29/'Tabel 4F H'!E29*100,"-")) -> 2.941176471 | F29: =IF(OR('Tabel 4F H'!F29<5,'Tabel 4 H'!F29<0.5),"-",IFERROR('Tabel 4 H'!F29/'Tabel 4F H'!F29*100,"-")) -> 2.325581395 | G29: =IF(OR('Tabel 4F H'!G29<5,'Tabel 4 H'!G29<0.5),"-",IFERROR('Tabel 4 H'!G29/'Tabel 4F H'!G29*100,"-")) -> 2.409638554 | I29: =IF(OR('Tabel 4F H'!I29<5,'Tabel 4 H'!I29<0.5),"-",IFERROR('Tabel 4 H'!I29/'Tabel 4F H'!I29*100,"-")) -> 4.229607251
A30: Teolog | C30: =IF(OR('Tabel 4F H'!C30<5,'Tabel 4 H'!C30<0.5),"-",IFERROR('Tabel 4 H'!C30/'Tabel 4F H'!C30*100,"-")) -> 33.33333333 | D30: =IF(OR('Tabel 4F H'!D30<5,'Tabel 4 H'!D30<0.5),"-",IFERROR('Tabel 4 H'!D30/'Tabel 4F H'!D30*100,"-")) -> 10.1010101 | E30: =IF(OR('Tabel 4F H'!E30<5,'Tabel 4 H'!E30<0.5),"-",IFERROR('Tabel 4 H'!E30/'Tabel 4F H'!E30*100,"-")) -> 2.463054187 | F30: =IF(OR('Tabel 4F H'!F30<5,'Tabel 4 H'!F30<0.5),"-",IFERROR('Tabel 4 H'!F30/'Tabel 4F H'!F30*100,"-")) -> 2.976190476 | G30: =IF(OR('Tabel 4F H'!G30<5,'Tabel 4 H'!G30<0.5),"-",IFERROR('Tabel 4 H'!G30/'Tabel 4F H'!G30*100,"-")) -> 1.587301587 | I30: =IF(OR('Tabel 4F H'!I30<5,'Tabel 4 H'!I30<0.5),"-",IFERROR('Tabel 4 H'!I30/'Tabel 4F H'!I30*100,"-")) -> 4.900181488
A31: Psykolog | C31: =IF(OR('Tabel 4F H'!C31<5,'Tabel 4 H'!C31<0.5),"-",IFERROR('Tabel 4 H'!C31/'Tabel 4F H'!C31*100,"-")) -> 13.63636364 | D31: =IF(OR('Tabel 4F H'!D31<5,'Tabel 4 H'!D31<0.5),"-",IFERROR('Tabel 4 H'!D31/'Tabel 4F H'!D31*100,"-")) -> 7.237354086 | E31: =IF(OR('Tabel 4F H'!E31<5,'Tabel 4 H'!E31<0.5),"-",IFERROR('Tabel 4 H'!E31/'Tabel 4F H'!E31*100,"-")) -> 2.074235808 | F31: =IF(OR('Tabel 4F H'!F31<5,'Tabel 4 H'!F31<0.5),"-",IFERROR('Tabel 4 H'!F31/'Tabel 4F H'!F31*100,"-")) -> 1.612903226 | G31: =IF(OR('Tabel 4F H'!G31<5,'Tabel 4 H'!G31<0.5),"-",IFERROR('Tabel 4 H'!G31/'Tabel 4F H'!G31*100,"-")) -> 2.43902439 | I31: =IF(OR('Tabel 4F H'!I31<5,'Tabel 4 H'!I31<0.5),"-",IFERROR('Tabel 4 H'!I31/'Tabel 4F H'!I31*100,"-")) -> 5.852417303
A32: Jurist | C32: =IF(OR('Tabel 4F H'!C32<5,'Tabel 4 H'!C32<0.5),"-",IFERROR('Tabel 4 H'!C32/'Tabel 4F H'!C32*100,"-")) -> 6.223306894 | D32: =IF(OR('Tabel 4F H'!D32<5,'Tabel 4 H'!D32<0.5),"-",IFERROR('Tabel 4 H'!D32/'Tabel 4F H'!D32*100,"-")) -> 1.540041068 | E32: =IF(OR('Tabel 4F H'!E32<5,'Tabel 4 H'!E32<0.5),"-",IFERROR('Tabel 4 H'!E32/'Tabel 4F H'!E32*100,"-")) -> 1.778282255 | F32: =IF(OR('Tabel 4F H'!F32<5,'Tabel 4 H'!F32<0.5),"-",IFERROR('Tabel 4 H'!F32/'Tabel 4F H'!F32*100,"-")) -> 1.613800779 | G32: =IF(OR('Tabel 4F H'!G32<5,'Tabel 4 H'!G32<0.5),"-",IFERROR('Tabel 4 H'!G32/'Tabel 4F H'!G32*100,"-")) -> 3.012048193 | I32: =IF(OR('Tabel 4F H'!I32<5,'Tabel 4 H'!I32<0.5),"-",IFERROR('Tabel 4 H'!I32/'Tabel 4F H'!I32*100,"-")) -> 2.505526898
A33: Økonom | C33: =IF(OR('Tabel 4F H'!C33<5,'Tabel 4 H'!C33<0.5),"-",IFERROR('Tabel 4 H'!C33/'Tabel 4F H'!C33*100,"-")) -> 6.024096386 | D33: =IF(OR('Tabel 4F H'!D33<5,'Tabel 4 H'!D33<0.5),"-",IFERROR('Tabel 4 H'!D33/'Tabel 4F H'!D33*100,"-")) -> 1.637279597 | E33: =IF(OR('Tabel 4F H'!E33<5,'Tabel 4 H'!E33<0.5),"-",IFERROR('Tabel 4 H'!E33/'Tabel 4F H'!E33*100,"-")) -> 1.483479434 | F33: =IF(OR('Tabel 4F H'!F33<5,'Tabel 4 H'!F33<0.5),"-",IFERROR('Tabel 4 H'!F33/'Tabel 4F H'!F33*100,"-")) -> 1.427371956 | G33: =IF(OR('Tabel 4F H'!G33<5,'Tabel 4 H'!G33<0.5),"-",IFERROR('Tabel 4 H'!G33/'Tabel 4F H'!G33*100,"-")) -> 6.40569395 | I33: =IF(OR('Tabel 4F H'!I33<5,'Tabel 4 H'!I33<0.5),"-",IFERROR('Tabel 4 H'!I33/'Tabel 4F H'!I33*100,"-")) -> 2.529325513
A34: Samf. Adm. | C34: =IF(OR('Tabel 4F H'!C34<5,'Tabel 4 H'!C34<0.5),"-",IFERROR('Tabel 4 H'!C34/'Tabel 4F H'!C34*100,"-")) -> 16.8627451 | D34: =IF(OR('Tabel 4F H'!D34<5,'Tabel 4 H'!D34<0.5),"-",IFERROR('Tabel 4 H'!D34/'Tabel 4F H'!D34*100,"-")) -> 5.259447265 | E34: =IF(OR('Tabel 4F H'!E34<5,'Tabel 4 H'!E34<0.5),"-",IFERROR('Tabel 4 H'!E34/'Tabel 4F H'!E34*100,"-")) -> 2.779003088 | F34: =IF(OR('Tabel 4F H'!F34<5,'Tabel 4 H'!F34<0.5),"-",IFERROR('Tabel 4 H'!F34/'Tabel 4F H'!F34*100,"-")) -> 3.412462908 | G34: =IF(OR('Tabel 4F H'!G34<5,'Tabel 4 H'!G34<0.5),"-",IFERROR('Tabel 4 H'!G34/'Tabel 4F H'!G34*100,"-")) -> 3.472222222 | I34: =IF(OR('Tabel 4F H'!I34<5,'Tabel 4 H'!I34<0.5),"-",IFERROR('Tabel 4 H'!I34/'Tabel 4F H'!I34*100,"-")) -> 6.091401082
A35: Cand. Merc. | C35: =IF(OR('Tabel 4F H'!C35<5,'Tabel 4 H'!C35<0.5),"-",IFERROR('Tabel 4 H'!C35/'Tabel 4F H'!C35*100,"-")) -> 10.41354189 | D35: =IF(OR('Tabel 4F H'!D35<5,'Tabel 4 H'!D35<0.5),"-",IFERROR('Tabel 4 H'!D35/'Tabel 4F H'!D35*100,"-")) -> 4.066830721 | E35: =IF(OR('Tabel 4F H'!E35<5,'Tabel 4 H'!E35<0.5),"-",IFERROR('Tabel 4 H'!E35/'Tabel 4F H'!E35*100,"-")) -> 3.318936122 | F35: =IF(OR('Tabel 4F H'!F35<5,'Tabel 4 H'!F35<0.5),"-",IFERROR('Tabel 4 H'!F35/'Tabel 4F H'!F35*100,"-")) -> 4.2258932 | G35: =IF(OR('Tabel 4F H'!G35<5,'Tabel 4 H'!G35<0.5),"-",IFERROR('Tabel 4 H'!G35/'Tabel 4F H'!G35*100,"-")) -> 5.625 | I35: =IF(OR('Tabel 4F H'!I35<5,'Tabel 4 H'!I35<0.5),"-",IFERROR('Tabel 4 H'!I35/'Tabel 4F H'!I35*100,"-")) -> 5.449010654
A36: HA | C36: =IF(OR('Tabel 4F H'!C36<5,'Tabel 4 H'!C36<0.5),"-",IFERROR('Tabel 4 H'!C36/'Tabel 4F H'!C36*100,"-")) -> 15.86998088 | D36: =IF(OR('Tabel 4F H'!D36<5,'Tabel 4 H'!D36<0.5),"-",IFERROR('Tabel 4 H'!D36/'Tabel 4F H'!D36*100,"-")) -> 6.12244898 | E36: =IF(OR('Tabel 4F H'!E36<5,'Tabel 4 H'!E36<0.5),"-",IFERROR('Tabel 4 H'!E36/'Tabel 4F H'!E36*100,"-")) -> 2.935420744 | F36: =IF(OR('Tabel 4F H'!F36<5,'Tabel 4 H'!F36<0.5),"-",IFERROR('Tabel 4 H'!F36/'Tabel 4F H'!F36*100,"-")) -> 4.962406015 | G36: =IF(OR('Tabel 4F H'!G36<5,'Tabel 4 H'!G36<0.5),"-",IFERROR('Tabel 4 H'!G36/'Tabel 4F H'!G36*100,"-")) -> 7.692307692 | I36: =IF(OR('Tabel 4F H'!I36<5,'Tabel 4 H'!I36<0.5),"-",IFERROR('Tabel 4 H'!I36/'Tabel 4F H'!I36*100,"-")) -> 7.37913486
A37: HD | C37: =IF(OR('Tabel 4F H'!C37<5,'Tabel 4 H'!C37<0.5),"-",IFERROR('Tabel 4 H'!C37/'Tabel 4F H'!C37*100,"-")) -> 23.60446571 | D37: =IF(OR('Tabel 4F H'!D37<5,'Tabel 4 H'!D37<0.5),"-",IFERROR('Tabel 4 H'!D37/'Tabel 4F H'!D37*100,"-")) -> 9.552845528 | E37: =IF(OR('Tabel 4F H'!E37<5,'Tabel 4 H'!E37<0.5),"-",IFERROR('Tabel 4 H'!E37/'Tabel 4F H'!E37*100,"-")) -> 2.521008403 | F37: =IF(OR('Tabel 4F H'!F37<5,'Tabel 4 H'!F37<0.5),"-",IFERROR('Tabel 4 H'!F37/'Tabel 4F H'!F37*100,"-")) -> 5.216284987 | G37: =IF(OR('Tabel 4F H'!G37<5,'Tabel 4 H'!G37<0.5),"-",IFERROR('Tabel 4 H'!G37/'Tabel 4F H'!G37*100,"-")) -> 7.553956835 | I37: =IF(OR('Tabel 4F H'!I37<5,'Tabel 4 H'!I37<0.5),"-",IFERROR('Tabel 4 H'!I37/'Tabel 4F H'!I37*100,"-")) -> 10.47244094
A38: Komm. og Sprog | C38: =IF(OR('Tabel 4F H'!C38<5,'Tabel 4 H'!C38<0.5),"-",IFERROR('Tabel 4 H'!C38/'Tabel 4F H'!C38*100,"-")) -> 17.44548287 | D38: =IF(OR('Tabel 4F H'!D38<5,'Tabel 4 H'!D38<0.5),"-",IFERROR('Tabel 4 H'!D38/'Tabel 4F H'!D38*100,"-")) -> 7.885304659 | E38: =IF(OR('Tabel 4F H'!E38<5,'Tabel 4 H'!E38<0.5),"-",IFERROR('Tabel 4 H'!E38/'Tabel 4F H'!E38*100,"-")) -> 4.823747681 | F38: =IF(OR('Tabel 4F H'!F38<5,'Tabel 4 H'!F38<0.5),"-",IFERROR('Tabel 4 H'!F38/'Tabel 4F H'!F38*100,"-")) -> 3.995299647 | G38: =IF(OR('Tabel 4F H'!G38<5,'Tabel 4 H'!G38<0.5),"-",IFERROR('Tabel 4 H'!G38/'Tabel 4F H'!G38*100,"-")) -> 5.204460967 | I38: =IF(OR('Tabel 4F H'!I38<5,'Tabel 4 H'!I38<0.5),"-",IFERROR('Tabel 4 H'!I38/'Tabel 4F H'!I38*100,"-")) -> 7.583417594
A39: Cand. IT. | C39: =IF(OR('Tabel 4F H'!C39<5,'Tabel 4 H'!C39<0.5),"-",IFERROR('Tabel 4 H'!C39/'Tabel 4F H'!C39*100,"-")) -> 15.51724138 | D39: =IF(OR('Tabel 4F H'!D39<5,'Tabel 4 H'!D39<0.5),"-",IFERROR('Tabel 4 H'!D39/'Tabel 4F H'!D39*100,"-")) -> 4.948805461 | E39: =IF(OR('Tabel 4F H'!E39<5,'Tabel 4 H'!E39<0.5),"-",IFERROR('Tabel 4 H'!E39/'Tabel 4F H'!E39*100,"-")) -> 2.884615385 | F39: =IF(OR('Tabel 4F H'!F39<5,'Tabel 4 H'!F39<0.5),"-",IFERROR('Tabel 4 H'!F39/'Tabel 4F H'!F39*100,"-")) -> 12.90322581 | G39: =IF(OR('Tabel 4F H'!G39<5,'Tabel 4 H'!G39<0.5),"-",IFERROR('Tabel 4 H'!G39/'Tabel 4F H'!G39*100,"-")) -> 28.57142857 | I39: =IF(OR('Tabel 4F H'!I39<5,'Tabel 4 H'!I39<0.5),"-",IFERROR('Tabel 4 H'!I39/'Tabel 4F H'!I39*100,"-")) -> 7.198364008
A40: Bac. Samf. | C40: =IF(OR('Tabel 4F H'!C40<5,'Tabel 4 H'!C40<0.5),"-",IFERROR('Tabel 4 H'!C40/'Tabel 4F H'!C40*100,"-")) -> 13.55932203 | D40: =IF(OR('Tabel 4F H'!D40<5,'Tabel 4 H'!D40<0.5),"-",IFERROR('Tabel 4 H'!D40/'Tabel 4F H'!D40*100,"-")) -> 6.018518519 | E40: =IF(OR('Tabel 4F H'!E40<5,'Tabel 4 H'!E40<0.5),"-",IFERROR('Tabel 4 H'!E40/'Tabel 4F H'!E40*100,"-")) -> 3.720930233 | F40: =IF(OR('Tabel 4F H'!F40<5,'Tabel 4 H'!F40<0.5),"-",IFERROR('Tabel 4 H'!F40/'Tabel 4F H'!F40*100,"-")) -> 2.189781022 | G40: =IF(OR('Tabel 4F H'!G40<5,'Tabel 4 H'!G40<0.5),"-",IFERROR('Tabel 4 H'!G40/'Tabel 4F H'!G40*100,"-")) -> 13.33333333 | I40: =IF(OR('Tabel 4F H'!I40<5,'Tabel 4 H'!I40<0.5),"-",IFERROR('Tabel 4 H'!I40/'Tabel 4F H'!I40*100,"-")) -> 5.991440799
A41: Bac. Hum. | C41: =IF(OR('Tabel 4F H'!C41<5,'Tabel 4 H'!C41<0.5),"-",IFERROR('Tabel 4 H'!C41/'Tabel 4F H'!C41*100,"-")) -> 19.07514451 | D41: =IF(OR('Tabel 4F H'!D41<5,'Tabel 4 H'!D41<0.5),"-",IFERROR('Tabel 4 H'!D41/'Tabel 4F H'!D41*100,"-")) -> 12.08791209 | E41: =IF(OR('Tabel 4F H'!E41<5,'Tabel 4 H'!E41<0.5),"-",IFERROR('Tabel 4 H'!E41/'Tabel 4F H'!E41*100,"-")) -> 6.682577566 | F41: =IF(OR('Tabel 4F H'!F41<5,'Tabel 4 H'!F41<0.5),"-",IFERROR('Tabel 4 H'!F41/'Tabel 4F H'!F41*100,"-")) -> 5.373134328 | G41: =IF(OR('Tabel 4F H'!G41<5,'Tabel 4 H'!G41<0.5),"-",IFERROR('Tabel 4 H'!G41/'Tabel 4F H'!G41*100,"-")) -> 11.62790698 | I41: =IF(OR('Tabel 4F H'!I41<5,'Tabel 4 H'!I41<0.5),"-",IFERROR('Tabel 4 H'!I41/'Tabel 4F H'!I41*100,"-")) -> 11.54962275
A42: Bac. Nat. | C42: =IF(OR('Tabel 4F H'!C42<5,'Tabel 4 H'!C42<0.5),"-",IFERROR('Tabel 4 H'!C42/'Tabel 4F H'!C42*100,"-")) -> 18.2448037 | D42: =IF(OR('Tabel 4F H'!D42<5,'Tabel 4 H'!D42<0.5),"-",IFERROR('Tabel 4 H'!D42/'Tabel 4F H'!D42*100,"-")) -> 6.609808102 | E42: =IF(OR('Tabel 4F H'!E42<5,'Tabel 4 H'!E42<0.5),"-",IFERROR('Tabel 4 H'!E42/'Tabel 4F H'!E42*100,"-")) -> 2.824858757 | F42: =IF(OR('Tabel 4F H'!F42<5,'Tabel 4 H'!F42<0.5),"-",IFERROR('Tabel 4 H'!F42/'Tabel 4F H'!F42*100,"-")) -> 6.666666667 | G42: =IF(OR('Tabel 4F H'!G42<5,'Tabel 4 H'!G42<0.5),"-",IFERROR('Tabel 4 H'!G42/'Tabel 4F H'!G42*100,"-")) -> - | I42: =IF(OR('Tabel 4F H'!I42<5,'Tabel 4 H'!I42<0.5),"-",IFERROR('Tabel 4 H'!I42/'Tabel 4F H'!I42*100,"-")) -> 10.22823331
A43: Andre | C43: =IF(OR('Tabel 4F H'!C43<5,'Tabel 4 H'!C43<0.5),"-",IFERROR('Tabel 4 H'!C43/'Tabel 4F H'!C43*100,"-")) -> 18.28103683 | D43: =IF(OR('Tabel 4F H'!D43<5,'Tabel 4 H'!D43<0.5),"-",IFERROR('Tabel 4 H'!D43/'Tabel 4F H'!D43*100,"-")) -> 7.154605263 | E43: =IF(OR('Tabel 4F H'!E43<5,'Tabel 4 H'!E43<0.5),"-",IFERROR('Tabel 4 H'!E43/'Tabel 4F H'!E43*100,"-")) -> 4.913209768 | F43: =IF(OR('Tabel 4F H'!F43<5,'Tabel 4 H'!F43<0.5),"-",IFERROR('Tabel 4 H'!F43/'Tabel 4F H'!F43*100,"-")) -> 7.104360608 | G43: =IF(OR('Tabel 4F H'!G43<5,'Tabel 4 H'!G43<0.5),"-",IFERROR('Tabel 4 H'!G43/'Tabel 4F H'!G43*100,"-")) -> 7.323232323 | I43: =IF(OR('Tabel 4F H'!I43<5,'Tabel 4 H'!I43<0.5),"-",IFERROR('Tabel 4 H'!I43/'Tabel 4F H'!I43*100,"-")) -> 7.84906862
A45: Total | C45: =IF(OR('Tabel 4F H'!C45<5,'Tabel 4 H'!C45<0.5),"-",IFERROR('Tabel 4 H'!C45/'Tabel 4F H'!C45*100,"-")) -> 15.7112228 | D45: =IF(OR('Tabel 4F H'!D45<5,'Tabel 4 H'!D45<0.5),"-",IFERROR('Tabel 4 H'!D45/'Tabel 4F H'!D45*100,"-")) -> 5.739112862 | E45: =IF(OR('Tabel 4F H'!E45<5,'Tabel 4 H'!E45<0.5),"-",IFERROR('Tabel 4 H'!E45/'Tabel 4F H'!E45*100,"-")) -> 3.113038476 | F45: =IF(OR('Tabel 4F H'!F45<5,'Tabel 4 H'!F45<0.5),"-",IFERROR('Tabel 4 H'!F45/'Tabel 4F H'!F45*100,"-")) -> 3.299814507 | G45: =IF(OR('Tabel 4F H'!G45<5,'Tabel 4 H'!G45<0.5),"-",IFERROR('Tabel 4 H'!G45/'Tabel 4F H'!G45*100,"-")) -> 4.361108185 | I45: =IF(OR('Tabel 4F H'!I45<5,'Tabel 4 H'!I45<0.5),"-",IFERROR('Tabel 4 H'!I45/'Tabel 4F H'!I45*100,"-")) -> 6.183478401
A47: Ingeniører i alt | C47: =IF(OR('Tabel 4F H'!C47<5,'Tabel 4 H'!C47<0.5),"-",IFERROR('Tabel 4 H'!C47/'Tabel 4F H'!C47*100,"-")) -> 10.88754135 | D47: =IF(OR('Tabel 4F H'!D47<5,'Tabel 4 H'!D47<0.5),"-",IFERROR('Tabel 4 H'!D47/'Tabel 4F H'!D47*100,"-")) -> 2.682771774 | E47: =IF(OR('Tabel 4F H'!E47<5,'Tabel 4 H'!E47<0.5),"-",IFERROR('Tabel 4 H'!E47/'Tabel 4F H'!E47*100,"-")) -> 1.633986928 | F47: =IF(OR('Tabel 4F H'!F47<5,'Tabel 4 H'!F47<0.5),"-",IFERROR('Tabel 4 H'!F47/'Tabel 4F H'!F47*100,"-")) -> 1.849357012 | G47: =IF(OR('Tabel 4F H'!G47<5,'Tabel 4 H'!G47<0.5),"-",IFERROR('Tabel 4 H'!G47/'Tabel 4F H'!G47*100,"-")) -> 3.199343724 | I47: =IF(OR('Tabel 4F H'!I47<5,'Tabel 4 H'!I47<0.5),"-",IFERROR('Tabel 4 H'!I47/'Tabel 4F H'!I47*100,"-")) -> 3.24388587
A48: Magistre i alt | C48: =IF(OR('Tabel 4F H'!C48<5,'Tabel 4 H'!C48<0.5),"-",IFERROR('Tabel 4 H'!C48/'Tabel 4F H'!C48*100,"-")) -> 24.73884141 | D48: =IF(OR('Tabel 4F H'!D48<5,'Tabel 4 H'!D48<0.5),"-",IFERROR('Tabel 4 H'!D48/'Tabel 4F H'!D48*100,"-")) -> 9.638333027 | E48: =IF(OR('Tabel 4F H'!E48<5,'Tabel 4 H'!E48<0.5),"-",IFERROR('Tabel 4 H'!E48/'Tabel 4F H'!E48*100,"-")) -> 4.248056135 | F48: =IF(OR('Tabel 4F H'!F48<5,'Tabel 4 H'!F48<0.5),"-",IFERROR('Tabel 4 H'!F48/'Tabel 4F H'!F48*100,"-")) -> 4.1674632 | G48: =IF(OR('Tabel 4F H'!G48<5,'Tabel 4 H'!G48<0.5),"-",IFERROR('Tabel 4 H'!G48/'Tabel 4F H'!G48*100,"-")) -> 4.838709677 | I48: =IF(OR('Tabel 4F H'!I48<5,'Tabel 4 H'!I48<0.5),"-",IFERROR('Tabel 4 H'!I48/'Tabel 4F H'!I48*100,"-")) -> 8.69804233
A49: DJØF'ere i alt | C49: =IF(OR('Tabel 4F H'!C49<5,'Tabel 4 H'!C49<0.5),"-",IFERROR('Tabel 4 H'!C49/'Tabel 4F H'!C49*100,"-")) -> 11.23202487 | D49: =IF(OR('Tabel 4F H'!D49<5,'Tabel 4 H'!D49<0.5),"-",IFERROR('Tabel 4 H'!D49/'Tabel 4F H'!D49*100,"-")) -> 3.977186696 | E49: =IF(OR('Tabel 4F H'!E49<5,'Tabel 4 H'!E49<0.5),"-",IFERROR('Tabel 4 H'!E49/'Tabel 4F H'!E49*100,"-")) -> 2.623434046 | F49: =IF(OR('Tabel 4F H'!F49<5,'Tabel 4 H'!F49<0.5),"-",IFERROR('Tabel 4 H'!F49/'Tabel 4F H'!F49*100,"-")) -> 3.116694854 | G49: =IF(OR('Tabel 4F H'!G49<5,'Tabel 4 H'!G49<0.5),"-",IFERROR('Tabel 4 H'!G49/'Tabel 4F H'!G49*100,"-")) -> 4.647058824 | I49: =IF(OR('Tabel 4F H'!I49<5,'Tabel 4 H'!I49<0.5),"-",IFERROR('Tabel 4 H'!I49/'Tabel 4F H'!I49*100,"-")) -> 4.914916221
A56: København
C58: Under 30 år | D58: 30 - 39 år | E58: 40 - 49 år | F58: 50 - 59 år | G58: Over 60 år | I58: I alt
A60: Civ. ing. | C60: =IF(OR('Tabel 4F H'!C60<5,'Tabel 4 H'!C60<0.5),"-",IFERROR('Tabel 4 H'!C60/'Tabel 4F H'!C60*100,"-")) -> 10.98976109 | D60: =IF(OR('Tabel 4F H'!D60<5,'Tabel 4 H'!D60<0.5),"-",IFERROR('Tabel 4 H'!D60/'Tabel 4F H'!D60*100,"-")) -> 3.080664775 | E60: =IF(OR('Tabel 4F H'!E60<5,'Tabel 4 H'!E60<0.5),"-",IFERROR('Tabel 4 H'!E60/'Tabel 4F H'!E60*100,"-")) -> 1.904761905 | F60: =IF(OR('Tabel 4F H'!F60<5,'Tabel 4 H'!F60<0.5),"-",IFERROR('Tabel 4 H'!F60/'Tabel 4F H'!F60*100,"-")) -> 2.583586626 | G60: =IF(OR('Tabel 4F H'!G60<5,'Tabel 4 H'!G60<0.5),"-",IFERROR('Tabel 4 H'!G60/'Tabel 4F H'!G60*100,"-")) -> 2.325581395 | I60: =IF(OR('Tabel 4F H'!I60<5,'Tabel 4 H'!I60<0.5),"-",IFERROR('Tabel 4 H'!I60/'Tabel 4F H'!I60*100,"-")) -> 4.836166112
A61: Diplom ing. | C61: =IF(OR('Tabel 4F H'!C61<5,'Tabel 4 H'!C61<0.5),"-",IFERROR('Tabel 4 H'!C61/'Tabel 4F H'!C61*100,"-")) -> 10.53639847 | D61: =IF(OR('Tabel 4F H'!D61<5,'Tabel 4 H'!D61<0.5),"-",IFERROR('Tabel 4 H'!D61/'Tabel 4F H'!D61*100,"-")) -> 2.612826603 | E61: =IF(OR('Tabel 4F H'!E61<5,'Tabel 4 H'!E61<0.5),"-",IFERROR('Tabel 4 H'!E61/'Tabel 4F H'!E61*100,"-")) -> 2.536715621 | F61: =IF(OR('Tabel 4F H'!F61<5,'Tabel 4 H'!F61<0.5),"-",IFERROR('Tabel 4 H'!F61/'Tabel 4F H'!F61*100,"-")) -> 3.201970443 | G61: =IF(OR('Tabel 4F H'!G61<5,'Tabel 4 H'!G61<0.5),"-",IFERROR('Tabel 4 H'!G61/'Tabel 4F H'!G61*100,"-")) -> 3.636363636 | I61: =IF(OR('Tabel 4F H'!I61<5,'Tabel 4 H'!I61<0.5),"-",IFERROR('Tabel 4 H'!I61/'Tabel 4F H'!I61*100,"-")) -> 4.13354531
A62: Cand. Scient. Tek | C62: =IF(OR('Tabel 4F H'!C62<5,'Tabel 4 H'!C62<0.5),"-",IFERROR('Tabel 4 H'!C62/'Tabel 4F H'!C62*100,"-")) -> 21.05788423 | D62: =IF(OR('Tabel 4F H'!D62<5,'Tabel 4 H'!D62<0.5),"-",IFERROR('Tabel 4 H'!D62/'Tabel 4F H'!D62*100,"-")) -> 8.908159243 | E62: =IF(OR('Tabel 4F H'!E62<5,'Tabel 4 H'!E62<0.5),"-",IFERROR('Tabel 4 H'!E62/'Tabel 4F H'!E62*100,"-")) -> 4.832713755 | F62: =IF(OR('Tabel 4F H'!F62<5,'Tabel 4 H'!F62<0.5),"-",IFERROR('Tabel 4 H'!F62/'Tabel 4F H'!F62*100,"-")) -> 4.895104895 | G62: =IF(OR('Tabel 4F H'!G62<5,'Tabel 4 H'!G62<0.5),"-",IFERROR('Tabel 4 H'!G62/'Tabel 4F H'!G62*100,"-")) -> 6.896551724 | I62: =IF(OR('Tabel 4F H'!I62<5,'Tabel 4 H'!I62<0.5),"-",IFERROR('Tabel 4 H'!I62/'Tabel 4F H'!I62*100,"-")) -> 13.00704628
A63: MA. Hum. | C63: =IF(OR('Tabel 4F H'!C63<5,'Tabel 4 H'!C63<0.5),"-",IFERROR('Tabel 4 H'!C63/'Tabel 4F H'!C63*100,"-")) -> 25.8190709 | D63: =IF(OR('Tabel 4F H'!D63<5,'Tabel 4 H'!D63<0.5),"-",IFERROR('Tabel 4 H'!D63/'Tabel 4F H'!D63*100,"-")) -> 10.94774488 | E63: =IF(OR('Tabel 4F H'!E63<5,'Tabel 4 H'!E63<0.5),"-",IFERROR('Tabel 4 H'!E63/'Tabel 4F H'!E63*100,"-")) -> 5.536723164 | F63: =IF(OR('Tabel 4F H'!F63<5,'Tabel 4 H'!F63<0.5),"-",IFERROR('Tabel 4 H'!F63/'Tabel 4F H'!F63*100,"-")) -> 6.661379857 | G63: =IF(OR('Tabel 4F H'!G63<5,'Tabel 4 H'!G63<0.5),"-",IFERROR('Tabel 4 H'!G63/'Tabel 4F H'!G63*100,"-")) -> 8 | I63: =IF(OR('Tabel 4F H'!I63<5,'Tabel 4 H'!I63<0.5),"-",IFERROR('Tabel 4 H'!I63/'Tabel 4F H'!I63*100,"-")) -> 11.32828406
A64: MA. Nat. | C64: =IF(OR('Tabel 4F H'!C64<5,'Tabel 4 H'!C64<0.5),"-",IFERROR('Tabel 4 H'!C64/'Tabel 4F H'!C64*100,"-")) -> 16.89008043 | D64: =IF(OR('Tabel 4F H'!D64<5,'Tabel 4 H'!D64<0.5),"-",IFERROR('Tabel 4 H'!D64/'Tabel 4F H'!D64*100,"-")) -> 6.858846918 | E64: =IF(OR('Tabel 4F H'!E64<5,'Tabel 4 H'!E64<0.5),"-",IFERROR('Tabel 4 H'!E64/'Tabel 4F H'!E64*100,"-")) -> 2.261048304 | F64: =IF(OR('Tabel 4F H'!F64<5,'Tabel 4 H'!F64<0.5),"-",IFERROR('Tabel 4 H'!F64/'Tabel 4F H'!F64*100,"-")) -> 2.613240418 | G64: =IF(OR('Tabel 4F H'!G64<5,'Tabel 4 H'!G64<0.5),"-",IFERROR('Tabel 4 H'!G64/'Tabel 4F H'!G64*100,"-")) -> 1.990049751 | I64: =IF(OR('Tabel 4F H'!I64<5,'Tabel 4 H'!I64<0.5),"-",IFERROR('Tabel 4 H'!I64/'Tabel 4F H'!I64*100,"-")) -> 5.532459226
A65: MA. Ph.d. | C65: =IF(OR('Tabel 4F H'!C65<5,'Tabel 4 H'!C65<0.5),"-",IFERROR('Tabel 4 H'!C65/'Tabel 4F H'!C65*100,"-")) -> 7.142857143 | D65: =IF(OR('Tabel 4F H'!D65<5,'Tabel 4 H'!D65<0.5),"-",IFERROR('Tabel 4 H'!D65/'Tabel 4F H'!D65*100,"-")) -> 6.511627907 | E65: =IF(OR('Tabel 4F H'!E65<5,'Tabel 4 H'!E65<0.5),"-",IFERROR('Tabel 4 H'!E65/'Tabel 4F H'!E65*100,"-")) -> 6.926406926 | F65: =IF(OR('Tabel 4F H'!F65<5,'Tabel 4 H'!F65<0.5),"-",IFERROR('Tabel 4 H'!F65/'Tabel 4F H'!F65*100,"-")) -> 2.307692308 | G65: =IF(OR('Tabel 4F H'!G65<5,'Tabel 4 H'!G65<0.5),"-",IFERROR('Tabel 4 H'!G65/'Tabel 4F H'!G65*100,"-")) -> 6.666666667 | I65: =IF(OR('Tabel 4F H'!I65<5,'Tabel 4 H'!I65<0.5),"-",IFERROR('Tabel 4 H'!I65/'Tabel 4F H'!I65*100,"-")) -> 5.826771654
A66: MA. Samf. | C66: =IF(OR('Tabel 4F H'!C66<5,'Tabel 4 H'!C66<0.5),"-",IFERROR('Tabel 4 H'!C66/'Tabel 4F H'!C66*100,"-")) -> 24.35530086 | D66: =IF(OR('Tabel 4F H'!D66<5,'Tabel 4 H'!D66<0.5),"-",IFERROR('Tabel 4 H'!D66/'Tabel 4F H'!D66*100,"-")) -> 12 | E66: =IF(OR('Tabel 4F H'!E66<5,'Tabel 4 H'!E66<0.5),"-",IFERROR('Tabel 4 H'!E66/'Tabel 4F H'!E66*100,"-")) -> 6.329113924 | F66: =IF(OR('Tabel 4F H'!F66<5,'Tabel 4 H'!F66<0.5),"-",IFERROR('Tabel 4 H'!F66/'Tabel 4F H'!F66*100,"-")) -> 7.766990291 | G66: =IF(OR('Tabel 4F H'!G66<5,'Tabel 4 H'!G66<0.5),"-",IFERROR('Tabel 4 H'!G66/'Tabel 4F H'!G66*100,"-")) -> 4.347826087 | I66: =IF(OR('Tabel 4F H'!I66<5,'Tabel 4 H'!I66<0.5),"-",IFERROR('Tabel 4 H'!I66/'Tabel 4F H'!I66*100,"-")) -> 14.87297921
A67: Øvrige Mag. | C67: =IF(OR('Tabel 4F H'!C67<5,'Tabel 4 H'!C67<0.5),"-",IFERROR('Tabel 4 H'!C67/'Tabel 4F H'!C67*100,"-")) -> 29.41176471 | D67: =IF(OR('Tabel 4F H'!D67<5,'Tabel 4 H'!D67<0.5),"-",IFERROR('Tabel 4 H'!D67/'Tabel 4F H'!D67*100,"-")) -> 13.63636364 | E67: =IF(OR('Tabel 4F H'!E67<5,'Tabel 4 H'!E67<0.5),"-",IFERROR('Tabel 4 H'!E67/'Tabel 4F H'!E67*100,"-")) -> 4.395604396 | F67: =IF(OR('Tabel 4F H'!F67<5,'Tabel 4 H'!F67<0.5),"-",IFERROR('Tabel 4 H'!F67/'Tabel 4F H'!F67*100,"-")) -> 6.632653061 | G67: =IF(OR('Tabel 4F H'!G67<5,'Tabel 4 H'!G67<0.5),"-",IFERROR('Tabel 4 H'!G67/'Tabel 4F H'!G67*100,"-")) -> 7.142857143 | I67: =IF(OR('Tabel 4F H'!I67<5,'Tabel 4 H'!I67<0.5),"-",IFERROR('Tabel 4 H'!I67/'Tabel 4F H'!I67*100,"-")) -> 11.29568106
A68: Agronom | C68: =IF(OR('Tabel 4F H'!C68<5,'Tabel 4 H'!C68<0.5),"-",IFERROR('Tabel 4 H'!C68/'Tabel 4F H'!C68*100,"-")) -> 23.63636364 | D68: =IF(OR('Tabel 4F H'!D68<5,'Tabel 4 H'!D68<0.5),"-",IFERROR('Tabel 4 H'!D68/'Tabel 4F H'!D68*100,"-")) -> 5.263157895 | E68: =IF(OR('Tabel 4F H'!E68<5,'Tabel 4 H'!E68<0.5),"-",IFERROR('Tabel 4 H'!E68/'Tabel 4F H'!E68*100,"-")) -> 9.230769231 | F68: =IF(OR('Tabel 4F H'!F68<5,'Tabel 4 H'!F68<0.5),"-",IFERROR('Tabel 4 H'!F68/'Tabel 4F H'!F68*100,"-")) -> 1.818181818 | G68: =IF(OR('Tabel 4F H'!G68<5,'Tabel 4 H'!G68<0.5),"-",IFERROR('Tabel 4 H'!G68/'Tabel 4F H'!G68*100,"-")) -> 3.703703704 | I68: =IF(OR('Tabel 4F H'!I68<5,'Tabel 4 H'!I68<0.5),"-",IFERROR('Tabel 4 H'!I68/'Tabel 4F H'!I68*100,"-")) -> 8.992805755
A69: Landsk. Arkt. | C69: =IF(OR('Tabel 4F H'!C69<5,'Tabel 4 H'!C69<0.5),"-",IFERROR('Tabel 4 H'!C69/'Tabel 4F H'!C69*100,"-")) -> 27.27272727 | D69: =IF(OR('Tabel 4F H'!D69<5,'Tabel 4 H'!D69<0.5),"-",IFERROR('Tabel 4 H'!D69/'Tabel 4F H'!D69*100,"-")) -> 16.03773585 | E69: =IF(OR('Tabel 4F H'!E69<5,'Tabel 4 H'!E69<0.5),"-",IFERROR('Tabel 4 H'!E69/'Tabel 4F H'!E69*100,"-")) -> - | F69: =IF(OR('Tabel 4F H'!F69<5,'Tabel 4 H'!F69<0.5),"-",IFERROR('Tabel 4 H'!F69/'Tabel 4F H'!F69*100,"-")) -> 6.451612903 | G69: =IF(OR('Tabel 4F H'!G69<5,'Tabel 4 H'!G69<0.5),"-",IFERROR('Tabel 4 H'!G69/'Tabel 4F H'!G69*100,"-")) -> - | I69: =IF(OR('Tabel 4F H'!I69<5,'Tabel 4 H'!I69<0.5),"-",IFERROR('Tabel 4 H'!I69/'Tabel 4F H'!I69*100,"-")) -> 13.54581673
A70: Hortonom | C70: =IF(OR('Tabel 4F H'!C70<5,'Tabel 4 H'!C70<0.5),"-",IFERROR('Tabel 4 H'!C70/'Tabel 4F H'!C70*100,"-")) -> - | D70: =IF(OR('Tabel 4F H'!D70<5,'Tabel 4 H'!D70<0.5),"-",IFERROR('Tabel 4 H'!D70/'Tabel 4F H'!D70*100,"-")) -> - | E70: =IF(OR('Tabel 4F H'!E70<5,'Tabel 4 H'!E70<0.5),"-",IFERROR('Tabel 4 H'!E70/'Tabel 4F H'!E70*100,"-")) -> 7.692307692 | F70: =IF(OR('Tabel 4F H'!F70<5,'Tabel 4 H'!F70<0.5),"-",IFERROR('Tabel 4 H'!F70/'Tabel 4F H'!F70*100,"-")) -> - | G70: =IF(OR('Tabel 4F H'!G70<5,'Tabel 4 H'!G70<0.5),"-",IFERROR('Tabel 4 H'!G70/'Tabel 4F H'!G70*100,"-")) -> - | I70: =IF(OR('Tabel 4F H'!I70<5,'Tabel 4 H'!I70<0.5),"-",IFERROR('Tabel 4 H'!I70/'Tabel 4F H'!I70*100,"-")) -> 1.886792453
A71: Forstkand. | C71: =IF(OR('Tabel 4F H'!C71<5,'Tabel 4 H'!C71<0.5),"-",IFERROR('Tabel 4 H'!C71/'Tabel 4F H'!C71*100,"-")) -> 31.25 | D71: =IF(OR('Tabel 4F H'!D71<5,'Tabel 4 H'!D71<0.5),"-",IFERROR('Tabel 4 H'!D71/'Tabel 4F H'!D71*100,"-")) -> 21.73913043 | E71: =IF(OR('Tabel 4F H'!E71<5,'Tabel 4 H'!E71<0.5),"-",IFERROR('Tabel 4 H'!E71/'Tabel 4F H'!E71*100,"-")) -> - | F71: =IF(OR('Tabel 4F H'!F71<5,'Tabel 4 H'!F71<0.5),"-",IFERROR('Tabel 4 H'!F71/'Tabel 4F H'!F71*100,"-")) -> 5.263157895 | G71: =IF(OR('Tabel 4F H'!G71<5,'Tabel 4 H'!G71<0.5),"-",IFERROR('Tabel 4 H'!G71/'Tabel 4F H'!G71*100,"-")) -> - | I71: =IF(OR('Tabel 4F H'!I71<5,'Tabel 4 H'!I71<0.5),"-",IFERROR('Tabel 4 H'!I71/'Tabel 4F H'!I71*100,"-")) -> 12.79069767
A72: Jordbrugsakad. | C72: =IF(OR('Tabel 4F H'!C72<5,'Tabel 4 H'!C72<0.5),"-",IFERROR('Tabel 4 H'!C72/'Tabel 4F H'!C72*100,"-")) -> 25.98425197 | D72: =IF(OR('Tabel 4F H'!D72<5,'Tabel 4 H'!D72<0.5),"-",IFERROR('Tabel 4 H'!D72/'Tabel 4F H'!D72*100,"-")) -> 11.9266055 | E72: =IF(OR('Tabel 4F H'!E72<5,'Tabel 4 H'!E72<0.5),"-",IFERROR('Tabel 4 H'!E72/'Tabel 4F H'!E72*100,"-")) -> 4.458598726 | F72: =IF(OR('Tabel 4F H'!F72<5,'Tabel 4 H'!F72<0.5),"-",IFERROR('Tabel 4 H'!F72/'Tabel 4F H'!F72*100,"-")) -> 3.174603175 | G72: =IF(OR('Tabel 4F H'!G72<5,'Tabel 4 H'!G72<0.5),"-",IFERROR('Tabel 4 H'!G72/'Tabel 4F H'!G72*100,"-")) -> 2.5 | I72: =IF(OR('Tabel 4F H'!I72<5,'Tabel 4 H'!I72<0.5),"-",IFERROR('Tabel 4 H'!I72/'Tabel 4F H'!I72*100,"-")) -> 10.62874251
A73: Mejeriing. | C73: =IF(OR('Tabel 4F H'!C73<5,'Tabel 4 H'!C73<0.5),"-",IFERROR('Tabel 4 H'!C73/'Tabel 4F H'!C73*100,"-")) -> 28.57142857 | D73: =IF(OR('Tabel 4F H'!D73<5,'Tabel 4 H'!D73<0.5),"-",IFERROR('Tabel 4 H'!D73/'Tabel 4F H'!D73*100,"-")) -> - | E73: =IF(OR('Tabel 4F H'!E73<5,'Tabel 4 H'!E73<0.5),"-",IFERROR('Tabel 4 H'!E73/'Tabel 4F H'!E73*100,"-")) -> - | F73: =IF(OR('Tabel 4F H'!F73<5,'Tabel 4 H'!F73<0.5),"-",IFERROR('Tabel 4 H'!F73/'Tabel 4F H'!F73*100,"-")) -> - | G73: =IF(OR('Tabel 4F H'!G73<5,'Tabel 4 H'!G73<0.5),"-",IFERROR('Tabel 4 H'!G73/'Tabel 4F H'!G73*100,"-")) -> - | I73: =IF(OR('Tabel 4F H'!I73<5,'Tabel 4 H'!I73<0.5),"-",IFERROR('Tabel 4 H'!I73/'Tabel 4F H'!I73*100,"-")) -> 8.163265306
A74: Levn.m.kand. | C74: =IF(OR('Tabel 4F H'!C74<5,'Tabel 4 H'!C74<0.5),"-",IFERROR('Tabel 4 H'!C74/'Tabel 4F H'!C74*100,"-")) -> 22.80701754 | D74: =IF(OR('Tabel 4F H'!D74<5,'Tabel 4 H'!D74<0.5),"-",IFERROR('Tabel 4 H'!D74/'Tabel 4F H'!D74*100,"-")) -> 13.51351351 | E74: =IF(OR('Tabel 4F H'!E74<5,'Tabel 4 H'!E74<0.5),"-",IFERROR('Tabel 4 H'!E74/'Tabel 4F H'!E74*100,"-")) -> 4.761904762 | F74: =IF(OR('Tabel 4F H'!F74<5,'Tabel 4 H'!F74<0.5),"-",IFERROR('Tabel 4 H'!F74/'Tabel 4F H'!F74*100,"-")) -> - | G74: =IF(OR('Tabel 4F H'!G74<5,'Tabel 4 H'!G74<0.5),"-",IFERROR('Tabel 4 H'!G74/'Tabel 4F H'!G74*100,"-")) -> - | I74: =IF(OR('Tabel 4F H'!I74<5,'Tabel 4 H'!I74<0.5),"-",IFERROR('Tabel 4 H'!I74/'Tabel 4F H'!I74*100,"-")) -> 15.58441558
A75: Dyrlæge | C75: =IF(OR('Tabel 4F H'!C75<5,'Tabel 4 H'!C75<0.5),"-",IFERROR('Tabel 4 H'!C75/'Tabel 4F H'!C75*100,"-")) -> 16.86746988 | D75: =IF(OR('Tabel 4F H'!D75<5,'Tabel 4 H'!D75<0.5),"-",IFERROR('Tabel 4 H'!D75/'Tabel 4F H'!D75*100,"-")) -> 6.25 | E75: =IF(OR('Tabel 4F H'!E75<5,'Tabel 4 H'!E75<0.5),"-",IFERROR('Tabel 4 H'!E75/'Tabel 4F H'!E75*100,"-")) -> 5.555555556 | F75: =IF(OR('Tabel 4F H'!F75<5,'Tabel 4 H'!F75<0.5),"-",IFERROR('Tabel 4 H'!F75/'Tabel 4F H'!F75*100,"-")) -> 5 | G75: =IF(OR('Tabel 4F H'!G75<5,'Tabel 4 H'!G75<0.5),"-",IFERROR('Tabel 4 H'!G75/'Tabel 4F H'!G75*100,"-")) -> 18.18181818 | I75: =IF(OR('Tabel 4F H'!I75<5,'Tabel 4 H'!I75<0.5),"-",IFERROR('Tabel 4 H'!I75/'Tabel 4F H'!I75*100,"-")) -> 9.17721519
A76: Farmaceut | C76: =IF(OR('Tabel 4F H'!C76<5,'Tabel 4 H'!C76<0.5),"-",IFERROR('Tabel 4 H'!C76/'Tabel 4F H'!C76*100,"-")) -> 19.07356948 | D76: =IF(OR('Tabel 4F H'!D76<5,'Tabel 4 H'!D76<0.5),"-",IFERROR('Tabel 4 H'!D76/'Tabel 4F H'!D76*100,"-")) -> 3.896103896 | E76: =IF(OR('Tabel 4F H'!E76<5,'Tabel 4 H'!E76<0.5),"-",IFERROR('Tabel 4 H'!E76/'Tabel 4F H'!E76*100,"-")) -> 0.9049773756 | F76: =IF(OR('Tabel 4F H'!F76<5,'Tabel 4 H'!F76<0.5),"-",IFERROR('Tabel 4 H'!F76/'Tabel 4F H'!F76*100,"-")) -> 3.773584906 | G76: =IF(OR('Tabel 4F H'!G76<5,'Tabel 4 H'!G76<0.5),"-",IFERROR('Tabel 4 H'!G76/'Tabel 4F H'!G76*100,"-")) -> 2.564102564 | I76: =IF(OR('Tabel 4F H'!I76<5,'Tabel 4 H'!I76<0.5),"-",IFERROR('Tabel 4 H'!I76/'Tabel 4F H'!I76*100,"-")) -> 7.704402516
A77: Læge | C77: =IF(OR('Tabel 4F H'!C77<5,'Tabel 4 H'!C77<0.5),"-",IFERROR('Tabel 4 H'!C77/'Tabel 4F H'!C77*100,"-")) -> 4.423076923 | D77: =IF(OR('Tabel 4F H'!D77<5,'Tabel 4 H'!D77<0.5),"-",IFERROR('Tabel 4 H'!D77/'Tabel 4F H'!D77*100,"-")) -> 2.607232969 | E77: =IF(OR('Tabel 4F H'!E77<5,'Tabel 4 H'!E77<0.5),"-",IFERROR('Tabel 4 H'!E77/'Tabel 4F H'!E77*100,"-")) -> 0.8108108108 | F77: =IF(OR('Tabel 4F H'!F77<5,'Tabel 4 H'!F77<0.5),"-",IFERROR('Tabel 4 H'!F77/'Tabel 4F H'!F77*100,"-")) -> 1.5 | G77: =IF(OR('Tabel 4F H'!G77<5,'Tabel 4 H'!G77<0.5),"-",IFERROR('Tabel 4 H'!G77/'Tabel 4F H'!G77*100,"-")) -> - | I77: =IF(OR('Tabel 4F H'!I77<5,'Tabel 4 H'!I77<0.5),"-",IFERROR('Tabel 4 H'!I77/'Tabel 4F H'!I77*100,"-")) -> 2.521008403
A78: Tandlæge | C78: =IF(OR('Tabel 4F H'!C78<5,'Tabel 4 H'!C78<0.5),"-",IFERROR('Tabel 4 H'!C78/'Tabel 4F H'!C78*100,"-")) -> 7.317073171 | D78: =IF(OR('Tabel 4F H'!D78<5,'Tabel 4 H'!D78<0.5),"-",IFERROR('Tabel 4 H'!D78/'Tabel 4F H'!D78*100,"-")) -> 2.325581395 | E78: =IF(OR('Tabel 4F H'!E78<5,'Tabel 4 H'!E78<0.5),"-",IFERROR('Tabel 4 H'!E78/'Tabel 4F H'!E78*100,"-")) -> - | F78: =IF(OR('Tabel 4F H'!F78<5,'Tabel 4 H'!F78<0.5),"-",IFERROR('Tabel 4 H'!F78/'Tabel 4F H'!F78*100,"-")) -> 2.380952381 | G78: =IF(OR('Tabel 4F H'!G78<5,'Tabel 4 H'!G78<0.5),"-",IFERROR('Tabel 4 H'!G78/'Tabel 4F H'!G78*100,"-")) -> - | I78: =IF(OR('Tabel 4F H'!I78<5,'Tabel 4 H'!I78<0.5),"-",IFERROR('Tabel 4 H'!I78/'Tabel 4F H'!I78*100,"-")) -> 3.174603175
A79: Arkitekt | C79: =IF(OR('Tabel 4F H'!C79<5,'Tabel 4 H'!C79<0.5),"-",IFERROR('Tabel 4 H'!C79/'Tabel 4F H'!C79*100,"-")) -> 30.66666667 | D79: =IF(OR('Tabel 4F H'!D79<5,'Tabel 4 H'!D79<0.5),"-",IFERROR('Tabel 4 H'!D79/'Tabel 4F H'!D79*100,"-")) -> 8.934707904 | E79: =IF(OR('Tabel 4F H'!E79<5,'Tabel 4 H'!E79<0.5),"-",IFERROR('Tabel 4 H'!E79/'Tabel 4F H'!E79*100,"-")) -> 5.097451274 | F79: =IF(OR('Tabel 4F H'!F79<5,'Tabel 4 H'!F79<0.5),"-",IFERROR('Tabel 4 H'!F79/'Tabel 4F H'!F79*100,"-")) -> 5.39083558 | G79: =IF(OR('Tabel 4F H'!G79<5,'Tabel 4 H'!G79<0.5),"-",IFERROR('Tabel 4 H'!G79/'Tabel 4F H'!G79*100,"-")) -> 8.633093525 | I79: =IF(OR('Tabel 4F H'!I79<5,'Tabel 4 H'!I79<0.5),"-",IFERROR('Tabel 4 H'!I79/'Tabel 4F H'!I79*100,"-")) -> 9.362637363
A80: Landinspek. | C80: =IF(OR('Tabel 4F H'!C80<5,'Tabel 4 H'!C80<0.5),"-",IFERROR('Tabel 4 H'!C80/'Tabel 4F H'!C80*100,"-")) -> - | D80: =IF(OR('Tabel 4F H'!D80<5,'Tabel 4 H'!D80<0.5),"-",IFERROR('Tabel 4 H'!D80/'Tabel 4F H'!D80*100,"-")) -> - | E80: =IF(OR('Tabel 4F H'!E80<5,'Tabel 4 H'!E80<0.5),"-",IFERROR('Tabel 4 H'!E80/'Tabel 4F H'!E80*100,"-")) -> 8.333333333 | F80: =IF(OR('Tabel 4F H'!F80<5,'Tabel 4 H'!F80<0.5),"-",IFERROR('Tabel 4 H'!F80/'Tabel 4F H'!F80*100,"-")) -> - | G80: =IF(OR('Tabel 4F H'!G80<5,'Tabel 4 H'!G80<0.5),"-",IFERROR('Tabel 4 H'!G80/'Tabel 4F H'!G80*100,"-")) -> - | I80: =IF(OR('Tabel 4F H'!I80<5,'Tabel 4 H'!I80<0.5),"-",IFERROR('Tabel 4 H'!I80/'Tabel 4F H'!I80*100,"-")) -> 1.587301587
A81: Bibliotekar | C81: =IF(OR('Tabel 4F H'!C81<5,'Tabel 4 H'!C81<0.5),"-",IFERROR('Tabel 4 H'!C81/'Tabel 4F H'!C81*100,"-")) -> 26.47058824 | D81: =IF(OR('Tabel 4F H'!D81<5,'Tabel 4 H'!D81<0.5),"-",IFERROR('Tabel 4 H'!D81/'Tabel 4F H'!D81*100,"-")) -> 6.844106464 | E81: =IF(OR('Tabel 4F H'!E81<5,'Tabel 4 H'!E81<0.5),"-",IFERROR('Tabel 4 H'!E81/'Tabel 4F H'!E81*100,"-")) -> 5.158730159 | F81: =IF(OR('Tabel 4F H'!F81<5,'Tabel 4 H'!F81<0.5),"-",IFERROR('Tabel 4 H'!F81/'Tabel 4F H'!F81*100,"-")) -> 4.597701149 | G81: =IF(OR('Tabel 4F H'!G81<5,'Tabel 4 H'!G81<0.5),"-",IFERROR('Tabel 4 H'!G81/'Tabel 4F H'!G81*100,"-")) -> 3.571428571 | I81: =IF(OR('Tabel 4F H'!I81<5,'Tabel 4 H'!I81<0.5),"-",IFERROR('Tabel 4 H'!I81/'Tabel 4F H'!I81*100,"-")) -> 6.22754491
A82: Musikudd. | C82: =IF(OR('Tabel 4F H'!C82<5,'Tabel 4 H'!C82<0.5),"-",IFERROR('Tabel 4 H'!C82/'Tabel 4F H'!C82*100,"-")) -> - | D82: =IF(OR('Tabel 4F H'!D82<5,'Tabel 4 H'!D82<0.5),"-",IFERROR('Tabel 4 H'!D82/'Tabel 4F H'!D82*100,"-")) -> 15.38461538 | E82: =IF(OR('Tabel 4F H'!E82<5,'Tabel 4 H'!E82<0.5),"-",IFERROR('Tabel 4 H'!E82/'Tabel 4F H'!E82*100,"-")) -> 2.5 | F82: =IF(OR('Tabel 4F H'!F82<5,'Tabel 4 H'!F82<0.5),"-",IFERROR('Tabel 4 H'!F82/'Tabel 4F H'!F82*100,"-")) -> 3.174603175 | G82: =IF(OR('Tabel 4F H'!G82<5,'Tabel 4 H'!G82<0.5),"-",IFERROR('Tabel 4 H'!G82/'Tabel 4F H'!G82*100,"-")) -> - | I82: =IF(OR('Tabel 4F H'!I82<5,'Tabel 4 H'!I82<0.5),"-",IFERROR('Tabel 4 H'!I82/'Tabel 4F H'!I82*100,"-")) -> 5.22875817
A83: Teolog | C83: =IF(OR('Tabel 4F H'!C83<5,'Tabel 4 H'!C83<0.5),"-",IFERROR('Tabel 4 H'!C83/'Tabel 4F H'!C83*100,"-")) -> 41.66666667 | D83: =IF(OR('Tabel 4F H'!D83<5,'Tabel 4 H'!D83<0.5),"-",IFERROR('Tabel 4 H'!D83/'Tabel 4F H'!D83*100,"-")) -> 16.07142857 | E83: =IF(OR('Tabel 4F H'!E83<5,'Tabel 4 H'!E83<0.5),"-",IFERROR('Tabel 4 H'!E83/'Tabel 4F H'!E83*100,"-")) -> 2.173913043 | F83: =IF(OR('Tabel 4F H'!F83<5,'Tabel 4 H'!F83<0.5),"-",IFERROR('Tabel 4 H'!F83/'Tabel 4F H'!F83*100,"-")) -> 8.474576271 | G83: =IF(OR('Tabel 4F H'!G83<5,'Tabel 4 H'!G83<0.5),"-",IFERROR('Tabel 4 H'!G83/'Tabel 4F H'!G83*100,"-")) -> - | I83: =IF(OR('Tabel 4F H'!I83<5,'Tabel 4 H'!I83<0.5),"-",IFERROR('Tabel 4 H'!I83/'Tabel 4F H'!I83*100,"-")) -> 8.571428571
A84: Psykolog | C84: =IF(OR('Tabel 4F H'!C84<5,'Tabel 4 H'!C84<0.5),"-",IFERROR('Tabel 4 H'!C84/'Tabel 4F H'!C84*100,"-")) -> 13.39092873 | D84: =IF(OR('Tabel 4F H'!D84<5,'Tabel 4 H'!D84<0.5),"-",IFERROR('Tabel 4 H'!D84/'Tabel 4F H'!D84*100,"-")) -> 7.54950495 | E84: =IF(OR('Tabel 4F H'!E84<5,'Tabel 4 H'!E84<0.5),"-",IFERROR('Tabel 4 H'!E84/'Tabel 4F H'!E84*100,"-")) -> 2.386634845 | F84: =IF(OR('Tabel 4F H'!F84<5,'Tabel 4 H'!F84<0.5),"-",IFERROR('Tabel 4 H'!F84/'Tabel 4F H'!F84*100,"-")) -> - | G84: =IF(OR('Tabel 4F H'!G84<5,'Tabel 4 H'!G84<0.5),"-",IFERROR('Tabel 4 H'!G84/'Tabel 4F H'!G84*100,"-")) -> 1.904761905 | I84: =IF(OR('Tabel 4F H'!I84<5,'Tabel 4 H'!I84<0.5),"-",IFERROR('Tabel 4 H'!I84/'Tabel 4F H'!I84*100,"-")) -> 6.709741551
A85: Jurist | C85: =IF(OR('Tabel 4F H'!C85<5,'Tabel 4 H'!C85<0.5),"-",IFERROR('Tabel 4 H'!C85/'Tabel 4F H'!C85*100,"-")) -> 6.293103448 | D85: =IF(OR('Tabel 4F H'!D85<5,'Tabel 4 H'!D85<0.5),"-",IFERROR('Tabel 4 H'!D85/'Tabel 4F H'!D85*100,"-")) -> 1.519949335 | E85: =IF(OR('Tabel 4F H'!E85<5,'Tabel 4 H'!E85<0.5),"-",IFERROR('Tabel 4 H'!E85/'Tabel 4F H'!E85*100,"-")) -> 1.674107143 | F85: =IF(OR('Tabel 4F H'!F85<5,'Tabel 4 H'!F85<0.5),"-",IFERROR('Tabel 4 H'!F85/'Tabel 4F H'!F85*100,"-")) -> 2.230483271 | G85: =IF(OR('Tabel 4F H'!G85<5,'Tabel 4 H'!G85<0.5),"-",IFERROR('Tabel 4 H'!G85/'Tabel 4F H'!G85*100,"-")) -> 5.369127517 | I85: =IF(OR('Tabel 4F H'!I85<5,'Tabel 4 H'!I85<0.5),"-",IFERROR('Tabel 4 H'!I85/'Tabel 4F H'!I85*100,"-")) -> 3.054141601
A86: Økonom | C86: =IF(OR('Tabel 4F H'!C86<5,'Tabel 4 H'!C86<0.5),"-",IFERROR('Tabel 4 H'!C86/'Tabel 4F H'!C86*100,"-")) -> 5.890603086 | D86: =IF(OR('Tabel 4F H'!D86<5,'Tabel 4 H'!D86<0.5),"-",IFERROR('Tabel 4 H'!D86/'Tabel 4F H'!D86*100,"-")) -> 1.724137931 | E86: =IF(OR('Tabel 4F H'!E86<5,'Tabel 4 H'!E86<0.5),"-",IFERROR('Tabel 4 H'!E86/'Tabel 4F H'!E86*100,"-")) -> 3.024193548 | F86: =IF(OR('Tabel 4F H'!F86<5,'Tabel 4 H'!F86<0.5),"-",IFERROR('Tabel 4 H'!F86/'Tabel 4F H'!F86*100,"-")) -> 1.759530792 | G86: =IF(OR('Tabel 4F H'!G86<5,'Tabel 4 H'!G86<0.5),"-",IFERROR('Tabel 4 H'!G86/'Tabel 4F H'!G86*100,"-")) -> 8.108108108 | I86: =IF(OR('Tabel 4F H'!I86<5,'Tabel 4 H'!I86<0.5),"-",IFERROR('Tabel 4 H'!I86/'Tabel 4F H'!I86*100,"-")) -> 3.330721003
A87: Samf. Adm. | C87: =IF(OR('Tabel 4F H'!C87<5,'Tabel 4 H'!C87<0.5),"-",IFERROR('Tabel 4 H'!C87/'Tabel 4F H'!C87*100,"-")) -> 17.36708861 | D87: =IF(OR('Tabel 4F H'!D87<5,'Tabel 4 H'!D87<0.5),"-",IFERROR('Tabel 4 H'!D87/'Tabel 4F H'!D87*100,"-")) -> 5.839727195 | E87: =IF(OR('Tabel 4F H'!E87<5,'Tabel 4 H'!E87<0.5),"-",IFERROR('Tabel 4 H'!E87/'Tabel 4F H'!E87*100,"-")) -> 2.930232558 | F87: =IF(OR('Tabel 4F H'!F87<5,'Tabel 4 H'!F87<0.5),"-",IFERROR('Tabel 4 H'!F87/'Tabel 4F H'!F87*100,"-")) -> 4.308390023 | G87: =IF(OR('Tabel 4F H'!G87<5,'Tabel 4 H'!G87<0.5),"-",IFERROR('Tabel 4 H'!G87/'Tabel 4F H'!G87*100,"-")) -> 4.545454545 | I87: =IF(OR('Tabel 4F H'!I87<5,'Tabel 4 H'!I87<0.5),"-",IFERROR('Tabel 4 H'!I87/'Tabel 4F H'!I87*100,"-")) -> 7.358165026
A88: Cand. Merc. | C88: =IF(OR('Tabel 4F H'!C88<5,'Tabel 4 H'!C88<0.5),"-",IFERROR('Tabel 4 H'!C88/'Tabel 4F H'!C88*100,"-")) -> 10.57401813 | D88: =IF(OR('Tabel 4F H'!D88<5,'Tabel 4 H'!D88<0.5),"-",IFERROR('Tabel 4 H'!D88/'Tabel 4F H'!D88*100,"-")) -> 4.533709185 | E88: =IF(OR('Tabel 4F H'!E88<5,'Tabel 4 H'!E88<0.5),"-",IFERROR('Tabel 4 H'!E88/'Tabel 4F H'!E88*100,"-")) -> 4.494382022 | F88: =IF(OR('Tabel 4F H'!F88<5,'Tabel 4 H'!F88<0.5),"-",IFERROR('Tabel 4 H'!F88/'Tabel 4F H'!F88*100,"-")) -> 4.590163934 | G88: =IF(OR('Tabel 4F H'!G88<5,'Tabel 4 H'!G88<0.5),"-",IFERROR('Tabel 4 H'!G88/'Tabel 4F H'!G88*100,"-")) -> 5.633802817 | I88: =IF(OR('Tabel 4F H'!I88<5,'Tabel 4 H'!I88<0.5),"-",IFERROR('Tabel 4 H'!I88/'Tabel 4F H'!I88*100,"-")) -> 6.626317437
A89: HA | C89: =IF(OR('Tabel 4F H'!C89<5,'Tabel 4 H'!C89<0.5),"-",IFERROR('Tabel 4 H'!C89/'Tabel 4F H'!C89*100,"-")) -> 16.66666667 | D89: =IF(OR('Tabel 4F H'!D89<5,'Tabel 4 H'!D89<0.5),"-",IFERROR('Tabel 4 H'!D89/'Tabel 4F H'!D89*100,"-")) -> 7.581227437 | E89: =IF(OR('Tabel 4F H'!E89<5,'Tabel 4 H'!E89<0.5),"-",IFERROR('Tabel 4 H'!E89/'Tabel 4F H'!E89*100,"-")) -> 3.571428571 | F89: =IF(OR('Tabel 4F H'!F89<5,'Tabel 4 H'!F89<0.5),"-",IFERROR('Tabel 4 H'!F89/'Tabel 4F H'!F89*100,"-")) -> 3.93258427 | G89: =IF(OR('Tabel 4F H'!G89<5,'Tabel 4 H'!G89<0.5),"-",IFERROR('Tabel 4 H'!G89/'Tabel 4F H'!G89*100,"-")) -> 6.666666667 | I89: =IF(OR('Tabel 4F H'!I89<5,'Tabel 4 H'!I89<0.5),"-",IFERROR('Tabel 4 H'!I89/'Tabel 4F H'!I89*100,"-")) -> 9.729187563
A90: HD | C90: =IF(OR('Tabel 4F H'!C90<5,'Tabel 4 H'!C90<0.5),"-",IFERROR('Tabel 4 H'!C90/'Tabel 4F H'!C90*100,"-")) -> 23.67256637 | D90: =IF(OR('Tabel 4F H'!D90<5,'Tabel 4 H'!D90<0.5),"-",IFERROR('Tabel 4 H'!D90/'Tabel 4F H'!D90*100,"-")) -> 9.570957096 | E90: =IF(OR('Tabel 4F H'!E90<5,'Tabel 4 H'!E90<0.5),"-",IFERROR('Tabel 4 H'!E90/'Tabel 4F H'!E90*100,"-")) -> 3.529411765 | F90: =IF(OR('Tabel 4F H'!F90<5,'Tabel 4 H'!F90<0.5),"-",IFERROR('Tabel 4 H'!F90/'Tabel 4F H'!F90*100,"-")) -> 5.442176871 | G90: =IF(OR('Tabel 4F H'!G90<5,'Tabel 4 H'!G90<0.5),"-",IFERROR('Tabel 4 H'!G90/'Tabel 4F H'!G90*100,"-")) -> 11.9047619 | I90: =IF(OR('Tabel 4F H'!I90<5,'Tabel 4 H'!I90<0.5),"-",IFERROR('Tabel 4 H'!I90/'Tabel 4F H'!I90*100,"-")) -> 14.77162293
A91: Komm. og Sprog | C91: =IF(OR('Tabel 4F H'!C91<5,'Tabel 4 H'!C91<0.5),"-",IFERROR('Tabel 4 H'!C91/'Tabel 4F H'!C91*100,"-")) -> 17.01244813 | D91: =IF(OR('Tabel 4F H'!D91<5,'Tabel 4 H'!D91<0.5),"-",IFERROR('Tabel 4 H'!D91/'Tabel 4F H'!D91*100,"-")) -> 8.345752608 | E91: =IF(OR('Tabel 4F H'!E91<5,'Tabel 4 H'!E91<0.5),"-",IFERROR('Tabel 4 H'!E91/'Tabel 4F H'!E91*100,"-")) -> 7.56501182 | F91: =IF(OR('Tabel 4F H'!F91<5,'Tabel 4 H'!F91<0.5),"-",IFERROR('Tabel 4 H'!F91/'Tabel 4F H'!F91*100,"-")) -> 5.726872247 | G91: =IF(OR('Tabel 4F H'!G91<5,'Tabel 4 H'!G91<0.5),"-",IFERROR('Tabel 4 H'!G91/'Tabel 4F H'!G91*100,"-")) -> 7.142857143 | I91: =IF(OR('Tabel 4F H'!I91<5,'Tabel 4 H'!I91<0.5),"-",IFERROR('Tabel 4 H'!I91/'Tabel 4F H'!I91*100,"-")) -> 10.0373732
A92: Cand. IT. | C92: =IF(OR('Tabel 4F H'!C92<5,'Tabel 4 H'!C92<0.5),"-",IFERROR('Tabel 4 H'!C92/'Tabel 4F H'!C92*100,"-")) -> 15.87301587 | D92: =IF(OR('Tabel 4F H'!D92<5,'Tabel 4 H'!D92<0.5),"-",IFERROR('Tabel 4 H'!D92/'Tabel 4F H'!D92*100,"-")) -> 5.256410256 | E92: =IF(OR('Tabel 4F H'!E92<5,'Tabel 4 H'!E92<0.5),"-",IFERROR('Tabel 4 H'!E92/'Tabel 4F H'!E92*100,"-")) -> 4.225352113 | F92: =IF(OR('Tabel 4F H'!F92<5,'Tabel 4 H'!F92<0.5),"-",IFERROR('Tabel 4 H'!F92/'Tabel 4F H'!F92*100,"-")) -> 15.625 | G92: =IF(OR('Tabel 4F H'!G92<5,'Tabel 4 H'!G92<0.5),"-",IFERROR('Tabel 4 H'!G92/'Tabel 4F H'!G92*100,"-")) -> - | I92: =IF(OR('Tabel 4F H'!I92<5,'Tabel 4 H'!I92<0.5),"-",IFERROR('Tabel 4 H'!I92/'Tabel 4F H'!I92*100,"-")) -> 8.376623377
A93: Bac. Samf. | C93: =IF(OR('Tabel 4F H'!C93<5,'Tabel 4 H'!C93<0.5),"-",IFERROR('Tabel 4 H'!C93/'Tabel 4F H'!C93*100,"-")) -> 12.22222222 | D93: =IF(OR('Tabel 4F H'!D93<5,'Tabel 4 H'!D93<0.5),"-",IFERROR('Tabel 4 H'!D93/'Tabel 4F H'!D93*100,"-")) -> 5.303030303 | E93: =IF(OR('Tabel 4F H'!E93<5,'Tabel 4 H'!E93<0.5),"-",IFERROR('Tabel 4 H'!E93/'Tabel 4F H'!E93*100,"-")) -> 5.555555556 | F93: =IF(OR('Tabel 4F H'!F93<5,'Tabel 4 H'!F93<0.5),"-",IFERROR('Tabel 4 H'!F93/'Tabel 4F H'!F93*100,"-")) -> 2.702702703 | G93: =IF(OR('Tabel 4F H'!G93<5,'Tabel 4 H'!G93<0.5),"-",IFERROR('Tabel 4 H'!G93/'Tabel 4F H'!G93*100,"-")) -> 22.22222222 | I93: =IF(OR('Tabel 4F H'!I93<5,'Tabel 4 H'!I93<0.5),"-",IFERROR('Tabel 4 H'!I93/'Tabel 4F H'!I93*100,"-")) -> 6.779661017
A94: Bac. Hum. | C94: =IF(OR('Tabel 4F H'!C94<5,'Tabel 4 H'!C94<0.5),"-",IFERROR('Tabel 4 H'!C94/'Tabel 4F H'!C94*100,"-")) -> 20.82262211 | D94: =IF(OR('Tabel 4F H'!D94<5,'Tabel 4 H'!D94<0.5),"-",IFERROR('Tabel 4 H'!D94/'Tabel 4F H'!D94*100,"-")) -> 13.16872428 | E94: =IF(OR('Tabel 4F H'!E94<5,'Tabel 4 H'!E94<0.5),"-",IFERROR('Tabel 4 H'!E94/'Tabel 4F H'!E94*100,"-")) -> 8.898305085 | F94: =IF(OR('Tabel 4F H'!F94<5,'Tabel 4 H'!F94<0.5),"-",IFERROR('Tabel 4 H'!F94/'Tabel 4F H'!F94*100,"-")) -> 4.166666667 | G94: =IF(OR('Tabel 4F H'!G94<5,'Tabel 4 H'!G94<0.5),"-",IFERROR('Tabel 4 H'!G94/'Tabel 4F H'!G94*100,"-")) -> 13.63636364 | I94: =IF(OR('Tabel 4F H'!I94<5,'Tabel 4 H'!I94<0.5),"-",IFERROR('Tabel 4 H'!I94/'Tabel 4F H'!I94*100,"-")) -> 13.61111111
A95: Bac. Nat. | C95: =IF(OR('Tabel 4F H'!C95<5,'Tabel 4 H'!C95<0.5),"-",IFERROR('Tabel 4 H'!C95/'Tabel 4F H'!C95*100,"-")) -> 20.60810811 | D95: =IF(OR('Tabel 4F H'!D95<5,'Tabel 4 H'!D95<0.5),"-",IFERROR('Tabel 4 H'!D95/'Tabel 4F H'!D95*100,"-")) -> 7.450980392 | E95: =IF(OR('Tabel 4F H'!E95<5,'Tabel 4 H'!E95<0.5),"-",IFERROR('Tabel 4 H'!E95/'Tabel 4F H'!E95*100,"-")) -> 3.03030303 | F95: =IF(OR('Tabel 4F H'!F95<5,'Tabel 4 H'!F95<0.5),"-",IFERROR('Tabel 4 H'!F95/'Tabel 4F H'!F95*100,"-")) -> 9.090909091 | G95: =IF(OR('Tabel 4F H'!G95<5,'Tabel 4 H'!G95<0.5),"-",IFERROR('Tabel 4 H'!G95/'Tabel 4F H'!G95*100,"-")) -> - | I95: =IF(OR('Tabel 4F H'!I95<5,'Tabel 4 H'!I95<0.5),"-",IFERROR('Tabel 4 H'!I95/'Tabel 4F H'!I95*100,"-")) -> 13.03680982
A96: Andre | C96: =IF(OR('Tabel 4F H'!C96<5,'Tabel 4 H'!C96<0.5),"-",IFERROR('Tabel 4 H'!C96/'Tabel 4F H'!C96*100,"-")) -> 18.73786408 | D96: =IF(OR('Tabel 4F H'!D96<5,'Tabel 4 H'!D96<0.5),"-",IFERROR('Tabel 4 H'!D96/'Tabel 4F H'!D96*100,"-")) -> 8.009625301 | E96: =IF(OR('Tabel 4F H'!E96<5,'Tabel 4 H'!E96<0.5),"-",IFERROR('Tabel 4 H'!E96/'Tabel 4F H'!E96*100,"-")) -> 5.483672212 | F96: =IF(OR('Tabel 4F H'!F96<5,'Tabel 4 H'!F96<0.5),"-",IFERROR('Tabel 4 H'!F96/'Tabel 4F H'!F96*100,"-")) -> 8.333333333 | G96: =IF(OR('Tabel 4F H'!G96<5,'Tabel 4 H'!G96<0.5),"-",IFERROR('Tabel 4 H'!G96/'Tabel 4F H'!G96*100,"-")) -> 6.761565836 | I96: =IF(OR('Tabel 4F H'!I96<5,'Tabel 4 H'!I96<0.5),"-",IFERROR('Tabel 4 H'!I96/'Tabel 4F H'!I96*100,"-")) -> 9.03785725
A98: Total | C98: =IF(OR('Tabel 4F H'!C98<5,'Tabel 4 H'!C98<0.5),"-",IFERROR('Tabel 4 H'!C98/'Tabel 4F H'!C98*100,"-")) -> 16.14583333 | D98: =IF(OR('Tabel 4F H'!D98<5,'Tabel 4 H'!D98<0.5),"-",IFERROR('Tabel 4 H'!D98/'Tabel 4F H'!D98*100,"-")) -> 6.701787719 | E98: =IF(OR('Tabel 4F H'!E98<5,'Tabel 4 H'!E98<0.5),"-",IFERROR('Tabel 4 H'!E98/'Tabel 4F H'!E98*100,"-")) -> 4.102881585 | F98: =IF(OR('Tabel 4F H'!F98<5,'Tabel 4 H'!F98<0.5),"-",IFERROR('Tabel 4 H'!F98/'Tabel 4F H'!F98*100,"-")) -> 4.497863248 | G98: =IF(OR('Tabel 4F H'!G98<5,'Tabel 4 H'!G98<0.5),"-",IFERROR('Tabel 4 H'!G98/'Tabel 4F H'!G98*100,"-")) -> 5.384329744 | I98: =IF(OR('Tabel 4F H'!I98<5,'Tabel 4 H'!I98<0.5),"-",IFERROR('Tabel 4 H'!I98/'Tabel 4F H'!I98*100,"-")) -> 8.100466129
A100: Ingeniører i alt | C100: =IF(OR('Tabel 4F H'!C100<5,'Tabel 4 H'!C100<0.5),"-",IFERROR('Tabel 4 H'!C100/'Tabel 4F H'!C100*100,"-")) -> 10.87065929 | D100: =IF(OR('Tabel 4F H'!D100<5,'Tabel 4 H'!D100<0.5),"-",IFERROR('Tabel 4 H'!D100/'Tabel 4F H'!D100*100,"-")) -> 2.961619825 | E100: =IF(OR('Tabel 4F H'!E100<5,'Tabel 4 H'!E100<0.5),"-",IFERROR('Tabel 4 H'!E100/'Tabel 4F H'!E100*100,"-")) -> 2.184179457 | F100: =IF(OR('Tabel 4F H'!F100<5,'Tabel 4 H'!F100<0.5),"-",IFERROR('Tabel 4 H'!F100/'Tabel 4F H'!F100*100,"-")) -> 2.925170068 | G100: =IF(OR('Tabel 4F H'!G100<5,'Tabel 4 H'!G100<0.5),"-",IFERROR('Tabel 4 H'!G100/'Tabel 4F H'!G100*100,"-")) -> 3.06122449 | I100: =IF(OR('Tabel 4F H'!I100<5,'Tabel 4 H'!I100<0.5),"-",IFERROR('Tabel 4 H'!I100/'Tabel 4F H'!I100*100,"-")) -> 4.586534117
A101: Magistre i alt | C101: =IF(OR('Tabel 4F H'!C101<5,'Tabel 4 H'!C101<0.5),"-",IFERROR('Tabel 4 H'!C101/'Tabel 4F H'!C101*100,"-")) -> 24.55603184 | D101: =IF(OR('Tabel 4F H'!D101<5,'Tabel 4 H'!D101<0.5),"-",IFERROR('Tabel 4 H'!D101/'Tabel 4F H'!D101*100,"-")) -> 10.50392235 | E101: =IF(OR('Tabel 4F H'!E101<5,'Tabel 4 H'!E101<0.5),"-",IFERROR('Tabel 4 H'!E101/'Tabel 4F H'!E101*100,"-")) -> 4.987811738 | F101: =IF(OR('Tabel 4F H'!F101<5,'Tabel 4 H'!F101<0.5),"-",IFERROR('Tabel 4 H'!F101/'Tabel 4F H'!F101*100,"-")) -> 5.432862191 | G101: =IF(OR('Tabel 4F H'!G101<5,'Tabel 4 H'!G101<0.5),"-",IFERROR('Tabel 4 H'!G101/'Tabel 4F H'!G101*100,"-")) -> 6.068965517 | I101: =IF(OR('Tabel 4F H'!I101<5,'Tabel 4 H'!I101<0.5),"-",IFERROR('Tabel 4 H'!I101/'Tabel 4F H'!I101*100,"-")) -> 10.59710084
A102: DJØF'ere i alt | C102: =IF(OR('Tabel 4F H'!C102<5,'Tabel 4 H'!C102<0.5),"-",IFERROR('Tabel 4 H'!C102/'Tabel 4F H'!C102*100,"-")) -> 11.55378486 | D102: =IF(OR('Tabel 4F H'!D102<5,'Tabel 4 H'!D102<0.5),"-",IFERROR('Tabel 4 H'!D102/'Tabel 4F H'!D102*100,"-")) -> 4.500127845 | E102: =IF(OR('Tabel 4F H'!E102<5,'Tabel 4 H'!E102<0.5),"-",IFERROR('Tabel 4 H'!E102/'Tabel 4F H'!E102*100,"-")) -> 3.149292406 | F102: =IF(OR('Tabel 4F H'!F102<5,'Tabel 4 H'!F102<0.5),"-",IFERROR('Tabel 4 H'!F102/'Tabel 4F H'!F102*100,"-")) -> 3.570027462 | G102: =IF(OR('Tabel 4F H'!G102<5,'Tabel 4 H'!G102<0.5),"-",IFERROR('Tabel 4 H'!G102/'Tabel 4F H'!G102*100,"-")) -> 5.648535565 | I102: =IF(OR('Tabel 4F H'!I102<5,'Tabel 4 H'!I102<0.5),"-",IFERROR('Tabel 4 H'!I102/'Tabel 4F H'!I102*100,"-")) -> 6.130296261
A109: Frederiksberg
C111: Under 30 år | D111: 30 - 39 år | E111: 40 - 49 år | F111: 50 - 59 år | G111: Over 60 år | I111: I alt
A113: Civ. ing. | C113: =IF(OR('Tabel 4F H'!C113<5,'Tabel 4 H'!C113<0.5),"-",IFERROR('Tabel 4 H'!C113/'Tabel 4F H'!C113*100,"-")) -> 5.617977528 | D113: =IF(OR('Tabel 4F H'!D113<5,'Tabel 4 H'!D113<0.5),"-",IFERROR('Tabel 4 H'!D113/'Tabel 4F H'!D113*100,"-")) -> 2.488687783 | E113: =IF(OR('Tabel 4F H'!E113<5,'Tabel 4 H'!E113<0.5),"-",IFERROR('Tabel 4 H'!E113/'Tabel 4F H'!E113*100,"-")) -> 2.816901408 | F113: =IF(OR('Tabel 4F H'!F113<5,'Tabel 4 H'!F113<0.5),"-",IFERROR('Tabel 4 H'!F113/'Tabel 4F H'!F113*100,"-")) -> 2.717391304 | G113: =IF(OR('Tabel 4F H'!G113<5,'Tabel 4 H'!G113<0.5),"-",IFERROR('Tabel 4 H'!G113/'Tabel 4F H'!G113*100,"-")) -> 1.886792453 | I113: =IF(OR('Tabel 4F H'!I113<5,'Tabel 4 H'!I113<0.5),"-",IFERROR('Tabel 4 H'!I113/'Tabel 4F H'!I113*100,"-")) -> 3.08411215
A114: Diplom ing. | C114: =IF(OR('Tabel 4F H'!C114<5,'Tabel 4 H'!C114<0.5),"-",IFERROR('Tabel 4 H'!C114/'Tabel 4F H'!C114*100,"-")) -> 11.76470588 | D114: =IF(OR('Tabel 4F H'!D114<5,'Tabel 4 H'!D114<0.5),"-",IFERROR('Tabel 4 H'!D114/'Tabel 4F H'!D114*100,"-")) -> - | E114: =IF(OR('Tabel 4F H'!E114<5,'Tabel 4 H'!E114<0.5),"-",IFERROR('Tabel 4 H'!E114/'Tabel 4F H'!E114*100,"-")) -> 4.411764706 | F114: =IF(OR('Tabel 4F H'!F114<5,'Tabel 4 H'!F114<0.5),"-",IFERROR('Tabel 4 H'!F114/'Tabel 4F H'!F114*100,"-")) -> 3.141361257 | G114: =IF(OR('Tabel 4F H'!G114<5,'Tabel 4 H'!G114<0.5),"-",IFERROR('Tabel 4 H'!G114/'Tabel 4F H'!G114*100,"-")) -> 3.703703704 | I114: =IF(OR('Tabel 4F H'!I114<5,'Tabel 4 H'!I114<0.5),"-",IFERROR('Tabel 4 H'!I114/'Tabel 4F H'!I114*100,"-")) -> 3.846153846
A115: Cand. Scient. Tek | C115: =IF(OR('Tabel 4F H'!C115<5,'Tabel 4 H'!C115<0.5),"-",IFERROR('Tabel 4 H'!C115/'Tabel 4F H'!C115*100,"-")) -> 19.35483871 | D115: =IF(OR('Tabel 4F H'!D115<5,'Tabel 4 H'!D115<0.5),"-",IFERROR('Tabel 4 H'!D115/'Tabel 4F H'!D115*100,"-")) -> 5.486284289 | E115: =IF(OR('Tabel 4F H'!E115<5,'Tabel 4 H'!E115<0.5),"-",IFERROR('Tabel 4 H'!E115/'Tabel 4F H'!E115*100,"-")) -> 4.807692308 | F115: =IF(OR('Tabel 4F H'!F115<5,'Tabel 4 H'!F115<0.5),"-",IFERROR('Tabel 4 H'!F115/'Tabel 4F H'!F115*100,"-")) -> 7.692307692 | G115: =IF(OR('Tabel 4F H'!G115<5,'Tabel 4 H'!G115<0.5),"-",IFERROR('Tabel 4 H'!G115/'Tabel 4F H'!G115*100,"-")) -> - | I115: =IF(OR('Tabel 4F H'!I115<5,'Tabel 4 H'!I115<0.5),"-",IFERROR('Tabel 4 H'!I115/'Tabel 4F H'!I115*100,"-")) -> 9.846547315
A116: MA. Hum. | C116: =IF(OR('Tabel 4F H'!C116<5,'Tabel 4 H'!C116<0.5),"-",IFERROR('Tabel 4 H'!C116/'Tabel 4F H'!C116*100,"-")) -> 26.72413793 | D116: =IF(OR('Tabel 4F H'!D116<5,'Tabel 4 H'!D116<0.5),"-",IFERROR('Tabel 4 H'!D116/'Tabel 4F H'!D116*100,"-")) -> 9.059233449 | E116: =IF(OR('Tabel 4F H'!E116<5,'Tabel 4 H'!E116<0.5),"-",IFERROR('Tabel 4 H'!E116/'Tabel 4F H'!E116*100,"-")) -> 5.413533835 | F116: =IF(OR('Tabel 4F H'!F116<5,'Tabel 4 H'!F116<0.5),"-",IFERROR('Tabel 4 H'!F116/'Tabel 4F H'!F116*100,"-")) -> 6.024096386 | G116: =IF(OR('Tabel 4F H'!G116<5,'Tabel 4 H'!G116<0.5),"-",IFERROR('Tabel 4 H'!G116/'Tabel 4F H'!G116*100,"-")) -> 6.25 | I116: =IF(OR('Tabel 4F H'!I116<5,'Tabel 4 H'!I116<0.5),"-",IFERROR('Tabel 4 H'!I116/'Tabel 4F H'!I116*100,"-")) -> 9.444444444
A117: MA. Nat. | C117: =IF(OR('Tabel 4F H'!C117<5,'Tabel 4 H'!C117<0.5),"-",IFERROR('Tabel 4 H'!C117/'Tabel 4F H'!C117*100,"-")) -> 25 | D117: =IF(OR('Tabel 4F H'!D117<5,'Tabel 4 H'!D117<0.5),"-",IFERROR('Tabel 4 H'!D117/'Tabel 4F H'!D117*100,"-")) -> 6.363636364 | E117: =IF(OR('Tabel 4F H'!E117<5,'Tabel 4 H'!E117<0.5),"-",IFERROR('Tabel 4 H'!E117/'Tabel 4F H'!E117*100,"-")) -> 1.630434783 | F117: =IF(OR('Tabel 4F H'!F117<5,'Tabel 4 H'!F117<0.5),"-",IFERROR('Tabel 4 H'!F117/'Tabel 4F H'!F117*100,"-")) -> 2.325581395 | G117: =IF(OR('Tabel 4F H'!G117<5,'Tabel 4 H'!G117<0.5),"-",IFERROR('Tabel 4 H'!G117/'Tabel 4F H'!G117*100,"-")) -> 2.564102564 | I117: =IF(OR('Tabel 4F H'!I117<5,'Tabel 4 H'!I117<0.5),"-",IFERROR('Tabel 4 H'!I117/'Tabel 4F H'!I117*100,"-")) -> 4.618473896
A118: MA. Ph.d. | C118: =IF(OR('Tabel 4F H'!C118<5,'Tabel 4 H'!C118<0.5),"-",IFERROR('Tabel 4 H'!C118/'Tabel 4F H'!C118*100,"-")) -> 16.66666667 | D118: =IF(OR('Tabel 4F H'!D118<5,'Tabel 4 H'!D118<0.5),"-",IFERROR('Tabel 4 H'!D118/'Tabel 4F H'!D118*100,"-")) -> 2.5 | E118: =IF(OR('Tabel 4F H'!E118<5,'Tabel 4 H'!E118<0.5),"-",IFERROR('Tabel 4 H'!E118/'Tabel 4F H'!E118*100,"-")) -> 9.433962264 | F118: =IF(OR('Tabel 4F H'!F118<5,'Tabel 4 H'!F118<0.5),"-",IFERROR('Tabel 4 H'!F118/'Tabel 4F H'!F118*100,"-")) -> 3.703703704 | G118: =IF(OR('Tabel 4F H'!G118<5,'Tabel 4 H'!G118<0.5),"-",IFERROR('Tabel 4 H'!G118/'Tabel 4F H'!G118*100,"-")) -> - | I118: =IF(OR('Tabel 4F H'!I118<5,'Tabel 4 H'!I118<0.5),"-",IFERROR('Tabel 4 H'!I118/'Tabel 4F H'!I118*100,"-")) -> 6.060606061
A119: MA. Samf. | C119: =IF(OR('Tabel 4F H'!C119<5,'Tabel 4 H'!C119<0.5),"-",IFERROR('Tabel 4 H'!C119/'Tabel 4F H'!C119*100,"-")) -> 15.78947368 | D119: =IF(OR('Tabel 4F H'!D119<5,'Tabel 4 H'!D119<0.5),"-",IFERROR('Tabel 4 H'!D119/'Tabel 4F H'!D119*100,"-")) -> 9.701492537 | E119: =IF(OR('Tabel 4F H'!E119<5,'Tabel 4 H'!E119<0.5),"-",IFERROR('Tabel 4 H'!E119/'Tabel 4F H'!E119*100,"-")) -> 10 | F119: =IF(OR('Tabel 4F H'!F119<5,'Tabel 4 H'!F119<0.5),"-",IFERROR('Tabel 4 H'!F119/'Tabel 4F H'!F119*100,"-")) -> 3.448275862 | G119: =IF(OR('Tabel 4F H'!G119<5,'Tabel 4 H'!G119<0.5),"-",IFERROR('Tabel 4 H'!G119/'Tabel 4F H'!G119*100,"-")) -> - | I119: =IF(OR('Tabel 4F H'!I119<5,'Tabel 4 H'!I119<0.5),"-",IFERROR('Tabel 4 H'!I119/'Tabel 4F H'!I119*100,"-")) -> 10.59602649
A120: Øvrige Mag. | C120: =IF(OR('Tabel 4F H'!C120<5,'Tabel 4 H'!C120<0.5),"-",IFERROR('Tabel 4 H'!C120/'Tabel 4F H'!C120*100,"-")) -> 33.33333333 | D120: =IF(OR('Tabel 4F H'!D120<5,'Tabel 4 H'!D120<0.5),"-",IFERROR('Tabel 4 H'!D120/'Tabel 4F H'!D120*100,"-")) -> 10.71428571 | E120: =IF(OR('Tabel 4F H'!E120<5,'Tabel 4 H'!E120<0.5),"-",IFERROR('Tabel 4 H'!E120/'Tabel 4F H'!E120*100,"-")) -> 9.523809524 | F120: =IF(OR('Tabel 4F H'!F120<5,'Tabel 4 H'!F120<0.5),"-",IFERROR('Tabel 4 H'!F120/'Tabel 4F H'!F120*100,"-")) -> 3.703703704 | G120: =IF(OR('Tabel 4F H'!G120<5,'Tabel 4 H'!G120<0.5),"-",IFERROR('Tabel 4 H'!G120/'Tabel 4F H'!G120*100,"-")) -> 9.090909091 | I120: =IF(OR('Tabel 4F H'!I120<5,'Tabel 4 H'!I120<0.5),"-",IFERROR('Tabel 4 H'!I120/'Tabel 4F H'!I120*100,"-")) -> 10.83333333
A121: Agronom | C121: =IF(OR('Tabel 4F H'!C121<5,'Tabel 4 H'!C121<0.5),"-",IFERROR('Tabel 4 H'!C121/'Tabel 4F H'!C121*100,"-")) -> 27.27272727 | D121: =IF(OR('Tabel 4F H'!D121<5,'Tabel 4 H'!D121<0.5),"-",IFERROR('Tabel 4 H'!D121/'Tabel 4F H'!D121*100,"-")) -> 10 | E121: =IF(OR('Tabel 4F H'!E121<5,'Tabel 4 H'!E121<0.5),"-",IFERROR('Tabel 4 H'!E121/'Tabel 4F H'!E121*100,"-")) -> - | F121: =IF(OR('Tabel 4F H'!F121<5,'Tabel 4 H'!F121<0.5),"-",IFERROR('Tabel 4 H'!F121/'Tabel 4F H'!F121*100,"-")) -> 3.703703704 | G121: =IF(OR('Tabel 4F H'!G121<5,'Tabel 4 H'!G121<0.5),"-",IFERROR('Tabel 4 H'!G121/'Tabel 4F H'!G121*100,"-")) -> - | I121: =IF(OR('Tabel 4F H'!I121<5,'Tabel 4 H'!I121<0.5),"-",IFERROR('Tabel 4 H'!I121/'Tabel 4F H'!I121*100,"-")) -> 7.142857143
A122: Landsk. Arkt. | C122: =IF(OR('Tabel 4F H'!C122<5,'Tabel 4 H'!C122<0.5),"-",IFERROR('Tabel 4 H'!C122/'Tabel 4F H'!C122*100,"-")) -> - | D122: =IF(OR('Tabel 4F H'!D122<5,'Tabel 4 H'!D122<0.5),"-",IFERROR('Tabel 4 H'!D122/'Tabel 4F H'!D122*100,"-")) -> - | E122: =IF(OR('Tabel 4F H'!E122<5,'Tabel 4 H'!E122<0.5),"-",IFERROR('Tabel 4 H'!E122/'Tabel 4F H'!E122*100,"-")) -> - | F122: =IF(OR('Tabel 4F H'!F122<5,'Tabel 4 H'!F122<0.5),"-",IFERROR('Tabel 4 H'!F122/'Tabel 4F H'!F122*100,"-")) -> - | G122: =IF(OR('Tabel 4F H'!G122<5,'Tabel 4 H'!G122<0.5),"-",IFERROR('Tabel 4 H'!G122/'Tabel 4F H'!G122*100,"-")) -> - | I122: =IF(OR('Tabel 4F H'!I122<5,'Tabel 4 H'!I122<0.5),"-",IFERROR('Tabel 4 H'!I122/'Tabel 4F H'!I122*100,"-")) -> 7.894736842
A123: Hortonom | C123: =IF(OR('Tabel 4F H'!C123<5,'Tabel 4 H'!C123<0.5),"-",IFERROR('Tabel 4 H'!C123/'Tabel 4F H'!C123*100,"-")) -> - | D123: =IF(OR('Tabel 4F H'!D123<5,'Tabel 4 H'!D123<0.5),"-",IFERROR('Tabel 4 H'!D123/'Tabel 4F H'!D123*100,"-")) -> - | E123: =IF(OR('Tabel 4F H'!E123<5,'Tabel 4 H'!E123<0.5),"-",IFERROR('Tabel 4 H'!E123/'Tabel 4F H'!E123*100,"-")) -> - | F123: =IF(OR('Tabel 4F H'!F123<5,'Tabel 4 H'!F123<0.5),"-",IFERROR('Tabel 4 H'!F123/'Tabel 4F H'!F123*100,"-")) -> - | G123: =IF(OR('Tabel 4F H'!G123<5,'Tabel 4 H'!G123<0.5),"-",IFERROR('Tabel 4 H'!G123/'Tabel 4F H'!G123*100,"-")) -> - | I123: =IF(OR('Tabel 4F H'!I123<5,'Tabel 4 H'!I123<0.5),"-",IFERROR('Tabel 4 H'!I123/'Tabel 4F H'!I123*100,"-")) -> -
A124: Forstkand. | C124: =IF(OR('Tabel 4F H'!C124<5,'Tabel 4 H'!C124<0.5),"-",IFERROR('Tabel 4 H'!C124/'Tabel 4F H'!C124*100,"-")) -> - | D124: =IF(OR('Tabel 4F H'!D124<5,'Tabel 4 H'!D124<0.5),"-",IFERROR('Tabel 4 H'!D124/'Tabel 4F H'!D124*100,"-")) -> - | E124: =IF(OR('Tabel 4F H'!E124<5,'Tabel 4 H'!E124<0.5),"-",IFERROR('Tabel 4 H'!E124/'Tabel 4F H'!E124*100,"-")) -> - | F124: =IF(OR('Tabel 4F H'!F124<5,'Tabel 4 H'!F124<0.5),"-",IFERROR('Tabel 4 H'!F124/'Tabel 4F H'!F124*100,"-")) -> - | G124: =IF(OR('Tabel 4F H'!G124<5,'Tabel 4 H'!G124<0.5),"-",IFERROR('Tabel 4 H'!G124/'Tabel 4F H'!G124*100,"-")) -> - | I124: =IF(OR('Tabel 4F H'!I124<5,'Tabel 4 H'!I124<0.5),"-",IFERROR('Tabel 4 H'!I124/'Tabel 4F H'!I124*100,"-")) -> -
A125: Jordbrugsakad. | C125: =IF(OR('Tabel 4F H'!C125<5,'Tabel 4 H'!C125<0.5),"-",IFERROR('Tabel 4 H'!C125/'Tabel 4F H'!C125*100,"-")) -> 35.29411765 | D125: =IF(OR('Tabel 4F H'!D125<5,'Tabel 4 H'!D125<0.5),"-",IFERROR('Tabel 4 H'!D125/'Tabel 4F H'!D125*100,"-")) -> 4.87804878 | E125: =IF(OR('Tabel 4F H'!E125<5,'Tabel 4 H'!E125<0.5),"-",IFERROR('Tabel 4 H'!E125/'Tabel 4F H'!E125*100,"-")) -> - | F125: =IF(OR('Tabel 4F H'!F125<5,'Tabel 4 H'!F125<0.5),"-",IFERROR('Tabel 4 H'!F125/'Tabel 4F H'!F125*100,"-")) -> 2.5 | G125: =IF(OR('Tabel 4F H'!G125<5,'Tabel 4 H'!G125<0.5),"-",IFERROR('Tabel 4 H'!G125/'Tabel 4F H'!G125*100,"-")) -> - | I125: =IF(OR('Tabel 4F H'!I125<5,'Tabel 4 H'!I125<0.5),"-",IFERROR('Tabel 4 H'!I125/'Tabel 4F H'!I125*100,"-")) -> 6.25
A126: Mejeriing. | C126: =IF(OR('Tabel 4F H'!C126<5,'Tabel 4 H'!C126<0.5),"-",IFERROR('Tabel 4 H'!C126/'Tabel 4F H'!C126*100,"-")) -> 33.33333333 | D126: =IF(OR('Tabel 4F H'!D126<5,'Tabel 4 H'!D126<0.5),"-",IFERROR('Tabel 4 H'!D126/'Tabel 4F H'!D126*100,"-")) -> - | E126: =IF(OR('Tabel 4F H'!E126<5,'Tabel 4 H'!E126<0.5),"-",IFERROR('Tabel 4 H'!E126/'Tabel 4F H'!E126*100,"-")) -> - | F126: =IF(OR('Tabel 4F H'!F126<5,'Tabel 4 H'!F126<0.5),"-",IFERROR('Tabel 4 H'!F126/'Tabel 4F H'!F126*100,"-")) -> - | G126: =IF(OR('Tabel 4F H'!G126<5,'Tabel 4 H'!G126<0.5),"-",IFERROR('Tabel 4 H'!G126/'Tabel 4F H'!G126*100,"-")) -> - | I126: =IF(OR('Tabel 4F H'!I126<5,'Tabel 4 H'!I126<0.5),"-",IFERROR('Tabel 4 H'!I126/'Tabel 4F H'!I126*100,"-")) -> 12.5
A127: Levn.m.kand. | C127: =IF(OR('Tabel 4F H'!C127<5,'Tabel 4 H'!C127<0.5),"-",IFERROR('Tabel 4 H'!C127/'Tabel 4F H'!C127*100,"-")) -> 33.33333333 | D127: =IF(OR('Tabel 4F H'!D127<5,'Tabel 4 H'!D127<0.5),"-",IFERROR('Tabel 4 H'!D127/'Tabel 4F H'!D127*100,"-")) -> 5.882352941 | E127: =IF(OR('Tabel 4F H'!E127<5,'Tabel 4 H'!E127<0.5),"-",IFERROR('Tabel 4 H'!E127/'Tabel 4F H'!E127*100,"-")) -> - | F127: =IF(OR('Tabel 4F H'!F127<5,'Tabel 4 H'!F127<0.5),"-",IFERROR('Tabel 4 H'!F127/'Tabel 4F H'!F127*100,"-")) -> - | G127: =IF(OR('Tabel 4F H'!G127<5,'Tabel 4 H'!G127<0.5),"-",IFERROR('Tabel 4 H'!G127/'Tabel 4F H'!G127*100,"-")) -> - | I127: =IF(OR('Tabel 4F H'!I127<5,'Tabel 4 H'!I127<0.5),"-",IFERROR('Tabel 4 H'!I127/'Tabel 4F H'!I127*100,"-")) -> 20.51282051
A128: Dyrlæge | C128: =IF(OR('Tabel 4F H'!C128<5,'Tabel 4 H'!C128<0.5),"-",IFERROR('Tabel 4 H'!C128/'Tabel 4F H'!C128*100,"-")) -> 11.11111111 | D128: =IF(OR('Tabel 4F H'!D128<5,'Tabel 4 H'!D128<0.5),"-",IFERROR('Tabel 4 H'!D128/'Tabel 4F H'!D128*100,"-")) -> - | E128: =IF(OR('Tabel 4F H'!E128<5,'Tabel 4 H'!E128<0.5),"-",IFERROR('Tabel 4 H'!E128/'Tabel 4F H'!E128*100,"-")) -> - | F128: =IF(OR('Tabel 4F H'!F128<5,'Tabel 4 H'!F128<0.5),"-",IFERROR('Tabel 4 H'!F128/'Tabel 4F H'!F128*100,"-")) -> 15.38461538 | G128: =IF(OR('Tabel 4F H'!G128<5,'Tabel 4 H'!G128<0.5),"-",IFERROR('Tabel 4 H'!G128/'Tabel 4F H'!G128*100,"-")) -> - | I128: =IF(OR('Tabel 4F H'!I128<5,'Tabel 4 H'!I128<0.5),"-",IFERROR('Tabel 4 H'!I128/'Tabel 4F H'!I128*100,"-")) -> 5.063291139
A129: Farmaceut | C129: =IF(OR('Tabel 4F H'!C129<5,'Tabel 4 H'!C129<0.5),"-",IFERROR('Tabel 4 H'!C129/'Tabel 4F H'!C129*100,"-")) -> 16 | D129: =IF(OR('Tabel 4F H'!D129<5,'Tabel 4 H'!D129<0.5),"-",IFERROR('Tabel 4 H'!D129/'Tabel 4F H'!D129*100,"-")) -> 3.614457831 | E129: =IF(OR('Tabel 4F H'!E129<5,'Tabel 4 H'!E129<0.5),"-",IFERROR('Tabel 4 H'!E129/'Tabel 4F H'!E129*100,"-")) -> - | F129: =IF(OR('Tabel 4F H'!F129<5,'Tabel 4 H'!F129<0.5),"-",IFERROR('Tabel 4 H'!F129/'Tabel 4F H'!F129*100,"-")) -> 4.545454545 | G129: =IF(OR('Tabel 4F H'!G129<5,'Tabel 4 H'!G129<0.5),"-",IFERROR('Tabel 4 H'!G129/'Tabel 4F H'!G129*100,"-")) -> - | I129: =IF(OR('Tabel 4F H'!I129<5,'Tabel 4 H'!I129<0.5),"-",IFERROR('Tabel 4 H'!I129/'Tabel 4F H'!I129*100,"-")) -> 5.627705628
A130: Læge | C130: =IF(OR('Tabel 4F H'!C130<5,'Tabel 4 H'!C130<0.5),"-",IFERROR('Tabel 4 H'!C130/'Tabel 4F H'!C130*100,"-")) -> 3.896103896 | D130: =IF(OR('Tabel 4F H'!D130<5,'Tabel 4 H'!D130<0.5),"-",IFERROR('Tabel 4 H'!D130/'Tabel 4F H'!D130*100,"-")) -> 1.666666667 | E130: =IF(OR('Tabel 4F H'!E130<5,'Tabel 4 H'!E130<0.5),"-",IFERROR('Tabel 4 H'!E130/'Tabel 4F H'!E130*100,"-")) -> 0.9708737864 | F130: =IF(OR('Tabel 4F H'!F130<5,'Tabel 4 H'!F130<0.5),"-",IFERROR('Tabel 4 H'!F130/'Tabel 4F H'!F130*100,"-")) -> - | G130: =IF(OR('Tabel 4F H'!G130<5,'Tabel 4 H'!G130<0.5),"-",IFERROR('Tabel 4 H'!G130/'Tabel 4F H'!G130*100,"-")) -> - | I130: =IF(OR('Tabel 4F H'!I130<5,'Tabel 4 H'!I130<0.5),"-",IFERROR('Tabel 4 H'!I130/'Tabel 4F H'!I130*100,"-")) -> 1.479915433
A131: Tandlæge | C131: =IF(OR('Tabel 4F H'!C131<5,'Tabel 4 H'!C131<0.5),"-",IFERROR('Tabel 4 H'!C131/'Tabel 4F H'!C131*100,"-")) -> 5.555555556 | D131: =IF(OR('Tabel 4F H'!D131<5,'Tabel 4 H'!D131<0.5),"-",IFERROR('Tabel 4 H'!D131/'Tabel 4F H'!D131*100,"-")) -> 3.571428571 | E131: =IF(OR('Tabel 4F H'!E131<5,'Tabel 4 H'!E131<0.5),"-",IFERROR('Tabel 4 H'!E131/'Tabel 4F H'!E131*100,"-")) -> - | F131: =IF(OR('Tabel 4F H'!F131<5,'Tabel 4 H'!F131<0.5),"-",IFERROR('Tabel 4 H'!F131/'Tabel 4F H'!F131*100,"-")) -> - | G131: =IF(OR('Tabel 4F H'!G131<5,'Tabel 4 H'!G131<0.5),"-",IFERROR('Tabel 4 H'!G131/'Tabel 4F H'!G131*100,"-")) -> - | I131: =IF(OR('Tabel 4F H'!I131<5,'Tabel 4 H'!I131<0.5),"-",IFERROR('Tabel 4 H'!I131/'Tabel 4F H'!I131*100,"-")) -> 3.076923077
A132: Arkitekt | C132: =IF(OR('Tabel 4F H'!C132<5,'Tabel 4 H'!C132<0.5),"-",IFERROR('Tabel 4 H'!C132/'Tabel 4F H'!C132*100,"-")) -> 36.11111111 | D132: =IF(OR('Tabel 4F H'!D132<5,'Tabel 4 H'!D132<0.5),"-",IFERROR('Tabel 4 H'!D132/'Tabel 4F H'!D132*100,"-")) -> 6.299212598 | E132: =IF(OR('Tabel 4F H'!E132<5,'Tabel 4 H'!E132<0.5),"-",IFERROR('Tabel 4 H'!E132/'Tabel 4F H'!E132*100,"-")) -> 3.546099291 | F132: =IF(OR('Tabel 4F H'!F132<5,'Tabel 4 H'!F132<0.5),"-",IFERROR('Tabel 4 H'!F132/'Tabel 4F H'!F132*100,"-")) -> 3.448275862 | G132: =IF(OR('Tabel 4F H'!G132<5,'Tabel 4 H'!G132<0.5),"-",IFERROR('Tabel 4 H'!G132/'Tabel 4F H'!G132*100,"-")) -> 2.702702703 | I132: =IF(OR('Tabel 4F H'!I132<5,'Tabel 4 H'!I132<0.5),"-",IFERROR('Tabel 4 H'!I132/'Tabel 4F H'!I132*100,"-")) -> 7.009345794
